Workbook

Sheet How to Use
B1: यह एक्सेल प्रोग्राम इष्टदेव बजरंगबली व पाबूजी महाराज की असीम कृपा तथा गुरुदेव वासुदेवजी महाराज के आशीर्वाद और माता -पिता के शुभ आशीष से आप तक हाजिर किया जा रहा है
B4: :: निर्देश ::
B5: Video No. 01 link :- | C5: https://youtu.be/e9tzJ3zCZPk
B6: Video No. 02 link :- | C6: https://youtu.be/KZNCz_sq6iQ
B7: Video No. 03 link :- | C7: https://youtu.be/ZmZ-D7xZTpA
B8: New Update Video :- | C8: https://youtu.be/fTQ-UORJAX8
A9: 1 | B9: Master Sheet :- | C9: इस शीट पर आप अपने से सम्बंधित सूचना की एंट्री कर सकते है I सबसे पहले आप अपने विद्यालय का नाम तथा उसके बाद अपने डीडीओ का नाम व पद , उसके बाद अपना स्वयं का नाम व पद इनपुट करें I उसके बाद आपको किस माह से एरियर बनाना है , उस माह को सलेक्ट बटन से सलेक्ट करे तथा अगले कॉलम में किस माह तक एरियर बनाना है उसे सलेक्ट करें I मकान किराया दर , पे मेट्रिक्स लेवल और इनकम टैक्स कटवाना है तो प्रतिशत में लिखे अन्यथा शुन्य ही रहने देवे I उसके बाद वेतन का प्रकार लिखें , इसमे आप रेगुलर पे और फिक्स पे में से चयन करें I यदि आप फिक्स वेतन को सलेक्ट करते है तो फ़िक्स पे के वेतन वाला कॉलम खुल जायेगा और रेगुलर वेतन वाला कॉलम फ्रीज़ हो जायेगा I और यदि आप रेगुलर पे का आप्शन सलेक्ट करते है तो रेगुलर पे वाला आप्शन अनफ्रीज़ हो जायेगा I उसके बाद आप जिस दिनांक से वेतन बनाना चाहते है उस दिनांक को DD/MM/YYYY के फॉर्मेट में लिखें I नवीन वेतन का बेसिक पे लिखें , जिसके द्वारा एरियर की कैलकुलेशन होगी I उसके बाद यदि आप किसी पूर्व राजकीय सेवा में रहने के कारण एरियर बनाना है तो इसमे YES सलेक्ट करें I जैसे ही YES सलेक्ट करेंगे तो वेतन लिखने के लिए कॉलम अनफ्रीज़ हो जायेगा , जिसमे वेतन लिख पायेंगे I उसके बाद यदि आपके S.I. कटौती हो रही है तो S.I. कटौती को इन्द्राज करें I उसके बाद यदि आपके G.P.F. कटौती हो रही है तो पहले YES सलेक्ट करें तथा उसके बाद आप G.P.F. कटौती को इन्द्राज करें I अन्त में यदि एरियर बनाने के पीरियड में आपके वेतन में जुलाई की वेतन वृद्धि के अलावा ओर किसी प्रकार की वेतन वृद्धि हुई है तो YES सलेक्ट करे , YES सलेक्ट करते ही वेतन लिखने के लिए आप्शन शो हो जायेंगे I नियमित वेतन वृद्धि स्वतः होगी I मार्च 2020 के वेतन से कोरोना की कटौती हुई हो तो yes सेलेक्ट करे I जैसे ही yes सलेक्ट करेंगे दिनों की संख्या भरने के आप्शन शो हो जायेगा I वहा दिनों की संख्या सलेक्ट कर लेवे I
D10: Update on
C11: नोट :- आप को जो भी एन्ट्री करनी है वो सब मास्टर शीट पर ही करनी है , एरियर शीट पर कुछ नहीं करना है I यदि आपको ड्राप डाउन लिस्ट में आपका पद नहीं मिल रहा है तो मास्टर शीट पर गुरुदेव की फोटो के नीचे टेबल दे रखी है , उसमे लिख लेवे , वह पद लिस्ट में ऐड हो जाएगा I | D11: 2023-06-28
A13: 2 | B13: Arrear Sheet :- | C13: यहाँ पर मास्टर शीट पर जो एंट्री की गयी है उसका आउटपुट मिलेगा I यहाँ किसी भी प्रकार की एन्ट्री नहीं होगी I जो भी संशोधन करना है तो मास्टर शीट पर करना है I यह शीट fully ऑटोमेटेड है , यहाँ पर केवल प्रिंट निकलना है , जो A4 साइज़ में पेज सेट किया हुआ है I
A15: 3 | B15: Unlock Arrear Sheet :- | C15: यह अनलॉक शीट इसलिए डाली गयी ताकि किसी भी अपवाद स्वरुप किसी कार्मिक का वेतन ड्रा (एरियर ) सही नहीं बैठ रहा है या फिर वेतन व कटोती में ज्यादा संशोधन है तो आप अनलॉक शीट काम में ले सकते है I कही पर त्रुटि रहने के समय काम ले सकते है I
B17: सूचना :- | C17: वैसे इस प्रोग्राम को तैयार करने में पूर्ण सावधानी बरती गयी है , फिर भी मानवीय त्रुटि होना संम्भव है I अतः आप अपने स्तर पर जरुर चेक कर लेवे I इस हेतु निर्माणकर्ता कतई जिम्मेदार नहीं होगा I यह आपकी सुविधा के लिए है I
C19: वैसे शीट पूरी मेहनत से तैयार की गयी है , फिर भी अगर कही पर त्रुटि रहती है तो जरुर अवगत करावे , इस हेतु जरुर संशोधित संस्करण निकाला जायेगा I
C21: धन्यवाद
C22: आपका दोस्त
C23: हीरालाल जाट , वरिष्ठ अध्यापक (एक्सेल प्रोग्रामर )

Sheet Master Sheet
D1: DATA ENTRY | L1: You tube Video Link Given Bleow
C3: Office Name :- | D3: Senior Medical officer, Community Health Center, Chandawal Nagar | AI3: 2017-01-01
AI4: 2017-02-01
C5: डीडीओ का नाम :- | D5: USHA PALIYA | H5: डीडीओ का पद :- | I5: CMO | K5: जुलाई 2021 से पूर्व मकान किराया दर :- | M5: 8 | N5: % | P5: HRA पुराना ही लिखे नए के लिए Cell no. D29 | AI5: 2017-03-01
AI6: 2017-04-01
C7: कार्मिक/अधिकारी का नाम :- | D7: HEERALAL JAT | H7: कार्मिक/अधिकारी का पद :- | I7: MO | K7: निर्धारित पे मैट्रिक्स लेवल :- | M7: L-16 | Q7: परम पूज्य गुरुदेव वासुदेवजी महाराज | AI7: 2017-05-01
AI8: 2017-06-01
B9: किस माह से एरियर बनाना है :- | D9: 2019-04-01 | H9: तथा किस माह तक एरियर बनाना है :- | I9: 2023-11-01 | K9: इन्कम टैक्स कटाना है तो % में लिखे :- | M9: 0 | N9: % | AI9: 2017-07-01
Q10: Post | AI10: 2017-08-01
B11: जो पूर्व में वेतन मिला है उसका प्रकार सेलेक्ट करें :- | D11: Regular Pay | H11: फिक्स पे वेतन मिला हो तो यहाँ लिखें :- | I11: 23700 | K11: यदि नियमित वेतन मिला हो तो यहाँ लिखें :- | M11: 95900 | Q11: CMO | AI11: 2017-09-01
D12: DD | E12: MM | F12: YYYYY | Q12: MO | AI12: 2017-10-01
B13: किस तारीख से एरियर बनाना है :- (Date Format :- DD/MM/YYYY ). | D13: 11 | E13: 4 | F13: 2019 | H13: नया वेतन मिलने के दिनों की संख्या :- (आप सिर्फ़ चेक कर सकते है ) | I13: =IFERROR(IF('Arrear Sheet'!BA6="","",'Arrear Sheet'!BA6),"") -> 20 | K13: नवीन निर्धारित वेतन (New Basic Salary) :- | M13: 101200 | Q13: Nurse | AI13: 2017-11-01
AI14: 2017-12-01
B15: यदि कार्मिक के वेतन से राज्य बीमा कटोती हो रही है तो YES सेलेक्ट करें :- | D15: YES | H15: S.I. Deduction Premium Amount :- | I15: 2100 | K15: S.I. Deduction Due Premium Amount :- | M15: 2100 | AI15: 2018-01-01
AI16: 2018-02-01
B17: यदि एरियर बनाने की अवधि के दौरान राज्य बीमा कटोती में वृद्धि हुई है तो YES सेलेक्ट करें :- | D17: NO | H17: जिस माह में S.I. Premium में बदलाव आया है , वह माह सलेक्ट करें :- | I17: 2019-03-01 | K17: परिवर्तित प्रीमियम राशि यहाँ पर लिखें :- | M17: 3000 | AI17: 2018-03-01
AI18: 2018-04-01
B19: यदि कार्मिक की नियुक्ति 01-01-2004 से पूर्व है तो YES सेलेक्ट करें :- | D19: NO | H19: G.P.F. Deduction Premium Amount :- | I19: 3675 | K19: G.P.F. Deduction Due Premium Amount :- | M19: 3675 | AI19: 2018-05-01
AI20: 2018-06-01
B21: यदि एरियर बनाने की अवधि के दौरान GPF कटोती में वृद्धि हुई है तो YES सेलेक्ट करें :- | D21: NO | H21: जिस माह में G.P.F. Ded. में वृद्धि करवाई है , वह माह सलेक्ट करें :- | I21: 2021-04-01 | K21: परिवर्तित प्रीमियम राशि यहाँ पर लिखें :- | M21: 5000 | AI21: 2018-07-01
AI22: 2018-08-01
B23: यदि एरियर ड्रा के दौरान आपके वेतन में फिक्सेशन या एसीपी के कारण वेतन में बदलाव आया हो तो YES सेलेक्ट करें :- | D23: NO | H23: जिस माह में वेतन में बदलाव आया है , वह माह सलेक्ट करें :- | I23: 2021-04-01 | K23: परिवर्तित वेतन यहाँ पर लिखें :- | M23: 41100 | AI23: 2018-09-01
AI24: 2018-10-01
B25: जुलाई 2021 से मकान किराया दर :- | D25: =IFERROR(IF(M5=8,9,IF(M5=16,18,0)),"") -> 9 | G25: % | H25: यदि GPF-2004 की कटौती हो रही है तो YES सलेक्ट करे, नहीं तो NO सलेक्ट करें (1 अप्रैल 2022 से) :- | M25: YES | AI25: 2018-11-01
AI26: 2018-12-01
B27: RGHS की दर में परिवर्तन हुआ है तो लिखे :- | K27: GPF-2004 के प्रीमियम राशि यहाँ पर लिखें :- | M27: 2100 | AI27: 2019-01-01
AI28: 2019-02-01
AI29: 2019-03-01
M30: Last Update Date | AI30: 2019-04-01
C31: You tube Video Link | G31: This Program Is Developed By : | M31: 2023-06-28 | AI31: 2019-05-01
C32: https://youtu.be/fTQ-UORJAX8 | G32: Heeralal Jat | AI32: 2019-06-01
G33: Senior Teacher | M33: https://youtu.be/fTQ-UORJAX8 | AI33: 2019-07-01
C34: You tube Channal Link | G34: Mahatma Gandhi Government School Bar , PALI | AI34: 2019-08-01
C35: https://youtube.com/c/Heeralaljat | G35: V./P. :- Chandawal Nagar, Teh. - Sojat (Pali) | AI35: 2019-09-01
AI36: 2019-10-01
AI37: 2019-11-01
AI38: 2019-12-01
AI39: 2020-01-01
AI40: 2020-02-01
AI41: 2020-03-01
AI42: 2020-04-01
AI43: 2020-05-01
AI44: 2020-06-01
AI45: 2020-07-01
AI46: 2020-08-01
AI47: 2020-09-01
AI48: 2020-10-01
AI49: 2020-11-01
AI50: 2020-12-01
AI51: 2021-01-01
AI52: 2021-02-01
AI53: 2021-03-01
AI54: 2021-04-01
AI55: 2021-05-01
AI56: 2021-06-01
AI57: 2021-07-01
AI58: 2021-08-01
AI59: 2021-09-01
AI60: 2021-10-01
AI61: 2021-11-01
AI62: 2021-12-01
AI63: 2022-01-01
AI64: 2022-02-01
AI65: 2022-03-01
AI66: 2022-04-01
AI67: 2022-05-01
AI68: 2022-06-01
AI69: 2022-07-01
AI70: 2022-08-01
AI71: 2022-09-01
AI72: 2022-10-01
AI73: 2022-11-01
AI74: 2022-12-01
AI75: 2023-01-01
AI76: 2023-02-01
AI77: 2023-03-01
AI78: 2023-04-01
AI79: 2023-05-01
AI80: 2023-06-01
AI81: 2023-07-01
AI82: 2023-08-01
AI83: 2023-09-01
AI84: 2023-10-01
AI85: 2023-11-01
AI86: 2023-12-01
AI87: 2024-01-01
AI88: 2024-02-01
AI89: 2024-03-01
AI90: 2024-04-01
AI91: 2024-05-01
AI92: 2024-06-01
AI93: 2024-07-01
AI94: 2024-08-01
AI95: 2024-09-01
AI96: 2024-10-01
AI97: 2024-11-01
AI98: 2024-12-01

Sheet Arrear Sheet
C1: =IF('Master Sheet'!D3="","",CONCATENATE("Office ",'Master Sheet'!D3,)) -> Office Senior Medical officer, Community Health Center, Chandawal Nagar | AR1: 2022-03-01 | AU1: 2020-03-01 | AW1: ='Master Sheet'!D9 -> 2019-04-01 | AY1: ='Master Sheet'!M27 -> 2100 | BY1: 2022-03-01
C2: Difference Arrear Sheet | AR2: GPF-2004 | AW2: =IFERROR(IF(AW1="",0,MONTH(AW1)),"") -> 4 | BA2: =IF(AU4=AU3,29,IF(AW2=1,31,IF(AW2=2,28,IF(AW2=3,31,IF(AW2=4,30,IF(AW2=5,31,IF(AW2=6,30,IF(AW2=7,31,IF(AW2=8,31,IF(AW2=9,30,IF(AW2=10,31,IF(AW2=11,30,IF(AW2=12,31,0))))))))))))) -> 30 | BD2: 2017-07-01 | BE2: 2023-07-01
F3: Name Of Employee : | I3: =IFERROR(UPPER('Master Sheet'!D7),"") -> HEERALAL JAT | O3: Post : | Q3: =IFERROR(UPPER('Master Sheet'!I7),"") -> MO | U3: Pay Matrix Level : | Y3: =IFERROR(CONCATENATE("L - ",'Master Sheet'!M7),"") -> L - 16 | AF3: GPF / NPS :- | AI3: =IF($AU$18=$AU$20,"GPF","GPF-2004") -> GPF-2004 | AS3: =MONTH(AW10) -> 5 | AU3: ='Master Sheet'!D9 -> 2019-04-01 | AW3: =IFERROR(IF(AU6="",0,MONTH(AU6)),"") -> 4 | BA3: =IF(AU4=AU3,29,IF(AW2=1,31,IF(AW2=2,28,IF(AW2=3,31,IF(AW2=4,30,IF(AW2=5,31,IF(AW2=6,30,IF(AW2=7,31,IF(AW2=8,31,IF(AW2=9,30,IF(AW2=10,31,IF(AW2=11,30,IF(AW2=12,31,0))))))))))))) -> 30 | BD3: 2018-07-01
I4: Arrear From Date : | P4: =IFERROR('Master Sheet'!D9,"") -> 2019-04-01 | T4: to | U4: =IFERROR('Master Sheet'!I9,"") -> 2023-11-01 | X4: Posting Place : | AR4: =IF(AI3="GPF"," GPF","GPF-2004") -> GPF-2004 | AS4: =MONTH(AV6) -> 11 | AU4: 2020-02-01 | AV4: ='Master Sheet'!D13 -> 11 | AW4: =IFERROR(IF(AV4="",0,AV4-1),"") -> 10 | BA4: =IFERROR(SUM(BA3-AW4),"") -> 20 | BD4: 2019-07-01
BD5: 2020-07-01
B6: Sr. No. | C6: Month | D6: Pay Due | I6: Pay Drawn | N6: Pay Difference | S6: =IF($AU$18=$AU$20,"GPF","NPS/GPF-2004") -> NPS/GPF-2004 | V6: SI | Y6: RGHS | AB6: CM Corona Fund | AE6: =CONCATENATE("GPF In ",AR4) -> GPF In GPF-2004 | AF6: Income Tax | AG6: Total Deduction | AH6: Net Payment | AI6: Bill No./Date | AJ6: Encashment Date | AS6: 2020-09-01 | AT6: 2020-10-01 | AU6: =IF('Master Sheet'!D9="","",'Master Sheet'!D9) -> 2019-04-01 | AV6: =IF('Master Sheet'!I9="","",'Master Sheet'!I9) -> 2023-11-01 | AW6: =IFERROR(IF(AV4="",0,DAY(AV4)-1),"") -> 10 | BA6: =IFERROR(SUM(BA2-AW4),"") -> 20 | BD6: 2021-07-01
D7: Pay | E7: DA | F7: HRA | G7: NPA | H7: Total | I7: Pay | J7: DA | K7: HRA | L7: NPA | M7: Total | N7: Pay | O7: DA | P7: HRA | Q7: NPA | R7: Total | S7: Due | T7: Ded | U7: Diff. | V7: Due | W7: Ded | X7: Diff. | Y7: Due | Z7: Ded | AA7: Diff. | AB7: Due | AC7: Ded | AD7: Diff. | AR7: =IF(AS7="NO",28,31) -> 31 | AS7: =IF('Master Sheet'!M25="","",'Master Sheet'!M25) -> YES | AU7: =IF('Master Sheet'!M9="","",'Master Sheet'!M9) -> 0 | AW7: =IF('Master Sheet'!M5="","",'Master Sheet'!M5) -> 8 | BA7: =IF('Master Sheet'!D25="","",'Master Sheet'!D25) -> 9 | BC7: 2021-07-01 | BD7: 2022-07-01 | BQ7: =ROUND(ROUND(O8*3%,0)*10%,0) -> 2
A8: =IF(LEN(C8)>=2,1,0) -> 1 | B8: =IFERROR(IF(A8="","",IF(A8=0,"",A8)),"") -> 1 | C8: =IFERROR(IF(AZ9="","",AZ9),"") -> 2019-04-01 | D8: =IFERROR(IF(BA9="","",BA9),"") -> 67467 | E8: =IFERROR(IF(BC9="","",BC9),"") -> 9715 | F8: =IFERROR(IF(OR(C8=$AS$16,C8=$AS$17,C8=$AS$18,C8=$AS$19,C8=$AS$20,C8=$AS$21,C8=$AS$22,C8=$AS$23,C8=$AS$24),0,IF(BD9="","",BD9)),"") -> 5397 | G8: =IFERROR(IF(BB9="","",BB9),"") -> 13493 | H8: =IF(C8="","",SUM(D8:G8)) -> 96072 | I8: =IFERROR(IF(BF9="","",BF9),"") -> 63933 | J8: =IFERROR(IF(BH9="","",BH9),"") -> 9206 | K8: =IFERROR(IF(OR(C8=$AS$16,C8=$AS$17,C8=$AS$18,C8=$AS$19,C8=$AS$20,C8=$AS$21,C8=$AS$22,C8=$AS$23,C8=$AS$24),0,IF(BI9="","",BI9)),"") -> 5115 | L8: =IFERROR(IF(BG9="","",BG9),"") -> 12787 | M8: =IF(C8="","",SUM(I8:L8)) -> 91041 | N8: =IFERROR(IF(C8="","",IF(D8="","",IF(I8="","",SUM(D8-I8)))),"") -> 3534 | O8: =IFERROR(IF(C8="","",IF(E8="","",IF(J8="","",SUM(E8-J8)))),"") -> 509 | P8: =IFERROR(IF(C8="","",IF(F8="","",IF(K8="","",SUM(F8-K8)))),"") -> 282 | Q8: =IFERROR(IF(D8="","",IF(G8="","",IF(L8="","",SUM(G8-L8)))),"") -> 706 | R8: =IFERROR(IF(C8="","",IF(H8="","",IF(M8="","",SUM(H8-M8)))),"") -> 5031 | S8: =IF(C8="","",IF(AND(C8>$AR$1,$AI$3=$AR$2),BW9,IF($AU$18=$AU$20,SUM(BJ9+BR9),ROUND((D8+E8)*10%,0)))) -> 7718 | T8: =IFERROR(IF(C8="","",IF(I8="","",IF(J8="","",IF(AND(C8>$AR$1,$AI$3=$AR$2),BW9,IF($AU$18=$AU$20,$AU$21,ROUND((I8+J8)*10%,0)))))),"") -> 7314 | U8: =IFERROR(IF(C8="","",SUM(S8-T8)),"") -> 404 | V8: =IFERROR(IF(C8="","",IF($AU$16=$AU$17,0,IF($AU$19=$AU$20,$AU$25,0))),"") -> 2100 | W8: =IFERROR(IF(C8="","",IF($AU$16=$AU$17,0,IF($AU$19=$AU$20,$AU$24,0))),"") -> 2100 | X8: =IFERROR(IF(C8="","",SUM(V8-W8)),"") -> 0 | Y8: =IFERROR(IF(C8="","",IF($AU$16=$AU$17,0,BZ8)),"") ->  | Z8: =IFERROR(IF(C8="","",IF($AU$16=$AU$17,0,BY8)),"") ->  | AA8: =IFERROR(IF(C8="","",SUM(Y8-Z8)),"") ->  | AB8: =IFERROR(IF(C8="","",IF(D8="","",IF(C8=$AU$1,ROUND(D8*5/31,0.01),""))),"") ->  | AC8: =IFERROR(IF(C8="","",IF(I8="","",IF(C8=$AU$1,ROUND(I8*5/31,0.01),""))),"") ->  | AD8: =IFERROR(IF(I8="","",SUM(AB8-AC8)),"") ->  | AE8: =IFERROR(IF(BO9="","",IF(AND(AI3="NPS",BO9="YES"),SUM(BP9+BW9),"")),"") ->  | AF8: =IFERROR(IF(C8="","",ROUND(R8*$AU$7%,0)),"") -> 0 | AG8: =IFERROR(IF(C8="","",IF($AI$3="GPF",SUM(U8,X8,AA8,AD8,AE8,AF8),SUM(U8,X8,AA8,AD8,AE8,AF8))),"") -> 404 | AH8: =IFERROR(IF(C8="","",SUM(R8-AG8)),"") -> 4627 | BR8: GPF | BY8: =IF(AZ9="","",IF(AZ9="TOTAL","",IF($AU$16=$AU$17,0,IF(AND(AZ9=$BY$1),IF($AU$14<18001,135,IF($AU$14<33501,220,IF($AU$14<54001,330,440))),IF(AND(AZ9>$BY$1),IF($AU$14<18001,265,IF($AU$14<33501,440,IF($AU$14<54001,658,875))),""))))) ->  | BZ8: =IF(AZ9="","",IF(AZ9="TOTAL","",IF($AU$16=$AU$17,0,IF(AND(AZ9>$BY$1,$AI$3=$AR$2,'Master Sheet'!$D$27>0),'Master Sheet'!$D$27,IF(AND(AZ9=$BY$1),IF($AU$9<18001,135,IF($AU$9<33501,220,IF($AU$9<54001,330,440))),IF(AND(AZ9>$BY$1),IF($AU$9<18001,265,IF($AU$9<33501,440,IF($AU$9<54001,658,875))),"")))))) -> 
A9: =IF(C9="TOTAL","",IF(LEN(C9)>=2,B8+1,0)) -> 2 | B9: =IFERROR(IF(A9="","",IF(A9=0,"",A9)),"") -> 2 | C9: =IFERROR(IF(AZ10="","",AZ10),"") -> 2019-05-01 | D9: =IFERROR(IF($C9="TOTAL",SUM($D$8:D8),IF(BA10="","",BA10)),"") -> 101200 | E9: =IFERROR(IF($C9="TOTAL",SUM($E$8:E8),IF(BC10="","",BC10)),"") -> 14573 | F9: =IFERROR(IF($C9="TOTAL",SUM($F$8:F8),IF(OR(C9=$AS$16,C9=$AS$17,C9=$AS$18,C9=$AS$19,C9=$AS$20,C9=$AS$21,C9=$AS$22,C9=$AS$23,C9=$AS$24),0,IF(BD10="","",BD10))),"") -> 8096 | G9: =IFERROR(IF($C9="TOTAL",SUM($G$8:G8),IF(BB10="","",BB10)),"") -> 20240 | H9: =IF(C9="","",SUM(D9:G9)) -> 144109 | I9: =IFERROR(IF($C9="TOTAL",SUM($I$8:I8),IF(BF10="","",BF10)),"") -> 95900 | J9: =IFERROR(IF($C9="TOTAL",SUM($J$8:J8),IF(BH10="","",BH10)),"") -> 13810 | K9: =IFERROR(IF($C9="TOTAL",SUM($K$8:K8),IF(OR(C9=$AS$16,C9=$AS$17,C9=$AS$18,C9=$AS$19,C9=$AS$20,C9=$AS$21,C9=$AS$22,C9=$AS$23,C9=$AS$24),0,IF(BI10="","",BI10))),"") -> 7672 | L9: =IFERROR(IF($C9="TOTAL",SUM($L$8:L8),IF(BG10="","",BG10)),"") -> 19180 | M9: =IF(C9="","",SUM(I9:L9)) -> 136562 | N9: =IFERROR(IF(C9="","",IF(D9="","",IF(I9="","",IF($C9="TOTAL",SUM($N$8:N8),SUM(D9-I9))))),"") -> 5300 | O9: =IFERROR(IF(C9="","",IF(E9="","",IF(J9="","",IF($C9="TOTAL",SUM($O$8:O8),SUM(E9-J9))))),"") -> 763 | P9: =IFERROR(IF(C9="","",IF(F9="","",IF(K9="","",IF($C9="TOTAL",SUM($P$8:P8),SUM(F9-K9))))),"") -> 424 | Q9: =IFERROR(IF(D9="","",IF(G9="","",IF(L9="","",SUM(G9-L9)))),"") -> 1060 | R9: =IFERROR(IF(C9="","",IF(H9="","",IF(M9="","",SUM(H9-M9)))),"") -> 7547 | S9: =IFERROR(IF(C9="","",IF(AND(C9>$AR$1,$AI$3=$AR$2),BW10,IF($AU$18=$AU$20,SUM(BJ10+BR10),ROUND((D9+E9)*10%,0)))),"") -> 11577 | T9: =IFERROR(IF(C9="","",IF(I9="","",IF(J9="","",IF(AND(C9>$AR$1,$AI$3=$AR$2),BW10,IF($AU$18=$AU$20,$AU$21,ROUND((I9+J9)*10%,0)))))),"") -> 10971 | U9: =IFERROR(IF(C9="","",SUM(S9-T9)),"") -> 606 | V9: =IFERROR(IF(C9="","",IF($AU$16=$AU$17,0,IF($C9="TOTAL",SUM($V$8:V8),IF($AU$19=$AU$31,0,IF(AND($AU$32=$AU$20,C9=$AU$33),$AU$34,V8))))),"") -> 2100 | W9: =IFERROR(IF(C9="","",IF($AU$16=$AU$17,0,IF($C9="TOTAL",SUM($W$8:W8),IF($AU$19=$AU$20,$AU$24,0)))),"") -> 2100 | X9: =IFERROR(IF(C9="","",SUM(V9-W9)),"") -> 0 | Y9: =IFERROR(IF(C9="","",IF($AU$16=$AU$17,0,IF($C9="TOTAL",SUM($Y$8:Y8),BZ9))),"") ->  | Z9: =IFERROR(IF(C9="","",IF($AU$16=$AU$17,0,IF($C9="TOTAL",SUM($Z$8:Z8),BY9))),"") ->  | AB9: =IFERROR(IF(C9="","",IF(D9="","",IF($C9="TOTAL",SUM($AB$8:AB8),IF(C9=$AU$1,ROUND(D9*5/31,0.01),"")))),"") ->  | AC9: =IFERROR(IF(C9="","",IF(I9="","",IF($C9="TOTAL",SUM($AC$8:AC8),IF(C9=$AU$1,ROUND(I9*5/31,0.01),"")))),"") ->  | AD9: =IFERROR(IF(I9="","",SUM(AB9-AC9)),"") ->  | AE9: =IFERROR(IF(C9="","",IF(AND(BP10="",BW10=""),"",IF($C9="TOTAL",SUM($AE$8:AE8),BP10))),"") ->  | AF9: =IFERROR(IF(C9="","",IF($C9="TOTAL",SUM($AF$8:AF8),ROUND(R9*$AU$7%,0))),"") -> 0 | AG9: =IFERROR(IF(C9="","",IF($AI$3="GPF",SUM(U9,X9,AA9,AD9,AE9,AF9),SUM(U9,X9,AA9,AD9,AE9,AF9))),"") -> 606 | AH9: =IFERROR(IF(C9="","",IF($C9="TOTAL",SUM($AH$8:AH8),SUM(R9-AG9))),"") -> 6941 | AQ9: =IF(OR(AZ9=$AT$9,AZ9=$AT$10,AZ9=$AT$11,AZ9=$AT$12,AZ9=$AT$13,AZ9=$AT$14),4,IF(OR(AZ9=$AT$15,AZ9=$AT$16,AZ9=$AT$17,AZ9=$AT$18,AZ9=$AT$19,AZ9=$AT$20),5,IF(OR(AZ9=$AT$21,AZ9=$AT$22,AZ9=$AT$23,AZ9=$AT$24,AZ9=$AT$25,AZ9=$AT$26),7,IF(OR(AZ9=$AT$27,AZ9=$AT$28,AZ9=$AT$29,AZ9=$AT$30,AZ9=$AT$31,AZ9=$AT$32),9,IF(OR(AZ9=$AT$33,AZ9=$AT$34,AZ9=$AT$35,AZ9=$AT$36,AZ9=$AT$37,AZ9=$AT$38),12,IF(OR(AZ9=$AT$39,AZ9=$AT$40,AZ9=$AT$41,AZ9=$AT$42,AZ9=$AT$43,AZ9=$AT$44,AZ9=$AT$45,AZ9=$AT$46,AZ9=$AT$47,AZ9=$AT$48,AZ9=$AT$49,AZ9=$AT$50,AZ9=$AT$51,AZ9=$AT$52,AZ9=$AT$53,AZ9=$AT$54,AZ9=$AT$55,AZ9=$AT$56,AZ9=$AT$57,AZ9=$AT$58,AZ9=$AT$59,AZ9=$AT$60,AZ9=$AT$61,AZ9=$AT$62),17,IF(OR(AZ9=$AT$63,AZ9=$AT$64,AZ9=$AT$65,AZ9=$AT$66,AZ9=$AT$67,AZ9=$AT$68),31,IF(OR(AZ9=$AT$69,AZ9=$AT$70,AZ9=$AT$71,AZ9=$AT$72,AZ9=$AT$73,AZ9=$AT$74),34,IF(OR(AZ9=$AT$75,AZ9=$AT$76,AZ9=$AT$77,AZ9=$AT$78,AZ9=$AT$79,AZ9=$AT$80),38,42))))))))) -> 12 | AR9: =IF(OR(AZ9=$AT$9,AZ9=$AT$10,AZ9=$AT$11,AZ9=$AT$12,AZ9=$AT$13,AZ9=$AT$14),4,IF(OR(AZ9=$AT$15,AZ9=$AT$16,AZ9=$AT$17,AZ9=$AT$18,AZ9=$AT$19,AZ9=$AT$20),5,IF(OR(AZ9=$AT$21,AZ9=$AT$22,AZ9=$AT$23,AZ9=$AT$24,AZ9=$AT$25,AZ9=$AT$26),7,IF(OR(AZ9=$AT$27,AZ9=$AT$28,AZ9=$AT$29,AZ9=$AT$30,AZ9=$AT$31,AZ9=$AT$32),9,IF(OR(AZ9=$AT$33,AZ9=$AT$34,AZ9=$AT$35,AZ9=$AT$36,AZ9=$AT$37,AZ9=$AT$38),12,IF(OR(AZ9=$AT$39,AZ9=$AT$40,AZ9=$AT$41,AZ9=$AT$42,AZ9=$AT$43,AZ9=$AT$44,AZ9=$AT$45,AZ9=$AT$46,AZ9=$AT$47,AZ9=$AT$48,AZ9=$AT$49,AZ9=$AT$50,AZ9=$AT$51,AZ9=$AT$52,AZ9=$AT$53,AZ9=$AT$54,AZ9=$AT$55,AZ9=$AT$56,AZ9=$AT$57,AZ9=$AT$58,AZ9=$AT$59,AZ9=$AT$60,AZ9=$AT$61,AZ9=$AT$62),17,IF(OR(AZ9=$AT$63,AZ9=$AT$64,AZ9=$AT$65,AZ9=$AT$66,AZ9=$AT$67,AZ9=$AT$68),31,IF(OR(AZ9=$AT$69,AZ9=$AT$70,AZ9=$AT$71,AZ9=$AT$72,AZ9=$AT$73,AZ9=$AT$74),34,IF(OR(AZ9=$AT$75,AZ9=$AT$76,AZ9=$AT$77,AZ9=$AT$78,AZ9=$AT$79,AZ9=$AT$80),38,42))))))))) -> 12 | AT9: 2017-01-01 | AU9: ='Master Sheet'!M13 -> 101200 | AV9: =IF(AND($AU$6>$AV$6),"",DATE(YEAR(AU6),MONTH(AU6),DAY(AU6))) -> 2019-04-01 | AW9: =IF(AND(AV9=""),"",IF(AND(AV9=$AT$9),$AT$9,IF(AND(AV9=$AT$10),$AT$10,IF(AND(AV9=$AT$11),$AT$11,IF(AND(AV9=$AT$12),$AT$12,IF(AND(AV9=$AT$13),$AT$13,IF(AND(AV9=$AT$14),$AT$14,IF(AND(AV9=$AT$15),$AT$15,IF(AND(AV9=$AT$16),$AT$16,IF(AND(AV9=$AT$17),$AT$17,IF(AND(AV9=$AT$18),$AT$18,IF(AND(AV9=$AT$19),$AT$19,IF(AND(AV9=$AT$20),$AT$20,IF(AND(AV9=$AT$21),$AT$21,IF(AND(AV9=$AT$22),$AT$22,IF(AND(AV9=$AT$23),$AT$23,IF(AND(AV9=$AT$24),$AT$24,IF(AND(AV9=$AT$25),$AT$25,IF(AND(AV9=$AT$26),$AT$26,IF(AND(AV9=$AT$27),$AT$27,IF(AND(AV9=$AT$28),$AT$28,IF(AND(AV9=$AT$29),$AT$29,IF(AND(AV9=$AT$30),$AT$30,IF(AND(AV9=$AT$31),$AT$31,IF(AND(AV9=$AT$32),$AT$32,IF(AND(AV9=$AT$33),$AT$33,IF(AND(AV9=$AT$34),$AT$34,IF(AND(AV9=$AT$35),$AT$35,IF(AND(AV9=$AT$36),$AT$36,IF(AND(AV9=$AT$37),$AT$37,IF(AND(AV9=$AT$38),$AT$38,IF(AND(AV9=$AT$39),$AT$39,IF(AND(AV9=$AT$40),$AT$40,IF(AND(AV9=$AT$41),$AT$41,IF(AND(AV9=$AT$42),$AT$42,IF(AND(AV9=$AT$43),$AT$43,IF(AND(AV9=$AT$44),$AT$44,IF(AND(AV9=$AT$45),$AT$45,IF(AND(AV9=$AT$46),$AT$46,IF(AND(AV9=$AT$47),$AT$47,IF(AND(AV9=$AT$48),$AT$48,IF(AND(AV9=$AT$49),$AT$49,IF(AND(AV9=$AT$50),$AT$50,IF(AND(AV9=$AT$51),$AT$51,IF(AND(AV9=$AT$52),$AT$52,IF(AND(AV9=$AT$53),$AT$53,IF(AND(AV9=$AT$54),$AT$54,IF(AND(AV9=$AT$55),$AT$55,IF(AND(AV9=$AT$56),$AT$56,IF(AND(AV9=$AT$57),$AT$57,IF(AND(AV9=$AT$58),$AT$58,IF(AND(AV9=$AT$59),$AT$59,IF(AND(AV9=$AT$60),$AT$60,IF(AND(AV9=$AT$61),$AT$61,IF(AND(AV9=$AT$62),$AT$62,IF(AND(AV9=$AT$63),$AT$63,IF(AND(AV9=$AT$64),$AT$64,IF(AND(AV9=$AT$65),$AT$65,IF(AND(AV9=$AT$66),$AT$66,IF(AND(AV9=$AT$67),$AT$67,IF(AND(AV9=$AT$68),$AT$68,IF(AND(AV9=$AT$69),$AT$69,IF(AND(AV9=$AT$70),$AT$70,IF(AND(AV9=$AT$71),$AT$71,"")))))))))))))))))))))))))))))))))))))))))))))))))))))))))))))))) -> 2019-04-01 | AX9: =IF(AND(AV9=""),"",IF(AND(AV9=$AT$72),$AU$72,IF(AND(AV9=$AT$73),$AU$73,IF(AND(AV9=$AT$74),$AU$74,IF(AND(AV9=$AT$75),$AU$75,IF(AND(AV9=$AT$76),$AU$76,IF(AND(AV9=$AT$77),$AU$77,IF(AND(AV9=$AT$78),$AU$78,IF(AND(AV9=$AT$79),$AU$79,IF(AND(AV9=$AT$80),$AU$80,IF(AND(AV9=$AT$81),$AU$81,IF(AND(AV9=$AT$82),$AU$82,IF(AND(AV9=$AT$83),$AU$83,IF(AND(AV9=$AT$84),$AU$84,IF(AND(AV9=$AT$85),$AU$85,IF(AND(AV9=$AT$86),$AU$86,IF(AND(AV9=$AT$87),$AU$87,IF(AND(AV9=$AT$88),$AU$88,IF(AND(AV9=$AT$89),$AU$89,IF(AND(AV9=$AT$90),$AU$90,IF(AND(AV9=$AT$91),$AU$91,IF(AND(AV9=$AT$92),$AU$92,"")))))))))))))))))))))) ->  | AY9: =IFERROR(IF(AND(AW9="",AX9=""),"",IF(AW9="",AX9,AW9)),"") -> 2019-04-01 | AZ9: =IFERROR(IF(AND(AW9="",AY9=""),"",IF(AY9>$AV$6,"",AY9)),"") -> 2019-04-01 | BA9: =IF(AZ9="","",ROUND((AU9/BA3)*BA6,0)) -> 67467 | BB9: =IF(AZ9="","",IF(AZ9="TOTAL","",ROUND((BA9*20/100),0.01))) -> 13493 | BC9: =IF(AZ9="","",IF(AZ9="TOTAL","",ROUND((BA9+BB9)*AQ9%,0))) -> 9715 | BD9: =IF(AZ9="","",IF(AZ9="TOTAL","",IF(AZ9>=$BC$7,ROUND(BA9*$BA$7%,0),ROUND(BA9*$AW$7%,0)))) -> 5397 | BF9: =IF(AZ9="","",IF(AND($AU$10="",$AU$14=""),"",IF(AU26=AU20,ROUND((AU27/BA3)*BA6,0),IF($AU$13=$AU$15,ROUND(($AU$14/BA3)*BA6,0),ROUND(($AU$10/BA3)*BA6,0))))) -> 63933 | BG9: =IF(AZ9="","",IF(AZ9="TOTAL","",ROUND((BF9*20/100),0.01))) -> 12787 | BH9: =IF(AZ9="","",IF(BF9="","",IF($AU$16=$AU$17,0,ROUND((BF9+BG9)*AR9%,0)))) -> 9206 | BI9: =IF(AZ9="","",IF(BF9="","",IF($AU$16=$AU$17,0,IF(AZ9>=$BC$7,ROUND(BF9*$BA$7%,0),ROUND(BF9*$AW$7%,0))))) -> 5115 | BJ9: =IF(AZ9="","",IF(AZ9="TOTAL","",IF(BF9="","",IF($AU$16=$AU$17,0,IF(OR(C8=$AS$16,C8=$AS$17,C8=$AS$18,C8=$AS$19,C8=$AS$20,C8=$AS$21,C8=$AS$22,C8=$AS$23,C8=$AS$24),SUM(BM9+$AU$22),$AU$22))))) -> 3675 | BM9: =IF(AZ9="","",IF(AZ9="TOTAL","",IF(BF9="","",SUM(R8)-SUM(($AU$22-$AU$21)+SUM(X8,AA8,AF8))))) -> 5031 | BN9: =IF(AZ9="","",IF(AZ9="TOTAL","",IF(AND($AU$20=$AU$36,C9=$AU$37),$AU$38,$AU$22))) -> 3675 | BO9: =IF(OR(AZ9=$AT$63,AZ9=$AT$64,AZ9=$AT$65),"YES","") ->  | BP9: =IF(BO9="","",IF($AU$16=$AU$17,ROUND((D8)*3%,0),IF(OR(AZ9=$AT$63,AZ9=$AT$64,AZ9=$AT$65),SUM(ROUND((D8-I8)*3%,0)),IF(OR(AZ9=$AT$69,AZ9=$AT$70,AZ9=$AT$71),SUM(ROUND((D8-I8)*3%,0)),"")))) ->  | BQ9: =IFERROR(IF(AND($AU$16=$AU$17,BO9="YES"),ROUND(ROUND(D8*3%,0)*10%,0),IF(AND($AU$16=$AU$15,BO9="YES",$AS$7="NO"),ROUND(ROUND((N8+I8)*3%,0)*10%,0),IF(AND($AU$16=$AU$15,BO9="YES",$AS$7="YES"),ROUND(ROUND((N8+O8)*3%,0)*10%,0),0))),"") -> 0 | BR9: =IF(AND($AU$16=$AU$17,BO9="YES"),ROUND(D8*3%,0),IF(AND($AU$16=$AU$15,BO9="YES",$AS$7="NO"),ROUND((N8+I8)*3%,0),IF(AND($AU$16=$AU$15,BO9="YES",$AS$7="YES"),ROUND((N8+O8)*3%,0),0))) -> 0 | BS9: =IF(AND($AU$16=$AU$17,BO9="YES"),ROUND(ROUND(D8*3%,0)*10%,0),IF(AND($AU$16=$AU$15,BO9="YES",$AS$7="NO"),ROUND(ROUND((N8+I8)*3%,0)*10%,0),IF(AND($AU$16=$AU$15,BO9="YES",$AS$7="YES"),ROUND(ROUND((N8+O8)*3%,0)*10%,0),""))) ->  | BW9: =IF(AZ9="","",IF(AZ9="TOTAL","",IF(AND(AZ9>$AR$1,$AI$3=$AR$2),$AY$1,""))) ->  | BY9: =IF(AZ10="","",IF(AZ10="TOTAL","",IF($AU$16=$AU$17,0,IF(AND(AZ10=$BY$1),IF($AU$14<18001,135,IF($AU$14<33501,220,IF($AU$14<54001,330,440))),IF(AND(AZ10>$BY$1),IF($AU$14<18001,265,IF($AU$14<33501,440,IF($AU$14<54001,658,875))),""))))) ->  | BZ9: =IF(AZ10="","",IF(AZ10="TOTAL","",IF($AU$16=$AU$17,0,IF(AND(AZ10>$BY$1,$AI$3=$AR$2,'Master Sheet'!$D$27>0),'Master Sheet'!$D$27,IF(AND(AZ10=$BY$1),IF($AU$9<18001,135,IF($AU$9<33501,220,IF($AU$9<54001,330,440))),IF(AND(AZ10>$BY$1),IF($AU$9<18001,265,IF($AU$9<33501,440,IF($AU$9<54001,658,875))),"")))))) -> 
A10: =IF(C10="TOTAL","",IF(B9="","",IF(LEN(C10)>=2,B9+1,0))) -> 3 | B10: 3 | C10: 2019-06-01 | D10: =IFERROR(IF($C9="TOTAL","अक्षरें राशि :-",IF($C10="TOTAL",SUM($D$8:D9),IF(BA11="","",BA11))),"") -> 101200 | E10: =IFERROR(IF($C10="TOTAL",SUM($E$8:E9),IF(BC11="","",BC11)),"") -> 14573 | F10: =IFERROR(IF($C10="TOTAL",SUM($F$8:F9),IF(OR(C10=$AS$16,C10=$AS$17,C10=$AS$18,C10=$AS$19,C10=$AS$20,C10=$AS$21,C10=$AS$22,C10=$AS$23,C10=$AS$24),0,IF(BD11="","",BD11))),"") -> 8096 | G10: =IFERROR(IF($C10="TOTAL",SUM($G$8:G9),IF(BB11="","",BB11)),"") -> 20240 | H10: 144109 | I10: =IFERROR(IF($C10="TOTAL",SUM($I$8:I9),IF(BF11="","",BF11)),"") -> 95900 | J10: =IFERROR(IF($C10="TOTAL",SUM($J$8:J9),IF(BH11="","",BH11)),"") -> 13810 | K10: =IFERROR(IF($C10="TOTAL",SUM($K$8:K9),IF(OR(C10=$AS$16,C10=$AS$17,C10=$AS$18,C10=$AS$19,C10=$AS$20,C10=$AS$21,C10=$AS$22,C10=$AS$23,C10=$AS$24),0,IF(BI11="","",BI11))),"") -> 7672 | L10: =IFERROR(IF($C10="TOTAL",SUM($L$8:L9),IF(BG11="","",BG11)),"") -> 19180 | M10: 136562 | N10: =IFERROR(IF(C10="","",IF(D10="","",IF(I10="","",IF($C10="TOTAL",SUM($N$8:N9),SUM(D10-I10))))),"") -> 5300 | O10: =IFERROR(IF(C10="","",IF(E10="","",IF(J10="","",IF($C10="TOTAL",SUM($O$8:O9),SUM(E10-J10))))),"") -> 763 | P10: =IFERROR(IF(C10="","",IF(F10="","",IF(K10="","",IF($C10="TOTAL",SUM($P$8:P9),SUM(F10-K10))))),"") -> 424 | Q10: 1060 | R10: =IFERROR(IF(C10="","",IF(H10="","",IF(M10="","",SUM(H10-M10)))),"") -> 7547 | S10: =IFERROR(IF(C10="","",IF($C10="TOTAL",SUM($S$8:S9),IF(AND(C10>$AR$1,$AI$3=$AR$2),BW11,IF($AU$18=$AU$20,SUM(BJ11+BR11),ROUND((D10+E10)*10%,0))))),"") -> 11577 | T10: =IFERROR(IF(C10="","",IF(I10="","",IF(J10="","",IF($C10="TOTAL",SUM($T$8:T9),IF(AND(C10>$AR$1,$AI$3=$AR$2),BW11,IF($AU$18=$AU$20,$AU$21,ROUND((I10+J10)*10%,0))))))),"") -> 10971 | U10: =IFERROR(IF(C10="","",SUM(S10-T10)),"") -> 606 | V10: =IFERROR(IF(C10="","",IF($AU$16=$AU$17,0,IF($C10="TOTAL",SUM($V$8:V9),IF($AU$19=$AU$31,0,IF(AND($AU$32=$AU$20,C10=$AU$33),$AU$34,V9))))),"") -> 2100 | W10: =IFERROR(IF(C10="","",IF($AU$16=$AU$17,0,IF($C10="TOTAL",SUM($W$8:W9),IF($AU$19=$AU$20,$AU$24,0)))),"") -> 2100 | X10: =IFERROR(IF(C10="","",SUM(V10-W10)),"") -> 0 | Y10: =IFERROR(IF(C10="","",IF($AU$16=$AU$17,0,IF($C10="TOTAL",SUM($Y$8:Y9),BZ10))),"") ->  | Z10: =IFERROR(IF(C10="","",IF($AU$16=$AU$17,0,IF($C10="TOTAL",SUM($Z$8:Z9),BY10))),"") ->  | AB10: =IFERROR(IF(C10="","",IF(D10="","",IF($C10="TOTAL",SUM($AB$8:AB9),IF(C10=$AU$1,ROUND(D10*5/31,0.01),"")))),"") ->  | AC10: =IFERROR(IF(C10="","",IF(I10="","",IF($C10="TOTAL",SUM($AC$8:AC9),IF(C10=$AU$1,ROUND(I10*5/31,0.01),"")))),"") ->  | AD10: =IFERROR(IF(I10="","",SUM(AB10-AC10)),"") ->  | AE10: =IFERROR(IF(C10="","",IF(AND(BP11="",BW11=""),"",IF($C10="TOTAL",SUM($AE$8:AE9),BP11))),"") ->  | AF10: =IFERROR(IF(C10="","",IF($C10="TOTAL",SUM($AF$8:AF9),ROUND(R10*$AU$7%,0))),"") -> 0 | AG10: 606 | AH10: =IFERROR(IF(C10="","",IF($C10="TOTAL",SUM($AH$8:AH9),SUM(R10-AG10))),"") -> 6941 | AQ10: =IF(OR(AZ10=$AT$9,AZ10=$AT$10,AZ10=$AT$11,AZ10=$AT$12,AZ10=$AT$13,AZ10=$AT$14),4,IF(OR(AZ10=$AT$15,AZ10=$AT$16,AZ10=$AT$17,AZ10=$AT$18,AZ10=$AT$19,AZ10=$AT$20),5,IF(OR(AZ10=$AT$21,AZ10=$AT$22,AZ10=$AT$23,AZ10=$AT$24,AZ10=$AT$25,AZ10=$AT$26),7,IF(OR(AZ10=$AT$27,AZ10=$AT$28,AZ10=$AT$29,AZ10=$AT$30,AZ10=$AT$31,AZ10=$AT$32),9,IF(OR(AZ10=$AT$33,AZ10=$AT$34,AZ10=$AT$35,AZ10=$AT$36,AZ10=$AT$37,AZ10=$AT$38),12,IF(OR(AZ10=$AT$39,AZ10=$AT$40,AZ10=$AT$41,AZ10=$AT$42,AZ10=$AT$43,AZ10=$AT$44,AZ10=$AT$45,AZ10=$AT$46,AZ10=$AT$47,AZ10=$AT$48,AZ10=$AT$49,AZ10=$AT$50,AZ10=$AT$51,AZ10=$AT$52,AZ10=$AT$53,AZ10=$AT$54,AZ10=$AT$55,AZ10=$AT$56,AZ10=$AT$57,AZ10=$AT$58,AZ10=$AT$59,AZ10=$AT$60,AZ10=$AT$61,AZ10=$AT$62),17,IF(OR(AZ10=$AT$63,AZ10=$AT$64,AZ10=$AT$65,AZ10=$AT$66,AZ10=$AT$67,AZ10=$AT$68),31,IF(OR(AZ10=$AT$69,AZ10=$AT$70,AZ10=$AT$71,AZ10=$AT$72,AZ10=$AT$73,AZ10=$AT$74),34,IF(OR(AZ10=$AT$75,AZ10=$AT$76,AZ10=$AT$77,AZ10=$AT$78,AZ10=$AT$79,AZ10=$AT$80),38,42))))))))) -> 12 | AR10: =IF(OR(AZ10=$AT$9,AZ10=$AT$10,AZ10=$AT$11,AZ10=$AT$12,AZ10=$AT$13,AZ10=$AT$14),4,IF(OR(AZ10=$AT$15,AZ10=$AT$16,AZ10=$AT$17,AZ10=$AT$18,AZ10=$AT$19,AZ10=$AT$20),5,IF(OR(AZ10=$AT$21,AZ10=$AT$22,AZ10=$AT$23,AZ10=$AT$24,AZ10=$AT$25,AZ10=$AT$26),7,IF(OR(AZ10=$AT$27,AZ10=$AT$28,AZ10=$AT$29,AZ10=$AT$30,AZ10=$AT$31,AZ10=$AT$32),9,IF(OR(AZ10=$AT$33,AZ10=$AT$34,AZ10=$AT$35,AZ10=$AT$36,AZ10=$AT$37,AZ10=$AT$38),12,IF(OR(AZ10=$AT$39,AZ10=$AT$40,AZ10=$AT$41,AZ10=$AT$42,AZ10=$AT$43,AZ10=$AT$44,AZ10=$AT$45,AZ10=$AT$46,AZ10=$AT$47,AZ10=$AT$48,AZ10=$AT$49,AZ10=$AT$50,AZ10=$AT$51,AZ10=$AT$52,AZ10=$AT$53,AZ10=$AT$54,AZ10=$AT$55,AZ10=$AT$56,AZ10=$AT$57,AZ10=$AT$58,AZ10=$AT$59,AZ10=$AT$60,AZ10=$AT$61,AZ10=$AT$62),17,IF(OR(AZ10=$AT$63,AZ10=$AT$64,AZ10=$AT$65,AZ10=$AT$66,AZ10=$AT$67,AZ10=$AT$68),31,IF(OR(AZ10=$AT$69,AZ10=$AT$70,AZ10=$AT$71,AZ10=$AT$72,AZ10=$AT$73,AZ10=$AT$74),34,IF(OR(AZ10=$AT$75,AZ10=$AT$76,AZ10=$AT$77,AZ10=$AT$78,AZ10=$AT$79,AZ10=$AT$80),38,42))))))))) -> 12 | AT10: 2017-02-01 | AU10: ='Master Sheet'!I11 -> 23700 | AV10: =IF(AND($AU$6>$AV$6),"",DATE(YEAR(AV9),MONTH(AV9)+1,DAY(AV9))) -> 2019-05-01 | AW10: =IF(AND(AV10=""),"",IF(AND(AV10=$AT$9),$AT$9,IF(AND(AV10=$AT$10),$AT$10,IF(AND(AV10=$AT$11),$AT$11,IF(AND(AV10=$AT$12),$AT$12,IF(AND(AV10=$AT$13),$AT$13,IF(AND(AV10=$AT$14),$AT$14,IF(AND(AV10=$AT$15),$AT$15,IF(AND(AV10=$AT$16),$AT$16,IF(AND(AV10=$AT$17),$AT$17,IF(AND(AV10=$AT$18),$AT$18,IF(AND(AV10=$AT$19),$AT$19,IF(AND(AV10=$AT$20),$AT$20,IF(AND(AV10=$AT$21),$AT$21,IF(AND(AV10=$AT$22),$AT$22,IF(AND(AV10=$AT$23),$AT$23,IF(AND(AV10=$AT$24),$AT$24,IF(AND(AV10=$AT$25),$AT$25,IF(AND(AV10=$AT$26),$AT$26,IF(AND(AV10=$AT$27),$AT$27,IF(AND(AV10=$AT$28),$AT$28,IF(AND(AV10=$AT$29),$AT$29,IF(AND(AV10=$AT$30),$AT$30,IF(AND(AV10=$AT$31),$AT$31,IF(AND(AV10=$AT$32),$AT$32,IF(AND(AV10=$AT$33),$AT$33,IF(AND(AV10=$AT$34),$AT$34,IF(AND(AV10=$AT$35),$AT$35,IF(AND(AV10=$AT$36),$AT$36,IF(AND(AV10=$AT$37),$AT$37,IF(AND(AV10=$AT$38),$AT$38,IF(AND(AV10=$AT$39),$AT$39,IF(AND(AV10=$AT$40),$AT$40,IF(AND(AV10=$AT$41),$AT$41,IF(AND(AV10=$AT$42),$AT$42,IF(AND(AV10=$AT$43),$AT$43,IF(AND(AV10=$AT$44),$AT$44,IF(AND(AV10=$AT$45),$AT$45,IF(AND(AV10=$AT$46),$AT$46,IF(AND(AV10=$AT$47),$AT$47,IF(AND(AV10=$AT$48),$AT$48,IF(AND(AV10=$AT$49),$AT$49,IF(AND(AV10=$AT$50),$AT$50,IF(AND(AV10=$AT$51),$AT$51,IF(AND(AV10=$AT$52),$AT$52,IF(AND(AV10=$AT$53),$AT$53,IF(AND(AV10=$AT$54),$AT$54,IF(AND(AV10=$AT$55),$AT$55,IF(AND(AV10=$AT$56),$AT$56,IF(AND(AV10=$AT$57),$AT$57,IF(AND(AV10=$AT$58),$AT$58,IF(AND(AV10=$AT$59),$AT$59,IF(AND(AV10=$AT$60),$AT$60,IF(AND(AV10=$AT$61),$AT$61,IF(AND(AV10=$AT$62),$AT$62,IF(AND(AV10=$AT$63),$AT$63,IF(AND(AV10=$AT$64),$AT$64,IF(AND(AV10=$AT$65),$AT$65,IF(AND(AV10=$AT$66),$AT$66,IF(AND(AV10=$AT$67),$AT$67,IF(AND(AV10=$AT$68),$AT$68,IF(AND(AV10=$AT$69),$AT$69,IF(AND(AV10=$AT$70),$AT$70,IF(AND(AV10=$AT$71),$AT$71,"")))))))))))))))))))))))))))))))))))))))))))))))))))))))))))))))) -> 2019-05-01 | AX10: =IF(AND(AV10=""),"",IF(AND(AV10=$AT$72),$AU$72,IF(AND(AV10=$AT$73),$AU$73,IF(AND(AV10=$AT$74),$AU$74,IF(AND(AV10=$AT$75),$AU$75,IF(AND(AV10=$AT$76),$AU$76,IF(AND(AV10=$AT$77),$AU$77,IF(AND(AV10=$AT$78),$AU$78,IF(AND(AV10=$AT$79),$AU$79,IF(AND(AV10=$AT$80),$AU$80,IF(AND(AV10=$AT$81),$AU$81,IF(AND(AV10=$AT$82),$AU$82,IF(AND(AV10=$AT$83),$AU$83,IF(AND(AV10=$AT$84),$AU$84,IF(AND(AV10=$AT$85),$AU$85,IF(AND(AV10=$AT$86),$AU$86,IF(AND(AV10=$AT$87),$AU$87,IF(AND(AV10=$AT$88),$AU$88,IF(AND(AV10=$AT$89),$AU$89,IF(AND(AV10=$AT$90),$AU$90,IF(AND(AV10=$AT$91),$AU$91,IF(AND(AV10=$AT$92),$AU$92,"")))))))))))))))))))))) ->  | AY10: =IFERROR(IF(AND(AW10="",AX10=""),"",IF(AW10="",AX10,AW10)),"") -> 2019-05-01 | AZ10: =IFERROR(IF(AY10="","",IF(DATE(YEAR(AY10),MONTH(AY10),DAY(AY10))=DATE(YEAR($AV$6),MONTH($AV$6)+1,DAY($AV$6)),"TOTAL",IF(AY10>$AV$6,"",AY10))),"") -> 2019-05-01 | BA10: =IFERROR(IF(AZ10="","",IF(AND($AU$20=$AU$28,$AU$30=AZ10),$AU$29,IF(OR(AZ10=$BD$2,AZ10=$BD$3,AZ10=$BD$4,AZ10=$BD$5,AZ10=$BD$6,AZ10=$BD$7,AZ10=$BE$2),MROUND(AU9*1.03,100),AU9))),"") -> 101200 | BB10: =IF(AZ10="","",IF(AZ10="TOTAL","",ROUND((BA10*20/100),0.01))) -> 20240 | BC10: =IF(AZ10="","",IF(AZ10="TOTAL","",ROUND((BA10+BB10)*AQ10%,0))) -> 14573 | BD10: =IF(AZ10="","",IF(AZ10="TOTAL","",IF(AZ10>=$BC$7,ROUND(BA10*$BA$7%,0),ROUND(BA10*$AW$7%,0)))) -> 8096 | BF10: =IFERROR(IF(AZ10="","",IF(AZ10="TOTAL","",IF($AU$16=$AU$17,$AU$10,IF($AU$20=$AU$26,BK10,BL10)))),"") -> 95900 | BG10: =IF(AZ10="","",IF(AZ10="TOTAL","",ROUND((BF10*20/100),0.01))) -> 19180 | BH10: =IF(AZ10="","",IF(BF10="","",IF($AU$16=$AU$17,0,ROUND((BF10+BG10)*AR10%,0)))) -> 13810 | BI10: =IF(AZ10="","",IF(AZ10="TOTAL","",IF(BF10="","",IF($AU$16=$AU$17,0,IF(AZ10>=$BC$7,ROUND(BF10*$BA$7%,0),ROUND(BF10*$AW$7%,0)))))) -> 7672 | BJ10: =IF(AZ10="","",IF(AZ10="TOTAL","",IF(BF10="","",IF($AU$16=$AU$17,0,IF(OR(C9=$AS$16,C9=$AS$17,C9=$AS$18,C9=$AS$19,C9=$AS$20,C9=$AS$21,C9=$AS$22,C9=$AS$23,C9=$AS$24),SUM(BM10+BN10),BN10))))) -> 3675 | BK10: =IF(OR(AZ10=$BD$2,AZ10=$BD$3,AZ10=$BD$4,AZ10=$BD$5,AZ10=$BD$6),MROUND(AU27*1.03,100),AU27) -> 0 | BL10: =IF(OR(AZ10=$BD$2,AZ10=$BD$3,AZ10=$BD$4,AZ10=$BD$5,AZ10=$BD$6),MROUND(AU14*1.03,100),AU14) -> 95900 | BM10: =IF(AZ10="","",IF(AZ10="TOTAL","",IF(BF10="","",SUM(R9)-SUM(($AU$22-$AU$21)+SUM(X9,AA9,AF9))))) -> 7547 | BN10: =IF(AZ9="","",IF(AZ9="TOTAL","",IF(AND($AU$20=$AU$36,C10=$AU$37),$AU$38,BN9))) -> 3675 | BO10: =IF(OR(AZ10=$AT$63,AZ10=$AT$64,AZ10=$AT$65),"YES","") ->  | BQ10: 0 | BR10: 0 | BW10: =IF(AZ10="","",IF(AZ10="TOTAL","",IF(AND(AZ10>$AR$1,$AI$3=$AR$2),$AY$1,""))) ->  | BY10: =IF(AZ11="","",IF(AZ11="TOTAL","",IF($AU$16=$AU$17,0,IF(AND(AZ11=$BY$1),IF($AU$14<18001,135,IF($AU$14<33501,220,IF($AU$14<54001,330,440))),IF(AND(AZ11>$BY$1),IF($AU$14<18001,265,IF($AU$14<33501,440,IF($AU$14<54001,658,875))),""))))) ->  | BZ10: =IF(AZ11="","",IF(AZ11="TOTAL","",IF($AU$16=$AU$17,0,IF(AND(AZ11>$BY$1,$AI$3=$AR$2,'Master Sheet'!$D$27>0),'Master Sheet'!$D$27,IF(AND(AZ11=$BY$1),IF($AU$9<18001,135,IF($AU$9<33501,220,IF($AU$9<54001,330,440))),IF(AND(AZ11>$BY$1),IF($AU$9<18001,265,IF($AU$9<33501,440,IF($AU$9<54001,658,875))),"")))))) -> 
A11: =IF(C11="TOTAL","",IF(B10="","",IF(LEN(C11)>=2,B10+1,0))) -> 4 | B11: 4 | C11: =IFERROR(IF(AZ12="","",AZ12),"") -> 2019-07-01 | D11: =IFERROR(IF($C10="TOTAL","अक्षरें राशि :-",IF($C11="TOTAL",SUM($D$8:D10),IF(BA12="","",BA12))),"") -> 104200 | E11: =IFERROR(IF($C11="TOTAL",SUM($E$8:E10),IF(BC12="","",BC12)),"") -> 21257 | F11: =IFERROR(IF($C11="TOTAL",SUM($F$8:F10),IF(OR(C11=$AS$16,C11=$AS$17,C11=$AS$18,C11=$AS$19,C11=$AS$20,C11=$AS$21,C11=$AS$22,C11=$AS$23,C11=$AS$24),0,IF(BD12="","",BD12))),"") -> 8336 | G11: =IFERROR(IF($C11="TOTAL",SUM($G$8:G10),IF(BB12="","",BB12)),"") -> 20840 | H11: 154633 | I11: =IFERROR(IF($C11="TOTAL",SUM($I$8:I10),IF(BF12="","",BF12)),"") -> 98800 | J11: =IFERROR(IF($C11="TOTAL",SUM($J$8:J10),IF(BH12="","",BH12)),"") -> 20155 | K11: =IFERROR(IF($C11="TOTAL",SUM($K$8:K10),IF(OR(C11=$AS$16,C11=$AS$17,C11=$AS$18,C11=$AS$19,C11=$AS$20,C11=$AS$21,C11=$AS$22,C11=$AS$23,C11=$AS$24),0,IF(BI12="","",BI12))),"") -> 7904 | L11: =IFERROR(IF($C11="TOTAL",SUM($L$8:L10),IF(BG12="","",BG12)),"") -> 19760 | M11: 146619 | N11: =IFERROR(IF(C11="","",IF(D11="","",IF(I11="","",IF($C11="TOTAL",SUM($N$8:N10),SUM(D11-I11))))),"") -> 5400 | O11: =IFERROR(IF(C11="","",IF(E11="","",IF(J11="","",IF($C11="TOTAL",SUM($O$8:O10),SUM(E11-J11))))),"") -> 1102 | P11: =IFERROR(IF(C11="","",IF(F11="","",IF(K11="","",IF($C11="TOTAL",SUM($P$8:P10),SUM(F11-K11))))),"") -> 432 | Q11: 1080 | R11: 8014 | S11: =IFERROR(IF(C11="","",IF($C11="TOTAL",SUM($S$8:S10),IF(AND(C11>$AR$1,$AI$3=$AR$2),BW12,IF($AU$18=$AU$20,SUM(BJ12+BR12),ROUND((D11+E11)*10%,0))))),"") -> 12546 | T11: =IFERROR(IF(C11="","",IF(I11="","",IF(J11="","",IF($C11="TOTAL",SUM($T$8:T10),IF(AND(C11>$AR$1,$AI$3=$AR$2),BW12,IF($AU$18=$AU$20,$AU$21,ROUND((I11+J11)*10%,0))))))),"") -> 11896 | U11: 650 | V11: =IFERROR(IF(C11="","",IF($AU$16=$AU$17,0,IF($C11="TOTAL",SUM($V$8:V10),IF($AU$19=$AU$31,0,IF(AND($AU$32=$AU$20,C11=$AU$33),$AU$34,V10))))),"") -> 2100 | W11: =IFERROR(IF(C11="","",IF($AU$16=$AU$17,0,IF($C11="TOTAL",SUM($W$8:W10),IF($AU$19=$AU$20,$AU$24,0)))),"") -> 2100 | X11: 0 | Y11: =IFERROR(IF(C11="","",IF($AU$16=$AU$17,0,IF($C11="TOTAL",SUM($Y$8:Y10),BZ11))),"") ->  | Z11: =IFERROR(IF(C11="","",IF($AU$16=$AU$17,0,IF($C11="TOTAL",SUM($Z$8:Z10),BY11))),"") ->  | AB11: =IFERROR(IF(C11="","",IF(D11="","",IF($C11="TOTAL",SUM($AB$8:AB10),IF(C11=$AU$1,ROUND(D11*5/31,0.01),"")))),"") ->  | AC11: =IFERROR(IF(C11="","",IF(I11="","",IF($C11="TOTAL",SUM($AC$8:AC10),IF(C11=$AU$1,ROUND(I11*5/31,0.01),"")))),"") ->  | AE11: =IFERROR(IF(C11="","",IF(AND(BP12="",BW12=""),"",IF($C11="TOTAL",SUM($AE$8:AE10),BP12))),"") ->  | AF11: =IFERROR(IF(C11="","",IF($C11="TOTAL",SUM($AF$8:AF10),ROUND(R11*$AU$7%,0))),"") -> 0 | AG11: 650 | AH11: =IFERROR(IF(C11="","",IF($C11="TOTAL",SUM($AH$8:AH10),SUM(R11-AG11))),"") -> 7364 | AQ11: 12 | AR11: 12 | AS11: =IF(BC9="","",ROUND((AU11+BC9)*10%,0)) -> 7718 | AT11: 2017-03-01 | AU11: =IFERROR(ROUND((AU9/BA3)*BA6,0),"") -> 67467 | AV11: 2019-06-01 | AW11: =IF(AND(AV11=""),"",IF(AND(AV11=$AT$9),$AT$9,IF(AND(AV11=$AT$10),$AT$10,IF(AND(AV11=$AT$11),$AT$11,IF(AND(AV11=$AT$12),$AT$12,IF(AND(AV11=$AT$13),$AT$13,IF(AND(AV11=$AT$14),$AT$14,IF(AND(AV11=$AT$15),$AT$15,IF(AND(AV11=$AT$16),$AT$16,IF(AND(AV11=$AT$17),$AT$17,IF(AND(AV11=$AT$18),$AT$18,IF(AND(AV11=$AT$19),$AT$19,IF(AND(AV11=$AT$20),$AT$20,IF(AND(AV11=$AT$21),$AT$21,IF(AND(AV11=$AT$22),$AT$22,IF(AND(AV11=$AT$23),$AT$23,IF(AND(AV11=$AT$24),$AT$24,IF(AND(AV11=$AT$25),$AT$25,IF(AND(AV11=$AT$26),$AT$26,IF(AND(AV11=$AT$27),$AT$27,IF(AND(AV11=$AT$28),$AT$28,IF(AND(AV11=$AT$29),$AT$29,IF(AND(AV11=$AT$30),$AT$30,IF(AND(AV11=$AT$31),$AT$31,IF(AND(AV11=$AT$32),$AT$32,IF(AND(AV11=$AT$33),$AT$33,IF(AND(AV11=$AT$34),$AT$34,IF(AND(AV11=$AT$35),$AT$35,IF(AND(AV11=$AT$36),$AT$36,IF(AND(AV11=$AT$37),$AT$37,IF(AND(AV11=$AT$38),$AT$38,IF(AND(AV11=$AT$39),$AT$39,IF(AND(AV11=$AT$40),$AT$40,IF(AND(AV11=$AT$41),$AT$41,IF(AND(AV11=$AT$42),$AT$42,IF(AND(AV11=$AT$43),$AT$43,IF(AND(AV11=$AT$44),$AT$44,IF(AND(AV11=$AT$45),$AT$45,IF(AND(AV11=$AT$46),$AT$46,IF(AND(AV11=$AT$47),$AT$47,IF(AND(AV11=$AT$48),$AT$48,IF(AND(AV11=$AT$49),$AT$49,IF(AND(AV11=$AT$50),$AT$50,IF(AND(AV11=$AT$51),$AT$51,IF(AND(AV11=$AT$52),$AT$52,IF(AND(AV11=$AT$53),$AT$53,IF(AND(AV11=$AT$54),$AT$54,IF(AND(AV11=$AT$55),$AT$55,IF(AND(AV11=$AT$56),$AT$56,IF(AND(AV11=$AT$57),$AT$57,IF(AND(AV11=$AT$58),$AT$58,IF(AND(AV11=$AT$59),$AT$59,IF(AND(AV11=$AT$60),$AT$60,IF(AND(AV11=$AT$61),$AT$61,IF(AND(AV11=$AT$62),$AT$62,IF(AND(AV11=$AT$63),$AT$63,IF(AND(AV11=$AT$64),$AT$64,IF(AND(AV11=$AT$65),$AT$65,IF(AND(AV11=$AT$66),$AT$66,IF(AND(AV11=$AT$67),$AT$67,IF(AND(AV11=$AT$68),$AT$68,IF(AND(AV11=$AT$69),$AT$69,IF(AND(AV11=$AT$70),$AT$70,IF(AND(AV11=$AT$71),$AT$71,"")))))))))))))))))))))))))))))))))))))))))))))))))))))))))))))))) -> 2019-06-01 | AY11: =IFERROR(IF(AND(AW11="",AX11=""),"",IF(AW11="",AX11,AW11)),"") -> 2019-06-01 | AZ11: =IFERROR(IF(AY11="","",IF(DATE(YEAR(AY11),MONTH(AY11),DAY(AY11))=DATE(YEAR($AV$6),MONTH($AV$6)+1,DAY($AV$6)),"TOTAL",IF(AY11>$AV$6,"",AY11))),"") -> 2019-06-01 | BA11: =IFERROR(IF(AZ11="","",IF(AND($AU$20=$AU$28,$AU$30=AZ11),$AU$29,IF(OR(AZ11=$BD$2,AZ11=$BD$3,AZ11=$BD$4,AZ11=$BD$5,AZ11=$BD$6,AZ11=$BD$7,AZ11=$BE$2),MROUND(BA10*1.03,100),BA10))),"") -> 101200 | BB11: 20240 | BC11: 14573 | BD11: =IF(AZ11="","",IF(AZ11="TOTAL","",IF(AZ11>=$BC$7,ROUND(BA11*$BA$7%,0),ROUND(BA11*$AW$7%,0)))) -> 8096 | BF11: =IFERROR(IF(AZ11="","",IF(AZ11="TOTAL","",IF($AU$16=$AU$17,$AU$10,IF(OR(AZ11=$BD$2,AZ11=$BD$3,AZ11=$BD$4,AZ11=$BD$5,AZ11=$BD$6,AZ11=$BD$7,AZ11=$BE$2),MROUND(BF10*1.03,100),BF10)))),"") -> 95900 | BG11: 19180 | BH11: 13810 | BI11: =IF(AZ11="","",IF(AZ11="TOTAL","",IF(BF11="","",IF($AU$16=$AU$17,0,IF(AZ11>=$BC$7,ROUND(BF11*$BA$7%,0),ROUND(BF11*$AW$7%,0)))))) -> 7672 | BJ11: 3675 | BK11: =IF(OR(AZ11=$BD$2,AZ11=$BD$3,AZ11=$BD$4,AZ11=$BD$5,AZ11=$BD$6),MROUND(BK10*1.03,100),BK10) -> 0 | BL11: =IF(OR(AZ11=$BD$2,AZ11=$BD$3,AZ11=$BD$4,AZ11=$BD$5,AZ11=$BD$6),MROUND(BL10*1.03,100),BL10) -> 95900 | BM11: 7547 | BN11: 3675 | BQ11: 0 | BR11: 0 | BZ11: =IF(AZ12="","",IF(AZ12="TOTAL","",IF($AU$16=$AU$17,0,IF(AND(AZ12>$BY$1,$AI$3=$AR$2,'Master Sheet'!$D$27>0),'Master Sheet'!$D$27,IF(AND(AZ12=$BY$1),IF($AU$9<18001,135,IF($AU$9<33501,220,IF($AU$9<54001,330,440))),IF(AND(AZ12>$BY$1),IF($AU$9<18001,265,IF($AU$9<33501,440,IF($AU$9<54001,658,875))),"")))))) -> 
A12: 5 | B12: 5 | C12: 2019-08-01 | D12: =IFERROR(IF($C11="TOTAL","अक्षरें राशि :-",IF($C12="TOTAL",SUM($D$8:D11),IF(BA13="","",BA13))),"") -> 104200 | E12: =IFERROR(IF($C12="TOTAL",SUM($E$8:E11),IF(BC13="","",BC13)),"") -> 21257 | F12: =IFERROR(IF($C12="TOTAL",SUM($F$8:F11),IF(OR(C12=$AS$16,C12=$AS$17,C12=$AS$18,C12=$AS$19,C12=$AS$20,C12=$AS$21,C12=$AS$22,C12=$AS$23,C12=$AS$24),0,IF(BD13="","",BD13))),"") -> 8336 | G12: =IFERROR(IF($C12="TOTAL",SUM($G$8:G11),IF(BB13="","",BB13)),"") -> 20840 | H12: 154633 | I12: =IFERROR(IF($C12="TOTAL",SUM($I$8:I11),IF(BF13="","",BF13)),"") -> 98800 | J12: =IFERROR(IF($C12="TOTAL",SUM($J$8:J11),IF(BH13="","",BH13)),"") -> 20155 | K12: =IFERROR(IF($C12="TOTAL",SUM($K$8:K11),IF(OR(C12=$AS$16,C12=$AS$17,C12=$AS$18,C12=$AS$19,C12=$AS$20,C12=$AS$21,C12=$AS$22,C12=$AS$23,C12=$AS$24),0,IF(BI13="","",BI13))),"") -> 7904 | L12: =IFERROR(IF($C12="TOTAL",SUM($L$8:L11),IF(BG13="","",BG13)),"") -> 19760 | M12: 146619 | N12: =IFERROR(IF(C12="","",IF(D12="","",IF(I12="","",IF($C12="TOTAL",SUM($N$8:N11),SUM(D12-I12))))),"") -> 5400 | O12: =IFERROR(IF(C12="","",IF(E12="","",IF(J12="","",IF($C12="TOTAL",SUM($O$8:O11),SUM(E12-J12))))),"") -> 1102 | P12: =IFERROR(IF(C12="","",IF(F12="","",IF(K12="","",IF($C12="TOTAL",SUM($P$8:P11),SUM(F12-K12))))),"") -> 432 | Q12: 1080 | R12: 8014 | S12: =IFERROR(IF(C12="","",IF($C12="TOTAL",SUM($S$8:S11),IF(AND(C12>$AR$1,$AI$3=$AR$2),BW13,IF($AU$18=$AU$20,SUM(BJ13+BR13),ROUND((D12+E12)*10%,0))))),"") -> 12546 | T12: =IFERROR(IF(C12="","",IF(I12="","",IF(J12="","",IF($C12="TOTAL",SUM($T$8:T11),IF(AND(C12>$AR$1,$AI$3=$AR$2),BW13,IF($AU$18=$AU$20,$AU$21,ROUND((I12+J12)*10%,0))))))),"") -> 11896 | U12: 650 | V12: =IFERROR(IF(C12="","",IF($AU$16=$AU$17,0,IF($C12="TOTAL",SUM($V$8:V11),IF($AU$19=$AU$31,0,IF(AND($AU$32=$AU$20,C12=$AU$33),$AU$34,V11))))),"") -> 2100 | W12: =IFERROR(IF(C12="","",IF($AU$16=$AU$17,0,IF($C12="TOTAL",SUM($W$8:W11),IF($AU$19=$AU$20,$AU$24,0)))),"") -> 2100 | X12: 0 | Y12: =IFERROR(IF(C12="","",IF($AU$16=$AU$17,0,IF($C12="TOTAL",SUM($Y$8:Y11),BZ12))),"") ->  | Z12: =IFERROR(IF(C12="","",IF($AU$16=$AU$17,0,IF($C12="TOTAL",SUM($Z$8:Z11),BY12))),"") ->  | AB12: =IFERROR(IF(C12="","",IF(D12="","",IF($C12="TOTAL",SUM($AB$8:AB11),IF(C12=$AU$1,ROUND(D12*5/31,0.01),"")))),"") ->  | AC12: =IFERROR(IF(C12="","",IF(I12="","",IF($C12="TOTAL",SUM($AC$8:AC11),IF(C12=$AU$1,ROUND(I12*5/31,0.01),"")))),"") ->  | AE12: =IFERROR(IF(C12="","",IF(AND(BP13="",BW13=""),"",IF($C12="TOTAL",SUM($AE$8:AE11),BP13))),"") ->  | AF12: =IFERROR(IF(C12="","",IF($C12="TOTAL",SUM($AF$8:AF11),ROUND(R12*$AU$7%,0))),"") -> 0 | AG12: 650 | AH12: =IFERROR(IF(C12="","",IF($C12="TOTAL",SUM($AH$8:AH11),SUM(R12-AG12))),"") -> 7364 | AQ12: 17 | AR12: 17 | AS12: =ROUND((AU12)*10%,0) -> 3197 | AT12: 2017-04-01 | AU12: =IFERROR(IF($AU$13=$AU$15,ROUND((AU14/BA3)*AW6,0),ROUND((AU10/BA3)*AW6,0)),"") -> 31967 | AV12: 2019-07-01 | AW12: 2019-07-01 | AY12: 2019-07-01 | AZ12: =IFERROR(IF(AY12="","",IF(DATE(YEAR(AY12),MONTH(AY12),DAY(AY12))=DATE(YEAR($AV$6),MONTH($AV$6)+1,DAY($AV$6)),"TOTAL",IF(AY12>$AV$6,"",AY12))),"") -> 2019-07-01 | BA12: =IFERROR(IF(AZ12="","",IF(AND($AU$20=$AU$28,$AU$30=AZ12),$AU$29,IF(OR(AZ12=$BD$2,AZ12=$BD$3,AZ12=$BD$4,AZ12=$BD$5,AZ12=$BD$6,AZ12=$BD$7,AZ12=$BE$2),MROUND(BA11*1.03,100),BA11))),"") -> 104200 | BB12: 20840 | BC12: 21257 | BD12: =IF(AZ12="","",IF(AZ12="TOTAL","",IF(AZ12>=$BC$7,ROUND(BA12*$BA$7%,0),ROUND(BA12*$AW$7%,0)))) -> 8336 | BF12: =IFERROR(IF(AZ12="","",IF(AZ12="TOTAL","",IF($AU$16=$AU$17,$AU$10,IF(OR(AZ12=$BD$2,AZ12=$BD$3,AZ12=$BD$4,AZ12=$BD$5,AZ12=$BD$6,AZ12=$BD$7,AZ12=$BE$2),MROUND(BF11*1.03,100),BF11)))),"") -> 98800 | BG12: 19760 | BH12: 20155 | BI12: =IF(AZ12="","",IF(AZ12="TOTAL","",IF(BF12="","",IF($AU$16=$AU$17,0,IF(AZ12>=$BC$7,ROUND(BF12*$BA$7%,0),ROUND(BF12*$AW$7%,0)))))) -> 7904 | BJ12: 3675 | BM12: 8014 | BN12: 3675 | BQ12: 0 | BR12: 0 | BZ12: =IF(AZ13="","",IF(AZ13="TOTAL","",IF($AU$16=$AU$17,0,IF(AND(AZ13>$BY$1,$AI$3=$AR$2,'Master Sheet'!$D$27>0),'Master Sheet'!$D$27,IF(AND(AZ13=$BY$1),IF($AU$9<18001,135,IF($AU$9<33501,220,IF($AU$9<54001,330,440))),IF(AND(AZ13>$BY$1),IF($AU$9<18001,265,IF($AU$9<33501,440,IF($AU$9<54001,658,875))),"")))))) -> 
A13: 6 | B13: 6 | C13: 2019-09-01 | D13: =IFERROR(IF($C12="TOTAL","अक्षरें राशि :-",IF($C13="TOTAL",SUM($D$8:D12),IF(BA14="","",BA14))),"") -> 104200 | E13: =IFERROR(IF($C13="TOTAL",SUM($E$8:E12),IF(BC14="","",BC14)),"") -> 21257 | F13: =IFERROR(IF($C13="TOTAL",SUM($F$8:F12),IF(OR(C13=$AS$16,C13=$AS$17,C13=$AS$18,C13=$AS$19,C13=$AS$20,C13=$AS$21,C13=$AS$22,C13=$AS$23,C13=$AS$24),0,IF(BD14="","",BD14))),"") -> 8336 | G13: =IFERROR(IF($C13="TOTAL",SUM($G$8:G12),IF(BB14="","",BB14)),"") -> 20840 | H13: 154633 | I13: =IFERROR(IF($C13="TOTAL",SUM($I$8:I12),IF(BF14="","",BF14)),"") -> 98800 | J13: =IFERROR(IF($C13="TOTAL",SUM($J$8:J12),IF(BH14="","",BH14)),"") -> 20155 | K13: =IFERROR(IF($C13="TOTAL",SUM($K$8:K12),IF(OR(C13=$AS$16,C13=$AS$17,C13=$AS$18,C13=$AS$19,C13=$AS$20,C13=$AS$21,C13=$AS$22,C13=$AS$23,C13=$AS$24),0,IF(BI14="","",BI14))),"") -> 7904 | L13: =IFERROR(IF($C13="TOTAL",SUM($L$8:L12),IF(BG14="","",BG14)),"") -> 19760 | M13: 146619 | N13: =IFERROR(IF(C13="","",IF(D13="","",IF(I13="","",IF($C13="TOTAL",SUM($N$8:N12),SUM(D13-I13))))),"") -> 5400 | O13: =IFERROR(IF(C13="","",IF(E13="","",IF(J13="","",IF($C13="TOTAL",SUM($O$8:O12),SUM(E13-J13))))),"") -> 1102 | P13: =IFERROR(IF(C13="","",IF(F13="","",IF(K13="","",IF($C13="TOTAL",SUM($P$8:P12),SUM(F13-K13))))),"") -> 432 | Q13: 1080 | R13: 8014 | S13: =IFERROR(IF(C13="","",IF($C13="TOTAL",SUM($S$8:S12),IF(AND(C13>$AR$1,$AI$3=$AR$2),BW14,IF($AU$18=$AU$20,SUM(BJ14+BR14),ROUND((D13+E13)*10%,0))))),"") -> 12546 | T13: =IFERROR(IF(C13="","",IF(I13="","",IF(J13="","",IF($C13="TOTAL",SUM($T$8:T12),IF(AND(C13>$AR$1,$AI$3=$AR$2),BW14,IF($AU$18=$AU$20,$AU$21,ROUND((I13+J13)*10%,0))))))),"") -> 11896 | U13: 650 | V13: =IFERROR(IF(C13="","",IF($AU$16=$AU$17,0,IF($C13="TOTAL",SUM($V$8:V12),IF($AU$19=$AU$31,0,IF(AND($AU$32=$AU$20,C13=$AU$33),$AU$34,V12))))),"") -> 2100 | W13: =IFERROR(IF(C13="","",IF($AU$16=$AU$17,0,IF($C13="TOTAL",SUM($W$8:W12),IF($AU$19=$AU$20,$AU$24,0)))),"") -> 2100 | X13: 0 | Y13: =IFERROR(IF(C13="","",IF($AU$16=$AU$17,0,IF($C13="TOTAL",SUM($Y$8:Y12),BZ13))),"") ->  | Z13: =IFERROR(IF(C13="","",IF($AU$16=$AU$17,0,IF($C13="TOTAL",SUM($Z$8:Z12),BY13))),"") ->  | AB13: =IFERROR(IF(C13="","",IF(D13="","",IF($C13="TOTAL",SUM($AB$8:AB12),IF(C13=$AU$1,ROUND(D13*5/31,0.01),"")))),"") ->  | AC13: =IFERROR(IF(C13="","",IF(I13="","",IF($C13="TOTAL",SUM($AC$8:AC12),IF(C13=$AU$1,ROUND(I13*5/31,0.01),"")))),"") ->  | AE13: =IFERROR(IF(C13="","",IF(AND(BP14="",BW14=""),"",IF($C13="TOTAL",SUM($AE$8:AE12),BP14))),"") ->  | AF13: =IFERROR(IF(C13="","",IF($C13="TOTAL",SUM($AF$8:AF12),ROUND(R13*$AU$7%,0))),"") -> 0 | AG13: 650 | AH13: =IFERROR(IF(C13="","",IF($C13="TOTAL",SUM($AH$8:AH12),SUM(R13-AG13))),"") -> 7364 | AQ13: 17 | AR13: 17 | AT13: 2017-05-01 | AU13: ='Master Sheet'!D11 -> Regular Pay | AV13: 2019-08-01 | AW13: 2019-08-01 | AY13: 2019-08-01 | AZ13: 2019-08-01 | BA13: 104200 | BB13: 20840 | BC13: 21257 | BD13: 8336 | BF13: 98800 | BG13: 19760 | BH13: 20155 | BI13: 7904 | BJ13: 3675 | BM13: 8014 | BN13: 3675 | BQ13: 0 | BR13: 0 | BZ13: =IF(AZ14="","",IF(AZ14="TOTAL","",IF($AU$16=$AU$17,0,IF(AND(AZ14>$BY$1,$AI$3=$AR$2,'Master Sheet'!$D$27>0),'Master Sheet'!$D$27,IF(AND(AZ14=$BY$1),IF($AU$9<18001,135,IF($AU$9<33501,220,IF($AU$9<54001,330,440))),IF(AND(AZ14>$BY$1),IF($AU$9<18001,265,IF($AU$9<33501,440,IF($AU$9<54001,658,875))),"")))))) -> 
A14: 7 | B14: 7 | C14: 2019-10-01 | D14: =IFERROR(IF($C13="TOTAL","अक्षरें राशि :-",IF($C14="TOTAL",SUM($D$8:D13),IF(BA15="","",BA15))),"") -> 104200 | E14: =IFERROR(IF($C14="TOTAL",SUM($E$8:E13),IF(BC15="","",BC15)),"") -> 21257 | F14: =IFERROR(IF($C14="TOTAL",SUM($F$8:F13),IF(OR(C14=$AS$16,C14=$AS$17,C14=$AS$18,C14=$AS$19,C14=$AS$20,C14=$AS$21,C14=$AS$22,C14=$AS$23,C14=$AS$24),0,IF(BD15="","",BD15))),"") -> 8336 | G14: =IFERROR(IF($C14="TOTAL",SUM($G$8:G13),IF(BB15="","",BB15)),"") -> 20840 | H14: 154633 | I14: =IFERROR(IF($C14="TOTAL",SUM($I$8:I13),IF(BF15="","",BF15)),"") -> 98800 | J14: =IFERROR(IF($C14="TOTAL",SUM($J$8:J13),IF(BH15="","",BH15)),"") -> 20155 | K14: =IFERROR(IF($C14="TOTAL",SUM($K$8:K13),IF(OR(C14=$AS$16,C14=$AS$17,C14=$AS$18,C14=$AS$19,C14=$AS$20,C14=$AS$21,C14=$AS$22,C14=$AS$23,C14=$AS$24),0,IF(BI15="","",BI15))),"") -> 7904 | L14: =IFERROR(IF($C14="TOTAL",SUM($L$8:L13),IF(BG15="","",BG15)),"") -> 19760 | M14: 146619 | N14: =IFERROR(IF(C14="","",IF(D14="","",IF(I14="","",IF($C14="TOTAL",SUM($N$8:N13),SUM(D14-I14))))),"") -> 5400 | O14: =IFERROR(IF(C14="","",IF(E14="","",IF(J14="","",IF($C14="TOTAL",SUM($O$8:O13),SUM(E14-J14))))),"") -> 1102 | P14: =IFERROR(IF(C14="","",IF(F14="","",IF(K14="","",IF($C14="TOTAL",SUM($P$8:P13),SUM(F14-K14))))),"") -> 432 | Q14: 1080 | R14: 8014 | S14: =IFERROR(IF(C14="","",IF($C14="TOTAL",SUM($S$8:S13),IF(AND(C14>$AR$1,$AI$3=$AR$2),BW15,IF($AU$18=$AU$20,SUM(BJ15+BR15),ROUND((D14+E14)*10%,0))))),"") -> 12546 | T14: =IFERROR(IF(C14="","",IF(I14="","",IF(J14="","",IF($C14="TOTAL",SUM($T$8:T13),IF(AND(C14>$AR$1,$AI$3=$AR$2),BW15,IF($AU$18=$AU$20,$AU$21,ROUND((I14+J14)*10%,0))))))),"") -> 11896 | U14: 650 | V14: =IFERROR(IF(C14="","",IF($AU$16=$AU$17,0,IF($C14="TOTAL",SUM($V$8:V13),IF($AU$19=$AU$31,0,IF(AND($AU$32=$AU$20,C14=$AU$33),$AU$34,V13))))),"") -> 2100 | W14: =IFERROR(IF(C14="","",IF($AU$16=$AU$17,0,IF($C14="TOTAL",SUM($W$8:W13),IF($AU$19=$AU$20,$AU$24,0)))),"") -> 2100 | X14: 0 | Y14: =IFERROR(IF(C14="","",IF($AU$16=$AU$17,0,IF($C14="TOTAL",SUM($Y$8:Y13),BZ14))),"") ->  | Z14: =IFERROR(IF(C14="","",IF($AU$16=$AU$17,0,IF($C14="TOTAL",SUM($Z$8:Z13),BY14))),"") ->  | AB14: =IFERROR(IF(C14="","",IF(D14="","",IF($C14="TOTAL",SUM($AB$8:AB13),IF(C14=$AU$1,ROUND(D14*5/31,0.01),"")))),"") ->  | AC14: =IFERROR(IF(C14="","",IF(I14="","",IF($C14="TOTAL",SUM($AC$8:AC13),IF(C14=$AU$1,ROUND(I14*5/31,0.01),"")))),"") ->  | AE14: =IFERROR(IF(C14="","",IF(AND(BP15="",BW15=""),"",IF($C14="TOTAL",SUM($AE$8:AE13),BP15))),"") ->  | AF14: =IFERROR(IF(C14="","",IF($C14="TOTAL",SUM($AF$8:AF13),ROUND(R14*$AU$7%,0))),"") -> 0 | AG14: 650 | AH14: =IFERROR(IF(C14="","",IF($C14="TOTAL",SUM($AH$8:AH13),SUM(R14-AG14))),"") -> 7364 | AQ14: 17 | AR14: 17 | AT14: 2017-06-01 | AU14: ='Master Sheet'!M11 -> 95900 | AV14: 2019-09-01 | AW14: 2019-09-01 | AY14: 2019-09-01 | AZ14: 2019-09-01 | BA14: 104200 | BB14: 20840 | BC14: 21257 | BD14: 8336 | BF14: 98800 | BG14: 19760 | BH14: 20155 | BI14: 7904 | BJ14: 3675 | BM14: 8014 | BN14: 3675 | BQ14: 0 | BR14: 0 | BZ14: =IF(AZ15="","",IF(AZ15="TOTAL","",IF($AU$16=$AU$17,0,IF(AND(AZ15>$BY$1,$AI$3=$AR$2,'Master Sheet'!$D$27>0),'Master Sheet'!$D$27,IF(AND(AZ15=$BY$1),IF($AU$9<18001,135,IF($AU$9<33501,220,IF($AU$9<54001,330,440))),IF(AND(AZ15>$BY$1),IF($AU$9<18001,265,IF($AU$9<33501,440,IF($AU$9<54001,658,875))),"")))))) -> 
A15: 8 | B15: 8 | C15: 2019-11-01 | D15: =IFERROR(IF($C14="TOTAL","अक्षरें राशि :-",IF($C15="TOTAL",SUM($D$8:D14),IF(BA16="","",BA16))),"") -> 104200 | E15: =IFERROR(IF($C15="TOTAL",SUM($E$8:E14),IF(BC16="","",BC16)),"") -> 21257 | F15: =IFERROR(IF($C15="TOTAL",SUM($F$8:F14),IF(OR(C15=$AS$16,C15=$AS$17,C15=$AS$18,C15=$AS$19,C15=$AS$20,C15=$AS$21,C15=$AS$22,C15=$AS$23,C15=$AS$24),0,IF(BD16="","",BD16))),"") -> 8336 | G15: =IFERROR(IF($C15="TOTAL",SUM($G$8:G14),IF(BB16="","",BB16)),"") -> 20840 | H15: 154633 | I15: =IFERROR(IF($C15="TOTAL",SUM($I$8:I14),IF(BF16="","",BF16)),"") -> 98800 | J15: =IFERROR(IF($C15="TOTAL",SUM($J$8:J14),IF(BH16="","",BH16)),"") -> 20155 | K15: =IFERROR(IF($C15="TOTAL",SUM($K$8:K14),IF(OR(C15=$AS$16,C15=$AS$17,C15=$AS$18,C15=$AS$19,C15=$AS$20,C15=$AS$21,C15=$AS$22,C15=$AS$23,C15=$AS$24),0,IF(BI16="","",BI16))),"") -> 7904 | L15: =IFERROR(IF($C15="TOTAL",SUM($L$8:L14),IF(BG16="","",BG16)),"") -> 19760 | M15: 146619 | N15: =IFERROR(IF(C15="","",IF(D15="","",IF(I15="","",IF($C15="TOTAL",SUM($N$8:N14),SUM(D15-I15))))),"") -> 5400 | O15: =IFERROR(IF(C15="","",IF(E15="","",IF(J15="","",IF($C15="TOTAL",SUM($O$8:O14),SUM(E15-J15))))),"") -> 1102 | P15: =IFERROR(IF(C15="","",IF(F15="","",IF(K15="","",IF($C15="TOTAL",SUM($P$8:P14),SUM(F15-K15))))),"") -> 432 | Q15: 1080 | R15: 8014 | S15: =IFERROR(IF(C15="","",IF($C15="TOTAL",SUM($S$8:S14),IF(AND(C15>$AR$1,$AI$3=$AR$2),BW16,IF($AU$18=$AU$20,SUM(BJ16+BR16),ROUND((D15+E15)*10%,0))))),"") -> 12546 | T15: =IFERROR(IF(C15="","",IF(I15="","",IF(J15="","",IF($C15="TOTAL",SUM($T$8:T14),IF(AND(C15>$AR$1,$AI$3=$AR$2),BW16,IF($AU$18=$AU$20,$AU$21,ROUND((I15+J15)*10%,0))))))),"") -> 11896 | U15: 650 | V15: =IFERROR(IF(C15="","",IF($AU$16=$AU$17,0,IF($C15="TOTAL",SUM($V$8:V14),IF($AU$19=$AU$31,0,IF(AND($AU$32=$AU$20,C15=$AU$33),$AU$34,V14))))),"") -> 2100 | W15: =IFERROR(IF(C15="","",IF($AU$16=$AU$17,0,IF($C15="TOTAL",SUM($W$8:W14),IF($AU$19=$AU$20,$AU$24,0)))),"") -> 2100 | X15: 0 | Y15: =IFERROR(IF(C15="","",IF($AU$16=$AU$17,0,IF($C15="TOTAL",SUM($Y$8:Y14),BZ15))),"") ->  | Z15: =IFERROR(IF(C15="","",IF($AU$16=$AU$17,0,IF($C15="TOTAL",SUM($Z$8:Z14),BY15))),"") ->  | AB15: =IFERROR(IF(C15="","",IF(D15="","",IF($C15="TOTAL",SUM($AB$8:AB14),IF(C15=$AU$1,ROUND(D15*5/31,0.01),"")))),"") ->  | AC15: =IFERROR(IF(C15="","",IF(I15="","",IF($C15="TOTAL",SUM($AC$8:AC14),IF(C15=$AU$1,ROUND(I15*5/31,0.01),"")))),"") ->  | AE15: =IFERROR(IF(C15="","",IF(AND(BP16="",BW16=""),"",IF($C15="TOTAL",SUM($AE$8:AE14),BP16))),"") ->  | AF15: =IFERROR(IF(C15="","",IF($C15="TOTAL",SUM($AF$8:AF14),ROUND(R15*$AU$7%,0))),"") -> 0 | AG15: 650 | AH15: =IFERROR(IF(C15="","",IF($C15="TOTAL",SUM($AH$8:AH14),SUM(R15-AG15))),"") -> 7364 | AQ15: 17 | AR15: 17 | AT15: 2017-07-01 | AU15: Regular Pay | AV15: 2019-10-01 | AW15: 2019-10-01 | AY15: 2019-10-01 | AZ15: 2019-10-01 | BA15: 104200 | BB15: 20840 | BC15: 21257 | BD15: 8336 | BF15: 98800 | BG15: 19760 | BH15: 20155 | BI15: 7904 | BJ15: 3675 | BM15: 8014 | BN15: 3675 | BQ15: 0 | BR15: 0 | BZ15: =IF(AZ16="","",IF(AZ16="TOTAL","",IF($AU$16=$AU$17,0,IF(AND(AZ16>$BY$1,$AI$3=$AR$2,'Master Sheet'!$D$27>0),'Master Sheet'!$D$27,IF(AND(AZ16=$BY$1),IF($AU$9<18001,135,IF($AU$9<33501,220,IF($AU$9<54001,330,440))),IF(AND(AZ16>$BY$1),IF($AU$9<18001,265,IF($AU$9<33501,440,IF($AU$9<54001,658,875))),"")))))) -> 
A16: 9 | B16: 9 | C16: 2019-12-01 | D16: =IFERROR(IF($C15="TOTAL","अक्षरें राशि :-",IF($C16="TOTAL",SUM($D$8:D15),IF(BA17="","",BA17))),"") -> 104200 | E16: =IFERROR(IF($C16="TOTAL",SUM($E$8:E15),IF(BC17="","",BC17)),"") -> 21257 | F16: =IFERROR(IF($C16="TOTAL",SUM($F$8:F15),IF(OR(C16=$AS$16,C16=$AS$17,C16=$AS$18,C16=$AS$19,C16=$AS$20,C16=$AS$21,C16=$AS$22,C16=$AS$23,C16=$AS$24),0,IF(BD17="","",BD17))),"") -> 8336 | G16: =IFERROR(IF($C16="TOTAL",SUM($G$8:G15),IF(BB17="","",BB17)),"") -> 20840 | H16: 154633 | I16: =IFERROR(IF($C16="TOTAL",SUM($I$8:I15),IF(BF17="","",BF17)),"") -> 98800 | J16: =IFERROR(IF($C16="TOTAL",SUM($J$8:J15),IF(BH17="","",BH17)),"") -> 20155 | K16: =IFERROR(IF($C16="TOTAL",SUM($K$8:K15),IF(OR(C16=$AS$16,C16=$AS$17,C16=$AS$18,C16=$AS$19,C16=$AS$20,C16=$AS$21,C16=$AS$22,C16=$AS$23,C16=$AS$24),0,IF(BI17="","",BI17))),"") -> 7904 | L16: =IFERROR(IF($C16="TOTAL",SUM($L$8:L15),IF(BG17="","",BG17)),"") -> 19760 | M16: 146619 | N16: =IFERROR(IF(C16="","",IF(D16="","",IF(I16="","",IF($C16="TOTAL",SUM($N$8:N15),SUM(D16-I16))))),"") -> 5400 | O16: =IFERROR(IF(C16="","",IF(E16="","",IF(J16="","",IF($C16="TOTAL",SUM($O$8:O15),SUM(E16-J16))))),"") -> 1102 | P16: =IFERROR(IF(C16="","",IF(F16="","",IF(K16="","",IF($C16="TOTAL",SUM($P$8:P15),SUM(F16-K16))))),"") -> 432 | Q16: 1080 | R16: 8014 | S16: =IFERROR(IF(C16="","",IF($C16="TOTAL",SUM($S$8:S15),IF(AND(C16>$AR$1,$AI$3=$AR$2),BW17,IF($AU$18=$AU$20,SUM(BJ17+BR17),ROUND((D16+E16)*10%,0))))),"") -> 12546 | T16: =IFERROR(IF(C16="","",IF(I16="","",IF(J16="","",IF($C16="TOTAL",SUM($T$8:T15),IF(AND(C16>$AR$1,$AI$3=$AR$2),BW17,IF($AU$18=$AU$20,$AU$21,ROUND((I16+J16)*10%,0))))))),"") -> 11896 | U16: 650 | V16: =IFERROR(IF(C16="","",IF($AU$16=$AU$17,0,IF($C16="TOTAL",SUM($V$8:V15),IF($AU$19=$AU$31,0,IF(AND($AU$32=$AU$20,C16=$AU$33),$AU$34,V15))))),"") -> 2100 | W16: =IFERROR(IF(C16="","",IF($AU$16=$AU$17,0,IF($C16="TOTAL",SUM($W$8:W15),IF($AU$19=$AU$20,$AU$24,0)))),"") -> 2100 | X16: 0 | Y16: =IFERROR(IF(C16="","",IF($AU$16=$AU$17,0,IF($C16="TOTAL",SUM($Y$8:Y15),BZ16))),"") ->  | Z16: =IFERROR(IF(C16="","",IF($AU$16=$AU$17,0,IF($C16="TOTAL",SUM($Z$8:Z15),BY16))),"") ->  | AB16: =IFERROR(IF(C16="","",IF(D16="","",IF($C16="TOTAL",SUM($AB$8:AB15),IF(C16=$AU$1,ROUND(D16*5/31,0.01),"")))),"") ->  | AC16: =IFERROR(IF(C16="","",IF(I16="","",IF($C16="TOTAL",SUM($AC$8:AC15),IF(C16=$AU$1,ROUND(I16*5/31,0.01),"")))),"") ->  | AE16: =IFERROR(IF(C16="","",IF(AND(BP17="",BW17=""),"",IF($C16="TOTAL",SUM($AE$8:AE15),BP17))),"") ->  | AF16: =IFERROR(IF(C16="","",IF($C16="TOTAL",SUM($AF$8:AF15),ROUND(R16*$AU$7%,0))),"") -> 0 | AG16: 650 | AH16: =IFERROR(IF(C16="","",IF($C16="TOTAL",SUM($AH$8:AH15),SUM(R16-AG16))),"") -> 7364 | AQ16: 17 | AR16: 17 | AS16: 2017-01-01 | AT16: 2017-08-01 | AU16: ='Master Sheet'!D11 -> Regular Pay | AV16: 2019-11-01 | AW16: 2019-11-01 | AY16: 2019-11-01 | AZ16: 2019-11-01 | BA16: 104200 | BB16: 20840 | BC16: 21257 | BD16: 8336 | BF16: 98800 | BG16: 19760 | BH16: 20155 | BI16: 7904 | BJ16: 3675 | BM16: 8014 | BN16: 3675 | BQ16: 0 | BR16: 0 | BZ16: =IF(AZ17="","",IF(AZ17="TOTAL","",IF($AU$16=$AU$17,0,IF(AND(AZ17>$BY$1,$AI$3=$AR$2,'Master Sheet'!$D$27>0),'Master Sheet'!$D$27,IF(AND(AZ17=$BY$1),IF($AU$9<18001,135,IF($AU$9<33501,220,IF($AU$9<54001,330,440))),IF(AND(AZ17>$BY$1),IF($AU$9<18001,265,IF($AU$9<33501,440,IF($AU$9<54001,658,875))),"")))))) -> 
A17: 10 | B17: 10 | C17: 2020-01-01 | D17: =IFERROR(IF($C16="TOTAL","अक्षरें राशि :-",IF($C17="TOTAL",SUM($D$8:D16),IF(BA18="","",BA18))),"") -> 104200 | E17: =IFERROR(IF($C17="TOTAL",SUM($E$8:E16),IF(BC18="","",BC18)),"") -> 21257 | F17: =IFERROR(IF($C17="TOTAL",SUM($F$8:F16),IF(OR(C17=$AS$16,C17=$AS$17,C17=$AS$18,C17=$AS$19,C17=$AS$20,C17=$AS$21,C17=$AS$22,C17=$AS$23,C17=$AS$24),0,IF(BD18="","",BD18))),"") -> 8336 | G17: =IFERROR(IF($C17="TOTAL",SUM($G$8:G16),IF(BB18="","",BB18)),"") -> 20840 | H17: 154633 | I17: =IFERROR(IF($C17="TOTAL",SUM($I$8:I16),IF(BF18="","",BF18)),"") -> 98800 | J17: =IFERROR(IF($C17="TOTAL",SUM($J$8:J16),IF(BH18="","",BH18)),"") -> 20155 | K17: =IFERROR(IF($C17="TOTAL",SUM($K$8:K16),IF(OR(C17=$AS$16,C17=$AS$17,C17=$AS$18,C17=$AS$19,C17=$AS$20,C17=$AS$21,C17=$AS$22,C17=$AS$23,C17=$AS$24),0,IF(BI18="","",BI18))),"") -> 7904 | L17: =IFERROR(IF($C17="TOTAL",SUM($L$8:L16),IF(BG18="","",BG18)),"") -> 19760 | M17: 146619 | N17: =IFERROR(IF(C17="","",IF(D17="","",IF(I17="","",IF($C17="TOTAL",SUM($N$8:N16),SUM(D17-I17))))),"") -> 5400 | O17: =IFERROR(IF(C17="","",IF(E17="","",IF(J17="","",IF($C17="TOTAL",SUM($O$8:O16),SUM(E17-J17))))),"") -> 1102 | P17: =IFERROR(IF(C17="","",IF(F17="","",IF(K17="","",IF($C17="TOTAL",SUM($P$8:P16),SUM(F17-K17))))),"") -> 432 | Q17: 1080 | R17: 8014 | S17: =IFERROR(IF(C17="","",IF($C17="TOTAL",SUM($S$8:S16),IF(AND(C17>$AR$1,$AI$3=$AR$2),BW18,IF($AU$18=$AU$20,SUM(BJ18+BR18),ROUND((D17+E17)*10%,0))))),"") -> 12546 | T17: =IFERROR(IF(C17="","",IF(I17="","",IF(J17="","",IF($C17="TOTAL",SUM($T$8:T16),IF(AND(C17>$AR$1,$AI$3=$AR$2),BW18,IF($AU$18=$AU$20,$AU$21,ROUND((I17+J17)*10%,0))))))),"") -> 11896 | U17: 650 | V17: =IFERROR(IF(C17="","",IF($AU$16=$AU$17,0,IF($C17="TOTAL",SUM($V$8:V16),IF($AU$19=$AU$31,0,IF(AND($AU$32=$AU$20,C17=$AU$33),$AU$34,V16))))),"") -> 2100 | W17: =IFERROR(IF(C17="","",IF($AU$16=$AU$17,0,IF($C17="TOTAL",SUM($W$8:W16),IF($AU$19=$AU$20,$AU$24,0)))),"") -> 2100 | X17: 0 | Y17: =IFERROR(IF(C17="","",IF($AU$16=$AU$17,0,IF($C17="TOTAL",SUM($Y$8:Y16),BZ17))),"") ->  | Z17: =IFERROR(IF(C17="","",IF($AU$16=$AU$17,0,IF($C17="TOTAL",SUM($Z$8:Z16),BY17))),"") ->  | AB17: =IFERROR(IF(C17="","",IF(D17="","",IF($C17="TOTAL",SUM($AB$8:AB16),IF(C17=$AU$1,ROUND(D17*5/31,0.01),"")))),"") ->  | AC17: =IFERROR(IF(C17="","",IF(I17="","",IF($C17="TOTAL",SUM($AC$8:AC16),IF(C17=$AU$1,ROUND(I17*5/31,0.01),"")))),"") ->  | AE17: =IFERROR(IF(C17="","",IF(AND(BP18="",BW18=""),"",IF($C17="TOTAL",SUM($AE$8:AE16),BP18))),"") ->  | AF17: =IFERROR(IF(C17="","",IF($C17="TOTAL",SUM($AF$8:AF16),ROUND(R17*$AU$7%,0))),"") -> 0 | AG17: 650 | AH17: =IFERROR(IF(C17="","",IF($C17="TOTAL",SUM($AH$8:AH16),SUM(R17-AG17))),"") -> 7364 | AQ17: 17 | AR17: 17 | AS17: 2017-02-01 | AT17: 2017-09-01 | AU17: Fix Pay | AV17: 2019-12-01 | AW17: 2019-12-01 | AY17: 2019-12-01 | AZ17: 2019-12-01 | BA17: 104200 | BB17: 20840 | BC17: 21257 | BD17: 8336 | BF17: 98800 | BG17: 19760 | BH17: 20155 | BI17: 7904 | BJ17: 3675 | BM17: 8014 | BN17: 3675 | BQ17: 0 | BR17: 0 | BZ17: =IF(AZ18="","",IF(AZ18="TOTAL","",IF($AU$16=$AU$17,0,IF(AND(AZ18>$BY$1,$AI$3=$AR$2,'Master Sheet'!$D$27>0),'Master Sheet'!$D$27,IF(AND(AZ18=$BY$1),IF($AU$9<18001,135,IF($AU$9<33501,220,IF($AU$9<54001,330,440))),IF(AND(AZ18>$BY$1),IF($AU$9<18001,265,IF($AU$9<33501,440,IF($AU$9<54001,658,875))),"")))))) -> 
A18: 11 | B18: 11 | C18: 2020-02-01 | D18: =IFERROR(IF($C17="TOTAL","अक्षरें राशि :-",IF($C18="TOTAL",SUM($D$8:D17),IF(BA19="","",BA19))),"") -> 104200 | E18: =IFERROR(IF($C18="TOTAL",SUM($E$8:E17),IF(BC19="","",BC19)),"") -> 21257 | F18: =IFERROR(IF($C18="TOTAL",SUM($F$8:F17),IF(OR(C18=$AS$16,C18=$AS$17,C18=$AS$18,C18=$AS$19,C18=$AS$20,C18=$AS$21,C18=$AS$22,C18=$AS$23,C18=$AS$24),0,IF(BD19="","",BD19))),"") -> 8336 | G18: =IFERROR(IF($C18="TOTAL",SUM($G$8:G17),IF(BB19="","",BB19)),"") -> 20840 | H18: 154633 | I18: =IFERROR(IF($C18="TOTAL",SUM($I$8:I17),IF(BF19="","",BF19)),"") -> 98800 | J18: =IFERROR(IF($C18="TOTAL",SUM($J$8:J17),IF(BH19="","",BH19)),"") -> 20155 | K18: =IFERROR(IF($C18="TOTAL",SUM($K$8:K17),IF(OR(C18=$AS$16,C18=$AS$17,C18=$AS$18,C18=$AS$19,C18=$AS$20,C18=$AS$21,C18=$AS$22,C18=$AS$23,C18=$AS$24),0,IF(BI19="","",BI19))),"") -> 7904 | L18: =IFERROR(IF($C18="TOTAL",SUM($L$8:L17),IF(BG19="","",BG19)),"") -> 19760 | M18: 146619 | N18: =IFERROR(IF(C18="","",IF(D18="","",IF(I18="","",IF($C18="TOTAL",SUM($N$8:N17),SUM(D18-I18))))),"") -> 5400 | O18: =IFERROR(IF(C18="","",IF(E18="","",IF(J18="","",IF($C18="TOTAL",SUM($O$8:O17),SUM(E18-J18))))),"") -> 1102 | P18: =IFERROR(IF(C18="","",IF(F18="","",IF(K18="","",IF($C18="TOTAL",SUM($P$8:P17),SUM(F18-K18))))),"") -> 432 | Q18: 1080 | R18: 8014 | S18: =IFERROR(IF(C18="","",IF($C18="TOTAL",SUM($S$8:S17),IF(AND(C18>$AR$1,$AI$3=$AR$2),BW19,IF($AU$18=$AU$20,SUM(BJ19+BR19),ROUND((D18+E18)*10%,0))))),"") -> 12546 | T18: =IFERROR(IF(C18="","",IF(I18="","",IF(J18="","",IF($C18="TOTAL",SUM($T$8:T17),IF(AND(C18>$AR$1,$AI$3=$AR$2),BW19,IF($AU$18=$AU$20,$AU$21,ROUND((I18+J18)*10%,0))))))),"") -> 11896 | U18: 650 | V18: =IFERROR(IF(C18="","",IF($AU$16=$AU$17,0,IF($C18="TOTAL",SUM($V$8:V17),IF($AU$19=$AU$31,0,IF(AND($AU$32=$AU$20,C18=$AU$33),$AU$34,V17))))),"") -> 2100 | W18: =IFERROR(IF(C18="","",IF($AU$16=$AU$17,0,IF($C18="TOTAL",SUM($W$8:W17),IF($AU$19=$AU$20,$AU$24,0)))),"") -> 2100 | X18: 0 | Y18: =IFERROR(IF(C18="","",IF($AU$16=$AU$17,0,IF($C18="TOTAL",SUM($Y$8:Y17),BZ18))),"") ->  | Z18: =IFERROR(IF(C18="","",IF($AU$16=$AU$17,0,IF($C18="TOTAL",SUM($Z$8:Z17),BY18))),"") ->  | AB18: =IFERROR(IF(C18="","",IF(D18="","",IF($C18="TOTAL",SUM($AB$8:AB17),IF(C18=$AU$1,ROUND(D18*5/31,0.01),"")))),"") ->  | AC18: =IFERROR(IF(C18="","",IF(I18="","",IF($C18="TOTAL",SUM($AC$8:AC17),IF(C18=$AU$1,ROUND(I18*5/31,0.01),"")))),"") ->  | AE18: =IFERROR(IF(C18="","",IF(AND(BP19="",BW19=""),"",IF($C18="TOTAL",SUM($AE$8:AE17),BP19))),"") ->  | AF18: =IFERROR(IF(C18="","",IF($C18="TOTAL",SUM($AF$8:AF17),ROUND(R18*$AU$7%,0))),"") -> 0 | AG18: 650 | AH18: =IFERROR(IF(C18="","",IF($C18="TOTAL",SUM($AH$8:AH17),SUM(R18-AG18))),"") -> 7364 | AQ18: 17 | AR18: 17 | AS18: 2017-03-01 | AT18: 2017-10-01 | AU18: ='Master Sheet'!D19 -> NO | AV18: 2020-01-01 | AW18: 2020-01-01 | AY18: 2020-01-01 | AZ18: 2020-01-01 | BA18: 104200 | BB18: 20840 | BC18: 21257 | BD18: 8336 | BF18: 98800 | BG18: 19760 | BH18: 20155 | BI18: 7904 | BJ18: 3675 | BM18: 8014 | BN18: 3675 | BQ18: 0 | BR18: 0 | BZ18: =IF(AZ19="","",IF(AZ19="TOTAL","",IF($AU$16=$AU$17,0,IF(AND(AZ19>$BY$1,$AI$3=$AR$2,'Master Sheet'!$D$27>0),'Master Sheet'!$D$27,IF(AND(AZ19=$BY$1),IF($AU$9<18001,135,IF($AU$9<33501,220,IF($AU$9<54001,330,440))),IF(AND(AZ19>$BY$1),IF($AU$9<18001,265,IF($AU$9<33501,440,IF($AU$9<54001,658,875))),"")))))) -> 
A19: 12 | B19: 12 | C19: 2020-03-01 | D19: =IFERROR(IF($C18="TOTAL","अक्षरें राशि :-",IF($C19="TOTAL",SUM($D$8:D18),IF(BA20="","",BA20))),"") -> 104200 | E19: =IFERROR(IF($C19="TOTAL",SUM($E$8:E18),IF(BC20="","",BC20)),"") -> 21257 | F19: =IFERROR(IF($C19="TOTAL",SUM($F$8:F18),IF(OR(C19=$AS$16,C19=$AS$17,C19=$AS$18,C19=$AS$19,C19=$AS$20,C19=$AS$21,C19=$AS$22,C19=$AS$23,C19=$AS$24),0,IF(BD20="","",BD20))),"") -> 8336 | G19: =IFERROR(IF($C19="TOTAL",SUM($G$8:G18),IF(BB20="","",BB20)),"") -> 20840 | H19: 154633 | I19: =IFERROR(IF($C19="TOTAL",SUM($I$8:I18),IF(BF20="","",BF20)),"") -> 98800 | J19: =IFERROR(IF($C19="TOTAL",SUM($J$8:J18),IF(BH20="","",BH20)),"") -> 20155 | K19: =IFERROR(IF($C19="TOTAL",SUM($K$8:K18),IF(OR(C19=$AS$16,C19=$AS$17,C19=$AS$18,C19=$AS$19,C19=$AS$20,C19=$AS$21,C19=$AS$22,C19=$AS$23,C19=$AS$24),0,IF(BI20="","",BI20))),"") -> 7904 | L19: =IFERROR(IF($C19="TOTAL",SUM($L$8:L18),IF(BG20="","",BG20)),"") -> 19760 | M19: 146619 | N19: =IFERROR(IF(C19="","",IF(D19="","",IF(I19="","",IF($C19="TOTAL",SUM($N$8:N18),SUM(D19-I19))))),"") -> 5400 | O19: =IFERROR(IF(C19="","",IF(E19="","",IF(J19="","",IF($C19="TOTAL",SUM($O$8:O18),SUM(E19-J19))))),"") -> 1102 | P19: =IFERROR(IF(C19="","",IF(F19="","",IF(K19="","",IF($C19="TOTAL",SUM($P$8:P18),SUM(F19-K19))))),"") -> 432 | Q19: 1080 | R19: 8014 | S19: =IFERROR(IF(C19="","",IF($C19="TOTAL",SUM($S$8:S18),IF(AND(C19>$AR$1,$AI$3=$AR$2),BW20,IF($AU$18=$AU$20,SUM(BJ20+BR20),ROUND((D19+E19)*10%,0))))),"") -> 12546 | T19: =IFERROR(IF(C19="","",IF(I19="","",IF(J19="","",IF($C19="TOTAL",SUM($T$8:T18),IF(AND(C19>$AR$1,$AI$3=$AR$2),BW20,IF($AU$18=$AU$20,$AU$21,ROUND((I19+J19)*10%,0))))))),"") -> 11896 | U19: 650 | V19: =IFERROR(IF(C19="","",IF($AU$16=$AU$17,0,IF($C19="TOTAL",SUM($V$8:V18),IF($AU$19=$AU$31,0,IF(AND($AU$32=$AU$20,C19=$AU$33),$AU$34,V18))))),"") -> 2100 | W19: =IFERROR(IF(C19="","",IF($AU$16=$AU$17,0,IF($C19="TOTAL",SUM($W$8:W18),IF($AU$19=$AU$20,$AU$24,0)))),"") -> 2100 | X19: 0 | Y19: =IFERROR(IF(C19="","",IF($AU$16=$AU$17,0,IF($C19="TOTAL",SUM($Y$8:Y18),BZ19))),"") ->  | Z19: =IFERROR(IF(C19="","",IF($AU$16=$AU$17,0,IF($C19="TOTAL",SUM($Z$8:Z18),BY19))),"") ->  | AB19: =IFERROR(IF(C19="","",IF(D19="","",IF($C19="TOTAL",SUM($AB$8:AB18),IF(C19=$AU$1,ROUND(D19*5/31,0.01),"")))),"") -> 16806 | AC19: =IFERROR(IF(C19="","",IF(I19="","",IF($C19="TOTAL",SUM($AC$8:AC18),IF(C19=$AU$1,ROUND(I19*5/31,0.01),"")))),"") -> 15935 | AD19: 871 | AE19: =IFERROR(IF(C19="","",IF(AND(BP20="",BW20=""),"",IF($C19="TOTAL",SUM($AE$8:AE18),BP20))),"") ->  | AF19: =IFERROR(IF(C19="","",IF($C19="TOTAL",SUM($AF$8:AF18),ROUND(R19*$AU$7%,0))),"") -> 0 | AG19: 1521 | AH19: =IFERROR(IF(C19="","",IF($C19="TOTAL",SUM($AH$8:AH18),SUM(R19-AG19))),"") -> 6493 | AQ19: 17 | AR19: 17 | AS19: 2017-04-01 | AT19: 2017-11-01 | AU19: ='Master Sheet'!D15 -> YES | AV19: 2020-02-01 | AW19: 2020-02-01 | AY19: 2020-02-01 | AZ19: 2020-02-01 | BA19: 104200 | BB19: 20840 | BC19: 21257 | BD19: 8336 | BF19: 98800 | BG19: 19760 | BH19: 20155 | BI19: 7904 | BJ19: 3675 | BM19: 8014 | BN19: 3675 | BQ19: 0 | BR19: 0 | BZ19: =IF(AZ20="","",IF(AZ20="TOTAL","",IF($AU$16=$AU$17,0,IF(AND(AZ20>$BY$1,$AI$3=$AR$2,'Master Sheet'!$D$27>0),'Master Sheet'!$D$27,IF(AND(AZ20=$BY$1),IF($AU$9<18001,135,IF($AU$9<33501,220,IF($AU$9<54001,330,440))),IF(AND(AZ20>$BY$1),IF($AU$9<18001,265,IF($AU$9<33501,440,IF($AU$9<54001,658,875))),"")))))) -> 
A20: 13 | B20: 13 | C20: 2020-04-01 | D20: =IFERROR(IF($C19="TOTAL","अक्षरें राशि :-",IF($C20="TOTAL",SUM($D$8:D19),IF(BA21="","",BA21))),"") -> 104200 | E20: =IFERROR(IF($C20="TOTAL",SUM($E$8:E19),IF(BC21="","",BC21)),"") -> 21257 | F20: =IFERROR(IF($C20="TOTAL",SUM($F$8:F19),IF(OR(C20=$AS$16,C20=$AS$17,C20=$AS$18,C20=$AS$19,C20=$AS$20,C20=$AS$21,C20=$AS$22,C20=$AS$23,C20=$AS$24),0,IF(BD21="","",BD21))),"") -> 8336 | G20: =IFERROR(IF($C20="TOTAL",SUM($G$8:G19),IF(BB21="","",BB21)),"") -> 20840 | H20: 154633 | I20: =IFERROR(IF($C20="TOTAL",SUM($I$8:I19),IF(BF21="","",BF21)),"") -> 98800 | J20: =IFERROR(IF($C20="TOTAL",SUM($J$8:J19),IF(BH21="","",BH21)),"") -> 20155 | K20: =IFERROR(IF($C20="TOTAL",SUM($K$8:K19),IF(OR(C20=$AS$16,C20=$AS$17,C20=$AS$18,C20=$AS$19,C20=$AS$20,C20=$AS$21,C20=$AS$22,C20=$AS$23,C20=$AS$24),0,IF(BI21="","",BI21))),"") -> 7904 | L20: =IFERROR(IF($C20="TOTAL",SUM($L$8:L19),IF(BG21="","",BG21)),"") -> 19760 | M20: 146619 | N20: =IFERROR(IF(C20="","",IF(D20="","",IF(I20="","",IF($C20="TOTAL",SUM($N$8:N19),SUM(D20-I20))))),"") -> 5400 | O20: =IFERROR(IF(C20="","",IF(E20="","",IF(J20="","",IF($C20="TOTAL",SUM($O$8:O19),SUM(E20-J20))))),"") -> 1102 | P20: =IFERROR(IF(C20="","",IF(F20="","",IF(K20="","",IF($C20="TOTAL",SUM($P$8:P19),SUM(F20-K20))))),"") -> 432 | Q20: 1080 | R20: 8014 | S20: =IFERROR(IF(C20="","",IF($C20="TOTAL",SUM($S$8:S19),IF(AND(C20>$AR$1,$AI$3=$AR$2),BW21,IF($AU$18=$AU$20,SUM(BJ21+BR21),ROUND((D20+E20)*10%,0))))),"") -> 12546 | T20: =IFERROR(IF(C20="","",IF(I20="","",IF(J20="","",IF($C20="TOTAL",SUM($T$8:T19),IF(AND(C20>$AR$1,$AI$3=$AR$2),BW21,IF($AU$18=$AU$20,$AU$21,ROUND((I20+J20)*10%,0))))))),"") -> 11896 | U20: 650 | V20: =IFERROR(IF(C20="","",IF($AU$16=$AU$17,0,IF($C20="TOTAL",SUM($V$8:V19),IF($AU$19=$AU$31,0,IF(AND($AU$32=$AU$20,C20=$AU$33),$AU$34,V19))))),"") -> 2100 | W20: =IFERROR(IF(C20="","",IF($AU$16=$AU$17,0,IF($C20="TOTAL",SUM($W$8:W19),IF($AU$19=$AU$20,$AU$24,0)))),"") -> 2100 | X20: 0 | Y20: =IFERROR(IF(C20="","",IF($AU$16=$AU$17,0,IF($C20="TOTAL",SUM($Y$8:Y19),BZ20))),"") ->  | Z20: =IFERROR(IF(C20="","",IF($AU$16=$AU$17,0,IF($C20="TOTAL",SUM($Z$8:Z19),BY20))),"") ->  | AB20: =IFERROR(IF(C20="","",IF(D20="","",IF($C20="TOTAL",SUM($AB$8:AB19),IF(C20=$AU$1,ROUND(D20*5/31,0.01),"")))),"") ->  | AC20: =IFERROR(IF(C20="","",IF(I20="","",IF($C20="TOTAL",SUM($AC$8:AC19),IF(C20=$AU$1,ROUND(I20*5/31,0.01),"")))),"") ->  | AE20: =IFERROR(IF(C20="","",IF(AND(BP21="",BW21=""),"",IF($C20="TOTAL",SUM($AE$8:AE19),BP21))),"") ->  | AF20: =IFERROR(IF(C20="","",IF($C20="TOTAL",SUM($AF$8:AF19),ROUND(R20*$AU$7%,0))),"") -> 0 | AG20: 650 | AH20: =IFERROR(IF(C20="","",IF($C20="TOTAL",SUM($AH$8:AH19),SUM(R20-AG20))),"") -> 7364 | AQ20: 17 | AR20: 17 | AS20: 2017-05-01 | AT20: 2017-12-01 | AU20: YES | AV20: =IF(AND($AU$6>$AV$6),"",DATE(YEAR(AV19),MONTH(AV19)+1,DAY(AV19))) -> 2020-03-01 | AW20: 2020-03-01 | AY20: 2020-03-01 | AZ20: 2020-03-01 | BA20: 104200 | BB20: 20840 | BC20: 21257 | BD20: 8336 | BF20: 98800 | BG20: 19760 | BH20: 20155 | BI20: 7904 | BJ20: 3675 | BM20: 8014 | BN20: 3675 | BQ20: 0 | BR20: 0 | BZ20: =IF(AZ21="","",IF(AZ21="TOTAL","",IF($AU$16=$AU$17,0,IF(AND(AZ21>$BY$1,$AI$3=$AR$2,'Master Sheet'!$D$27>0),'Master Sheet'!$D$27,IF(AND(AZ21=$BY$1),IF($AU$9<18001,135,IF($AU$9<33501,220,IF($AU$9<54001,330,440))),IF(AND(AZ21>$BY$1),IF($AU$9<18001,265,IF($AU$9<33501,440,IF($AU$9<54001,658,875))),"")))))) -> 
A21: 14 | B21: 14 | C21: 2020-05-01 | D21: =IFERROR(IF($C20="TOTAL","अक्षरें राशि :-",IF($C21="TOTAL",SUM($D$8:D20),IF(BA22="","",BA22))),"") -> 104200 | E21: =IFERROR(IF($C21="TOTAL",SUM($E$8:E20),IF(BC22="","",BC22)),"") -> 21257 | F21: =IFERROR(IF($C21="TOTAL",SUM($F$8:F20),IF(OR(C21=$AS$16,C21=$AS$17,C21=$AS$18,C21=$AS$19,C21=$AS$20,C21=$AS$21,C21=$AS$22,C21=$AS$23,C21=$AS$24),0,IF(BD22="","",BD22))),"") -> 8336 | G21: =IFERROR(IF($C21="TOTAL",SUM($G$8:G20),IF(BB22="","",BB22)),"") -> 20840 | H21: 154633 | I21: =IFERROR(IF($C21="TOTAL",SUM($I$8:I20),IF(BF22="","",BF22)),"") -> 98800 | J21: =IFERROR(IF($C21="TOTAL",SUM($J$8:J20),IF(BH22="","",BH22)),"") -> 20155 | K21: =IFERROR(IF($C21="TOTAL",SUM($K$8:K20),IF(OR(C21=$AS$16,C21=$AS$17,C21=$AS$18,C21=$AS$19,C21=$AS$20,C21=$AS$21,C21=$AS$22,C21=$AS$23,C21=$AS$24),0,IF(BI22="","",BI22))),"") -> 7904 | L21: =IFERROR(IF($C21="TOTAL",SUM($L$8:L20),IF(BG22="","",BG22)),"") -> 19760 | M21: 146619 | N21: =IFERROR(IF(C21="","",IF(D21="","",IF(I21="","",IF($C21="TOTAL",SUM($N$8:N20),SUM(D21-I21))))),"") -> 5400 | O21: =IFERROR(IF(C21="","",IF(E21="","",IF(J21="","",IF($C21="TOTAL",SUM($O$8:O20),SUM(E21-J21))))),"") -> 1102 | P21: =IFERROR(IF(C21="","",IF(F21="","",IF(K21="","",IF($C21="TOTAL",SUM($P$8:P20),SUM(F21-K21))))),"") -> 432 | Q21: 1080 | R21: 8014 | S21: =IFERROR(IF(C21="","",IF($C21="TOTAL",SUM($S$8:S20),IF(AND(C21>$AR$1,$AI$3=$AR$2),BW22,IF($AU$18=$AU$20,SUM(BJ22+BR22),ROUND((D21+E21)*10%,0))))),"") -> 12546 | T21: =IFERROR(IF(C21="","",IF(I21="","",IF(J21="","",IF($C21="TOTAL",SUM($T$8:T20),IF(AND(C21>$AR$1,$AI$3=$AR$2),BW22,IF($AU$18=$AU$20,$AU$21,ROUND((I21+J21)*10%,0))))))),"") -> 11896 | U21: 650 | V21: =IFERROR(IF(C21="","",IF($AU$16=$AU$17,0,IF($C21="TOTAL",SUM($V$8:V20),IF($AU$19=$AU$31,0,IF(AND($AU$32=$AU$20,C21=$AU$33),$AU$34,V20))))),"") -> 2100 | W21: =IFERROR(IF(C21="","",IF($AU$16=$AU$17,0,IF($C21="TOTAL",SUM($W$8:W20),IF($AU$19=$AU$20,$AU$24,0)))),"") -> 2100 | X21: 0 | Y21: =IFERROR(IF(C21="","",IF($AU$16=$AU$17,0,IF($C21="TOTAL",SUM($Y$8:Y20),BZ21))),"") ->  | Z21: =IFERROR(IF(C21="","",IF($AU$16=$AU$17,0,IF($C21="TOTAL",SUM($Z$8:Z20),BY21))),"") ->  | AB21: =IFERROR(IF(C21="","",IF(D21="","",IF($C21="TOTAL",SUM($AB$8:AB20),IF(C21=$AU$1,ROUND(D21*5/31,0.01),"")))),"") ->  | AC21: =IFERROR(IF(C21="","",IF(I21="","",IF($C21="TOTAL",SUM($AC$8:AC20),IF(C21=$AU$1,ROUND(I21*5/31,0.01),"")))),"") ->  | AE21: =IFERROR(IF(C21="","",IF(AND(BP22="",BW22=""),"",IF($C21="TOTAL",SUM($AE$8:AE20),BP22))),"") ->  | AF21: =IFERROR(IF(C21="","",IF($C21="TOTAL",SUM($AF$8:AF20),ROUND(R21*$AU$7%,0))),"") -> 0 | AG21: 650 | AH21: =IFERROR(IF(C21="","",IF($C21="TOTAL",SUM($AH$8:AH20),SUM(R21-AG21))),"") -> 7364 | AQ21: 17 | AR21: 17 | AS21: 2017-06-01 | AT21: 2018-01-01 | AU21: ='Master Sheet'!I19 -> 3675 | AV21: 2020-04-01 | AW21: 2020-04-01 | AY21: 2020-04-01 | AZ21: 2020-04-01 | BA21: 104200 | BB21: 20840 | BC21: 21257 | BD21: 8336 | BF21: 98800 | BG21: 19760 | BH21: 20155 | BI21: 7904 | BJ21: 3675 | BM21: 8014 | BN21: 3675 | BQ21: 0 | BR21: 0 | BZ21: =IF(AZ22="","",IF(AZ22="TOTAL","",IF($AU$16=$AU$17,0,IF(AND(AZ22>$BY$1,$AI$3=$AR$2,'Master Sheet'!$D$27>0),'Master Sheet'!$D$27,IF(AND(AZ22=$BY$1),IF($AU$9<18001,135,IF($AU$9<33501,220,IF($AU$9<54001,330,440))),IF(AND(AZ22>$BY$1),IF($AU$9<18001,265,IF($AU$9<33501,440,IF($AU$9<54001,658,875))),"")))))) -> 
A22: 15 | B22: 15 | C22: 2020-06-01 | D22: =IFERROR(IF($C21="TOTAL","अक्षरें राशि :-",IF($C22="TOTAL",SUM($D$8:D21),IF(BA23="","",BA23))),"") -> 104200 | E22: =IFERROR(IF($C22="TOTAL",SUM($E$8:E21),IF(BC23="","",BC23)),"") -> 21257 | F22: =IFERROR(IF($C22="TOTAL",SUM($F$8:F21),IF(OR(C22=$AS$16,C22=$AS$17,C22=$AS$18,C22=$AS$19,C22=$AS$20,C22=$AS$21,C22=$AS$22,C22=$AS$23,C22=$AS$24),0,IF(BD23="","",BD23))),"") -> 8336 | G22: =IFERROR(IF($C22="TOTAL",SUM($G$8:G21),IF(BB23="","",BB23)),"") -> 20840 | H22: 154633 | I22: =IFERROR(IF($C22="TOTAL",SUM($I$8:I21),IF(BF23="","",BF23)),"") -> 98800 | J22: =IFERROR(IF($C22="TOTAL",SUM($J$8:J21),IF(BH23="","",BH23)),"") -> 20155 | K22: =IFERROR(IF($C22="TOTAL",SUM($K$8:K21),IF(OR(C22=$AS$16,C22=$AS$17,C22=$AS$18,C22=$AS$19,C22=$AS$20,C22=$AS$21,C22=$AS$22,C22=$AS$23,C22=$AS$24),0,IF(BI23="","",BI23))),"") -> 7904 | L22: =IFERROR(IF($C22="TOTAL",SUM($L$8:L21),IF(BG23="","",BG23)),"") -> 19760 | M22: 146619 | N22: =IFERROR(IF(C22="","",IF(D22="","",IF(I22="","",IF($C22="TOTAL",SUM($N$8:N21),SUM(D22-I22))))),"") -> 5400 | O22: =IFERROR(IF(C22="","",IF(E22="","",IF(J22="","",IF($C22="TOTAL",SUM($O$8:O21),SUM(E22-J22))))),"") -> 1102 | P22: =IFERROR(IF(C22="","",IF(F22="","",IF(K22="","",IF($C22="TOTAL",SUM($P$8:P21),SUM(F22-K22))))),"") -> 432 | Q22: 1080 | R22: 8014 | S22: =IFERROR(IF(C22="","",IF($C22="TOTAL",SUM($S$8:S21),IF(AND(C22>$AR$1,$AI$3=$AR$2),BW23,IF($AU$18=$AU$20,SUM(BJ23+BR23),ROUND((D22+E22)*10%,0))))),"") -> 12546 | T22: =IFERROR(IF(C22="","",IF(I22="","",IF(J22="","",IF($C22="TOTAL",SUM($T$8:T21),IF(AND(C22>$AR$1,$AI$3=$AR$2),BW23,IF($AU$18=$AU$20,$AU$21,ROUND((I22+J22)*10%,0))))))),"") -> 11896 | U22: 650 | V22: =IFERROR(IF(C22="","",IF($AU$16=$AU$17,0,IF($C22="TOTAL",SUM($V$8:V21),IF($AU$19=$AU$31,0,IF(AND($AU$32=$AU$20,C22=$AU$33),$AU$34,V21))))),"") -> 2100 | W22: =IFERROR(IF(C22="","",IF($AU$16=$AU$17,0,IF($C22="TOTAL",SUM($W$8:W21),IF($AU$19=$AU$20,$AU$24,0)))),"") -> 2100 | X22: 0 | Y22: =IFERROR(IF(C22="","",IF($AU$16=$AU$17,0,IF($C22="TOTAL",SUM($Y$8:Y21),BZ22))),"") ->  | Z22: =IFERROR(IF(C22="","",IF($AU$16=$AU$17,0,IF($C22="TOTAL",SUM($Z$8:Z21),BY22))),"") ->  | AB22: =IFERROR(IF(C22="","",IF(D22="","",IF($C22="TOTAL",SUM($AB$8:AB21),IF(C22=$AU$1,ROUND(D22*5/31,0.01),"")))),"") ->  | AC22: =IFERROR(IF(C22="","",IF(I22="","",IF($C22="TOTAL",SUM($AC$8:AC21),IF(C22=$AU$1,ROUND(I22*5/31,0.01),"")))),"") ->  | AE22: =IFERROR(IF(C22="","",IF(AND(BP23="",BW23=""),"",IF($C22="TOTAL",SUM($AE$8:AE21),BP23))),"") ->  | AF22: =IFERROR(IF(C22="","",IF($C22="TOTAL",SUM($AF$8:AF21),ROUND(R22*$AU$7%,0))),"") -> 0 | AG22: 650 | AH22: =IFERROR(IF(C22="","",IF($C22="TOTAL",SUM($AH$8:AH21),SUM(R22-AG22))),"") -> 7364 | AQ22: 17 | AR22: 17 | AS22: 2017-07-01 | AT22: 2018-02-01 | AU22: ='Master Sheet'!M19 -> 3675 | AV22: 2020-05-01 | AW22: 2020-05-01 | AY22: 2020-05-01 | AZ22: 2020-05-01 | BA22: 104200 | BB22: 20840 | BC22: 21257 | BD22: 8336 | BF22: 98800 | BG22: 19760 | BH22: 20155 | BI22: 7904 | BJ22: 3675 | BM22: 8014 | BN22: 3675 | BQ22: 0 | BR22: 0 | BZ22: =IF(AZ23="","",IF(AZ23="TOTAL","",IF($AU$16=$AU$17,0,IF(AND(AZ23>$BY$1,$AI$3=$AR$2,'Master Sheet'!$D$27>0),'Master Sheet'!$D$27,IF(AND(AZ23=$BY$1),IF($AU$9<18001,135,IF($AU$9<33501,220,IF($AU$9<54001,330,440))),IF(AND(AZ23>$BY$1),IF($AU$9<18001,265,IF($AU$9<33501,440,IF($AU$9<54001,658,875))),"")))))) -> 
A23: 16 | B23: 16 | C23: 2020-07-01 | D23: =IFERROR(IF($C22="TOTAL","अक्षरें राशि :-",IF($C23="TOTAL",SUM($D$8:D22),IF(BA24="","",BA24))),"") -> 107300 | E23: =IFERROR(IF($C23="TOTAL",SUM($E$8:E22),IF(BC24="","",BC24)),"") -> 21889 | F23: =IFERROR(IF($C23="TOTAL",SUM($F$8:F22),IF(OR(C23=$AS$16,C23=$AS$17,C23=$AS$18,C23=$AS$19,C23=$AS$20,C23=$AS$21,C23=$AS$22,C23=$AS$23,C23=$AS$24),0,IF(BD24="","",BD24))),"") -> 8584 | G23: =IFERROR(IF($C23="TOTAL",SUM($G$8:G22),IF(BB24="","",BB24)),"") -> 21460 | H23: 159233 | I23: =IFERROR(IF($C23="TOTAL",SUM($I$8:I22),IF(BF24="","",BF24)),"") -> 101800 | J23: =IFERROR(IF($C23="TOTAL",SUM($J$8:J22),IF(BH24="","",BH24)),"") -> 20767 | K23: =IFERROR(IF($C23="TOTAL",SUM($K$8:K22),IF(OR(C23=$AS$16,C23=$AS$17,C23=$AS$18,C23=$AS$19,C23=$AS$20,C23=$AS$21,C23=$AS$22,C23=$AS$23,C23=$AS$24),0,IF(BI24="","",BI24))),"") -> 8144 | L23: =IFERROR(IF($C23="TOTAL",SUM($L$8:L22),IF(BG24="","",BG24)),"") -> 20360 | M23: 151071 | N23: =IFERROR(IF(C23="","",IF(D23="","",IF(I23="","",IF($C23="TOTAL",SUM($N$8:N22),SUM(D23-I23))))),"") -> 5500 | O23: =IFERROR(IF(C23="","",IF(E23="","",IF(J23="","",IF($C23="TOTAL",SUM($O$8:O22),SUM(E23-J23))))),"") -> 1122 | P23: =IFERROR(IF(C23="","",IF(F23="","",IF(K23="","",IF($C23="TOTAL",SUM($P$8:P22),SUM(F23-K23))))),"") -> 440 | Q23: 1100 | R23: 8162 | S23: =IFERROR(IF(C23="","",IF($C23="TOTAL",SUM($S$8:S22),IF(AND(C23>$AR$1,$AI$3=$AR$2),BW24,IF($AU$18=$AU$20,SUM(BJ24+BR24),ROUND((D23+E23)*10%,0))))),"") -> 12919 | T23: =IFERROR(IF(C23="","",IF(I23="","",IF(J23="","",IF($C23="TOTAL",SUM($T$8:T22),IF(AND(C23>$AR$1,$AI$3=$AR$2),BW24,IF($AU$18=$AU$20,$AU$21,ROUND((I23+J23)*10%,0))))))),"") -> 12257 | U23: 662 | V23: =IFERROR(IF(C23="","",IF($AU$16=$AU$17,0,IF($C23="TOTAL",SUM($V$8:V22),IF($AU$19=$AU$31,0,IF(AND($AU$32=$AU$20,C23=$AU$33),$AU$34,V22))))),"") -> 2100 | W23: =IFERROR(IF(C23="","",IF($AU$16=$AU$17,0,IF($C23="TOTAL",SUM($W$8:W22),IF($AU$19=$AU$20,$AU$24,0)))),"") -> 2100 | X23: 0 | Y23: =IFERROR(IF(C23="","",IF($AU$16=$AU$17,0,IF($C23="TOTAL",SUM($Y$8:Y22),BZ23))),"") ->  | Z23: =IFERROR(IF(C23="","",IF($AU$16=$AU$17,0,IF($C23="TOTAL",SUM($Z$8:Z22),BY23))),"") ->  | AB23: =IFERROR(IF(C23="","",IF(D23="","",IF($C23="TOTAL",SUM($AB$8:AB22),IF(C23=$AU$1,ROUND(D23*5/31,0.01),"")))),"") ->  | AC23: =IFERROR(IF(C23="","",IF(I23="","",IF($C23="TOTAL",SUM($AC$8:AC22),IF(C23=$AU$1,ROUND(I23*5/31,0.01),"")))),"") ->  | AE23: =IFERROR(IF(C23="","",IF(AND(BP24="",BW24=""),"",IF($C23="TOTAL",SUM($AE$8:AE22),BP24))),"") ->  | AF23: =IFERROR(IF(C23="","",IF($C23="TOTAL",SUM($AF$8:AF22),ROUND(R23*$AU$7%,0))),"") -> 0 | AG23: 662 | AH23: =IFERROR(IF(C23="","",IF($C23="TOTAL",SUM($AH$8:AH22),SUM(R23-AG23))),"") -> 7500 | AQ23: 17 | AR23: 17 | AS23: 2017-08-01 | AT23: 2018-03-01 | AV23: 2020-06-01 | AW23: 2020-06-01 | AY23: 2020-06-01 | AZ23: 2020-06-01 | BA23: 104200 | BB23: 20840 | BC23: 21257 | BD23: 8336 | BF23: 98800 | BG23: 19760 | BH23: 20155 | BI23: 7904 | BJ23: 3675 | BM23: 8014 | BN23: 3675 | BQ23: 0 | BR23: 0 | BZ23: =IF(AZ24="","",IF(AZ24="TOTAL","",IF($AU$16=$AU$17,0,IF(AND(AZ24>$BY$1,$AI$3=$AR$2,'Master Sheet'!$D$27>0),'Master Sheet'!$D$27,IF(AND(AZ24=$BY$1),IF($AU$9<18001,135,IF($AU$9<33501,220,IF($AU$9<54001,330,440))),IF(AND(AZ24>$BY$1),IF($AU$9<18001,265,IF($AU$9<33501,440,IF($AU$9<54001,658,875))),"")))))) -> 
A24: 17 | B24: 17 | C24: 2020-08-01 | D24: =IFERROR(IF($C23="TOTAL","अक्षरें राशि :-",IF($C24="TOTAL",SUM($D$8:D23),IF(BA25="","",BA25))),"") -> 107300 | E24: =IFERROR(IF($C24="TOTAL",SUM($E$8:E23),IF(BC25="","",BC25)),"") -> 21889 | F24: =IFERROR(IF($C24="TOTAL",SUM($F$8:F23),IF(OR(C24=$AS$16,C24=$AS$17,C24=$AS$18,C24=$AS$19,C24=$AS$20,C24=$AS$21,C24=$AS$22,C24=$AS$23,C24=$AS$24),0,IF(BD25="","",BD25))),"") -> 8584 | G24: =IFERROR(IF($C24="TOTAL",SUM($G$8:G23),IF(BB25="","",BB25)),"") -> 21460 | H24: 159233 | I24: =IFERROR(IF($C24="TOTAL",SUM($I$8:I23),IF(BF25="","",BF25)),"") -> 101800 | J24: =IFERROR(IF($C24="TOTAL",SUM($J$8:J23),IF(BH25="","",BH25)),"") -> 20767 | K24: =IFERROR(IF($C24="TOTAL",SUM($K$8:K23),IF(OR(C24=$AS$16,C24=$AS$17,C24=$AS$18,C24=$AS$19,C24=$AS$20,C24=$AS$21,C24=$AS$22,C24=$AS$23,C24=$AS$24),0,IF(BI25="","",BI25))),"") -> 8144 | L24: =IFERROR(IF($C24="TOTAL",SUM($L$8:L23),IF(BG25="","",BG25)),"") -> 20360 | M24: 151071 | N24: =IFERROR(IF(C24="","",IF(D24="","",IF(I24="","",IF($C24="TOTAL",SUM($N$8:N23),SUM(D24-I24))))),"") -> 5500 | O24: =IFERROR(IF(C24="","",IF(E24="","",IF(J24="","",IF($C24="TOTAL",SUM($O$8:O23),SUM(E24-J24))))),"") -> 1122 | P24: =IFERROR(IF(C24="","",IF(F24="","",IF(K24="","",IF($C24="TOTAL",SUM($P$8:P23),SUM(F24-K24))))),"") -> 440 | Q24: 1100 | R24: 8162 | S24: =IFERROR(IF(C24="","",IF($C24="TOTAL",SUM($S$8:S23),IF(AND(C24>$AR$1,$AI$3=$AR$2),BW25,IF($AU$18=$AU$20,SUM(BJ25+BR25),ROUND((D24+E24)*10%,0))))),"") -> 12919 | T24: =IFERROR(IF(C24="","",IF(I24="","",IF(J24="","",IF($C24="TOTAL",SUM($T$8:T23),IF(AND(C24>$AR$1,$AI$3=$AR$2),BW25,IF($AU$18=$AU$20,$AU$21,ROUND((I24+J24)*10%,0))))))),"") -> 12257 | U24: 662 | V24: =IFERROR(IF(C24="","",IF($AU$16=$AU$17,0,IF($C24="TOTAL",SUM($V$8:V23),IF($AU$19=$AU$31,0,IF(AND($AU$32=$AU$20,C24=$AU$33),$AU$34,V23))))),"") -> 2100 | W24: =IFERROR(IF(C24="","",IF($AU$16=$AU$17,0,IF($C24="TOTAL",SUM($W$8:W23),IF($AU$19=$AU$20,$AU$24,0)))),"") -> 2100 | X24: 0 | Y24: =IFERROR(IF(C24="","",IF($AU$16=$AU$17,0,IF($C24="TOTAL",SUM($Y$8:Y23),BZ24))),"") ->  | Z24: =IFERROR(IF(C24="","",IF($AU$16=$AU$17,0,IF($C24="TOTAL",SUM($Z$8:Z23),BY24))),"") ->  | AB24: =IFERROR(IF(C24="","",IF(D24="","",IF($C24="TOTAL",SUM($AB$8:AB23),IF(C24=$AU$1,ROUND(D24*5/31,0.01),"")))),"") ->  | AC24: =IFERROR(IF(C24="","",IF(I24="","",IF($C24="TOTAL",SUM($AC$8:AC23),IF(C24=$AU$1,ROUND(I24*5/31,0.01),"")))),"") ->  | AE24: =IFERROR(IF(C24="","",IF(AND(BP25="",BW25=""),"",IF($C24="TOTAL",SUM($AE$8:AE23),BP25))),"") ->  | AF24: =IFERROR(IF(C24="","",IF($C24="TOTAL",SUM($AF$8:AF23),ROUND(R24*$AU$7%,0))),"") -> 0 | AG24: 662 | AH24: =IFERROR(IF(C24="","",IF($C24="TOTAL",SUM($AH$8:AH23),SUM(R24-AG24))),"") -> 7500 | AQ24: 17 | AR24: 17 | AS24: 2017-09-01 | AT24: 2018-04-01 | AU24: ='Master Sheet'!I15 -> 2100 | AV24: 2020-07-01 | AW24: 2020-07-01 | AY24: 2020-07-01 | AZ24: 2020-07-01 | BA24: 107300 | BB24: 21460 | BC24: 21889 | BD24: 8584 | BF24: 101800 | BG24: 20360 | BH24: 20767 | BI24: 8144 | BJ24: 3675 | BM24: 8162 | BN24: 3675 | BQ24: 0 | BR24: 0 | BZ24: =IF(AZ25="","",IF(AZ25="TOTAL","",IF($AU$16=$AU$17,0,IF(AND(AZ25>$BY$1,$AI$3=$AR$2,'Master Sheet'!$D$27>0),'Master Sheet'!$D$27,IF(AND(AZ25=$BY$1),IF($AU$9<18001,135,IF($AU$9<33501,220,IF($AU$9<54001,330,440))),IF(AND(AZ25>$BY$1),IF($AU$9<18001,265,IF($AU$9<33501,440,IF($AU$9<54001,658,875))),"")))))) -> 
A25: =IF(C25="TOTAL","",IF(B24="","",IF(LEN(C25)>=2,B24+1,0))) -> 18 | B25: 18 | C25: 2020-09-01 | D25: =IFERROR(IF($C24="TOTAL","अक्षरें राशि :-",IF($C25="TOTAL",SUM($D$8:D24),IF(BA26="","",BA26))),"") -> 107300 | E25: =IFERROR(IF($C25="TOTAL",SUM($E$8:E24),IF(BC26="","",BC26)),"") -> 21889 | F25: =IFERROR(IF($C25="TOTAL",SUM($F$8:F24),IF(OR(C25=$AS$16,C25=$AS$17,C25=$AS$18,C25=$AS$19,C25=$AS$20,C25=$AS$21,C25=$AS$22,C25=$AS$23,C25=$AS$24),0,IF(BD26="","",BD26))),"") -> 8584 | G25: =IFERROR(IF($C25="TOTAL",SUM($G$8:G24),IF(BB26="","",BB26)),"") -> 21460 | H25: 159233 | I25: =IFERROR(IF($C25="TOTAL",SUM($I$8:I24),IF(BF26="","",BF26)),"") -> 101800 | J25: =IFERROR(IF($C25="TOTAL",SUM($J$8:J24),IF(BH26="","",BH26)),"") -> 20767 | K25: =IFERROR(IF($C25="TOTAL",SUM($K$8:K24),IF(OR(C25=$AS$16,C25=$AS$17,C25=$AS$18,C25=$AS$19,C25=$AS$20,C25=$AS$21,C25=$AS$22,C25=$AS$23,C25=$AS$24),0,IF(BI26="","",BI26))),"") -> 8144 | L25: =IFERROR(IF($C25="TOTAL",SUM($L$8:L24),IF(BG26="","",BG26)),"") -> 20360 | M25: 151071 | N25: =IFERROR(IF(C25="","",IF(D25="","",IF(I25="","",IF($C25="TOTAL",SUM($N$8:N24),SUM(D25-I25))))),"") -> 5500 | O25: =IFERROR(IF(C25="","",IF(E25="","",IF(J25="","",IF($C25="TOTAL",SUM($O$8:O24),SUM(E25-J25))))),"") -> 1122 | P25: =IFERROR(IF(C25="","",IF(F25="","",IF(K25="","",IF($C25="TOTAL",SUM($P$8:P24),SUM(F25-K25))))),"") -> 440 | Q25: 1100 | R25: 8162 | S25: =IFERROR(IF(C25="","",IF($C25="TOTAL",SUM($S$8:S24),IF(AND(C25>$AR$1,$AI$3=$AR$2),BW26,IF($AU$18=$AU$20,SUM(BJ26+BR26),ROUND((D25+E25)*10%,0))))),"") -> 12919 | T25: =IFERROR(IF(C25="","",IF(I25="","",IF(J25="","",IF($C25="TOTAL",SUM($T$8:T24),IF(AND(C25>$AR$1,$AI$3=$AR$2),BW26,IF($AU$18=$AU$20,$AU$21,ROUND((I25+J25)*10%,0))))))),"") -> 12257 | U25: 662 | V25: =IFERROR(IF(C25="","",IF($AU$16=$AU$17,0,IF($C25="TOTAL",SUM($V$8:V24),IF($AU$19=$AU$31,0,IF(AND($AU$32=$AU$20,C25=$AU$33),$AU$34,V24))))),"") -> 2100 | W25: =IFERROR(IF(C25="","",IF($AU$16=$AU$17,0,IF($C25="TOTAL",SUM($W$8:W24),IF($AU$19=$AU$20,$AU$24,0)))),"") -> 2100 | X25: 0 | Y25: =IFERROR(IF(C25="","",IF($AU$16=$AU$17,0,IF($C25="TOTAL",SUM($Y$8:Y24),BZ25))),"") ->  | Z25: =IFERROR(IF(C25="","",IF($AU$16=$AU$17,0,IF($C25="TOTAL",SUM($Z$8:Z24),BY25))),"") ->  | AB25: =IFERROR(IF(C25="","",IF(D25="","",IF($C25="TOTAL",SUM($AB$8:AB24),IF(C25=$AU$1,ROUND(D25*5/31,0.01),"")))),"") ->  | AC25: =IFERROR(IF(C25="","",IF(I25="","",IF($C25="TOTAL",SUM($AC$8:AC24),IF(C25=$AU$1,ROUND(I25*5/31,0.01),"")))),"") ->  | AE25: =IFERROR(IF(C25="","",IF(AND(BP26="",BW26=""),"",IF($C25="TOTAL",SUM($AE$8:AE24),BP26))),"") ->  | AF25: =IFERROR(IF(C25="","",IF($C25="TOTAL",SUM($AF$8:AF24),ROUND(R25*$AU$7%,0))),"") -> 0 | AG25: 662 | AH25: =IFERROR(IF(C25="","",IF($C25="TOTAL",SUM($AH$8:AH24),SUM(R25-AG25))),"") -> 7500 | AQ25: 17 | AR25: 17 | AT25: 2018-05-01 | AU25: ='Master Sheet'!M15 -> 2100 | AV25: 2020-08-01 | AW25: 2020-08-01 | AY25: 2020-08-01 | AZ25: 2020-08-01 | BA25: 107300 | BB25: 21460 | BC25: 21889 | BD25: 8584 | BF25: 101800 | BG25: 20360 | BH25: 20767 | BI25: 8144 | BJ25: 3675 | BM25: 8162 | BN25: 3675 | BQ25: 0 | BR25: 0 | BZ25: =IF(AZ26="","",IF(AZ26="TOTAL","",IF($AU$16=$AU$17,0,IF(AND(AZ26>$BY$1,$AI$3=$AR$2,'Master Sheet'!$D$27>0),'Master Sheet'!$D$27,IF(AND(AZ26=$BY$1),IF($AU$9<18001,135,IF($AU$9<33501,220,IF($AU$9<54001,330,440))),IF(AND(AZ26>$BY$1),IF($AU$9<18001,265,IF($AU$9<33501,440,IF($AU$9<54001,658,875))),"")))))) -> 
A26: =IF(C26="TOTAL","",IF(B25="","",IF(LEN(C26)>=2,B25+1,0))) -> 19 | B26: 19 | C26: 2020-10-01 | D26: =IFERROR(IF($C25="TOTAL","अक्षरें राशि :-",IF($C26="TOTAL",SUM($D$8:D25),IF(BA27="","",BA27))),"") -> 107300 | E26: =IFERROR(IF($C26="TOTAL",SUM($E$8:E25),IF(BC27="","",BC27)),"") -> 21889 | F26: =IFERROR(IF($C26="TOTAL",SUM($F$8:F25),IF(OR(C26=$AS$16,C26=$AS$17,C26=$AS$18,C26=$AS$19,C26=$AS$20,C26=$AS$21,C26=$AS$22,C26=$AS$23,C26=$AS$24),0,IF(BD27="","",BD27))),"") -> 8584 | G26: =IFERROR(IF($C26="TOTAL",SUM($G$8:G25),IF(BB27="","",BB27)),"") -> 21460 | H26: 159233 | I26: =IFERROR(IF($C26="TOTAL",SUM($I$8:I25),IF(BF27="","",BF27)),"") -> 101800 | J26: =IFERROR(IF($C26="TOTAL",SUM($J$8:J25),IF(BH27="","",BH27)),"") -> 20767 | K26: =IFERROR(IF($C26="TOTAL",SUM($K$8:K25),IF(OR(C26=$AS$16,C26=$AS$17,C26=$AS$18,C26=$AS$19,C26=$AS$20,C26=$AS$21,C26=$AS$22,C26=$AS$23,C26=$AS$24),0,IF(BI27="","",BI27))),"") -> 8144 | L26: =IFERROR(IF($C26="TOTAL",SUM($L$8:L25),IF(BG27="","",BG27)),"") -> 20360 | M26: 151071 | N26: =IFERROR(IF(C26="","",IF(D26="","",IF(I26="","",IF($C26="TOTAL",SUM($N$8:N25),SUM(D26-I26))))),"") -> 5500 | O26: =IFERROR(IF(C26="","",IF(E26="","",IF(J26="","",IF($C26="TOTAL",SUM($O$8:O25),SUM(E26-J26))))),"") -> 1122 | P26: =IFERROR(IF(C26="","",IF(F26="","",IF(K26="","",IF($C26="TOTAL",SUM($P$8:P25),SUM(F26-K26))))),"") -> 440 | Q26: 1100 | R26: 8162 | S26: =IFERROR(IF(C26="","",IF($C26="TOTAL",SUM($S$8:S25),IF(AND(C26>$AR$1,$AI$3=$AR$2),BW27,IF($AU$18=$AU$20,SUM(BJ27+BR27),ROUND((D26+E26)*10%,0))))),"") -> 12919 | T26: =IFERROR(IF(C26="","",IF(I26="","",IF(J26="","",IF($C26="TOTAL",SUM($T$8:T25),IF(AND(C26>$AR$1,$AI$3=$AR$2),BW27,IF($AU$18=$AU$20,$AU$21,ROUND((I26+J26)*10%,0))))))),"") -> 12257 | U26: 662 | V26: =IFERROR(IF(C26="","",IF($AU$16=$AU$17,0,IF($C26="TOTAL",SUM($V$8:V25),IF($AU$19=$AU$31,0,IF(AND($AU$32=$AU$20,C26=$AU$33),$AU$34,V25))))),"") -> 2100 | W26: =IFERROR(IF(C26="","",IF($AU$16=$AU$17,0,IF($C26="TOTAL",SUM($W$8:W25),IF($AU$19=$AU$20,$AU$24,0)))),"") -> 2100 | X26: 0 | Y26: =IFERROR(IF(C26="","",IF($AU$16=$AU$17,0,IF($C26="TOTAL",SUM($Y$8:Y25),BZ26))),"") ->  | Z26: =IFERROR(IF(C26="","",IF($AU$16=$AU$17,0,IF($C26="TOTAL",SUM($Z$8:Z25),BY26))),"") ->  | AB26: =IFERROR(IF(C26="","",IF(D26="","",IF($C26="TOTAL",SUM($AB$8:AB25),IF(C26=$AU$1,ROUND(D26*5/31,0.01),"")))),"") ->  | AC26: =IFERROR(IF(C26="","",IF(I26="","",IF($C26="TOTAL",SUM($AC$8:AC25),IF(C26=$AU$1,ROUND(I26*5/31,0.01),"")))),"") ->  | AE26: =IFERROR(IF(C26="","",IF(AND(BP27="",BW27=""),"",IF($C26="TOTAL",SUM($AE$8:AE25),BP27))),"") ->  | AF26: =IFERROR(IF(C26="","",IF($C26="TOTAL",SUM($AF$8:AF25),ROUND(R26*$AU$7%,0))),"") -> 0 | AG26: 662 | AH26: =IFERROR(IF(C26="","",IF($C26="TOTAL",SUM($AH$8:AH25),SUM(R26-AG26))),"") -> 7500 | AQ26: 17 | AR26: 17 | AT26: 2018-06-01 | AV26: 2020-09-01 | AW26: 2020-09-01 | AY26: 2020-09-01 | AZ26: =IFERROR(IF(AY26="","",IF(DATE(YEAR(AY26),MONTH(AY26),DAY(AY26))=DATE(YEAR($AV$6),MONTH($AV$6)+1,DAY($AV$6)),"TOTAL",IF(AY26>$AV$6,"",AY26))),"") -> 2020-09-01 | BA26: 107300 | BB26: 21460 | BC26: 21889 | BD26: 8584 | BF26: 101800 | BG26: 20360 | BH26: 20767 | BI26: 8144 | BJ26: 3675 | BM26: 8162 | BN26: 3675 | BQ26: 0 | BR26: 0 | BZ26: =IF(AZ27="","",IF(AZ27="TOTAL","",IF($AU$16=$AU$17,0,IF(AND(AZ27>$BY$1,$AI$3=$AR$2,'Master Sheet'!$D$27>0),'Master Sheet'!$D$27,IF(AND(AZ27=$BY$1),IF($AU$9<18001,135,IF($AU$9<33501,220,IF($AU$9<54001,330,440))),IF(AND(AZ27>$BY$1),IF($AU$9<18001,265,IF($AU$9<33501,440,IF($AU$9<54001,658,875))),"")))))) -> 
A27: 20 | B27: 20 | C27: 2020-11-01 | D27: =IFERROR(IF($C26="TOTAL","अक्षरें राशि :-",IF($C27="TOTAL",SUM($D$8:D26),IF(BA28="","",BA28))),"") -> 107300 | E27: =IFERROR(IF($C27="TOTAL",SUM($E$8:E26),IF(BC28="","",BC28)),"") -> 21889 | F27: =IFERROR(IF($C27="TOTAL",SUM($F$8:F26),IF(OR(C27=$AS$16,C27=$AS$17,C27=$AS$18,C27=$AS$19,C27=$AS$20,C27=$AS$21,C27=$AS$22,C27=$AS$23,C27=$AS$24),0,IF(BD28="","",BD28))),"") -> 8584 | G27: =IFERROR(IF($C27="TOTAL",SUM($G$8:G26),IF(BB28="","",BB28)),"") -> 21460 | H27: 159233 | I27: =IFERROR(IF($C27="TOTAL",SUM($I$8:I26),IF(BF28="","",BF28)),"") -> 101800 | J27: =IFERROR(IF($C27="TOTAL",SUM($J$8:J26),IF(BH28="","",BH28)),"") -> 20767 | K27: =IFERROR(IF($C27="TOTAL",SUM($K$8:K26),IF(OR(C27=$AS$16,C27=$AS$17,C27=$AS$18,C27=$AS$19,C27=$AS$20,C27=$AS$21,C27=$AS$22,C27=$AS$23,C27=$AS$24),0,IF(BI28="","",BI28))),"") -> 8144 | L27: =IFERROR(IF($C27="TOTAL",SUM($L$8:L26),IF(BG28="","",BG28)),"") -> 20360 | M27: 151071 | N27: =IFERROR(IF(C27="","",IF(D27="","",IF(I27="","",IF($C27="TOTAL",SUM($N$8:N26),SUM(D27-I27))))),"") -> 5500 | O27: =IFERROR(IF(C27="","",IF(E27="","",IF(J27="","",IF($C27="TOTAL",SUM($O$8:O26),SUM(E27-J27))))),"") -> 1122 | P27: =IFERROR(IF(C27="","",IF(F27="","",IF(K27="","",IF($C27="TOTAL",SUM($P$8:P26),SUM(F27-K27))))),"") -> 440 | Q27: 1100 | R27: 8162 | S27: =IFERROR(IF(C27="","",IF($C27="TOTAL",SUM($S$8:S26),IF(AND(C27>$AR$1,$AI$3=$AR$2),BW28,IF($AU$18=$AU$20,SUM(BJ28+BR28),ROUND((D27+E27)*10%,0))))),"") -> 12919 | T27: =IFERROR(IF(C27="","",IF(I27="","",IF(J27="","",IF($C27="TOTAL",SUM($T$8:T26),IF(AND(C27>$AR$1,$AI$3=$AR$2),BW28,IF($AU$18=$AU$20,$AU$21,ROUND((I27+J27)*10%,0))))))),"") -> 12257 | U27: 662 | V27: =IFERROR(IF(C27="","",IF($AU$16=$AU$17,0,IF($C27="TOTAL",SUM($V$8:V26),IF($AU$19=$AU$31,0,IF(AND($AU$32=$AU$20,C27=$AU$33),$AU$34,V26))))),"") -> 2100 | W27: =IFERROR(IF(C27="","",IF($AU$16=$AU$17,0,IF($C27="TOTAL",SUM($W$8:W26),IF($AU$19=$AU$20,$AU$24,0)))),"") -> 2100 | X27: 0 | Y27: =IFERROR(IF(C27="","",IF($AU$16=$AU$17,0,IF($C27="TOTAL",SUM($Y$8:Y26),BZ27))),"") ->  | Z27: =IFERROR(IF(C27="","",IF($AU$16=$AU$17,0,IF($C27="TOTAL",SUM($Z$8:Z26),BY27))),"") ->  | AB27: =IFERROR(IF(C27="","",IF(D27="","",IF($C27="TOTAL",SUM($AB$8:AB26),IF(C27=$AU$1,ROUND(D27*5/31,0.01),"")))),"") ->  | AC27: =IFERROR(IF(C27="","",IF(I27="","",IF($C27="TOTAL",SUM($AC$8:AC26),IF(C27=$AU$1,ROUND(I27*5/31,0.01),"")))),"") ->  | AE27: =IFERROR(IF(C27="","",IF(AND(BP28="",BW28=""),"",IF($C27="TOTAL",SUM($AE$8:AE26),BP28))),"") ->  | AF27: =IFERROR(IF(C27="","",IF($C27="TOTAL",SUM($AF$8:AF26),ROUND(R27*$AU$7%,0))),"") -> 0 | AG27: 662 | AH27: =IFERROR(IF(C27="","",IF($C27="TOTAL",SUM($AH$8:AH26),SUM(R27-AG27))),"") -> 7500 | AQ27: 17 | AR27: 17 | AT27: 2018-07-01 | AV27: 2020-10-01 | AW27: 2020-10-01 | AY27: 2020-10-01 | AZ27: 2020-10-01 | BA27: 107300 | BB27: 21460 | BC27: 21889 | BD27: 8584 | BF27: 101800 | BG27: 20360 | BH27: 20767 | BI27: 8144 | BJ27: 3675 | BM27: 8162 | BN27: 3675 | BQ27: 0 | BR27: 0 | BZ27: =IF(AZ28="","",IF(AZ28="TOTAL","",IF($AU$16=$AU$17,0,IF(AND(AZ28>$BY$1,$AI$3=$AR$2,'Master Sheet'!$D$27>0),'Master Sheet'!$D$27,IF(AND(AZ28=$BY$1),IF($AU$9<18001,135,IF($AU$9<33501,220,IF($AU$9<54001,330,440))),IF(AND(AZ28>$BY$1),IF($AU$9<18001,265,IF($AU$9<33501,440,IF($AU$9<54001,658,875))),"")))))) -> 
A28: 21 | B28: 21 | C28: 2020-12-01 | D28: =IFERROR(IF($C27="TOTAL","अक्षरें राशि :-",IF($C28="TOTAL",SUM($D$8:D27),IF(BA29="","",BA29))),"") -> 107300 | E28: =IFERROR(IF($C28="TOTAL",SUM($E$8:E27),IF(BC29="","",BC29)),"") -> 21889 | F28: =IFERROR(IF($C28="TOTAL",SUM($F$8:F27),IF(OR(C28=$AS$16,C28=$AS$17,C28=$AS$18,C28=$AS$19,C28=$AS$20,C28=$AS$21,C28=$AS$22,C28=$AS$23,C28=$AS$24),0,IF(BD29="","",BD29))),"") -> 8584 | G28: =IFERROR(IF($C28="TOTAL",SUM($G$8:G27),IF(BB29="","",BB29)),"") -> 21460 | H28: 159233 | I28: =IFERROR(IF($C28="TOTAL",SUM($I$8:I27),IF(BF29="","",BF29)),"") -> 101800 | J28: =IFERROR(IF($C28="TOTAL",SUM($J$8:J27),IF(BH29="","",BH29)),"") -> 20767 | K28: =IFERROR(IF($C28="TOTAL",SUM($K$8:K27),IF(OR(C28=$AS$16,C28=$AS$17,C28=$AS$18,C28=$AS$19,C28=$AS$20,C28=$AS$21,C28=$AS$22,C28=$AS$23,C28=$AS$24),0,IF(BI29="","",BI29))),"") -> 8144 | L28: =IFERROR(IF($C28="TOTAL",SUM($L$8:L27),IF(BG29="","",BG29)),"") -> 20360 | M28: 151071 | N28: =IFERROR(IF(C28="","",IF(D28="","",IF(I28="","",IF($C28="TOTAL",SUM($N$8:N27),SUM(D28-I28))))),"") -> 5500 | O28: =IFERROR(IF(C28="","",IF(E28="","",IF(J28="","",IF($C28="TOTAL",SUM($O$8:O27),SUM(E28-J28))))),"") -> 1122 | P28: =IFERROR(IF(C28="","",IF(F28="","",IF(K28="","",IF($C28="TOTAL",SUM($P$8:P27),SUM(F28-K28))))),"") -> 440 | Q28: 1100 | R28: 8162 | S28: =IFERROR(IF(C28="","",IF($C28="TOTAL",SUM($S$8:S27),IF(AND(C28>$AR$1,$AI$3=$AR$2),BW29,IF($AU$18=$AU$20,SUM(BJ29+BR29),ROUND((D28+E28)*10%,0))))),"") -> 12919 | T28: =IFERROR(IF(C28="","",IF(I28="","",IF(J28="","",IF($C28="TOTAL",SUM($T$8:T27),IF(AND(C28>$AR$1,$AI$3=$AR$2),BW29,IF($AU$18=$AU$20,$AU$21,ROUND((I28+J28)*10%,0))))))),"") -> 12257 | U28: 662 | V28: =IFERROR(IF(C28="","",IF($AU$16=$AU$17,0,IF($C28="TOTAL",SUM($V$8:V27),IF($AU$19=$AU$31,0,IF(AND($AU$32=$AU$20,C28=$AU$33),$AU$34,V27))))),"") -> 2100 | W28: =IFERROR(IF(C28="","",IF($AU$16=$AU$17,0,IF($C28="TOTAL",SUM($W$8:W27),IF($AU$19=$AU$20,$AU$24,0)))),"") -> 2100 | X28: 0 | Y28: =IFERROR(IF(C28="","",IF($AU$16=$AU$17,0,IF($C28="TOTAL",SUM($Y$8:Y27),BZ28))),"") ->  | Z28: =IFERROR(IF(C28="","",IF($AU$16=$AU$17,0,IF($C28="TOTAL",SUM($Z$8:Z27),BY28))),"") ->  | AB28: =IFERROR(IF(C28="","",IF(D28="","",IF($C28="TOTAL",SUM($AB$8:AB27),IF(C28=$AU$1,ROUND(D28*5/31,0.01),"")))),"") ->  | AC28: =IFERROR(IF(C28="","",IF(I28="","",IF($C28="TOTAL",SUM($AC$8:AC27),IF(C28=$AU$1,ROUND(I28*5/31,0.01),"")))),"") ->  | AE28: =IFERROR(IF(C28="","",IF(AND(BP29="",BW29=""),"",IF($C28="TOTAL",SUM($AE$8:AE27),BP29))),"") ->  | AF28: =IFERROR(IF(C28="","",IF($C28="TOTAL",SUM($AF$8:AF27),ROUND(R28*$AU$7%,0))),"") -> 0 | AG28: 662 | AH28: =IFERROR(IF(C28="","",IF($C28="TOTAL",SUM($AH$8:AH27),SUM(R28-AG28))),"") -> 7500 | AQ28: 17 | AR28: 17 | AT28: 2018-08-01 | AU28: ='Master Sheet'!D23 -> NO | AV28: 2020-11-01 | AW28: 2020-11-01 | AY28: 2020-11-01 | AZ28: 2020-11-01 | BA28: 107300 | BB28: 21460 | BC28: 21889 | BD28: 8584 | BF28: 101800 | BG28: 20360 | BH28: 20767 | BI28: 8144 | BJ28: 3675 | BM28: 8162 | BN28: 3675 | BQ28: 0 | BR28: 0 | BZ28: =IF(AZ29="","",IF(AZ29="TOTAL","",IF($AU$16=$AU$17,0,IF(AND(AZ29>$BY$1,$AI$3=$AR$2,'Master Sheet'!$D$27>0),'Master Sheet'!$D$27,IF(AND(AZ29=$BY$1),IF($AU$9<18001,135,IF($AU$9<33501,220,IF($AU$9<54001,330,440))),IF(AND(AZ29>$BY$1),IF($AU$9<18001,265,IF($AU$9<33501,440,IF($AU$9<54001,658,875))),"")))))) -> 
A29: 22 | B29: 22 | C29: 2021-01-01 | D29: =IFERROR(IF($C28="TOTAL","अक्षरें राशि :-",IF($C29="TOTAL",SUM($D$8:D28),IF(BA30="","",BA30))),"") -> 107300 | E29: =IFERROR(IF($C29="TOTAL",SUM($E$8:E28),IF(BC30="","",BC30)),"") -> 21889 | F29: =IFERROR(IF($C29="TOTAL",SUM($F$8:F28),IF(OR(C29=$AS$16,C29=$AS$17,C29=$AS$18,C29=$AS$19,C29=$AS$20,C29=$AS$21,C29=$AS$22,C29=$AS$23,C29=$AS$24),0,IF(BD30="","",BD30))),"") -> 8584 | G29: =IFERROR(IF($C29="TOTAL",SUM($G$8:G28),IF(BB30="","",BB30)),"") -> 21460 | H29: 159233 | I29: =IFERROR(IF($C29="TOTAL",SUM($I$8:I28),IF(BF30="","",BF30)),"") -> 101800 | J29: =IFERROR(IF($C29="TOTAL",SUM($J$8:J28),IF(BH30="","",BH30)),"") -> 20767 | K29: =IFERROR(IF($C29="TOTAL",SUM($K$8:K28),IF(OR(C29=$AS$16,C29=$AS$17,C29=$AS$18,C29=$AS$19,C29=$AS$20,C29=$AS$21,C29=$AS$22,C29=$AS$23,C29=$AS$24),0,IF(BI30="","",BI30))),"") -> 8144 | L29: =IFERROR(IF($C29="TOTAL",SUM($L$8:L28),IF(BG30="","",BG30)),"") -> 20360 | M29: 151071 | N29: =IFERROR(IF(C29="","",IF(D29="","",IF(I29="","",IF($C29="TOTAL",SUM($N$8:N28),SUM(D29-I29))))),"") -> 5500 | O29: =IFERROR(IF(C29="","",IF(E29="","",IF(J29="","",IF($C29="TOTAL",SUM($O$8:O28),SUM(E29-J29))))),"") -> 1122 | P29: =IFERROR(IF(C29="","",IF(F29="","",IF(K29="","",IF($C29="TOTAL",SUM($P$8:P28),SUM(F29-K29))))),"") -> 440 | Q29: 1100 | R29: 8162 | S29: =IFERROR(IF(C29="","",IF($C29="TOTAL",SUM($S$8:S28),IF(AND(C29>$AR$1,$AI$3=$AR$2),BW30,IF($AU$18=$AU$20,SUM(BJ30+BR30),ROUND((D29+E29)*10%,0))))),"") -> 12919 | T29: =IFERROR(IF(C29="","",IF(I29="","",IF(J29="","",IF($C29="TOTAL",SUM($T$8:T28),IF(AND(C29>$AR$1,$AI$3=$AR$2),BW30,IF($AU$18=$AU$20,$AU$21,ROUND((I29+J29)*10%,0))))))),"") -> 12257 | U29: 662 | V29: =IFERROR(IF(C29="","",IF($AU$16=$AU$17,0,IF($C29="TOTAL",SUM($V$8:V28),IF($AU$19=$AU$31,0,IF(AND($AU$32=$AU$20,C29=$AU$33),$AU$34,V28))))),"") -> 2100 | W29: =IFERROR(IF(C29="","",IF($AU$16=$AU$17,0,IF($C29="TOTAL",SUM($W$8:W28),IF($AU$19=$AU$20,$AU$24,0)))),"") -> 2100 | X29: 0 | Y29: =IFERROR(IF(C29="","",IF($AU$16=$AU$17,0,IF($C29="TOTAL",SUM($Y$8:Y28),BZ29))),"") ->  | Z29: =IFERROR(IF(C29="","",IF($AU$16=$AU$17,0,IF($C29="TOTAL",SUM($Z$8:Z28),BY29))),"") ->  | AB29: =IFERROR(IF(C29="","",IF(D29="","",IF($C29="TOTAL",SUM($AB$8:AB28),IF(C29=$AU$1,ROUND(D29*5/31,0.01),"")))),"") ->  | AC29: =IFERROR(IF(C29="","",IF(I29="","",IF($C29="TOTAL",SUM($AC$8:AC28),IF(C29=$AU$1,ROUND(I29*5/31,0.01),"")))),"") ->  | AE29: =IFERROR(IF(C29="","",IF(AND(BP30="",BW30=""),"",IF($C29="TOTAL",SUM($AE$8:AE28),BP30))),"") ->  | AF29: =IFERROR(IF(C29="","",IF($C29="TOTAL",SUM($AF$8:AF28),ROUND(R29*$AU$7%,0))),"") -> 0 | AG29: 662 | AH29: =IFERROR(IF(C29="","",IF($C29="TOTAL",SUM($AH$8:AH28),SUM(R29-AG29))),"") -> 7500 | AQ29: 17 | AR29: 17 | AT29: 2018-09-01 | AU29: ='Master Sheet'!M23 -> 41100 | AV29: 2020-12-01 | AW29: 2020-12-01 | AY29: 2020-12-01 | AZ29: 2020-12-01 | BA29: 107300 | BB29: 21460 | BC29: 21889 | BD29: 8584 | BF29: 101800 | BG29: 20360 | BH29: 20767 | BI29: 8144 | BJ29: 3675 | BM29: 8162 | BN29: 3675 | BQ29: 0 | BR29: 0 | BZ29: =IF(AZ30="","",IF(AZ30="TOTAL","",IF($AU$16=$AU$17,0,IF(AND(AZ30>$BY$1,$AI$3=$AR$2,'Master Sheet'!$D$27>0),'Master Sheet'!$D$27,IF(AND(AZ30=$BY$1),IF($AU$9<18001,135,IF($AU$9<33501,220,IF($AU$9<54001,330,440))),IF(AND(AZ30>$BY$1),IF($AU$9<18001,265,IF($AU$9<33501,440,IF($AU$9<54001,658,875))),"")))))) -> 
A30: 23 | B30: 23 | C30: 2021-02-01 | D30: =IFERROR(IF($C29="TOTAL","अक्षरें राशि :-",IF($C30="TOTAL",SUM($D$8:D29),IF(BA31="","",BA31))),"") -> 107300 | E30: =IFERROR(IF($C30="TOTAL",SUM($E$8:E29),IF(BC31="","",BC31)),"") -> 21889 | F30: =IFERROR(IF($C30="TOTAL",SUM($F$8:F29),IF(OR(C30=$AS$16,C30=$AS$17,C30=$AS$18,C30=$AS$19,C30=$AS$20,C30=$AS$21,C30=$AS$22,C30=$AS$23,C30=$AS$24),0,IF(BD31="","",BD31))),"") -> 8584 | G30: =IFERROR(IF($C30="TOTAL",SUM($G$8:G29),IF(BB31="","",BB31)),"") -> 21460 | H30: 159233 | I30: =IFERROR(IF($C30="TOTAL",SUM($I$8:I29),IF(BF31="","",BF31)),"") -> 101800 | J30: =IFERROR(IF($C30="TOTAL",SUM($J$8:J29),IF(BH31="","",BH31)),"") -> 20767 | K30: =IFERROR(IF($C30="TOTAL",SUM($K$8:K29),IF(OR(C30=$AS$16,C30=$AS$17,C30=$AS$18,C30=$AS$19,C30=$AS$20,C30=$AS$21,C30=$AS$22,C30=$AS$23,C30=$AS$24),0,IF(BI31="","",BI31))),"") -> 8144 | L30: =IFERROR(IF($C30="TOTAL",SUM($L$8:L29),IF(BG31="","",BG31)),"") -> 20360 | M30: 151071 | N30: =IFERROR(IF(C30="","",IF(D30="","",IF(I30="","",IF($C30="TOTAL",SUM($N$8:N29),SUM(D30-I30))))),"") -> 5500 | O30: =IFERROR(IF(C30="","",IF(E30="","",IF(J30="","",IF($C30="TOTAL",SUM($O$8:O29),SUM(E30-J30))))),"") -> 1122 | P30: =IFERROR(IF(C30="","",IF(F30="","",IF(K30="","",IF($C30="TOTAL",SUM($P$8:P29),SUM(F30-K30))))),"") -> 440 | Q30: 1100 | R30: 8162 | S30: =IFERROR(IF(C30="","",IF($C30="TOTAL",SUM($S$8:S29),IF(AND(C30>$AR$1,$AI$3=$AR$2),BW31,IF($AU$18=$AU$20,SUM(BJ31+BR31),ROUND((D30+E30)*10%,0))))),"") -> 12919 | T30: =IFERROR(IF(C30="","",IF(I30="","",IF(J30="","",IF($C30="TOTAL",SUM($T$8:T29),IF(AND(C30>$AR$1,$AI$3=$AR$2),BW31,IF($AU$18=$AU$20,$AU$21,ROUND((I30+J30)*10%,0))))))),"") -> 12257 | U30: 662 | V30: =IFERROR(IF(C30="","",IF($AU$16=$AU$17,0,IF($C30="TOTAL",SUM($V$8:V29),IF($AU$19=$AU$31,0,IF(AND($AU$32=$AU$20,C30=$AU$33),$AU$34,V29))))),"") -> 2100 | W30: =IFERROR(IF(C30="","",IF($AU$16=$AU$17,0,IF($C30="TOTAL",SUM($W$8:W29),IF($AU$19=$AU$20,$AU$24,0)))),"") -> 2100 | X30: 0 | Y30: =IFERROR(IF(C30="","",IF($AU$16=$AU$17,0,IF($C30="TOTAL",SUM($Y$8:Y29),BZ30))),"") ->  | Z30: =IFERROR(IF(C30="","",IF($AU$16=$AU$17,0,IF($C30="TOTAL",SUM($Z$8:Z29),BY30))),"") ->  | AB30: =IFERROR(IF(C30="","",IF(D30="","",IF($C30="TOTAL",SUM($AB$8:AB29),IF(C30=$AU$1,ROUND(D30*5/31,0.01),"")))),"") ->  | AC30: =IFERROR(IF(C30="","",IF(I30="","",IF($C30="TOTAL",SUM($AC$8:AC29),IF(C30=$AU$1,ROUND(I30*5/31,0.01),"")))),"") ->  | AE30: =IFERROR(IF(C30="","",IF(AND(BP31="",BW31=""),"",IF($C30="TOTAL",SUM($AE$8:AE29),BP31))),"") ->  | AF30: =IFERROR(IF(C30="","",IF($C30="TOTAL",SUM($AF$8:AF29),ROUND(R30*$AU$7%,0))),"") -> 0 | AG30: 662 | AH30: =IFERROR(IF(C30="","",IF($C30="TOTAL",SUM($AH$8:AH29),SUM(R30-AG30))),"") -> 7500 | AQ30: 17 | AR30: 17 | AT30: 2018-10-01 | AU30: ='Master Sheet'!I23 -> 2021-04-01 | AV30: 2021-01-01 | AW30: 2021-01-01 | AY30: 2021-01-01 | AZ30: 2021-01-01 | BA30: 107300 | BB30: 21460 | BC30: 21889 | BD30: 8584 | BF30: 101800 | BG30: 20360 | BH30: 20767 | BI30: 8144 | BJ30: 3675 | BM30: 8162 | BN30: 3675 | BQ30: 0 | BR30: 0 | BZ30: =IF(AZ31="","",IF(AZ31="TOTAL","",IF($AU$16=$AU$17,0,IF(AND(AZ31>$BY$1,$AI$3=$AR$2,'Master Sheet'!$D$27>0),'Master Sheet'!$D$27,IF(AND(AZ31=$BY$1),IF($AU$9<18001,135,IF($AU$9<33501,220,IF($AU$9<54001,330,440))),IF(AND(AZ31>$BY$1),IF($AU$9<18001,265,IF($AU$9<33501,440,IF($AU$9<54001,658,875))),"")))))) -> 
A31: 24 | B31: 24 | C31: 2021-03-01 | D31: =IFERROR(IF($C30="TOTAL","अक्षरें राशि :-",IF($C31="TOTAL",SUM($D$8:D30),IF(BA32="","",BA32))),"") -> 107300 | E31: =IFERROR(IF($C31="TOTAL",SUM($E$8:E30),IF(BC32="","",BC32)),"") -> 21889 | F31: =IFERROR(IF($C31="TOTAL",SUM($F$8:F30),IF(OR(C31=$AS$16,C31=$AS$17,C31=$AS$18,C31=$AS$19,C31=$AS$20,C31=$AS$21,C31=$AS$22,C31=$AS$23,C31=$AS$24),0,IF(BD32="","",BD32))),"") -> 8584 | G31: =IFERROR(IF($C31="TOTAL",SUM($G$8:G30),IF(BB32="","",BB32)),"") -> 21460 | H31: 159233 | I31: =IFERROR(IF($C31="TOTAL",SUM($I$8:I30),IF(BF32="","",BF32)),"") -> 101800 | J31: =IFERROR(IF($C31="TOTAL",SUM($J$8:J30),IF(BH32="","",BH32)),"") -> 20767 | K31: =IFERROR(IF($C31="TOTAL",SUM($K$8:K30),IF(OR(C31=$AS$16,C31=$AS$17,C31=$AS$18,C31=$AS$19,C31=$AS$20,C31=$AS$21,C31=$AS$22,C31=$AS$23,C31=$AS$24),0,IF(BI32="","",BI32))),"") -> 8144 | L31: =IFERROR(IF($C31="TOTAL",SUM($L$8:L30),IF(BG32="","",BG32)),"") -> 20360 | M31: 151071 | N31: =IFERROR(IF(C31="","",IF(D31="","",IF(I31="","",IF($C31="TOTAL",SUM($N$8:N30),SUM(D31-I31))))),"") -> 5500 | O31: =IFERROR(IF(C31="","",IF(E31="","",IF(J31="","",IF($C31="TOTAL",SUM($O$8:O30),SUM(E31-J31))))),"") -> 1122 | P31: =IFERROR(IF(C31="","",IF(F31="","",IF(K31="","",IF($C31="TOTAL",SUM($P$8:P30),SUM(F31-K31))))),"") -> 440 | Q31: 1100 | R31: 8162 | S31: =IFERROR(IF(C31="","",IF($C31="TOTAL",SUM($S$8:S30),IF(AND(C31>$AR$1,$AI$3=$AR$2),BW32,IF($AU$18=$AU$20,SUM(BJ32+BR32),ROUND((D31+E31)*10%,0))))),"") -> 12919 | T31: =IFERROR(IF(C31="","",IF(I31="","",IF(J31="","",IF($C31="TOTAL",SUM($T$8:T30),IF(AND(C31>$AR$1,$AI$3=$AR$2),BW32,IF($AU$18=$AU$20,$AU$21,ROUND((I31+J31)*10%,0))))))),"") -> 12257 | U31: 662 | V31: =IFERROR(IF(C31="","",IF($AU$16=$AU$17,0,IF($C31="TOTAL",SUM($V$8:V30),IF($AU$19=$AU$31,0,IF(AND($AU$32=$AU$20,C31=$AU$33),$AU$34,V30))))),"") -> 2100 | W31: =IFERROR(IF(C31="","",IF($AU$16=$AU$17,0,IF($C31="TOTAL",SUM($W$8:W30),IF($AU$19=$AU$20,$AU$24,0)))),"") -> 2100 | X31: 0 | Y31: =IFERROR(IF(C31="","",IF($AU$16=$AU$17,0,IF($C31="TOTAL",SUM($Y$8:Y30),BZ31))),"") ->  | Z31: =IFERROR(IF(C31="","",IF($AU$16=$AU$17,0,IF($C31="TOTAL",SUM($Z$8:Z30),BY31))),"") ->  | AB31: =IFERROR(IF(C31="","",IF(D31="","",IF($C31="TOTAL",SUM($AB$8:AB30),IF(C31=$AU$1,ROUND(D31*5/31,0.01),"")))),"") ->  | AC31: =IFERROR(IF(C31="","",IF(I31="","",IF($C31="TOTAL",SUM($AC$8:AC30),IF(C31=$AU$1,ROUND(I31*5/31,0.01),"")))),"") ->  | AE31: =IFERROR(IF(C31="","",IF(AND(BP32="",BW32=""),"",IF($C31="TOTAL",SUM($AE$8:AE30),BP32))),"") ->  | AF31: =IFERROR(IF(C31="","",IF($C31="TOTAL",SUM($AF$8:AF30),ROUND(R31*$AU$7%,0))),"") -> 0 | AG31: 662 | AH31: =IFERROR(IF(C31="","",IF($C31="TOTAL",SUM($AH$8:AH30),SUM(R31-AG31))),"") -> 7500 | AQ31: 17 | AR31: 17 | AT31: 2018-11-01 | AU31: NO | AV31: 2021-02-01 | AW31: 2021-02-01 | AY31: 2021-02-01 | AZ31: 2021-02-01 | BA31: 107300 | BB31: 21460 | BC31: 21889 | BD31: 8584 | BF31: 101800 | BG31: 20360 | BH31: 20767 | BI31: 8144 | BJ31: 3675 | BM31: 8162 | BN31: 3675 | BQ31: 0 | BR31: 0 | BZ31: =IF(AZ32="","",IF(AZ32="TOTAL","",IF($AU$16=$AU$17,0,IF(AND(AZ32>$BY$1,$AI$3=$AR$2,'Master Sheet'!$D$27>0),'Master Sheet'!$D$27,IF(AND(AZ32=$BY$1),IF($AU$9<18001,135,IF($AU$9<33501,220,IF($AU$9<54001,330,440))),IF(AND(AZ32>$BY$1),IF($AU$9<18001,265,IF($AU$9<33501,440,IF($AU$9<54001,658,875))),"")))))) -> 
A32: 25 | B32: 25 | C32: 2021-04-01 | D32: =IFERROR(IF($C31="TOTAL","अक्षरें राशि :-",IF($C32="TOTAL",SUM($D$8:D31),IF(BA33="","",BA33))),"") -> 107300 | E32: =IFERROR(IF($C32="TOTAL",SUM($E$8:E31),IF(BC33="","",BC33)),"") -> 21889 | F32: =IFERROR(IF($C32="TOTAL",SUM($F$8:F31),IF(OR(C32=$AS$16,C32=$AS$17,C32=$AS$18,C32=$AS$19,C32=$AS$20,C32=$AS$21,C32=$AS$22,C32=$AS$23,C32=$AS$24),0,IF(BD33="","",BD33))),"") -> 8584 | G32: =IFERROR(IF($C32="TOTAL",SUM($G$8:G31),IF(BB33="","",BB33)),"") -> 21460 | H32: 159233 | I32: =IFERROR(IF($C32="TOTAL",SUM($I$8:I31),IF(BF33="","",BF33)),"") -> 101800 | J32: =IFERROR(IF($C32="TOTAL",SUM($J$8:J31),IF(BH33="","",BH33)),"") -> 20767 | K32: =IFERROR(IF($C32="TOTAL",SUM($K$8:K31),IF(OR(C32=$AS$16,C32=$AS$17,C32=$AS$18,C32=$AS$19,C32=$AS$20,C32=$AS$21,C32=$AS$22,C32=$AS$23,C32=$AS$24),0,IF(BI33="","",BI33))),"") -> 8144 | L32: =IFERROR(IF($C32="TOTAL",SUM($L$8:L31),IF(BG33="","",BG33)),"") -> 20360 | M32: 151071 | N32: =IFERROR(IF(C32="","",IF(D32="","",IF(I32="","",IF($C32="TOTAL",SUM($N$8:N31),SUM(D32-I32))))),"") -> 5500 | O32: =IFERROR(IF(C32="","",IF(E32="","",IF(J32="","",IF($C32="TOTAL",SUM($O$8:O31),SUM(E32-J32))))),"") -> 1122 | P32: =IFERROR(IF(C32="","",IF(F32="","",IF(K32="","",IF($C32="TOTAL",SUM($P$8:P31),SUM(F32-K32))))),"") -> 440 | Q32: 1100 | R32: 8162 | S32: =IFERROR(IF(C32="","",IF($C32="TOTAL",SUM($S$8:S31),IF(AND(C32>$AR$1,$AI$3=$AR$2),BW33,IF($AU$18=$AU$20,SUM(BJ33+BR33),ROUND((D32+E32)*10%,0))))),"") -> 12919 | T32: =IFERROR(IF(C32="","",IF(I32="","",IF(J32="","",IF($C32="TOTAL",SUM($T$8:T31),IF(AND(C32>$AR$1,$AI$3=$AR$2),BW33,IF($AU$18=$AU$20,$AU$21,ROUND((I32+J32)*10%,0))))))),"") -> 12257 | U32: 662 | V32: =IFERROR(IF(C32="","",IF($AU$16=$AU$17,0,IF($C32="TOTAL",SUM($V$8:V31),IF($AU$19=$AU$31,0,IF(AND($AU$32=$AU$20,C32=$AU$33),$AU$34,V31))))),"") -> 2100 | W32: =IFERROR(IF(C32="","",IF($AU$16=$AU$17,0,IF($C32="TOTAL",SUM($W$8:W31),IF($AU$19=$AU$20,$AU$24,0)))),"") -> 2100 | X32: 0 | Y32: =IFERROR(IF(C32="","",IF($AU$16=$AU$17,0,IF($C32="TOTAL",SUM($Y$8:Y31),BZ32))),"") ->  | Z32: =IFERROR(IF(C32="","",IF($AU$16=$AU$17,0,IF($C32="TOTAL",SUM($Z$8:Z31),BY32))),"") ->  | AB32: =IFERROR(IF(C32="","",IF(D32="","",IF($C32="TOTAL",SUM($AB$8:AB31),IF(C32=$AU$1,ROUND(D32*5/31,0.01),"")))),"") ->  | AC32: =IFERROR(IF(C32="","",IF(I32="","",IF($C32="TOTAL",SUM($AC$8:AC31),IF(C32=$AU$1,ROUND(I32*5/31,0.01),"")))),"") ->  | AE32: =IFERROR(IF(C32="","",IF(AND(BP33="",BW33=""),"",IF($C32="TOTAL",SUM($AE$8:AE31),BP33))),"") ->  | AF32: =IFERROR(IF(C32="","",IF($C32="TOTAL",SUM($AF$8:AF31),ROUND(R32*$AU$7%,0))),"") -> 0 | AG32: 662 | AH32: =IFERROR(IF(C32="","",IF($C32="TOTAL",SUM($AH$8:AH31),SUM(R32-AG32))),"") -> 7500 | AQ32: 17 | AR32: 17 | AT32: 2018-12-01 | AU32: ='Master Sheet'!D17 -> NO | AV32: 2021-03-01 | AW32: 2021-03-01 | AY32: 2021-03-01 | AZ32: 2021-03-01 | BA32: 107300 | BB32: 21460 | BC32: 21889 | BD32: 8584 | BF32: 101800 | BG32: 20360 | BH32: 20767 | BI32: 8144 | BJ32: 3675 | BM32: 8162 | BN32: 3675 | BQ32: 0 | BR32: 0 | BZ32: =IF(AZ33="","",IF(AZ33="TOTAL","",IF($AU$16=$AU$17,0,IF(AND(AZ33>$BY$1,$AI$3=$AR$2,'Master Sheet'!$D$27>0),'Master Sheet'!$D$27,IF(AND(AZ33=$BY$1),IF($AU$9<18001,135,IF($AU$9<33501,220,IF($AU$9<54001,330,440))),IF(AND(AZ33>$BY$1),IF($AU$9<18001,265,IF($AU$9<33501,440,IF($AU$9<54001,658,875))),"")))))) -> 
A33: 26 | B33: 26 | C33: 2021-05-01 | D33: =IFERROR(IF($C32="TOTAL","अक्षरें राशि :-",IF($C33="TOTAL",SUM($D$8:D32),IF(BA34="","",BA34))),"") -> 107300 | E33: =IFERROR(IF($C33="TOTAL",SUM($E$8:E32),IF(BC34="","",BC34)),"") -> 21889 | F33: =IFERROR(IF($C33="TOTAL",SUM($F$8:F32),IF(OR(C33=$AS$16,C33=$AS$17,C33=$AS$18,C33=$AS$19,C33=$AS$20,C33=$AS$21,C33=$AS$22,C33=$AS$23,C33=$AS$24),0,IF(BD34="","",BD34))),"") -> 8584 | G33: =IFERROR(IF($C33="TOTAL",SUM($G$8:G32),IF(BB34="","",BB34)),"") -> 21460 | H33: 159233 | I33: =IFERROR(IF($C33="TOTAL",SUM($I$8:I32),IF(BF34="","",BF34)),"") -> 101800 | J33: =IFERROR(IF($C33="TOTAL",SUM($J$8:J32),IF(BH34="","",BH34)),"") -> 20767 | K33: =IFERROR(IF($C33="TOTAL",SUM($K$8:K32),IF(OR(C33=$AS$16,C33=$AS$17,C33=$AS$18,C33=$AS$19,C33=$AS$20,C33=$AS$21,C33=$AS$22,C33=$AS$23,C33=$AS$24),0,IF(BI34="","",BI34))),"") -> 8144 | L33: =IFERROR(IF($C33="TOTAL",SUM($L$8:L32),IF(BG34="","",BG34)),"") -> 20360 | M33: 151071 | N33: =IFERROR(IF(C33="","",IF(D33="","",IF(I33="","",IF($C33="TOTAL",SUM($N$8:N32),SUM(D33-I33))))),"") -> 5500 | O33: =IFERROR(IF(C33="","",IF(E33="","",IF(J33="","",IF($C33="TOTAL",SUM($O$8:O32),SUM(E33-J33))))),"") -> 1122 | P33: =IFERROR(IF(C33="","",IF(F33="","",IF(K33="","",IF($C33="TOTAL",SUM($P$8:P32),SUM(F33-K33))))),"") -> 440 | Q33: 1100 | R33: 8162 | S33: =IFERROR(IF(C33="","",IF($C33="TOTAL",SUM($S$8:S32),IF(AND(C33>$AR$1,$AI$3=$AR$2),BW34,IF($AU$18=$AU$20,SUM(BJ34+BR34),ROUND((D33+E33)*10%,0))))),"") -> 12919 | T33: =IFERROR(IF(C33="","",IF(I33="","",IF(J33="","",IF($C33="TOTAL",SUM($T$8:T32),IF(AND(C33>$AR$1,$AI$3=$AR$2),BW34,IF($AU$18=$AU$20,$AU$21,ROUND((I33+J33)*10%,0))))))),"") -> 12257 | U33: 662 | V33: =IFERROR(IF(C33="","",IF($AU$16=$AU$17,0,IF($C33="TOTAL",SUM($V$8:V32),IF($AU$19=$AU$31,0,IF(AND($AU$32=$AU$20,C33=$AU$33),$AU$34,V32))))),"") -> 2100 | W33: =IFERROR(IF(C33="","",IF($AU$16=$AU$17,0,IF($C33="TOTAL",SUM($W$8:W32),IF($AU$19=$AU$20,$AU$24,0)))),"") -> 2100 | X33: 0 | Y33: =IFERROR(IF(C33="","",IF($AU$16=$AU$17,0,IF($C33="TOTAL",SUM($Y$8:Y32),BZ33))),"") ->  | Z33: =IFERROR(IF(C33="","",IF($AU$16=$AU$17,0,IF($C33="TOTAL",SUM($Z$8:Z32),BY33))),"") ->  | AB33: =IFERROR(IF(C33="","",IF(D33="","",IF($C33="TOTAL",SUM($AB$8:AB32),IF(C33=$AU$1,ROUND(D33*5/31,0.01),"")))),"") ->  | AC33: =IFERROR(IF(C33="","",IF(I33="","",IF($C33="TOTAL",SUM($AC$8:AC32),IF(C33=$AU$1,ROUND(I33*5/31,0.01),"")))),"") ->  | AE33: =IFERROR(IF(C33="","",IF(AND(BP34="",BW34=""),"",IF($C33="TOTAL",SUM($AE$8:AE32),BP34))),"") ->  | AF33: =IFERROR(IF(C33="","",IF($C33="TOTAL",SUM($AF$8:AF32),ROUND(R33*$AU$7%,0))),"") -> 0 | AG33: 662 | AH33: =IFERROR(IF(C33="","",IF($C33="TOTAL",SUM($AH$8:AH32),SUM(R33-AG33))),"") -> 7500 | AQ33: 17 | AR33: 17 | AT33: 2019-01-01 | AU33: ='Master Sheet'!I17 -> 43525 | AV33: 2021-04-01 | AW33: 2021-04-01 | AY33: 2021-04-01 | AZ33: 2021-04-01 | BA33: 107300 | BB33: 21460 | BC33: 21889 | BD33: 8584 | BF33: 101800 | BG33: 20360 | BH33: 20767 | BI33: 8144 | BJ33: 3675 | BM33: 8162 | BN33: 3675 | BQ33: 0 | BR33: 0 | BZ33: =IF(AZ34="","",IF(AZ34="TOTAL","",IF($AU$16=$AU$17,0,IF(AND(AZ34>$BY$1,$AI$3=$AR$2,'Master Sheet'!$D$27>0),'Master Sheet'!$D$27,IF(AND(AZ34=$BY$1),IF($AU$9<18001,135,IF($AU$9<33501,220,IF($AU$9<54001,330,440))),IF(AND(AZ34>$BY$1),IF($AU$9<18001,265,IF($AU$9<33501,440,IF($AU$9<54001,658,875))),"")))))) -> 
A34: 27 | B34: 27 | C34: 2021-06-01 | D34: =IFERROR(IF($C33="TOTAL","अक्षरें राशि :-",IF($C34="TOTAL",SUM($D$8:D33),IF(BA35="","",BA35))),"") -> 107300 | E34: =IFERROR(IF($C34="TOTAL",SUM($E$8:E33),IF(BC35="","",BC35)),"") -> 21889 | F34: =IFERROR(IF($C34="TOTAL",SUM($F$8:F33),IF(OR(C34=$AS$16,C34=$AS$17,C34=$AS$18,C34=$AS$19,C34=$AS$20,C34=$AS$21,C34=$AS$22,C34=$AS$23,C34=$AS$24),0,IF(BD35="","",BD35))),"") -> 8584 | G34: =IFERROR(IF($C34="TOTAL",SUM($G$8:G33),IF(BB35="","",BB35)),"") -> 21460 | H34: 159233 | I34: =IFERROR(IF($C34="TOTAL",SUM($I$8:I33),IF(BF35="","",BF35)),"") -> 101800 | J34: =IFERROR(IF($C34="TOTAL",SUM($J$8:J33),IF(BH35="","",BH35)),"") -> 20767 | K34: =IFERROR(IF($C34="TOTAL",SUM($K$8:K33),IF(OR(C34=$AS$16,C34=$AS$17,C34=$AS$18,C34=$AS$19,C34=$AS$20,C34=$AS$21,C34=$AS$22,C34=$AS$23,C34=$AS$24),0,IF(BI35="","",BI35))),"") -> 8144 | L34: =IFERROR(IF($C34="TOTAL",SUM($L$8:L33),IF(BG35="","",BG35)),"") -> 20360 | M34: 151071 | N34: =IFERROR(IF(C34="","",IF(D34="","",IF(I34="","",IF($C34="TOTAL",SUM($N$8:N33),SUM(D34-I34))))),"") -> 5500 | O34: =IFERROR(IF(C34="","",IF(E34="","",IF(J34="","",IF($C34="TOTAL",SUM($O$8:O33),SUM(E34-J34))))),"") -> 1122 | P34: =IFERROR(IF(C34="","",IF(F34="","",IF(K34="","",IF($C34="TOTAL",SUM($P$8:P33),SUM(F34-K34))))),"") -> 440 | Q34: 1100 | R34: 8162 | S34: =IFERROR(IF(C34="","",IF($C34="TOTAL",SUM($S$8:S33),IF(AND(C34>$AR$1,$AI$3=$AR$2),BW35,IF($AU$18=$AU$20,SUM(BJ35+BR35),ROUND((D34+E34)*10%,0))))),"") -> 12919 | T34: =IFERROR(IF(C34="","",IF(I34="","",IF(J34="","",IF($C34="TOTAL",SUM($T$8:T33),IF(AND(C34>$AR$1,$AI$3=$AR$2),BW35,IF($AU$18=$AU$20,$AU$21,ROUND((I34+J34)*10%,0))))))),"") -> 12257 | U34: 662 | V34: =IFERROR(IF(C34="","",IF($AU$16=$AU$17,0,IF($C34="TOTAL",SUM($V$8:V33),IF($AU$19=$AU$31,0,IF(AND($AU$32=$AU$20,C34=$AU$33),$AU$34,V33))))),"") -> 2100 | W34: =IFERROR(IF(C34="","",IF($AU$16=$AU$17,0,IF($C34="TOTAL",SUM($W$8:W33),IF($AU$19=$AU$20,$AU$24,0)))),"") -> 2100 | X34: 0 | Y34: =IFERROR(IF(C34="","",IF($AU$16=$AU$17,0,IF($C34="TOTAL",SUM($Y$8:Y33),BZ34))),"") ->  | Z34: =IFERROR(IF(C34="","",IF($AU$16=$AU$17,0,IF($C34="TOTAL",SUM($Z$8:Z33),BY34))),"") ->  | AB34: =IFERROR(IF(C34="","",IF(D34="","",IF($C34="TOTAL",SUM($AB$8:AB33),IF(C34=$AU$1,ROUND(D34*5/31,0.01),"")))),"") ->  | AC34: =IFERROR(IF(C34="","",IF(I34="","",IF($C34="TOTAL",SUM($AC$8:AC33),IF(C34=$AU$1,ROUND(I34*5/31,0.01),"")))),"") ->  | AE34: =IFERROR(IF(C34="","",IF(AND(BP35="",BW35=""),"",IF($C34="TOTAL",SUM($AE$8:AE33),BP35))),"") ->  | AF34: =IFERROR(IF(C34="","",IF($C34="TOTAL",SUM($AF$8:AF33),ROUND(R34*$AU$7%,0))),"") -> 0 | AG34: 662 | AH34: =IFERROR(IF(C34="","",IF($C34="TOTAL",SUM($AH$8:AH33),SUM(R34-AG34))),"") -> 7500 | AQ34: 17 | AR34: 17 | AT34: 2019-02-01 | AU34: ='Master Sheet'!M17 -> 3000 | AV34: 2021-05-01 | AW34: 2021-05-01 | AY34: 2021-05-01 | AZ34: 2021-05-01 | BA34: 107300 | BB34: 21460 | BC34: 21889 | BD34: 8584 | BF34: 101800 | BG34: 20360 | BH34: 20767 | BI34: 8144 | BJ34: 3675 | BM34: 8162 | BN34: 3675 | BQ34: 0 | BR34: 0 | BZ34: =IF(AZ35="","",IF(AZ35="TOTAL","",IF($AU$16=$AU$17,0,IF(AND(AZ35>$BY$1,$AI$3=$AR$2,'Master Sheet'!$D$27>0),'Master Sheet'!$D$27,IF(AND(AZ35=$BY$1),IF($AU$9<18001,135,IF($AU$9<33501,220,IF($AU$9<54001,330,440))),IF(AND(AZ35>$BY$1),IF($AU$9<18001,265,IF($AU$9<33501,440,IF($AU$9<54001,658,875))),"")))))) -> 
A35: 28 | B35: 28 | C35: 2021-07-01 | D35: =IFERROR(IF($C34="TOTAL","अक्षरें राशि :-",IF($C35="TOTAL",SUM($D$8:D34),IF(BA36="","",BA36))),"") -> 110500 | E35: =IFERROR(IF($C35="TOTAL",SUM($E$8:E34),IF(BC36="","",BC36)),"") -> 41106 | F35: =IFERROR(IF($C35="TOTAL",SUM($F$8:F34),IF(OR(C35=$AS$16,C35=$AS$17,C35=$AS$18,C35=$AS$19,C35=$AS$20,C35=$AS$21,C35=$AS$22,C35=$AS$23,C35=$AS$24),0,IF(BD36="","",BD36))),"") -> 9945 | G35: =IFERROR(IF($C35="TOTAL",SUM($G$8:G34),IF(BB36="","",BB36)),"") -> 22100 | H35: 183651 | I35: =IFERROR(IF($C35="TOTAL",SUM($I$8:I34),IF(BF36="","",BF36)),"") -> 104900 | J35: =IFERROR(IF($C35="TOTAL",SUM($J$8:J34),IF(BH36="","",BH36)),"") -> 39023 | K35: =IFERROR(IF($C35="TOTAL",SUM($K$8:K34),IF(OR(C35=$AS$16,C35=$AS$17,C35=$AS$18,C35=$AS$19,C35=$AS$20,C35=$AS$21,C35=$AS$22,C35=$AS$23,C35=$AS$24),0,IF(BI36="","",BI36))),"") -> 9441 | L35: =IFERROR(IF($C35="TOTAL",SUM($L$8:L34),IF(BG36="","",BG36)),"") -> 20980 | M35: 174344 | N35: =IFERROR(IF(C35="","",IF(D35="","",IF(I35="","",IF($C35="TOTAL",SUM($N$8:N34),SUM(D35-I35))))),"") -> 5600 | O35: =IFERROR(IF(C35="","",IF(E35="","",IF(J35="","",IF($C35="TOTAL",SUM($O$8:O34),SUM(E35-J35))))),"") -> 2083 | P35: =IFERROR(IF(C35="","",IF(F35="","",IF(K35="","",IF($C35="TOTAL",SUM($P$8:P34),SUM(F35-K35))))),"") -> 504 | Q35: 1120 | R35: 9307 | S35: =IFERROR(IF(C35="","",IF($C35="TOTAL",SUM($S$8:S34),IF(AND(C35>$AR$1,$AI$3=$AR$2),BW36,IF($AU$18=$AU$20,SUM(BJ36+BR36),ROUND((D35+E35)*10%,0))))),"") -> 15161 | T35: =IFERROR(IF(C35="","",IF(I35="","",IF(J35="","",IF($C35="TOTAL",SUM($T$8:T34),IF(AND(C35>$AR$1,$AI$3=$AR$2),BW36,IF($AU$18=$AU$20,$AU$21,ROUND((I35+J35)*10%,0))))))),"") -> 14392 | U35: 769 | V35: =IFERROR(IF(C35="","",IF($AU$16=$AU$17,0,IF($C35="TOTAL",SUM($V$8:V34),IF($AU$19=$AU$31,0,IF(AND($AU$32=$AU$20,C35=$AU$33),$AU$34,V34))))),"") -> 2100 | W35: =IFERROR(IF(C35="","",IF($AU$16=$AU$17,0,IF($C35="TOTAL",SUM($W$8:W34),IF($AU$19=$AU$20,$AU$24,0)))),"") -> 2100 | X35: 0 | Y35: =IFERROR(IF(C35="","",IF($AU$16=$AU$17,0,IF($C35="TOTAL",SUM($Y$8:Y34),BZ35))),"") ->  | Z35: =IFERROR(IF(C35="","",IF($AU$16=$AU$17,0,IF($C35="TOTAL",SUM($Z$8:Z34),BY35))),"") ->  | AB35: =IFERROR(IF(C35="","",IF(D35="","",IF($C35="TOTAL",SUM($AB$8:AB34),IF(C35=$AU$1,ROUND(D35*5/31,0.01),"")))),"") ->  | AC35: =IFERROR(IF(C35="","",IF(I35="","",IF($C35="TOTAL",SUM($AC$8:AC34),IF(C35=$AU$1,ROUND(I35*5/31,0.01),"")))),"") ->  | AE35: =IFERROR(IF(C35="","",IF(AND(BP36="",BW36=""),"",IF($C35="TOTAL",SUM($AE$8:AE34),BP36))),"") -> 168 | AF35: =IFERROR(IF(C35="","",IF($C35="TOTAL",SUM($AF$8:AF34),ROUND(R35*$AU$7%,0))),"") -> 0 | AG35: 937 | AH35: =IFERROR(IF(C35="","",IF($C35="TOTAL",SUM($AH$8:AH34),SUM(R35-AG35))),"") -> 8370 | AQ35: 17 | AR35: 17 | AT35: 2019-03-01 | AV35: 2021-06-01 | AW35: 2021-06-01 | AY35: 2021-06-01 | AZ35: 2021-06-01 | BA35: 107300 | BB35: 21460 | BC35: 21889 | BD35: 8584 | BF35: 101800 | BG35: 20360 | BH35: 20767 | BI35: 8144 | BJ35: 3675 | BM35: 8162 | BN35: 3675 | BQ35: 0 | BR35: 0 | BZ35: =IF(AZ36="","",IF(AZ36="TOTAL","",IF($AU$16=$AU$17,0,IF(AND(AZ36>$BY$1,$AI$3=$AR$2,'Master Sheet'!$D$27>0),'Master Sheet'!$D$27,IF(AND(AZ36=$BY$1),IF($AU$9<18001,135,IF($AU$9<33501,220,IF($AU$9<54001,330,440))),IF(AND(AZ36>$BY$1),IF($AU$9<18001,265,IF($AU$9<33501,440,IF($AU$9<54001,658,875))),"")))))) -> 
A36: 29 | B36: 29 | C36: 2021-08-01 | D36: =IFERROR(IF($C35="TOTAL","अक्षरें राशि :-",IF($C36="TOTAL",SUM($D$8:D35),IF(BA37="","",BA37))),"") -> 110500 | E36: =IFERROR(IF($C36="TOTAL",SUM($E$8:E35),IF(BC37="","",BC37)),"") -> 41106 | F36: =IFERROR(IF($C36="TOTAL",SUM($F$8:F35),IF(OR(C36=$AS$16,C36=$AS$17,C36=$AS$18,C36=$AS$19,C36=$AS$20,C36=$AS$21,C36=$AS$22,C36=$AS$23,C36=$AS$24),0,IF(BD37="","",BD37))),"") -> 9945 | G36: =IFERROR(IF($C36="TOTAL",SUM($G$8:G35),IF(BB37="","",BB37)),"") -> 22100 | H36: 183651 | I36: =IFERROR(IF($C36="TOTAL",SUM($I$8:I35),IF(BF37="","",BF37)),"") -> 104900 | J36: =IFERROR(IF($C36="TOTAL",SUM($J$8:J35),IF(BH37="","",BH37)),"") -> 39023 | K36: =IFERROR(IF($C36="TOTAL",SUM($K$8:K35),IF(OR(C36=$AS$16,C36=$AS$17,C36=$AS$18,C36=$AS$19,C36=$AS$20,C36=$AS$21,C36=$AS$22,C36=$AS$23,C36=$AS$24),0,IF(BI37="","",BI37))),"") -> 9441 | L36: =IFERROR(IF($C36="TOTAL",SUM($L$8:L35),IF(BG37="","",BG37)),"") -> 20980 | M36: 174344 | N36: =IFERROR(IF(C36="","",IF(D36="","",IF(I36="","",IF($C36="TOTAL",SUM($N$8:N35),SUM(D36-I36))))),"") -> 5600 | O36: =IFERROR(IF(C36="","",IF(E36="","",IF(J36="","",IF($C36="TOTAL",SUM($O$8:O35),SUM(E36-J36))))),"") -> 2083 | P36: =IFERROR(IF(C36="","",IF(F36="","",IF(K36="","",IF($C36="TOTAL",SUM($P$8:P35),SUM(F36-K36))))),"") -> 504 | Q36: 1120 | R36: 9307 | S36: =IFERROR(IF(C36="","",IF($C36="TOTAL",SUM($S$8:S35),IF(AND(C36>$AR$1,$AI$3=$AR$2),BW37,IF($AU$18=$AU$20,SUM(BJ37+BR37),ROUND((D36+E36)*10%,0))))),"") -> 15161 | T36: =IFERROR(IF(C36="","",IF(I36="","",IF(J36="","",IF($C36="TOTAL",SUM($T$8:T35),IF(AND(C36>$AR$1,$AI$3=$AR$2),BW37,IF($AU$18=$AU$20,$AU$21,ROUND((I36+J36)*10%,0))))))),"") -> 14392 | U36: 769 | V36: =IFERROR(IF(C36="","",IF($AU$16=$AU$17,0,IF($C36="TOTAL",SUM($V$8:V35),IF($AU$19=$AU$31,0,IF(AND($AU$32=$AU$20,C36=$AU$33),$AU$34,V35))))),"") -> 2100 | W36: =IFERROR(IF(C36="","",IF($AU$16=$AU$17,0,IF($C36="TOTAL",SUM($W$8:W35),IF($AU$19=$AU$20,$AU$24,0)))),"") -> 2100 | X36: 0 | Y36: =IFERROR(IF(C36="","",IF($AU$16=$AU$17,0,IF($C36="TOTAL",SUM($Y$8:Y35),BZ36))),"") ->  | Z36: =IFERROR(IF(C36="","",IF($AU$16=$AU$17,0,IF($C36="TOTAL",SUM($Z$8:Z35),BY36))),"") ->  | AB36: =IFERROR(IF(C36="","",IF(D36="","",IF($C36="TOTAL",SUM($AB$8:AB35),IF(C36=$AU$1,ROUND(D36*5/31,0.01),"")))),"") ->  | AC36: =IFERROR(IF(C36="","",IF(I36="","",IF($C36="TOTAL",SUM($AC$8:AC35),IF(C36=$AU$1,ROUND(I36*5/31,0.01),"")))),"") ->  | AE36: =IFERROR(IF(C36="","",IF(AND(BP37="",BW37=""),"",IF($C36="TOTAL",SUM($AE$8:AE35),BP37))),"") -> 168 | AF36: =IFERROR(IF(C36="","",IF($C36="TOTAL",SUM($AF$8:AF35),ROUND(R36*$AU$7%,0))),"") -> 0 | AG36: 937 | AH36: =IFERROR(IF(C36="","",IF($C36="TOTAL",SUM($AH$8:AH35),SUM(R36-AG36))),"") -> 8370 | AQ36: 31 | AR36: 31 | AT36: 2019-04-01 | AU36: ='Master Sheet'!D21 -> NO | AV36: 2021-07-01 | AW36: 2021-07-01 | AY36: 2021-07-01 | AZ36: 2021-07-01 | BA36: 110500 | BB36: 22100 | BC36: 41106 | BD36: 9945 | BF36: 104900 | BG36: 20980 | BH36: 39023 | BI36: 9441 | BJ36: 3675 | BM36: 9307 | BN36: 3675 | BO36: YES | BP36: 168 | BQ36: 23 | BR36: 230 | BZ36: =IF(AZ37="","",IF(AZ37="TOTAL","",IF($AU$16=$AU$17,0,IF(AND(AZ37>$BY$1,$AI$3=$AR$2,'Master Sheet'!$D$27>0),'Master Sheet'!$D$27,IF(AND(AZ37=$BY$1),IF($AU$9<18001,135,IF($AU$9<33501,220,IF($AU$9<54001,330,440))),IF(AND(AZ37>$BY$1),IF($AU$9<18001,265,IF($AU$9<33501,440,IF($AU$9<54001,658,875))),"")))))) -> 
A37: 30 | B37: 30 | C37: 2021-09-01 | D37: =IFERROR(IF($C36="TOTAL","अक्षरें राशि :-",IF($C37="TOTAL",SUM($D$8:D36),IF(BA38="","",BA38))),"") -> 110500 | E37: =IFERROR(IF($C37="TOTAL",SUM($E$8:E36),IF(BC38="","",BC38)),"") -> 41106 | F37: =IFERROR(IF($C37="TOTAL",SUM($F$8:F36),IF(OR(C37=$AS$16,C37=$AS$17,C37=$AS$18,C37=$AS$19,C37=$AS$20,C37=$AS$21,C37=$AS$22,C37=$AS$23,C37=$AS$24),0,IF(BD38="","",BD38))),"") -> 9945 | G37: =IFERROR(IF($C37="TOTAL",SUM($G$8:G36),IF(BB38="","",BB38)),"") -> 22100 | H37: 183651 | I37: =IFERROR(IF($C37="TOTAL",SUM($I$8:I36),IF(BF38="","",BF38)),"") -> 104900 | J37: =IFERROR(IF($C37="TOTAL",SUM($J$8:J36),IF(BH38="","",BH38)),"") -> 39023 | K37: =IFERROR(IF($C37="TOTAL",SUM($K$8:K36),IF(OR(C37=$AS$16,C37=$AS$17,C37=$AS$18,C37=$AS$19,C37=$AS$20,C37=$AS$21,C37=$AS$22,C37=$AS$23,C37=$AS$24),0,IF(BI38="","",BI38))),"") -> 9441 | L37: =IFERROR(IF($C37="TOTAL",SUM($L$8:L36),IF(BG38="","",BG38)),"") -> 20980 | M37: 174344 | N37: =IFERROR(IF(C37="","",IF(D37="","",IF(I37="","",IF($C37="TOTAL",SUM($N$8:N36),SUM(D37-I37))))),"") -> 5600 | O37: =IFERROR(IF(C37="","",IF(E37="","",IF(J37="","",IF($C37="TOTAL",SUM($O$8:O36),SUM(E37-J37))))),"") -> 2083 | P37: =IFERROR(IF(C37="","",IF(F37="","",IF(K37="","",IF($C37="TOTAL",SUM($P$8:P36),SUM(F37-K37))))),"") -> 504 | Q37: 1120 | R37: 9307 | S37: =IFERROR(IF(C37="","",IF($C37="TOTAL",SUM($S$8:S36),IF(AND(C37>$AR$1,$AI$3=$AR$2),BW38,IF($AU$18=$AU$20,SUM(BJ38+BR38),ROUND((D37+E37)*10%,0))))),"") -> 15161 | T37: =IFERROR(IF(C37="","",IF(I37="","",IF(J37="","",IF($C37="TOTAL",SUM($T$8:T36),IF(AND(C37>$AR$1,$AI$3=$AR$2),BW38,IF($AU$18=$AU$20,$AU$21,ROUND((I37+J37)*10%,0))))))),"") -> 14392 | U37: 769 | V37: =IFERROR(IF(C37="","",IF($AU$16=$AU$17,0,IF($C37="TOTAL",SUM($V$8:V36),IF($AU$19=$AU$31,0,IF(AND($AU$32=$AU$20,C37=$AU$33),$AU$34,V36))))),"") -> 2100 | W37: =IFERROR(IF(C37="","",IF($AU$16=$AU$17,0,IF($C37="TOTAL",SUM($W$8:W36),IF($AU$19=$AU$20,$AU$24,0)))),"") -> 2100 | X37: 0 | Y37: =IFERROR(IF(C37="","",IF($AU$16=$AU$17,0,IF($C37="TOTAL",SUM($Y$8:Y36),BZ37))),"") ->  | Z37: =IFERROR(IF(C37="","",IF($AU$16=$AU$17,0,IF($C37="TOTAL",SUM($Z$8:Z36),BY37))),"") ->  | AB37: =IFERROR(IF(C37="","",IF(D37="","",IF($C37="TOTAL",SUM($AB$8:AB36),IF(C37=$AU$1,ROUND(D37*5/31,0.01),"")))),"") ->  | AC37: =IFERROR(IF(C37="","",IF(I37="","",IF($C37="TOTAL",SUM($AC$8:AC36),IF(C37=$AU$1,ROUND(I37*5/31,0.01),"")))),"") ->  | AE37: =IFERROR(IF(C37="","",IF(AND(BP38="",BW38=""),"",IF($C37="TOTAL",SUM($AE$8:AE36),BP38))),"") -> 168 | AF37: =IFERROR(IF(C37="","",IF($C37="TOTAL",SUM($AF$8:AF36),ROUND(R37*$AU$7%,0))),"") -> 0 | AG37: 937 | AH37: =IFERROR(IF(C37="","",IF($C37="TOTAL",SUM($AH$8:AH36),SUM(R37-AG37))),"") -> 8370 | AQ37: 31 | AR37: 31 | AT37: 2019-05-01 | AU37: ='Master Sheet'!I21 -> 44287 | AV37: 2021-08-01 | AW37: 2021-08-01 | AY37: 2021-08-01 | AZ37: 2021-08-01 | BA37: 110500 | BB37: 22100 | BC37: 41106 | BD37: 9945 | BF37: 104900 | BG37: 20980 | BH37: 39023 | BI37: 9441 | BJ37: 3675 | BM37: 9307 | BN37: 3675 | BO37: YES | BP37: 168 | BQ37: 23 | BR37: 230 | BZ37: =IF(AZ38="","",IF(AZ38="TOTAL","",IF($AU$16=$AU$17,0,IF(AND(AZ38>$BY$1,$AI$3=$AR$2,'Master Sheet'!$D$27>0),'Master Sheet'!$D$27,IF(AND(AZ38=$BY$1),IF($AU$9<18001,135,IF($AU$9<33501,220,IF($AU$9<54001,330,440))),IF(AND(AZ38>$BY$1),IF($AU$9<18001,265,IF($AU$9<33501,440,IF($AU$9<54001,658,875))),"")))))) -> 
A38: 31 | B38: 31 | C38: 2021-10-01 | D38: =IFERROR(IF($C37="TOTAL","अक्षरें राशि :-",IF($C38="TOTAL",SUM($D$8:D37),IF(BA39="","",BA39))),"") -> 110500 | E38: =IFERROR(IF($C38="TOTAL",SUM($E$8:E37),IF(BC39="","",BC39)),"") -> 41106 | F38: =IFERROR(IF($C38="TOTAL",SUM($F$8:F37),IF(OR(C38=$AS$16,C38=$AS$17,C38=$AS$18,C38=$AS$19,C38=$AS$20,C38=$AS$21,C38=$AS$22,C38=$AS$23,C38=$AS$24),0,IF(BD39="","",BD39))),"") -> 9945 | G38: =IFERROR(IF($C38="TOTAL",SUM($G$8:G37),IF(BB39="","",BB39)),"") -> 22100 | H38: 183651 | I38: =IFERROR(IF($C38="TOTAL",SUM($I$8:I37),IF(BF39="","",BF39)),"") -> 104900 | J38: =IFERROR(IF($C38="TOTAL",SUM($J$8:J37),IF(BH39="","",BH39)),"") -> 39023 | K38: =IFERROR(IF($C38="TOTAL",SUM($K$8:K37),IF(OR(C38=$AS$16,C38=$AS$17,C38=$AS$18,C38=$AS$19,C38=$AS$20,C38=$AS$21,C38=$AS$22,C38=$AS$23,C38=$AS$24),0,IF(BI39="","",BI39))),"") -> 9441 | L38: =IFERROR(IF($C38="TOTAL",SUM($L$8:L37),IF(BG39="","",BG39)),"") -> 20980 | M38: 174344 | N38: =IFERROR(IF(C38="","",IF(D38="","",IF(I38="","",IF($C38="TOTAL",SUM($N$8:N37),SUM(D38-I38))))),"") -> 5600 | O38: =IFERROR(IF(C38="","",IF(E38="","",IF(J38="","",IF($C38="TOTAL",SUM($O$8:O37),SUM(E38-J38))))),"") -> 2083 | P38: =IFERROR(IF(C38="","",IF(F38="","",IF(K38="","",IF($C38="TOTAL",SUM($P$8:P37),SUM(F38-K38))))),"") -> 504 | Q38: 1120 | R38: 9307 | S38: =IFERROR(IF(C38="","",IF($C38="TOTAL",SUM($S$8:S37),IF(AND(C38>$AR$1,$AI$3=$AR$2),BW39,IF($AU$18=$AU$20,SUM(BJ39+BR39),ROUND((D38+E38)*10%,0))))),"") -> 15161 | T38: =IFERROR(IF(C38="","",IF(I38="","",IF(J38="","",IF($C38="TOTAL",SUM($T$8:T37),IF(AND(C38>$AR$1,$AI$3=$AR$2),BW39,IF($AU$18=$AU$20,$AU$21,ROUND((I38+J38)*10%,0))))))),"") -> 14392 | U38: 769 | V38: =IFERROR(IF(C38="","",IF($AU$16=$AU$17,0,IF($C38="TOTAL",SUM($V$8:V37),IF($AU$19=$AU$31,0,IF(AND($AU$32=$AU$20,C38=$AU$33),$AU$34,V37))))),"") -> 2100 | W38: =IFERROR(IF(C38="","",IF($AU$16=$AU$17,0,IF($C38="TOTAL",SUM($W$8:W37),IF($AU$19=$AU$20,$AU$24,0)))),"") -> 2100 | X38: 0 | Y38: =IFERROR(IF(C38="","",IF($AU$16=$AU$17,0,IF($C38="TOTAL",SUM($Y$8:Y37),BZ38))),"") ->  | Z38: =IFERROR(IF(C38="","",IF($AU$16=$AU$17,0,IF($C38="TOTAL",SUM($Z$8:Z37),BY38))),"") ->  | AB38: =IFERROR(IF(C38="","",IF(D38="","",IF($C38="TOTAL",SUM($AB$8:AB37),IF(C38=$AU$1,ROUND(D38*5/31,0.01),"")))),"") ->  | AC38: =IFERROR(IF(C38="","",IF(I38="","",IF($C38="TOTAL",SUM($AC$8:AC37),IF(C38=$AU$1,ROUND(I38*5/31,0.01),"")))),"") ->  | AE38: =IFERROR(IF(C38="","",IF(AND(BP39="",BW39=""),"",IF($C38="TOTAL",SUM($AE$8:AE37),BP39))),"") ->  | AF38: =IFERROR(IF(C38="","",IF($C38="TOTAL",SUM($AF$8:AF37),ROUND(R38*$AU$7%,0))),"") -> 0 | AG38: 769 | AH38: =IFERROR(IF(C38="","",IF($C38="TOTAL",SUM($AH$8:AH37),SUM(R38-AG38))),"") -> 8538 | AQ38: 31 | AR38: 31 | AT38: 2019-06-01 | AU38: ='Master Sheet'!M21 -> 5000 | AV38: 2021-09-01 | AW38: 2021-09-01 | AY38: 2021-09-01 | AZ38: 2021-09-01 | BA38: 110500 | BB38: 22100 | BC38: 41106 | BD38: 9945 | BF38: 104900 | BG38: 20980 | BH38: 39023 | BI38: 9441 | BJ38: 3675 | BM38: 9307 | BN38: 3675 | BO38: YES | BP38: 168 | BQ38: 23 | BR38: 230 | BZ38: =IF(AZ39="","",IF(AZ39="TOTAL","",IF($AU$16=$AU$17,0,IF(AND(AZ39>$BY$1,$AI$3=$AR$2,'Master Sheet'!$D$27>0),'Master Sheet'!$D$27,IF(AND(AZ39=$BY$1),IF($AU$9<18001,135,IF($AU$9<33501,220,IF($AU$9<54001,330,440))),IF(AND(AZ39>$BY$1),IF($AU$9<18001,265,IF($AU$9<33501,440,IF($AU$9<54001,658,875))),"")))))) -> 
A39: 32 | B39: 32 | C39: 2021-11-01 | D39: =IFERROR(IF($C38="TOTAL","अक्षरें राशि :-",IF($C39="TOTAL",SUM($D$8:D38),IF(BA40="","",BA40))),"") -> 110500 | E39: =IFERROR(IF($C39="TOTAL",SUM($E$8:E38),IF(BC40="","",BC40)),"") -> 41106 | F39: =IFERROR(IF($C39="TOTAL",SUM($F$8:F38),IF(OR(C39=$AS$16,C39=$AS$17,C39=$AS$18,C39=$AS$19,C39=$AS$20,C39=$AS$21,C39=$AS$22,C39=$AS$23,C39=$AS$24),0,IF(BD40="","",BD40))),"") -> 9945 | G39: =IFERROR(IF($C39="TOTAL",SUM($G$8:G38),IF(BB40="","",BB40)),"") -> 22100 | H39: 183651 | I39: =IFERROR(IF($C39="TOTAL",SUM($I$8:I38),IF(BF40="","",BF40)),"") -> 104900 | J39: =IFERROR(IF($C39="TOTAL",SUM($J$8:J38),IF(BH40="","",BH40)),"") -> 39023 | K39: =IFERROR(IF($C39="TOTAL",SUM($K$8:K38),IF(OR(C39=$AS$16,C39=$AS$17,C39=$AS$18,C39=$AS$19,C39=$AS$20,C39=$AS$21,C39=$AS$22,C39=$AS$23,C39=$AS$24),0,IF(BI40="","",BI40))),"") -> 9441 | L39: =IFERROR(IF($C39="TOTAL",SUM($L$8:L38),IF(BG40="","",BG40)),"") -> 20980 | M39: 174344 | N39: =IFERROR(IF(C39="","",IF(D39="","",IF(I39="","",IF($C39="TOTAL",SUM($N$8:N38),SUM(D39-I39))))),"") -> 5600 | O39: =IFERROR(IF(C39="","",IF(E39="","",IF(J39="","",IF($C39="TOTAL",SUM($O$8:O38),SUM(E39-J39))))),"") -> 2083 | P39: =IFERROR(IF(C39="","",IF(F39="","",IF(K39="","",IF($C39="TOTAL",SUM($P$8:P38),SUM(F39-K39))))),"") -> 504 | Q39: 1120 | R39: 9307 | S39: =IFERROR(IF(C39="","",IF($C39="TOTAL",SUM($S$8:S38),IF(AND(C39>$AR$1,$AI$3=$AR$2),BW40,IF($AU$18=$AU$20,SUM(BJ40+BR40),ROUND((D39+E39)*10%,0))))),"") -> 15161 | T39: =IFERROR(IF(C39="","",IF(I39="","",IF(J39="","",IF($C39="TOTAL",SUM($T$8:T38),IF(AND(C39>$AR$1,$AI$3=$AR$2),BW40,IF($AU$18=$AU$20,$AU$21,ROUND((I39+J39)*10%,0))))))),"") -> 14392 | U39: 769 | V39: =IFERROR(IF(C39="","",IF($AU$16=$AU$17,0,IF($C39="TOTAL",SUM($V$8:V38),IF($AU$19=$AU$31,0,IF(AND($AU$32=$AU$20,C39=$AU$33),$AU$34,V38))))),"") -> 2100 | W39: =IFERROR(IF(C39="","",IF($AU$16=$AU$17,0,IF($C39="TOTAL",SUM($W$8:W38),IF($AU$19=$AU$20,$AU$24,0)))),"") -> 2100 | X39: 0 | Y39: =IFERROR(IF(C39="","",IF($AU$16=$AU$17,0,IF($C39="TOTAL",SUM($Y$8:Y38),BZ39))),"") ->  | Z39: =IFERROR(IF(C39="","",IF($AU$16=$AU$17,0,IF($C39="TOTAL",SUM($Z$8:Z38),BY39))),"") ->  | AB39: =IFERROR(IF(C39="","",IF(D39="","",IF($C39="TOTAL",SUM($AB$8:AB38),IF(C39=$AU$1,ROUND(D39*5/31,0.01),"")))),"") ->  | AC39: =IFERROR(IF(C39="","",IF(I39="","",IF($C39="TOTAL",SUM($AC$8:AC38),IF(C39=$AU$1,ROUND(I39*5/31,0.01),"")))),"") ->  | AE39: =IFERROR(IF(C39="","",IF(AND(BP40="",BW40=""),"",IF($C39="TOTAL",SUM($AE$8:AE38),BP40))),"") ->  | AF39: =IFERROR(IF(C39="","",IF($C39="TOTAL",SUM($AF$8:AF38),ROUND(R39*$AU$7%,0))),"") -> 0 | AG39: 769 | AH39: =IFERROR(IF(C39="","",IF($C39="TOTAL",SUM($AH$8:AH38),SUM(R39-AG39))),"") -> 8538 | AQ39: 31 | AR39: 31 | AT39: 2019-07-01 | AV39: 2021-10-01 | AW39: 2021-10-01 | AY39: 2021-10-01 | AZ39: 2021-10-01 | BA39: 110500 | BB39: 22100 | BC39: 41106 | BD39: 9945 | BF39: 104900 | BG39: 20980 | BH39: 39023 | BI39: 9441 | BJ39: 3675 | BM39: 9307 | BN39: 3675 | BQ39: 0 | BR39: 0 | BZ39: =IF(AZ40="","",IF(AZ40="TOTAL","",IF($AU$16=$AU$17,0,IF(AND(AZ40>$BY$1,$AI$3=$AR$2,'Master Sheet'!$D$27>0),'Master Sheet'!$D$27,IF(AND(AZ40=$BY$1),IF($AU$9<18001,135,IF($AU$9<33501,220,IF($AU$9<54001,330,440))),IF(AND(AZ40>$BY$1),IF($AU$9<18001,265,IF($AU$9<33501,440,IF($AU$9<54001,658,875))),"")))))) -> 
A40: 33 | B40: 33 | C40: 2021-12-01 | D40: =IFERROR(IF($C39="TOTAL","अक्षरें राशि :-",IF($C40="TOTAL",SUM($D$8:D39),IF(BA41="","",BA41))),"") -> 110500 | E40: =IFERROR(IF($C40="TOTAL",SUM($E$8:E39),IF(BC41="","",BC41)),"") -> 41106 | F40: =IFERROR(IF($C40="TOTAL",SUM($F$8:F39),IF(OR(C40=$AS$16,C40=$AS$17,C40=$AS$18,C40=$AS$19,C40=$AS$20,C40=$AS$21,C40=$AS$22,C40=$AS$23,C40=$AS$24),0,IF(BD41="","",BD41))),"") -> 9945 | G40: =IFERROR(IF($C40="TOTAL",SUM($G$8:G39),IF(BB41="","",BB41)),"") -> 22100 | H40: 183651 | I40: =IFERROR(IF($C40="TOTAL",SUM($I$8:I39),IF(BF41="","",BF41)),"") -> 104900 | J40: =IFERROR(IF($C40="TOTAL",SUM($J$8:J39),IF(BH41="","",BH41)),"") -> 39023 | K40: =IFERROR(IF($C40="TOTAL",SUM($K$8:K39),IF(OR(C40=$AS$16,C40=$AS$17,C40=$AS$18,C40=$AS$19,C40=$AS$20,C40=$AS$21,C40=$AS$22,C40=$AS$23,C40=$AS$24),0,IF(BI41="","",BI41))),"") -> 9441 | L40: =IFERROR(IF($C40="TOTAL",SUM($L$8:L39),IF(BG41="","",BG41)),"") -> 20980 | M40: 174344 | N40: =IFERROR(IF(C40="","",IF(D40="","",IF(I40="","",IF($C40="TOTAL",SUM($N$8:N39),SUM(D40-I40))))),"") -> 5600 | O40: =IFERROR(IF(C40="","",IF(E40="","",IF(J40="","",IF($C40="TOTAL",SUM($O$8:O39),SUM(E40-J40))))),"") -> 2083 | P40: =IFERROR(IF(C40="","",IF(F40="","",IF(K40="","",IF($C40="TOTAL",SUM($P$8:P39),SUM(F40-K40))))),"") -> 504 | Q40: 1120 | R40: 9307 | S40: =IFERROR(IF(C40="","",IF($C40="TOTAL",SUM($S$8:S39),IF(AND(C40>$AR$1,$AI$3=$AR$2),BW41,IF($AU$18=$AU$20,SUM(BJ41+BR41),ROUND((D40+E40)*10%,0))))),"") -> 15161 | T40: =IFERROR(IF(C40="","",IF(I40="","",IF(J40="","",IF($C40="TOTAL",SUM($T$8:T39),IF(AND(C40>$AR$1,$AI$3=$AR$2),BW41,IF($AU$18=$AU$20,$AU$21,ROUND((I40+J40)*10%,0))))))),"") -> 14392 | U40: 769 | V40: =IFERROR(IF(C40="","",IF($AU$16=$AU$17,0,IF($C40="TOTAL",SUM($V$8:V39),IF($AU$19=$AU$31,0,IF(AND($AU$32=$AU$20,C40=$AU$33),$AU$34,V39))))),"") -> 2100 | W40: =IFERROR(IF(C40="","",IF($AU$16=$AU$17,0,IF($C40="TOTAL",SUM($W$8:W39),IF($AU$19=$AU$20,$AU$24,0)))),"") -> 2100 | X40: 0 | Y40: =IFERROR(IF(C40="","",IF($AU$16=$AU$17,0,IF($C40="TOTAL",SUM($Y$8:Y39),BZ40))),"") ->  | Z40: =IFERROR(IF(C40="","",IF($AU$16=$AU$17,0,IF($C40="TOTAL",SUM($Z$8:Z39),BY40))),"") ->  | AA40: =IFERROR(IF(C40="","",SUM(Y40-Z40)),"") ->  | AB40: =IFERROR(IF(C40="","",IF(D40="","",IF($C40="TOTAL",SUM($AB$8:AB39),IF(C40=$AU$1,ROUND(D40*5/31,0.01),"")))),"") ->  | AC40: =IFERROR(IF(C40="","",IF(I40="","",IF($C40="TOTAL",SUM($AC$8:AC39),IF(C40=$AU$1,ROUND(I40*5/31,0.01),"")))),"") ->  | AE40: =IFERROR(IF(C40="","",IF(AND(BP41="",BW41=""),"",IF($C40="TOTAL",SUM($AE$8:AE39),BP41))),"") ->  | AF40: =IFERROR(IF(C40="","",IF($C40="TOTAL",SUM($AF$8:AF39),ROUND(R40*$AU$7%,0))),"") -> 0 | AG40: 769 | AH40: =IFERROR(IF(C40="","",IF($C40="TOTAL",SUM($AH$8:AH39),SUM(R40-AG40))),"") -> 8538 | AQ40: 31 | AR40: 31 | AT40: 2019-08-01 | AV40: 2021-11-01 | AW40: 2021-11-01 | AY40: 2021-11-01 | AZ40: 2021-11-01 | BA40: 110500 | BB40: 22100 | BC40: 41106 | BD40: 9945 | BF40: 104900 | BG40: 20980 | BH40: 39023 | BI40: 9441 | BJ40: 3675 | BM40: 9307 | BN40: 3675 | BQ40: 0 | BR40: 0 | BZ40: =IF(AZ41="","",IF(AZ41="TOTAL","",IF($AU$16=$AU$17,0,IF(AND(AZ41>$BY$1,$AI$3=$AR$2,'Master Sheet'!$D$27>0),'Master Sheet'!$D$27,IF(AND(AZ41=$BY$1),IF($AU$9<18001,135,IF($AU$9<33501,220,IF($AU$9<54001,330,440))),IF(AND(AZ41>$BY$1),IF($AU$9<18001,265,IF($AU$9<33501,440,IF($AU$9<54001,658,875))),"")))))) -> 
A41: 34 | B41: 34 | C41: 2022-01-01 | D41: =IFERROR(IF($C40="TOTAL","अक्षरें राशि :-",IF($C41="TOTAL",SUM($D$8:D40),IF(BA42="","",BA42))),"") -> 110500 | E41: =IFERROR(IF($C41="TOTAL",SUM($E$8:E40),IF(BC42="","",BC42)),"") -> 45084 | F41: =IFERROR(IF($C41="TOTAL",SUM($F$8:F40),IF(OR(C41=$AS$16,C41=$AS$17,C41=$AS$18,C41=$AS$19,C41=$AS$20,C41=$AS$21,C41=$AS$22,C41=$AS$23,C41=$AS$24),0,IF(BD42="","",BD42))),"") -> 9945 | G41: =IFERROR(IF($C41="TOTAL",SUM($G$8:G40),IF(BB42="","",BB42)),"") -> 22100 | H41: 187629 | I41: =IFERROR(IF($C41="TOTAL",SUM($I$8:I40),IF(BF42="","",BF42)),"") -> 104900 | J41: =IFERROR(IF($C41="TOTAL",SUM($J$8:J40),IF(BH42="","",BH42)),"") -> 42799 | K41: =IFERROR(IF($C41="TOTAL",SUM($K$8:K40),IF(OR(C41=$AS$16,C41=$AS$17,C41=$AS$18,C41=$AS$19,C41=$AS$20,C41=$AS$21,C41=$AS$22,C41=$AS$23,C41=$AS$24),0,IF(BI42="","",BI42))),"") -> 9441 | L41: =IFERROR(IF($C41="TOTAL",SUM($L$8:L40),IF(BG42="","",BG42)),"") -> 20980 | M41: 178120 | N41: =IFERROR(IF(C41="","",IF(D41="","",IF(I41="","",IF($C41="TOTAL",SUM($N$8:N40),SUM(D41-I41))))),"") -> 5600 | O41: =IFERROR(IF(C41="","",IF(E41="","",IF(J41="","",IF($C41="TOTAL",SUM($O$8:O40),SUM(E41-J41))))),"") -> 2285 | P41: =IFERROR(IF(C41="","",IF(F41="","",IF(K41="","",IF($C41="TOTAL",SUM($P$8:P40),SUM(F41-K41))))),"") -> 504 | Q41: 1120 | R41: 9509 | S41: =IFERROR(IF(C41="","",IF($C41="TOTAL",SUM($S$8:S40),IF(AND(C41>$AR$1,$AI$3=$AR$2),BW42,IF($AU$18=$AU$20,SUM(BJ42+BR42),ROUND((D41+E41)*10%,0))))),"") -> 15558 | T41: =IFERROR(IF(C41="","",IF(I41="","",IF(J41="","",IF($C41="TOTAL",SUM($T$8:T40),IF(AND(C41>$AR$1,$AI$3=$AR$2),BW42,IF($AU$18=$AU$20,$AU$21,ROUND((I41+J41)*10%,0))))))),"") -> 14770 | U41: 788 | V41: =IFERROR(IF(C41="","",IF($AU$16=$AU$17,0,IF($C41="TOTAL",SUM($V$8:V40),IF($AU$19=$AU$31,0,IF(AND($AU$32=$AU$20,C41=$AU$33),$AU$34,V40))))),"") -> 2100 | W41: =IFERROR(IF(C41="","",IF($AU$16=$AU$17,0,IF($C41="TOTAL",SUM($W$8:W40),IF($AU$19=$AU$20,$AU$24,0)))),"") -> 2100 | X41: 0 | Y41: =IFERROR(IF(C41="","",IF($AU$16=$AU$17,0,IF($C41="TOTAL",SUM($Y$8:Y40),BZ41))),"") ->  | Z41: =IFERROR(IF(C41="","",IF($AU$16=$AU$17,0,IF($C41="TOTAL",SUM($Z$8:Z40),BY41))),"") ->  | AB41: =IFERROR(IF(C41="","",IF(D41="","",IF($C41="TOTAL",SUM($AB$8:AB40),IF(C41=$AU$1,ROUND(D41*5/31,0.01),"")))),"") ->  | AC41: =IFERROR(IF(C41="","",IF(I41="","",IF($C41="TOTAL",SUM($AC$8:AC40),IF(C41=$AU$1,ROUND(I41*5/31,0.01),"")))),"") ->  | AE41: =IFERROR(IF(C41="","",IF(AND(BP42="",BW42=""),"",IF($C41="TOTAL",SUM($AE$8:AE40),BP42))),"") ->  | AF41: =IFERROR(IF(C41="","",IF($C41="TOTAL",SUM($AF$8:AF40),ROUND(R41*$AU$7%,0))),"") -> 0 | AG41: 788 | AH41: =IFERROR(IF(C41="","",IF($C41="TOTAL",SUM($AH$8:AH40),SUM(R41-AG41))),"") -> 8721 | AQ41: 31 | AR41: 31 | AT41: 2019-09-01 | AV41: 2021-12-01 | AW41: 2021-12-01 | AY41: 2021-12-01 | AZ41: 2021-12-01 | BA41: 110500 | BB41: 22100 | BC41: 41106 | BD41: 9945 | BF41: 104900 | BG41: 20980 | BH41: 39023 | BI41: 9441 | BJ41: 3675 | BM41: 9307 | BN41: 3675 | BP41: =IF(BO41="","",IF($AU$16=$AU$17,ROUND((D40)*3%,0),IF(OR(AZ41=$AT$63,AZ41=$AT$64,AZ41=$AT$65),SUM(ROUND((D40-I40)*3%,0)),IF(OR(AZ41=$AT$69,AZ41=$AT$70,AZ41=$AT$71),SUM(ROUND((D40-I40)*3%,0)),"")))) ->  | BQ41: =IFERROR(IF(AND($AU$16=$AU$17,BO41="YES"),ROUND(ROUND(D40*3%,0)*10%,0),IF(AND($AU$16=$AU$15,BO41="YES",$AS$7="NO"),ROUND(ROUND((N40+I40)*3%,0)*10%,0),IF(AND($AU$16=$AU$15,BO41="YES",$AS$7="YES"),ROUND(ROUND((N40+O40)*3%,0)*10%,0),0))),"") -> 0 | BR41: =IF(AND($AU$16=$AU$17,BO41="YES"),ROUND(D40*3%,0),IF(AND($AU$16=$AU$15,BO41="YES",$AS$7="NO"),ROUND((N40+I40)*3%,0),IF(AND($AU$16=$AU$15,BO41="YES",$AS$7="YES"),ROUND((N40+O40)*3%,0),0))) -> 0 | BZ41: =IF(AZ42="","",IF(AZ42="TOTAL","",IF($AU$16=$AU$17,0,IF(AND(AZ42>$BY$1,$AI$3=$AR$2,'Master Sheet'!$D$27>0),'Master Sheet'!$D$27,IF(AND(AZ42=$BY$1),IF($AU$9<18001,135,IF($AU$9<33501,220,IF($AU$9<54001,330,440))),IF(AND(AZ42>$BY$1),IF($AU$9<18001,265,IF($AU$9<33501,440,IF($AU$9<54001,658,875))),"")))))) -> 
A42: 35 | B42: 35 | C42: 2022-02-01 | D42: =IFERROR(IF($C41="TOTAL","अक्षरें राशि :-",IF($C42="TOTAL",SUM($D$8:D41),IF(BA43="","",BA43))),"") -> 110500 | E42: =IFERROR(IF($C42="TOTAL",SUM($E$8:E41),IF(BC43="","",BC43)),"") -> 45084 | F42: =IFERROR(IF($C42="TOTAL",SUM($F$8:F41),IF(OR(C42=$AS$16,C42=$AS$17,C42=$AS$18,C42=$AS$19,C42=$AS$20,C42=$AS$21,C42=$AS$22,C42=$AS$23,C42=$AS$24),0,IF(BD43="","",BD43))),"") -> 9945 | G42: =IFERROR(IF($C42="TOTAL",SUM($G$8:G41),IF(BB43="","",BB43)),"") -> 22100 | H42: 187629 | I42: =IFERROR(IF($C42="TOTAL",SUM($I$8:I41),IF(BF43="","",BF43)),"") -> 104900 | J42: =IFERROR(IF($C42="TOTAL",SUM($J$8:J41),IF(BH43="","",BH43)),"") -> 42799 | K42: =IFERROR(IF($C42="TOTAL",SUM($K$8:K41),IF(OR(C42=$AS$16,C42=$AS$17,C42=$AS$18,C42=$AS$19,C42=$AS$20,C42=$AS$21,C42=$AS$22,C42=$AS$23,C42=$AS$24),0,IF(BI43="","",BI43))),"") -> 9441 | L42: =IFERROR(IF($C42="TOTAL",SUM($L$8:L41),IF(BG43="","",BG43)),"") -> 20980 | M42: 178120 | N42: =IFERROR(IF(C42="","",IF(D42="","",IF(I42="","",IF($C42="TOTAL",SUM($N$8:N41),SUM(D42-I42))))),"") -> 5600 | O42: =IFERROR(IF(C42="","",IF(E42="","",IF(J42="","",IF($C42="TOTAL",SUM($O$8:O41),SUM(E42-J42))))),"") -> 2285 | P42: =IFERROR(IF(C42="","",IF(F42="","",IF(K42="","",IF($C42="TOTAL",SUM($P$8:P41),SUM(F42-K42))))),"") -> 504 | Q42: 1120 | R42: 9509 | S42: =IFERROR(IF(C42="","",IF($C42="TOTAL",SUM($S$8:S41),IF(AND(C42>$AR$1,$AI$3=$AR$2),BW43,IF($AU$18=$AU$20,SUM(BJ43+BR43),ROUND((D42+E42)*10%,0))))),"") -> 15558 | T42: =IFERROR(IF(C42="","",IF(I42="","",IF(J42="","",IF($C42="TOTAL",SUM($T$8:T41),IF(AND(C42>$AR$1,$AI$3=$AR$2),BW43,IF($AU$18=$AU$20,$AU$21,ROUND((I42+J42)*10%,0))))))),"") -> 14770 | U42: 788 | V42: =IFERROR(IF(C42="","",IF($AU$16=$AU$17,0,IF($C42="TOTAL",SUM($V$8:V41),IF($AU$19=$AU$31,0,IF(AND($AU$32=$AU$20,C42=$AU$33),$AU$34,V41))))),"") -> 2100 | W42: =IFERROR(IF(C42="","",IF($AU$16=$AU$17,0,IF($C42="TOTAL",SUM($W$8:W41),IF($AU$19=$AU$20,$AU$24,0)))),"") -> 2100 | X42: 0 | Y42: =IFERROR(IF(C42="","",IF($AU$16=$AU$17,0,IF($C42="TOTAL",SUM($Y$8:Y41),BZ42))),"") ->  | Z42: =IFERROR(IF(C42="","",IF($AU$16=$AU$17,0,IF($C42="TOTAL",SUM($Z$8:Z41),BY42))),"") ->  | AB42: =IFERROR(IF(C42="","",IF(D42="","",IF($C42="TOTAL",SUM($AB$8:AB41),IF(C42=$AU$1,ROUND(D42*5/31,0.01),"")))),"") ->  | AC42: =IFERROR(IF(C42="","",IF(I42="","",IF($C42="TOTAL",SUM($AC$8:AC41),IF(C42=$AU$1,ROUND(I42*5/31,0.01),"")))),"") ->  | AE42: =IFERROR(IF(C42="","",IF(AND(BP43="",BW43=""),"",IF($C42="TOTAL",SUM($AE$8:AE41),BP43))),"") ->  | AF42: =IFERROR(IF(C42="","",IF($C42="TOTAL",SUM($AF$8:AF41),ROUND(R42*$AU$7%,0))),"") -> 0 | AG42: 788 | AH42: =IFERROR(IF(C42="","",IF($C42="TOTAL",SUM($AH$8:AH41),SUM(R42-AG42))),"") -> 8721 | AQ42: 34 | AR42: 34 | AT42: 2019-10-01 | AV42: 2022-01-01 | AW42: 2022-01-01 | AY42: 2022-01-01 | AZ42: 2022-01-01 | BA42: 110500 | BB42: 22100 | BC42: 45084 | BD42: 9945 | BF42: 104900 | BG42: 20980 | BH42: 42799 | BI42: 9441 | BJ42: =IF(AZ42="","",IF(AZ42="TOTAL","",IF(BF42="","",IF($AU$16=$AU$17,0,IF(OR(C41=$AS$16,C41=$AS$17,C41=$AS$18,C41=$AS$19,C41=$AS$20,C41=$AS$21,C41=$AS$22,C41=$AS$23,C41=$AS$24),SUM(BM42+BN42),BN42))))) -> 3675 | BM42: 9509 | BN42: =IF(AZ41="","",IF(AZ41="TOTAL","",IF(AND($AU$20=$AU$36,C42=$AU$37),$AU$38,BN41))) -> 3675 | BQ42: 0 | BR42: 0 | BZ42: =IF(AZ43="","",IF(AZ43="TOTAL","",IF($AU$16=$AU$17,0,IF(AND(AZ43>$BY$1,$AI$3=$AR$2,'Master Sheet'!$D$27>0),'Master Sheet'!$D$27,IF(AND(AZ43=$BY$1),IF($AU$9<18001,135,IF($AU$9<33501,220,IF($AU$9<54001,330,440))),IF(AND(AZ43>$BY$1),IF($AU$9<18001,265,IF($AU$9<33501,440,IF($AU$9<54001,658,875))),"")))))) -> 
A43: 36 | B43: 36 | C43: 2022-03-01 | D43: =IFERROR(IF($C42="TOTAL","अक्षरें राशि :-",IF($C43="TOTAL",SUM($D$8:D42),IF(BA44="","",BA44))),"") -> 110500 | E43: =IFERROR(IF($C43="TOTAL",SUM($E$8:E42),IF(BC44="","",BC44)),"") -> 45084 | F43: =IFERROR(IF($C43="TOTAL",SUM($F$8:F42),IF(OR(C43=$AS$16,C43=$AS$17,C43=$AS$18,C43=$AS$19,C43=$AS$20,C43=$AS$21,C43=$AS$22,C43=$AS$23,C43=$AS$24),0,IF(BD44="","",BD44))),"") -> 9945 | G43: =IFERROR(IF($C43="TOTAL",SUM($G$8:G42),IF(BB44="","",BB44)),"") -> 22100 | H43: 187629 | I43: =IFERROR(IF($C43="TOTAL",SUM($I$8:I42),IF(BF44="","",BF44)),"") -> 104900 | J43: =IFERROR(IF($C43="TOTAL",SUM($J$8:J42),IF(BH44="","",BH44)),"") -> 42799 | K43: =IFERROR(IF($C43="TOTAL",SUM($K$8:K42),IF(OR(C43=$AS$16,C43=$AS$17,C43=$AS$18,C43=$AS$19,C43=$AS$20,C43=$AS$21,C43=$AS$22,C43=$AS$23,C43=$AS$24),0,IF(BI44="","",BI44))),"") -> 9441 | L43: =IFERROR(IF($C43="TOTAL",SUM($L$8:L42),IF(BG44="","",BG44)),"") -> 20980 | M43: 178120 | N43: =IFERROR(IF(C43="","",IF(D43="","",IF(I43="","",IF($C43="TOTAL",SUM($N$8:N42),SUM(D43-I43))))),"") -> 5600 | O43: =IFERROR(IF(C43="","",IF(E43="","",IF(J43="","",IF($C43="TOTAL",SUM($O$8:O42),SUM(E43-J43))))),"") -> 2285 | P43: =IFERROR(IF(C43="","",IF(F43="","",IF(K43="","",IF($C43="TOTAL",SUM($P$8:P42),SUM(F43-K43))))),"") -> 504 | Q43: 1120 | R43: 9509 | S43: =IFERROR(IF(C43="","",IF($C43="TOTAL",SUM($S$8:S42),IF(AND(C43>$AR$1,$AI$3=$AR$2),BW44,IF($AU$18=$AU$20,SUM(BJ44+BR44),ROUND((D43+E43)*10%,0))))),"") -> 15558 | T43: =IFERROR(IF(C43="","",IF(I43="","",IF(J43="","",IF($C43="TOTAL",SUM($T$8:T42),IF(AND(C43>$AR$1,$AI$3=$AR$2),BW44,IF($AU$18=$AU$20,$AU$21,ROUND((I43+J43)*10%,0))))))),"") -> 14770 | U43: 788 | V43: =IFERROR(IF(C43="","",IF($AU$16=$AU$17,0,IF($C43="TOTAL",SUM($V$8:V42),IF($AU$19=$AU$31,0,IF(AND($AU$32=$AU$20,C43=$AU$33),$AU$34,V42))))),"") -> 2100 | W43: =IFERROR(IF(C43="","",IF($AU$16=$AU$17,0,IF($C43="TOTAL",SUM($W$8:W42),IF($AU$19=$AU$20,$AU$24,0)))),"") -> 2100 | X43: 0 | Y43: =IFERROR(IF(C43="","",IF($AU$16=$AU$17,0,IF($C43="TOTAL",SUM($Y$8:Y42),BZ43))),"") -> 440 | Z43: =IFERROR(IF(C43="","",IF($AU$16=$AU$17,0,IF($C43="TOTAL",SUM($Z$8:Z42),BY43))),"") -> 440 | AA43: 0 | AB43: =IFERROR(IF(C43="","",IF(D43="","",IF($C43="TOTAL",SUM($AB$8:AB42),IF(C43=$AU$1,ROUND(D43*5/31,0.01),"")))),"") ->  | AC43: =IFERROR(IF(C43="","",IF(I43="","",IF($C43="TOTAL",SUM($AC$8:AC42),IF(C43=$AU$1,ROUND(I43*5/31,0.01),"")))),"") ->  | AE43: =IFERROR(IF(C43="","",IF(AND(BP44="",BW44=""),"",IF($C43="TOTAL",SUM($AE$8:AE42),BP44))),"") ->  | AF43: =IFERROR(IF(C43="","",IF($C43="TOTAL",SUM($AF$8:AF42),ROUND(R43*$AU$7%,0))),"") -> 0 | AG43: 788 | AH43: =IFERROR(IF(C43="","",IF($C43="TOTAL",SUM($AH$8:AH42),SUM(R43-AG43))),"") -> 8721 | AQ43: 34 | AR43: 34 | AT43: 2019-11-01 | AV43: 2022-02-01 | AW43: 2022-02-01 | AY43: 2022-02-01 | AZ43: 2022-02-01 | BA43: 110500 | BB43: 22100 | BC43: 45084 | BD43: 9945 | BF43: 104900 | BG43: 20980 | BH43: 42799 | BI43: 9441 | BJ43: 3675 | BM43: 9509 | BN43: 3675 | BQ43: 0 | BR43: 0 | BY43: 440 | BZ43: =IF(AZ44="","",IF(AZ44="TOTAL","",IF($AU$16=$AU$17,0,IF(AND(AZ44>$BY$1,$AI$3=$AR$2,'Master Sheet'!$D$27>0),'Master Sheet'!$D$27,IF(AND(AZ44=$BY$1),IF($AU$9<18001,135,IF($AU$9<33501,220,IF($AU$9<54001,330,440))),IF(AND(AZ44>$BY$1),IF($AU$9<18001,265,IF($AU$9<33501,440,IF($AU$9<54001,658,875))),"")))))) -> 440
A44: 37 | B44: 37 | C44: 2022-04-01 | D44: =IFERROR(IF($C43="TOTAL","अक्षरें राशि :-",IF($C44="TOTAL",SUM($D$8:D43),IF(BA45="","",BA45))),"") -> 110500 | E44: =IFERROR(IF($C44="TOTAL",SUM($E$8:E43),IF(BC45="","",BC45)),"") -> 45084 | F44: =IFERROR(IF($C44="TOTAL",SUM($F$8:F43),IF(OR(C44=$AS$16,C44=$AS$17,C44=$AS$18,C44=$AS$19,C44=$AS$20,C44=$AS$21,C44=$AS$22,C44=$AS$23,C44=$AS$24),0,IF(BD45="","",BD45))),"") -> 9945 | G44: =IFERROR(IF($C44="TOTAL",SUM($G$8:G43),IF(BB45="","",BB45)),"") -> 22100 | H44: 187629 | I44: =IFERROR(IF($C44="TOTAL",SUM($I$8:I43),IF(BF45="","",BF45)),"") -> 104900 | J44: =IFERROR(IF($C44="TOTAL",SUM($J$8:J43),IF(BH45="","",BH45)),"") -> 42799 | K44: =IFERROR(IF($C44="TOTAL",SUM($K$8:K43),IF(OR(C44=$AS$16,C44=$AS$17,C44=$AS$18,C44=$AS$19,C44=$AS$20,C44=$AS$21,C44=$AS$22,C44=$AS$23,C44=$AS$24),0,IF(BI45="","",BI45))),"") -> 9441 | L44: =IFERROR(IF($C44="TOTAL",SUM($L$8:L43),IF(BG45="","",BG45)),"") -> 20980 | M44: 178120 | N44: =IFERROR(IF(C44="","",IF(D44="","",IF(I44="","",IF($C44="TOTAL",SUM($N$8:N43),SUM(D44-I44))))),"") -> 5600 | O44: =IFERROR(IF(C44="","",IF(E44="","",IF(J44="","",IF($C44="TOTAL",SUM($O$8:O43),SUM(E44-J44))))),"") -> 2285 | P44: =IFERROR(IF(C44="","",IF(F44="","",IF(K44="","",IF($C44="TOTAL",SUM($P$8:P43),SUM(F44-K44))))),"") -> 504 | Q44: 1120 | R44: 9509 | S44: =IFERROR(IF(C44="","",IF($C44="TOTAL",SUM($S$8:S43),IF(AND(C44>$AR$1,$AI$3=$AR$2),BW45,IF($AU$18=$AU$20,SUM(BJ45+BR45),ROUND((D44+E44)*10%,0))))),"") -> 2100 | T44: =IFERROR(IF(C44="","",IF(I44="","",IF(J44="","",IF($C44="TOTAL",SUM($T$8:T43),IF(AND(C44>$AR$1,$AI$3=$AR$2),BW45,IF($AU$18=$AU$20,$AU$21,ROUND((I44+J44)*10%,0))))))),"") -> 2100 | U44: 0 | V44: =IFERROR(IF(C44="","",IF($AU$16=$AU$17,0,IF($C44="TOTAL",SUM($V$8:V43),IF($AU$19=$AU$31,0,IF(AND($AU$32=$AU$20,C44=$AU$33),$AU$34,V43))))),"") -> 2100 | W44: =IFERROR(IF(C44="","",IF($AU$16=$AU$17,0,IF($C44="TOTAL",SUM($W$8:W43),IF($AU$19=$AU$20,$AU$24,0)))),"") -> 2100 | X44: 0 | Y44: =IFERROR(IF(C44="","",IF($AU$16=$AU$17,0,IF($C44="TOTAL",SUM($Y$8:Y43),BZ44))),"") -> 875 | Z44: =IFERROR(IF(C44="","",IF($AU$16=$AU$17,0,IF($C44="TOTAL",SUM($Z$8:Z43),BY44))),"") -> 875 | AA44: 0 | AB44: =IFERROR(IF(C44="","",IF(D44="","",IF($C44="TOTAL",SUM($AB$8:AB43),IF(C44=$AU$1,ROUND(D44*5/31,0.01),"")))),"") ->  | AC44: =IFERROR(IF(C44="","",IF(I44="","",IF($C44="TOTAL",SUM($AC$8:AC43),IF(C44=$AU$1,ROUND(I44*5/31,0.01),"")))),"") ->  | AE44: =IFERROR(IF(C44="","",IF(AND(BP45="",BW45=""),"",IF($C44="TOTAL",SUM($AE$8:AE43),BP45))),"") ->  | AF44: =IFERROR(IF(C44="","",IF($C44="TOTAL",SUM($AF$8:AF43),ROUND(R44*$AU$7%,0))),"") -> 0 | AG44: 0 | AH44: =IFERROR(IF(C44="","",IF($C44="TOTAL",SUM($AH$8:AH43),SUM(R44-AG44))),"") -> 9509 | AQ44: 34 | AR44: 34 | AT44: 2019-12-01 | AV44: 2022-03-01 | AW44: 2022-03-01 | AY44: 2022-03-01 | AZ44: 2022-03-01 | BA44: 110500 | BB44: 22100 | BC44: 45084 | BD44: 9945 | BF44: 104900 | BG44: 20980 | BH44: 42799 | BI44: 9441 | BJ44: 3675 | BM44: 9509 | BN44: 3675 | BQ44: 0 | BR44: 0 | BY44: 875 | BZ44: =IF(AZ45="","",IF(AZ45="TOTAL","",IF($AU$16=$AU$17,0,IF(AND(AZ45>$BY$1,$AI$3=$AR$2,'Master Sheet'!$D$27>0),'Master Sheet'!$D$27,IF(AND(AZ45=$BY$1),IF($AU$9<18001,135,IF($AU$9<33501,220,IF($AU$9<54001,330,440))),IF(AND(AZ45>$BY$1),IF($AU$9<18001,265,IF($AU$9<33501,440,IF($AU$9<54001,658,875))),"")))))) -> 875
A45: 38 | B45: 38 | C45: 2022-05-01 | D45: =IFERROR(IF($C44="TOTAL","अक्षरें राशि :-",IF($C45="TOTAL",SUM($D$8:D44),IF(BA46="","",BA46))),"") -> 110500 | E45: =IFERROR(IF($C45="TOTAL",SUM($E$8:E44),IF(BC46="","",BC46)),"") -> 45084 | F45: =IFERROR(IF($C45="TOTAL",SUM($F$8:F44),IF(OR(C45=$AS$16,C45=$AS$17,C45=$AS$18,C45=$AS$19,C45=$AS$20,C45=$AS$21,C45=$AS$22,C45=$AS$23,C45=$AS$24),0,IF(BD46="","",BD46))),"") -> 9945 | G45: =IFERROR(IF($C45="TOTAL",SUM($G$8:G44),IF(BB46="","",BB46)),"") -> 22100 | H45: 187629 | I45: =IFERROR(IF($C45="TOTAL",SUM($I$8:I44),IF(BF46="","",BF46)),"") -> 104900 | J45: =IFERROR(IF($C45="TOTAL",SUM($J$8:J44),IF(BH46="","",BH46)),"") -> 42799 | K45: =IFERROR(IF($C45="TOTAL",SUM($K$8:K44),IF(OR(C45=$AS$16,C45=$AS$17,C45=$AS$18,C45=$AS$19,C45=$AS$20,C45=$AS$21,C45=$AS$22,C45=$AS$23,C45=$AS$24),0,IF(BI46="","",BI46))),"") -> 9441 | L45: =IFERROR(IF($C45="TOTAL",SUM($L$8:L44),IF(BG46="","",BG46)),"") -> 20980 | M45: 178120 | N45: =IFERROR(IF(C45="","",IF(D45="","",IF(I45="","",IF($C45="TOTAL",SUM($N$8:N44),SUM(D45-I45))))),"") -> 5600 | O45: =IFERROR(IF(C45="","",IF(E45="","",IF(J45="","",IF($C45="TOTAL",SUM($O$8:O44),SUM(E45-J45))))),"") -> 2285 | P45: =IFERROR(IF(C45="","",IF(F45="","",IF(K45="","",IF($C45="TOTAL",SUM($P$8:P44),SUM(F45-K45))))),"") -> 504 | Q45: 1120 | R45: 9509 | S45: =IFERROR(IF(C45="","",IF($C45="TOTAL",SUM($S$8:S44),IF(AND(C45>$AR$1,$AI$3=$AR$2),BW46,IF($AU$18=$AU$20,SUM(BJ46+BR46),ROUND((D45+E45)*10%,0))))),"") -> 2100 | T45: =IFERROR(IF(C45="","",IF(I45="","",IF(J45="","",IF($C45="TOTAL",SUM($T$8:T44),IF(AND(C45>$AR$1,$AI$3=$AR$2),BW46,IF($AU$18=$AU$20,$AU$21,ROUND((I45+J45)*10%,0))))))),"") -> 2100 | U45: 0 | V45: =IFERROR(IF(C45="","",IF($AU$16=$AU$17,0,IF($C45="TOTAL",SUM($V$8:V44),IF($AU$19=$AU$31,0,IF(AND($AU$32=$AU$20,C45=$AU$33),$AU$34,V44))))),"") -> 2100 | W45: =IFERROR(IF(C45="","",IF($AU$16=$AU$17,0,IF($C45="TOTAL",SUM($W$8:W44),IF($AU$19=$AU$20,$AU$24,0)))),"") -> 2100 | X45: 0 | Y45: =IFERROR(IF(C45="","",IF($AU$16=$AU$17,0,IF($C45="TOTAL",SUM($Y$8:Y44),BZ45))),"") -> 875 | Z45: =IFERROR(IF(C45="","",IF($AU$16=$AU$17,0,IF($C45="TOTAL",SUM($Z$8:Z44),BY45))),"") -> 875 | AA45: 0 | AB45: =IFERROR(IF(C45="","",IF(D45="","",IF($C45="TOTAL",SUM($AB$8:AB44),IF(C45=$AU$1,ROUND(D45*5/31,0.01),"")))),"") ->  | AC45: =IFERROR(IF(C45="","",IF(I45="","",IF($C45="TOTAL",SUM($AC$8:AC44),IF(C45=$AU$1,ROUND(I45*5/31,0.01),"")))),"") ->  | AE45: =IFERROR(IF(C45="","",IF(AND(BP46="",BW46=""),"",IF($C45="TOTAL",SUM($AE$8:AE44),BP46))),"") ->  | AF45: =IFERROR(IF(C45="","",IF($C45="TOTAL",SUM($AF$8:AF44),ROUND(R45*$AU$7%,0))),"") -> 0 | AG45: 0 | AH45: =IFERROR(IF(C45="","",IF($C45="TOTAL",SUM($AH$8:AH44),SUM(R45-AG45))),"") -> 9509 | AQ45: 34 | AR45: 34 | AT45: 2020-01-01 | AV45: 2022-04-01 | AX45: 2022-04-01 | AY45: 2022-04-01 | AZ45: 2022-04-01 | BA45: 110500 | BB45: 22100 | BC45: 45084 | BD45: 9945 | BF45: 104900 | BG45: 20980 | BH45: 42799 | BI45: 9441 | BJ45: 3675 | BM45: 9509 | BN45: 3675 | BQ45: 0 | BR45: 0 | BW45: 2100 | BY45: 875 | BZ45: =IF(AZ46="","",IF(AZ46="TOTAL","",IF($AU$16=$AU$17,0,IF(AND(AZ46>$BY$1,$AI$3=$AR$2,'Master Sheet'!$D$27>0),'Master Sheet'!$D$27,IF(AND(AZ46=$BY$1),IF($AU$9<18001,135,IF($AU$9<33501,220,IF($AU$9<54001,330,440))),IF(AND(AZ46>$BY$1),IF($AU$9<18001,265,IF($AU$9<33501,440,IF($AU$9<54001,658,875))),"")))))) -> 875
A46: 39 | B46: 39 | C46: 2022-06-01 | D46: =IFERROR(IF($C45="TOTAL","अक्षरें राशि :-",IF($C46="TOTAL",SUM($D$8:D45),IF(BA47="","",BA47))),"") -> 110500 | E46: =IFERROR(IF($C46="TOTAL",SUM($E$8:E45),IF(BC47="","",BC47)),"") -> 45084 | F46: =IFERROR(IF($C46="TOTAL",SUM($F$8:F45),IF(OR(C46=$AS$16,C46=$AS$17,C46=$AS$18,C46=$AS$19,C46=$AS$20,C46=$AS$21,C46=$AS$22,C46=$AS$23,C46=$AS$24),0,IF(BD47="","",BD47))),"") -> 9945 | G46: =IFERROR(IF($C46="TOTAL",SUM($G$8:G45),IF(BB47="","",BB47)),"") -> 22100 | H46: 187629 | I46: =IFERROR(IF($C46="TOTAL",SUM($I$8:I45),IF(BF47="","",BF47)),"") -> 104900 | J46: =IFERROR(IF($C46="TOTAL",SUM($J$8:J45),IF(BH47="","",BH47)),"") -> 42799 | K46: =IFERROR(IF($C46="TOTAL",SUM($K$8:K45),IF(OR(C46=$AS$16,C46=$AS$17,C46=$AS$18,C46=$AS$19,C46=$AS$20,C46=$AS$21,C46=$AS$22,C46=$AS$23,C46=$AS$24),0,IF(BI47="","",BI47))),"") -> 9441 | L46: =IFERROR(IF($C46="TOTAL",SUM($L$8:L45),IF(BG47="","",BG47)),"") -> 20980 | M46: 178120 | N46: =IFERROR(IF(C46="","",IF(D46="","",IF(I46="","",IF($C46="TOTAL",SUM($N$8:N45),SUM(D46-I46))))),"") -> 5600 | O46: =IFERROR(IF(C46="","",IF(E46="","",IF(J46="","",IF($C46="TOTAL",SUM($O$8:O45),SUM(E46-J46))))),"") -> 2285 | P46: =IFERROR(IF(C46="","",IF(F46="","",IF(K46="","",IF($C46="TOTAL",SUM($P$8:P45),SUM(F46-K46))))),"") -> 504 | Q46: 1120 | R46: 9509 | S46: =IFERROR(IF(C46="","",IF($C46="TOTAL",SUM($S$8:S45),IF(AND(C46>$AR$1,$AI$3=$AR$2),BW47,IF($AU$18=$AU$20,SUM(BJ47+BR47),ROUND((D46+E46)*10%,0))))),"") -> 2100 | T46: =IFERROR(IF(C46="","",IF(I46="","",IF(J46="","",IF($C46="TOTAL",SUM($T$8:T45),IF(AND(C46>$AR$1,$AI$3=$AR$2),BW47,IF($AU$18=$AU$20,$AU$21,ROUND((I46+J46)*10%,0))))))),"") -> 2100 | U46: 0 | V46: =IFERROR(IF(C46="","",IF($AU$16=$AU$17,0,IF($C46="TOTAL",SUM($V$8:V45),IF($AU$19=$AU$31,0,IF(AND($AU$32=$AU$20,C46=$AU$33),$AU$34,V45))))),"") -> 2100 | W46: =IFERROR(IF(C46="","",IF($AU$16=$AU$17,0,IF($C46="TOTAL",SUM($W$8:W45),IF($AU$19=$AU$20,$AU$24,0)))),"") -> 2100 | X46: 0 | Y46: =IFERROR(IF(C46="","",IF($AU$16=$AU$17,0,IF($C46="TOTAL",SUM($Y$8:Y45),BZ46))),"") -> 875 | Z46: =IFERROR(IF(C46="","",IF($AU$16=$AU$17,0,IF($C46="TOTAL",SUM($Z$8:Z45),BY46))),"") -> 875 | AA46: 0 | AB46: =IFERROR(IF(C46="","",IF(D46="","",IF($C46="TOTAL",SUM($AB$8:AB45),IF(C46=$AU$1,ROUND(D46*5/31,0.01),"")))),"") ->  | AC46: =IFERROR(IF(C46="","",IF(I46="","",IF($C46="TOTAL",SUM($AC$8:AC45),IF(C46=$AU$1,ROUND(I46*5/31,0.01),"")))),"") ->  | AE46: =IFERROR(IF(C46="","",IF(AND(BP47="",BW47=""),"",IF($C46="TOTAL",SUM($AE$8:AE45),BP47))),"") ->  | AF46: =IFERROR(IF(C46="","",IF($C46="TOTAL",SUM($AF$8:AF45),ROUND(R46*$AU$7%,0))),"") -> 0 | AG46: 0 | AH46: =IFERROR(IF(C46="","",IF($C46="TOTAL",SUM($AH$8:AH45),SUM(R46-AG46))),"") -> 9509 | AQ46: 34 | AR46: 34 | AT46: 2020-02-01 | AV46: 2022-05-01 | AX46: 2022-05-01 | AY46: 2022-05-01 | AZ46: 2022-05-01 | BA46: 110500 | BB46: 22100 | BC46: 45084 | BD46: 9945 | BF46: 104900 | BG46: 20980 | BH46: 42799 | BI46: 9441 | BJ46: 3675 | BM46: 9509 | BN46: 3675 | BQ46: 0 | BR46: 0 | BW46: 2100 | BY46: 875 | BZ46: =IF(AZ47="","",IF(AZ47="TOTAL","",IF($AU$16=$AU$17,0,IF(AND(AZ47>$BY$1,$AI$3=$AR$2,'Master Sheet'!$D$27>0),'Master Sheet'!$D$27,IF(AND(AZ47=$BY$1),IF($AU$9<18001,135,IF($AU$9<33501,220,IF($AU$9<54001,330,440))),IF(AND(AZ47>$BY$1),IF($AU$9<18001,265,IF($AU$9<33501,440,IF($AU$9<54001,658,875))),"")))))) -> 875
A47: 40 | B47: 40 | C47: 2022-07-01 | D47: =IFERROR(IF($C46="TOTAL","अक्षरें राशि :-",IF($C47="TOTAL",SUM($D$8:D46),IF(BA48="","",BA48))),"") -> 113800 | E47: =IFERROR(IF($C47="TOTAL",SUM($E$8:E46),IF(BC48="","",BC48)),"") -> 51893 | F47: =IFERROR(IF($C47="TOTAL",SUM($F$8:F46),IF(OR(C47=$AS$16,C47=$AS$17,C47=$AS$18,C47=$AS$19,C47=$AS$20,C47=$AS$21,C47=$AS$22,C47=$AS$23,C47=$AS$24),0,IF(BD48="","",BD48))),"") -> 10242 | G47: =IFERROR(IF($C47="TOTAL",SUM($G$8:G46),IF(BB48="","",BB48)),"") -> 22760 | H47: 198695 | I47: =IFERROR(IF($C47="TOTAL",SUM($I$8:I46),IF(BF48="","",BF48)),"") -> 108000 | J47: =IFERROR(IF($C47="TOTAL",SUM($J$8:J46),IF(BH48="","",BH48)),"") -> 49248 | K47: =IFERROR(IF($C47="TOTAL",SUM($K$8:K46),IF(OR(C47=$AS$16,C47=$AS$17,C47=$AS$18,C47=$AS$19,C47=$AS$20,C47=$AS$21,C47=$AS$22,C47=$AS$23,C47=$AS$24),0,IF(BI48="","",BI48))),"") -> 9720 | L47: =IFERROR(IF($C47="TOTAL",SUM($L$8:L46),IF(BG48="","",BG48)),"") -> 21600 | M47: 188568 | N47: =IFERROR(IF(C47="","",IF(D47="","",IF(I47="","",IF($C47="TOTAL",SUM($N$8:N46),SUM(D47-I47))))),"") -> 5800 | O47: =IFERROR(IF(C47="","",IF(E47="","",IF(J47="","",IF($C47="TOTAL",SUM($O$8:O46),SUM(E47-J47))))),"") -> 2645 | P47: =IFERROR(IF(C47="","",IF(F47="","",IF(K47="","",IF($C47="TOTAL",SUM($P$8:P46),SUM(F47-K47))))),"") -> 522 | Q47: 1160 | R47: 10127 | S47: =IFERROR(IF(C47="","",IF($C47="TOTAL",SUM($S$8:S46),IF(AND(C47>$AR$1,$AI$3=$AR$2),BW48,IF($AU$18=$AU$20,SUM(BJ48+BR48),ROUND((D47+E47)*10%,0))))),"") -> 2100 | T47: =IFERROR(IF(C47="","",IF(I47="","",IF(J47="","",IF($C47="TOTAL",SUM($T$8:T46),IF(AND(C47>$AR$1,$AI$3=$AR$2),BW48,IF($AU$18=$AU$20,$AU$21,ROUND((I47+J47)*10%,0))))))),"") -> 2100 | U47: 0 | V47: =IFERROR(IF(C47="","",IF($AU$16=$AU$17,0,IF($C47="TOTAL",SUM($V$8:V46),IF($AU$19=$AU$31,0,IF(AND($AU$32=$AU$20,C47=$AU$33),$AU$34,V46))))),"") -> 2100 | W47: =IFERROR(IF(C47="","",IF($AU$16=$AU$17,0,IF($C47="TOTAL",SUM($W$8:W46),IF($AU$19=$AU$20,$AU$24,0)))),"") -> 2100 | X47: 0 | Y47: =IFERROR(IF(C47="","",IF($AU$16=$AU$17,0,IF($C47="TOTAL",SUM($Y$8:Y46),BZ47))),"") -> 875 | Z47: =IFERROR(IF(C47="","",IF($AU$16=$AU$17,0,IF($C47="TOTAL",SUM($Z$8:Z46),BY47))),"") -> 875 | AA47: 0 | AB47: =IFERROR(IF(C47="","",IF(D47="","",IF($C47="TOTAL",SUM($AB$8:AB46),IF(C47=$AU$1,ROUND(D47*5/31,0.01),"")))),"") ->  | AC47: =IFERROR(IF(C47="","",IF(I47="","",IF($C47="TOTAL",SUM($AC$8:AC46),IF(C47=$AU$1,ROUND(I47*5/31,0.01),"")))),"") ->  | AE47: =IFERROR(IF(C47="","",IF(AND(BP48="",BW48=""),"",IF($C47="TOTAL",SUM($AE$8:AE46),BP48))),"") ->  | AF47: =IFERROR(IF(C47="","",IF($C47="TOTAL",SUM($AF$8:AF46),ROUND(R47*$AU$7%,0))),"") -> 0 | AG47: 0 | AH47: =IFERROR(IF(C47="","",IF($C47="TOTAL",SUM($AH$8:AH46),SUM(R47-AG47))),"") -> 10127 | AQ47: 34 | AR47: 34 | AT47: 2020-03-01 | AV47: 2022-06-01 | AX47: 2022-06-01 | AY47: 2022-06-01 | AZ47: 2022-06-01 | BA47: 110500 | BB47: 22100 | BC47: 45084 | BD47: 9945 | BF47: 104900 | BG47: 20980 | BH47: 42799 | BI47: 9441 | BJ47: 3675 | BM47: 9509 | BN47: 3675 | BQ47: 0 | BR47: 0 | BW47: 2100 | BY47: 875 | BZ47: =IF(AZ48="","",IF(AZ48="TOTAL","",IF($AU$16=$AU$17,0,IF(AND(AZ48>$BY$1,$AI$3=$AR$2,'Master Sheet'!$D$27>0),'Master Sheet'!$D$27,IF(AND(AZ48=$BY$1),IF($AU$9<18001,135,IF($AU$9<33501,220,IF($AU$9<54001,330,440))),IF(AND(AZ48>$BY$1),IF($AU$9<18001,265,IF($AU$9<33501,440,IF($AU$9<54001,658,875))),"")))))) -> 875
A48: 41 | B48: 41 | C48: 2022-08-01 | D48: =IFERROR(IF($C47="TOTAL","अक्षरें राशि :-",IF($C48="TOTAL",SUM($D$8:D47),IF(BA49="","",BA49))),"") -> 113800 | E48: =IFERROR(IF($C48="TOTAL",SUM($E$8:E47),IF(BC49="","",BC49)),"") -> 51893 | F48: =IFERROR(IF($C48="TOTAL",SUM($F$8:F47),IF(OR(C48=$AS$16,C48=$AS$17,C48=$AS$18,C48=$AS$19,C48=$AS$20,C48=$AS$21,C48=$AS$22,C48=$AS$23,C48=$AS$24),0,IF(BD49="","",BD49))),"") -> 10242 | G48: =IFERROR(IF($C48="TOTAL",SUM($G$8:G47),IF(BB49="","",BB49)),"") -> 22760 | H48: 198695 | I48: =IFERROR(IF($C48="TOTAL",SUM($I$8:I47),IF(BF49="","",BF49)),"") -> 108000 | J48: =IFERROR(IF($C48="TOTAL",SUM($J$8:J47),IF(BH49="","",BH49)),"") -> 49248 | K48: =IFERROR(IF($C48="TOTAL",SUM($K$8:K47),IF(OR(C48=$AS$16,C48=$AS$17,C48=$AS$18,C48=$AS$19,C48=$AS$20,C48=$AS$21,C48=$AS$22,C48=$AS$23,C48=$AS$24),0,IF(BI49="","",BI49))),"") -> 9720 | L48: =IFERROR(IF($C48="TOTAL",SUM($L$8:L47),IF(BG49="","",BG49)),"") -> 21600 | M48: 188568 | N48: =IFERROR(IF(C48="","",IF(D48="","",IF(I48="","",IF($C48="TOTAL",SUM($N$8:N47),SUM(D48-I48))))),"") -> 5800 | O48: =IFERROR(IF(C48="","",IF(E48="","",IF(J48="","",IF($C48="TOTAL",SUM($O$8:O47),SUM(E48-J48))))),"") -> 2645 | P48: =IFERROR(IF(C48="","",IF(F48="","",IF(K48="","",IF($C48="TOTAL",SUM($P$8:P47),SUM(F48-K48))))),"") -> 522 | Q48: 1160 | R48: 10127 | S48: =IFERROR(IF(C48="","",IF($C48="TOTAL",SUM($S$8:S47),IF(AND(C48>$AR$1,$AI$3=$AR$2),BW49,IF($AU$18=$AU$20,SUM(BJ49+BR49),ROUND((D48+E48)*10%,0))))),"") -> 2100 | T48: =IFERROR(IF(C48="","",IF(I48="","",IF(J48="","",IF($C48="TOTAL",SUM($T$8:T47),IF(AND(C48>$AR$1,$AI$3=$AR$2),BW49,IF($AU$18=$AU$20,$AU$21,ROUND((I48+J48)*10%,0))))))),"") -> 2100 | U48: 0 | V48: =IFERROR(IF(C48="","",IF($AU$16=$AU$17,0,IF($C48="TOTAL",SUM($V$8:V47),IF($AU$19=$AU$31,0,IF(AND($AU$32=$AU$20,C48=$AU$33),$AU$34,V47))))),"") -> 2100 | W48: =IFERROR(IF(C48="","",IF($AU$16=$AU$17,0,IF($C48="TOTAL",SUM($W$8:W47),IF($AU$19=$AU$20,$AU$24,0)))),"") -> 2100 | X48: 0 | Y48: =IFERROR(IF(C48="","",IF($AU$16=$AU$17,0,IF($C48="TOTAL",SUM($Y$8:Y47),BZ48))),"") -> 875 | Z48: =IFERROR(IF(C48="","",IF($AU$16=$AU$17,0,IF($C48="TOTAL",SUM($Z$8:Z47),BY48))),"") -> 875 | AA48: 0 | AB48: =IFERROR(IF(C48="","",IF(D48="","",IF($C48="TOTAL",SUM($AB$8:AB47),IF(C48=$AU$1,ROUND(D48*5/31,0.01),"")))),"") ->  | AC48: =IFERROR(IF(C48="","",IF(I48="","",IF($C48="TOTAL",SUM($AC$8:AC47),IF(C48=$AU$1,ROUND(I48*5/31,0.01),"")))),"") ->  | AE48: =IFERROR(IF(C48="","",IF(AND(BP49="",BW49=""),"",IF($C48="TOTAL",SUM($AE$8:AE47),BP49))),"") ->  | AF48: =IFERROR(IF(C48="","",IF($C48="TOTAL",SUM($AF$8:AF47),ROUND(R48*$AU$7%,0))),"") -> 0 | AG48: 0 | AH48: =IFERROR(IF(C48="","",IF($C48="TOTAL",SUM($AH$8:AH47),SUM(R48-AG48))),"") -> 10127 | AQ48: 38 | AR48: 38 | AT48: 2020-04-01 | AV48: 2022-07-01 | AX48: 2022-07-01 | AY48: 2022-07-01 | AZ48: 2022-07-01 | BA48: 113800 | BB48: 22760 | BC48: 51893 | BD48: 10242 | BF48: 108000 | BG48: 21600 | BH48: 49248 | BI48: 9720 | BJ48: 3675 | BM48: 10127 | BN48: 3675 | BQ48: 0 | BR48: 0 | BW48: 2100 | BY48: 875 | BZ48: =IF(AZ49="","",IF(AZ49="TOTAL","",IF($AU$16=$AU$17,0,IF(AND(AZ49>$BY$1,$AI$3=$AR$2,'Master Sheet'!$D$27>0),'Master Sheet'!$D$27,IF(AND(AZ49=$BY$1),IF($AU$9<18001,135,IF($AU$9<33501,220,IF($AU$9<54001,330,440))),IF(AND(AZ49>$BY$1),IF($AU$9<18001,265,IF($AU$9<33501,440,IF($AU$9<54001,658,875))),"")))))) -> 875
A49: 42 | B49: 42 | C49: 2022-09-01 | D49: =IFERROR(IF($C48="TOTAL","अक्षरें राशि :-",IF($C49="TOTAL",SUM($D$8:D48),IF(BA50="","",BA50))),"") -> 113800 | E49: =IFERROR(IF($C49="TOTAL",SUM($E$8:E48),IF(BC50="","",BC50)),"") -> 51893 | F49: =IFERROR(IF($C49="TOTAL",SUM($F$8:F48),IF(OR(C49=$AS$16,C49=$AS$17,C49=$AS$18,C49=$AS$19,C49=$AS$20,C49=$AS$21,C49=$AS$22,C49=$AS$23,C49=$AS$24),0,IF(BD50="","",BD50))),"") -> 10242 | G49: =IFERROR(IF($C49="TOTAL",SUM($G$8:G48),IF(BB50="","",BB50)),"") -> 22760 | H49: 198695 | I49: =IFERROR(IF($C49="TOTAL",SUM($I$8:I48),IF(BF50="","",BF50)),"") -> 108000 | J49: =IFERROR(IF($C49="TOTAL",SUM($J$8:J48),IF(BH50="","",BH50)),"") -> 49248 | K49: =IFERROR(IF($C49="TOTAL",SUM($K$8:K48),IF(OR(C49=$AS$16,C49=$AS$17,C49=$AS$18,C49=$AS$19,C49=$AS$20,C49=$AS$21,C49=$AS$22,C49=$AS$23,C49=$AS$24),0,IF(BI50="","",BI50))),"") -> 9720 | L49: =IFERROR(IF($C49="TOTAL",SUM($L$8:L48),IF(BG50="","",BG50)),"") -> 21600 | M49: 188568 | N49: =IFERROR(IF(C49="","",IF(D49="","",IF(I49="","",IF($C49="TOTAL",SUM($N$8:N48),SUM(D49-I49))))),"") -> 5800 | O49: =IFERROR(IF(C49="","",IF(E49="","",IF(J49="","",IF($C49="TOTAL",SUM($O$8:O48),SUM(E49-J49))))),"") -> 2645 | P49: =IFERROR(IF(C49="","",IF(F49="","",IF(K49="","",IF($C49="TOTAL",SUM($P$8:P48),SUM(F49-K49))))),"") -> 522 | Q49: 1160 | R49: 10127 | S49: =IFERROR(IF(C49="","",IF($C49="TOTAL",SUM($S$8:S48),IF(AND(C49>$AR$1,$AI$3=$AR$2),BW50,IF($AU$18=$AU$20,SUM(BJ50+BR50),ROUND((D49+E49)*10%,0))))),"") -> 2100 | T49: =IFERROR(IF(C49="","",IF(I49="","",IF(J49="","",IF($C49="TOTAL",SUM($T$8:T48),IF(AND(C49>$AR$1,$AI$3=$AR$2),BW50,IF($AU$18=$AU$20,$AU$21,ROUND((I49+J49)*10%,0))))))),"") -> 2100 | U49: 0 | V49: =IFERROR(IF(C49="","",IF($AU$16=$AU$17,0,IF($C49="TOTAL",SUM($V$8:V48),IF($AU$19=$AU$31,0,IF(AND($AU$32=$AU$20,C49=$AU$33),$AU$34,V48))))),"") -> 2100 | W49: =IFERROR(IF(C49="","",IF($AU$16=$AU$17,0,IF($C49="TOTAL",SUM($W$8:W48),IF($AU$19=$AU$20,$AU$24,0)))),"") -> 2100 | X49: 0 | Y49: =IFERROR(IF(C49="","",IF($AU$16=$AU$17,0,IF($C49="TOTAL",SUM($Y$8:Y48),BZ49))),"") -> 875 | Z49: =IFERROR(IF(C49="","",IF($AU$16=$AU$17,0,IF($C49="TOTAL",SUM($Z$8:Z48),BY49))),"") -> 875 | AA49: 0 | AB49: =IFERROR(IF(C49="","",IF(D49="","",IF($C49="TOTAL",SUM($AB$8:AB48),IF(C49=$AU$1,ROUND(D49*5/31,0.01),"")))),"") ->  | AC49: =IFERROR(IF(C49="","",IF(I49="","",IF($C49="TOTAL",SUM($AC$8:AC48),IF(C49=$AU$1,ROUND(I49*5/31,0.01),"")))),"") ->  | AE49: =IFERROR(IF(C49="","",IF(AND(BP50="",BW50=""),"",IF($C49="TOTAL",SUM($AE$8:AE48),BP50))),"") ->  | AF49: =IFERROR(IF(C49="","",IF($C49="TOTAL",SUM($AF$8:AF48),ROUND(R49*$AU$7%,0))),"") -> 0 | AG49: 0 | AH49: =IFERROR(IF(C49="","",IF($C49="TOTAL",SUM($AH$8:AH48),SUM(R49-AG49))),"") -> 10127 | AQ49: 38 | AR49: 38 | AT49: 2020-05-01 | AV49: 2022-08-01 | AX49: 2022-08-01 | AY49: 2022-08-01 | AZ49: 2022-08-01 | BA49: 113800 | BB49: 22760 | BC49: 51893 | BD49: 10242 | BF49: 108000 | BG49: 21600 | BH49: 49248 | BI49: 9720 | BJ49: 3675 | BM49: 10127 | BN49: 3675 | BQ49: 0 | BR49: 0 | BW49: 2100 | BY49: 875 | BZ49: =IF(AZ50="","",IF(AZ50="TOTAL","",IF($AU$16=$AU$17,0,IF(AND(AZ50>$BY$1,$AI$3=$AR$2,'Master Sheet'!$D$27>0),'Master Sheet'!$D$27,IF(AND(AZ50=$BY$1),IF($AU$9<18001,135,IF($AU$9<33501,220,IF($AU$9<54001,330,440))),IF(AND(AZ50>$BY$1),IF($AU$9<18001,265,IF($AU$9<33501,440,IF($AU$9<54001,658,875))),"")))))) -> 875
A50: 43 | B50: 43 | C50: 2022-10-01 | D50: =IFERROR(IF($C49="TOTAL","अक्षरें राशि :-",IF($C50="TOTAL",SUM($D$8:D49),IF(BA51="","",BA51))),"") -> 113800 | E50: =IFERROR(IF($C50="TOTAL",SUM($E$8:E49),IF(BC51="","",BC51)),"") -> 51893 | F50: =IFERROR(IF($C50="TOTAL",SUM($F$8:F49),IF(OR(C50=$AS$16,C50=$AS$17,C50=$AS$18,C50=$AS$19,C50=$AS$20,C50=$AS$21,C50=$AS$22,C50=$AS$23,C50=$AS$24),0,IF(BD51="","",BD51))),"") -> 10242 | G50: =IFERROR(IF($C50="TOTAL",SUM($G$8:G49),IF(BB51="","",BB51)),"") -> 22760 | H50: 198695 | I50: =IFERROR(IF($C50="TOTAL",SUM($I$8:I49),IF(BF51="","",BF51)),"") -> 108000 | J50: =IFERROR(IF($C50="TOTAL",SUM($J$8:J49),IF(BH51="","",BH51)),"") -> 49248 | K50: =IFERROR(IF($C50="TOTAL",SUM($K$8:K49),IF(OR(C50=$AS$16,C50=$AS$17,C50=$AS$18,C50=$AS$19,C50=$AS$20,C50=$AS$21,C50=$AS$22,C50=$AS$23,C50=$AS$24),0,IF(BI51="","",BI51))),"") -> 9720 | L50: =IFERROR(IF($C50="TOTAL",SUM($L$8:L49),IF(BG51="","",BG51)),"") -> 21600 | M50: 188568 | N50: =IFERROR(IF(C50="","",IF(D50="","",IF(I50="","",IF($C50="TOTAL",SUM($N$8:N49),SUM(D50-I50))))),"") -> 5800 | O50: =IFERROR(IF(C50="","",IF(E50="","",IF(J50="","",IF($C50="TOTAL",SUM($O$8:O49),SUM(E50-J50))))),"") -> 2645 | P50: =IFERROR(IF(C50="","",IF(F50="","",IF(K50="","",IF($C50="TOTAL",SUM($P$8:P49),SUM(F50-K50))))),"") -> 522 | Q50: 1160 | R50: 10127 | S50: =IFERROR(IF(C50="","",IF($C50="TOTAL",SUM($S$8:S49),IF(AND(C50>$AR$1,$AI$3=$AR$2),BW51,IF($AU$18=$AU$20,SUM(BJ51+BR51),ROUND((D50+E50)*10%,0))))),"") -> 2100 | T50: =IFERROR(IF(C50="","",IF(I50="","",IF(J50="","",IF($C50="TOTAL",SUM($T$8:T49),IF(AND(C50>$AR$1,$AI$3=$AR$2),BW51,IF($AU$18=$AU$20,$AU$21,ROUND((I50+J50)*10%,0))))))),"") -> 2100 | U50: 0 | V50: =IFERROR(IF(C50="","",IF($AU$16=$AU$17,0,IF($C50="TOTAL",SUM($V$8:V49),IF($AU$19=$AU$31,0,IF(AND($AU$32=$AU$20,C50=$AU$33),$AU$34,V49))))),"") -> 2100 | W50: =IFERROR(IF(C50="","",IF($AU$16=$AU$17,0,IF($C50="TOTAL",SUM($W$8:W49),IF($AU$19=$AU$20,$AU$24,0)))),"") -> 2100 | X50: 0 | Y50: =IFERROR(IF(C50="","",IF($AU$16=$AU$17,0,IF($C50="TOTAL",SUM($Y$8:Y49),BZ50))),"") -> 875 | Z50: =IFERROR(IF(C50="","",IF($AU$16=$AU$17,0,IF($C50="TOTAL",SUM($Z$8:Z49),BY50))),"") -> 875 | AA50: 0 | AB50: =IFERROR(IF(C50="","",IF(D50="","",IF($C50="TOTAL",SUM($AB$8:AB49),IF(C50=$AU$1,ROUND(D50*5/31,0.01),"")))),"") ->  | AC50: =IFERROR(IF(C50="","",IF(I50="","",IF($C50="TOTAL",SUM($AC$8:AC49),IF(C50=$AU$1,ROUND(I50*5/31,0.01),"")))),"") ->  | AE50: =IFERROR(IF(C50="","",IF(AND(BP51="",BW51=""),"",IF($C50="TOTAL",SUM($AE$8:AE49),BP51))),"") ->  | AF50: =IFERROR(IF(C50="","",IF($C50="TOTAL",SUM($AF$8:AF49),ROUND(R50*$AU$7%,0))),"") -> 0 | AG50: 0 | AH50: =IFERROR(IF(C50="","",IF($C50="TOTAL",SUM($AH$8:AH49),SUM(R50-AG50))),"") -> 10127 | AQ50: 38 | AR50: 38 | AT50: 2020-06-01 | AV50: 2022-09-01 | AX50: 2022-09-01 | AY50: 2022-09-01 | AZ50: 2022-09-01 | BA50: 113800 | BB50: 22760 | BC50: 51893 | BD50: 10242 | BF50: 108000 | BG50: 21600 | BH50: 49248 | BI50: 9720 | BJ50: 3675 | BM50: 10127 | BN50: 3675 | BQ50: 0 | BR50: 0 | BW50: 2100 | BY50: 875 | BZ50: =IF(AZ51="","",IF(AZ51="TOTAL","",IF($AU$16=$AU$17,0,IF(AND(AZ51>$BY$1,$AI$3=$AR$2,'Master Sheet'!$D$27>0),'Master Sheet'!$D$27,IF(AND(AZ51=$BY$1),IF($AU$9<18001,135,IF($AU$9<33501,220,IF($AU$9<54001,330,440))),IF(AND(AZ51>$BY$1),IF($AU$9<18001,265,IF($AU$9<33501,440,IF($AU$9<54001,658,875))),"")))))) -> 875
A51: 44 | B51: 44 | C51: 2022-11-01 | D51: =IFERROR(IF($C50="TOTAL","अक्षरें राशि :-",IF($C51="TOTAL",SUM($D$8:D50),IF(BA52="","",BA52))),"") -> 113800 | E51: =IFERROR(IF($C51="TOTAL",SUM($E$8:E50),IF(BC52="","",BC52)),"") -> 51893 | F51: =IFERROR(IF($C51="TOTAL",SUM($F$8:F50),IF(OR(C51=$AS$16,C51=$AS$17,C51=$AS$18,C51=$AS$19,C51=$AS$20,C51=$AS$21,C51=$AS$22,C51=$AS$23,C51=$AS$24),0,IF(BD52="","",BD52))),"") -> 10242 | G51: =IFERROR(IF($C51="TOTAL",SUM($G$8:G50),IF(BB52="","",BB52)),"") -> 22760 | H51: 198695 | I51: =IFERROR(IF($C51="TOTAL",SUM($I$8:I50),IF(BF52="","",BF52)),"") -> 108000 | J51: =IFERROR(IF($C51="TOTAL",SUM($J$8:J50),IF(BH52="","",BH52)),"") -> 49248 | K51: =IFERROR(IF($C51="TOTAL",SUM($K$8:K50),IF(OR(C51=$AS$16,C51=$AS$17,C51=$AS$18,C51=$AS$19,C51=$AS$20,C51=$AS$21,C51=$AS$22,C51=$AS$23,C51=$AS$24),0,IF(BI52="","",BI52))),"") -> 9720 | L51: =IFERROR(IF($C51="TOTAL",SUM($L$8:L50),IF(BG52="","",BG52)),"") -> 21600 | M51: 188568 | N51: =IFERROR(IF(C51="","",IF(D51="","",IF(I51="","",IF($C51="TOTAL",SUM($N$8:N50),SUM(D51-I51))))),"") -> 5800 | O51: =IFERROR(IF(C51="","",IF(E51="","",IF(J51="","",IF($C51="TOTAL",SUM($O$8:O50),SUM(E51-J51))))),"") -> 2645 | P51: =IFERROR(IF(C51="","",IF(F51="","",IF(K51="","",IF($C51="TOTAL",SUM($P$8:P50),SUM(F51-K51))))),"") -> 522 | Q51: 1160 | R51: 10127 | S51: =IFERROR(IF(C51="","",IF($C51="TOTAL",SUM($S$8:S50),IF(AND(C51>$AR$1,$AI$3=$AR$2),BW52,IF($AU$18=$AU$20,SUM(BJ52+BR52),ROUND((D51+E51)*10%,0))))),"") -> 2100 | T51: =IFERROR(IF(C51="","",IF(I51="","",IF(J51="","",IF($C51="TOTAL",SUM($T$8:T50),IF(AND(C51>$AR$1,$AI$3=$AR$2),BW52,IF($AU$18=$AU$20,$AU$21,ROUND((I51+J51)*10%,0))))))),"") -> 2100 | U51: 0 | V51: =IFERROR(IF(C51="","",IF($AU$16=$AU$17,0,IF($C51="TOTAL",SUM($V$8:V50),IF($AU$19=$AU$31,0,IF(AND($AU$32=$AU$20,C51=$AU$33),$AU$34,V50))))),"") -> 2100 | W51: =IFERROR(IF(C51="","",IF($AU$16=$AU$17,0,IF($C51="TOTAL",SUM($W$8:W50),IF($AU$19=$AU$20,$AU$24,0)))),"") -> 2100 | X51: 0 | Y51: =IFERROR(IF(C51="","",IF($AU$16=$AU$17,0,IF($C51="TOTAL",SUM($Y$8:Y50),BZ51))),"") -> 875 | Z51: =IFERROR(IF(C51="","",IF($AU$16=$AU$17,0,IF($C51="TOTAL",SUM($Z$8:Z50),BY51))),"") -> 875 | AA51: 0 | AB51: =IFERROR(IF(C51="","",IF(D51="","",IF($C51="TOTAL",SUM($AB$8:AB50),IF(C51=$AU$1,ROUND(D51*5/31,0.01),"")))),"") ->  | AC51: =IFERROR(IF(C51="","",IF(I51="","",IF($C51="TOTAL",SUM($AC$8:AC50),IF(C51=$AU$1,ROUND(I51*5/31,0.01),"")))),"") ->  | AE51: =IFERROR(IF(C51="","",IF(AND(BP52="",BW52=""),"",IF($C51="TOTAL",SUM($AE$8:AE50),BP52))),"") ->  | AF51: =IFERROR(IF(C51="","",IF($C51="TOTAL",SUM($AF$8:AF50),ROUND(R51*$AU$7%,0))),"") -> 0 | AG51: 0 | AH51: =IFERROR(IF(C51="","",IF($C51="TOTAL",SUM($AH$8:AH50),SUM(R51-AG51))),"") -> 10127 | AQ51: 38 | AR51: 38 | AT51: 2020-07-01 | AV51: 2022-10-01 | AX51: 2022-10-01 | AY51: 2022-10-01 | AZ51: 2022-10-01 | BA51: 113800 | BB51: 22760 | BC51: 51893 | BD51: 10242 | BF51: 108000 | BG51: 21600 | BH51: 49248 | BI51: 9720 | BJ51: 3675 | BM51: 10127 | BN51: 3675 | BQ51: 0 | BR51: 0 | BW51: 2100 | BY51: 875 | BZ51: =IF(AZ52="","",IF(AZ52="TOTAL","",IF($AU$16=$AU$17,0,IF(AND(AZ52>$BY$1,$AI$3=$AR$2,'Master Sheet'!$D$27>0),'Master Sheet'!$D$27,IF(AND(AZ52=$BY$1),IF($AU$9<18001,135,IF($AU$9<33501,220,IF($AU$9<54001,330,440))),IF(AND(AZ52>$BY$1),IF($AU$9<18001,265,IF($AU$9<33501,440,IF($AU$9<54001,658,875))),"")))))) -> 875
A52: 45 | B52: 45 | C52: 2022-12-01 | D52: =IFERROR(IF($C51="TOTAL","अक्षरें राशि :-",IF($C52="TOTAL",SUM($D$8:D51),IF(BA53="","",BA53))),"") -> 113800 | E52: =IFERROR(IF($C52="TOTAL",SUM($E$8:E51),IF(BC53="","",BC53)),"") -> 51893 | F52: =IFERROR(IF($C52="TOTAL",SUM($F$8:F51),IF(OR(C52=$AS$16,C52=$AS$17,C52=$AS$18,C52=$AS$19,C52=$AS$20,C52=$AS$21,C52=$AS$22,C52=$AS$23,C52=$AS$24),0,IF(BD53="","",BD53))),"") -> 10242 | G52: =IFERROR(IF($C52="TOTAL",SUM($G$8:G51),IF(BB53="","",BB53)),"") -> 22760 | H52: 198695 | I52: =IFERROR(IF($C52="TOTAL",SUM($I$8:I51),IF(BF53="","",BF53)),"") -> 108000 | J52: =IFERROR(IF($C52="TOTAL",SUM($J$8:J51),IF(BH53="","",BH53)),"") -> 49248 | K52: =IFERROR(IF($C52="TOTAL",SUM($K$8:K51),IF(OR(C52=$AS$16,C52=$AS$17,C52=$AS$18,C52=$AS$19,C52=$AS$20,C52=$AS$21,C52=$AS$22,C52=$AS$23,C52=$AS$24),0,IF(BI53="","",BI53))),"") -> 9720 | L52: =IFERROR(IF($C52="TOTAL",SUM($L$8:L51),IF(BG53="","",BG53)),"") -> 21600 | M52: 188568 | N52: =IFERROR(IF(C52="","",IF(D52="","",IF(I52="","",IF($C52="TOTAL",SUM($N$8:N51),SUM(D52-I52))))),"") -> 5800 | O52: =IFERROR(IF(C52="","",IF(E52="","",IF(J52="","",IF($C52="TOTAL",SUM($O$8:O51),SUM(E52-J52))))),"") -> 2645 | P52: =IFERROR(IF(C52="","",IF(F52="","",IF(K52="","",IF($C52="TOTAL",SUM($P$8:P51),SUM(F52-K52))))),"") -> 522 | Q52: 1160 | R52: 10127 | S52: =IFERROR(IF(C52="","",IF($C52="TOTAL",SUM($S$8:S51),IF(AND(C52>$AR$1,$AI$3=$AR$2),BW53,IF($AU$18=$AU$20,SUM(BJ53+BR53),ROUND((D52+E52)*10%,0))))),"") -> 2100 | T52: =IFERROR(IF(C52="","",IF(I52="","",IF(J52="","",IF($C52="TOTAL",SUM($T$8:T51),IF(AND(C52>$AR$1,$AI$3=$AR$2),BW53,IF($AU$18=$AU$20,$AU$21,ROUND((I52+J52)*10%,0))))))),"") -> 2100 | U52: 0 | V52: =IFERROR(IF(C52="","",IF($AU$16=$AU$17,0,IF($C52="TOTAL",SUM($V$8:V51),IF($AU$19=$AU$31,0,IF(AND($AU$32=$AU$20,C52=$AU$33),$AU$34,V51))))),"") -> 2100 | W52: =IFERROR(IF(C52="","",IF($AU$16=$AU$17,0,IF($C52="TOTAL",SUM($W$8:W51),IF($AU$19=$AU$20,$AU$24,0)))),"") -> 2100 | X52: 0 | Y52: =IFERROR(IF(C52="","",IF($AU$16=$AU$17,0,IF($C52="TOTAL",SUM($Y$8:Y51),BZ52))),"") -> 875 | Z52: =IFERROR(IF(C52="","",IF($AU$16=$AU$17,0,IF($C52="TOTAL",SUM($Z$8:Z51),BY52))),"") -> 875 | AA52: 0 | AB52: =IFERROR(IF(C52="","",IF(D52="","",IF($C52="TOTAL",SUM($AB$8:AB51),IF(C52=$AU$1,ROUND(D52*5/31,0.01),"")))),"") ->  | AC52: =IFERROR(IF(C52="","",IF(I52="","",IF($C52="TOTAL",SUM($AC$8:AC51),IF(C52=$AU$1,ROUND(I52*5/31,0.01),"")))),"") ->  | AE52: =IFERROR(IF(C52="","",IF(AND(BP53="",BW53=""),"",IF($C52="TOTAL",SUM($AE$8:AE51),BP53))),"") ->  | AF52: =IFERROR(IF(C52="","",IF($C52="TOTAL",SUM($AF$8:AF51),ROUND(R52*$AU$7%,0))),"") -> 0 | AG52: 0 | AH52: =IFERROR(IF(C52="","",IF($C52="TOTAL",SUM($AH$8:AH51),SUM(R52-AG52))),"") -> 10127 | AQ52: 38 | AR52: 38 | AT52: 2020-08-01 | AV52: 2022-11-01 | AX52: 2022-11-01 | AY52: 2022-11-01 | AZ52: 2022-11-01 | BA52: 113800 | BB52: 22760 | BC52: 51893 | BD52: 10242 | BF52: 108000 | BG52: 21600 | BH52: 49248 | BI52: 9720 | BJ52: 3675 | BM52: 10127 | BN52: 3675 | BQ52: 0 | BR52: 0 | BW52: 2100 | BY52: 875 | BZ52: =IF(AZ53="","",IF(AZ53="TOTAL","",IF($AU$16=$AU$17,0,IF(AND(AZ53>$BY$1,$AI$3=$AR$2,'Master Sheet'!$D$27>0),'Master Sheet'!$D$27,IF(AND(AZ53=$BY$1),IF($AU$9<18001,135,IF($AU$9<33501,220,IF($AU$9<54001,330,440))),IF(AND(AZ53>$BY$1),IF($AU$9<18001,265,IF($AU$9<33501,440,IF($AU$9<54001,658,875))),"")))))) -> 875
A53: 46 | B53: 46 | C53: 2023-01-01 | D53: =IFERROR(IF($C52="TOTAL","अक्षरें राशि :-",IF($C53="TOTAL",SUM($D$8:D52),IF(BA54="","",BA54))),"") -> 113800 | E53: =IFERROR(IF($C53="TOTAL",SUM($E$8:E52),IF(BC54="","",BC54)),"") -> 57355 | F53: =IFERROR(IF($C53="TOTAL",SUM($F$8:F52),IF(OR(C53=$AS$16,C53=$AS$17,C53=$AS$18,C53=$AS$19,C53=$AS$20,C53=$AS$21,C53=$AS$22,C53=$AS$23,C53=$AS$24),0,IF(BD54="","",BD54))),"") -> 10242 | G53: =IFERROR(IF($C53="TOTAL",SUM($G$8:G52),IF(BB54="","",BB54)),"") -> 22760 | H53: 204157 | I53: =IFERROR(IF($C53="TOTAL",SUM($I$8:I52),IF(BF54="","",BF54)),"") -> 108000 | J53: =IFERROR(IF($C53="TOTAL",SUM($J$8:J52),IF(BH54="","",BH54)),"") -> 54432 | K53: =IFERROR(IF($C53="TOTAL",SUM($K$8:K52),IF(OR(C53=$AS$16,C53=$AS$17,C53=$AS$18,C53=$AS$19,C53=$AS$20,C53=$AS$21,C53=$AS$22,C53=$AS$23,C53=$AS$24),0,IF(BI54="","",BI54))),"") -> 9720 | L53: =IFERROR(IF($C53="TOTAL",SUM($L$8:L52),IF(BG54="","",BG54)),"") -> 21600 | M53: 193752 | N53: =IFERROR(IF(C53="","",IF(D53="","",IF(I53="","",IF($C53="TOTAL",SUM($N$8:N52),SUM(D53-I53))))),"") -> 5800 | O53: =IFERROR(IF(C53="","",IF(E53="","",IF(J53="","",IF($C53="TOTAL",SUM($O$8:O52),SUM(E53-J53))))),"") -> 2923 | P53: =IFERROR(IF(C53="","",IF(F53="","",IF(K53="","",IF($C53="TOTAL",SUM($P$8:P52),SUM(F53-K53))))),"") -> 522 | Q53: 1160 | R53: 10405 | S53: =IFERROR(IF(C53="","",IF($C53="TOTAL",SUM($S$8:S52),IF(AND(C53>$AR$1,$AI$3=$AR$2),BW54,IF($AU$18=$AU$20,SUM(BJ54+BR54),ROUND((D53+E53)*10%,0))))),"") -> 2100 | T53: =IFERROR(IF(C53="","",IF(I53="","",IF(J53="","",IF($C53="TOTAL",SUM($T$8:T52),IF(AND(C53>$AR$1,$AI$3=$AR$2),BW54,IF($AU$18=$AU$20,$AU$21,ROUND((I53+J53)*10%,0))))))),"") -> 2100 | U53: 0 | V53: =IFERROR(IF(C53="","",IF($AU$16=$AU$17,0,IF($C53="TOTAL",SUM($V$8:V52),IF($AU$19=$AU$31,0,IF(AND($AU$32=$AU$20,C53=$AU$33),$AU$34,V52))))),"") -> 2100 | W53: =IFERROR(IF(C53="","",IF($AU$16=$AU$17,0,IF($C53="TOTAL",SUM($W$8:W52),IF($AU$19=$AU$20,$AU$24,0)))),"") -> 2100 | X53: 0 | Y53: =IFERROR(IF(C53="","",IF($AU$16=$AU$17,0,IF($C53="TOTAL",SUM($Y$8:Y52),BZ53))),"") -> 875 | Z53: =IFERROR(IF(C53="","",IF($AU$16=$AU$17,0,IF($C53="TOTAL",SUM($Z$8:Z52),BY53))),"") -> 875 | AA53: 0 | AB53: =IFERROR(IF(C53="","",IF(D53="","",IF($C53="TOTAL",SUM($AB$8:AB52),IF(C53=$AU$1,ROUND(D53*5/31,0.01),"")))),"") ->  | AC53: =IFERROR(IF(C53="","",IF(I53="","",IF($C53="TOTAL",SUM($AC$8:AC52),IF(C53=$AU$1,ROUND(I53*5/31,0.01),"")))),"") ->  | AE53: =IFERROR(IF(C53="","",IF(AND(BP54="",BW54=""),"",IF($C53="TOTAL",SUM($AE$8:AE52),BP54))),"") ->  | AF53: =IFERROR(IF(C53="","",IF($C53="TOTAL",SUM($AF$8:AF52),ROUND(R53*$AU$7%,0))),"") -> 0 | AG53: 0 | AH53: =IFERROR(IF(C53="","",IF($C53="TOTAL",SUM($AH$8:AH52),SUM(R53-AG53))),"") -> 10405 | AQ53: 38 | AR53: 38 | AT53: 2020-09-01 | AV53: 2022-12-01 | AX53: 2022-12-01 | AY53: 2022-12-01 | AZ53: 2022-12-01 | BA53: 113800 | BB53: 22760 | BC53: 51893 | BD53: 10242 | BF53: 108000 | BG53: 21600 | BH53: 49248 | BI53: 9720 | BJ53: 3675 | BM53: 10127 | BN53: 3675 | BQ53: 0 | BR53: 0 | BW53: 2100 | BY53: 875 | BZ53: =IF(AZ54="","",IF(AZ54="TOTAL","",IF($AU$16=$AU$17,0,IF(AND(AZ54>$BY$1,$AI$3=$AR$2,'Master Sheet'!$D$27>0),'Master Sheet'!$D$27,IF(AND(AZ54=$BY$1),IF($AU$9<18001,135,IF($AU$9<33501,220,IF($AU$9<54001,330,440))),IF(AND(AZ54>$BY$1),IF($AU$9<18001,265,IF($AU$9<33501,440,IF($AU$9<54001,658,875))),"")))))) -> 875
A54: 47 | B54: 47 | C54: 2023-02-01 | D54: =IFERROR(IF($C53="TOTAL","अक्षरें राशि :-",IF($C54="TOTAL",SUM($D$8:D53),IF(BA55="","",BA55))),"") -> 113800 | E54: =IFERROR(IF($C54="TOTAL",SUM($E$8:E53),IF(BC55="","",BC55)),"") -> 57355 | F54: =IFERROR(IF($C54="TOTAL",SUM($F$8:F53),IF(OR(C54=$AS$16,C54=$AS$17,C54=$AS$18,C54=$AS$19,C54=$AS$20,C54=$AS$21,C54=$AS$22,C54=$AS$23,C54=$AS$24),0,IF(BD55="","",BD55))),"") -> 10242 | G54: =IFERROR(IF($C54="TOTAL",SUM($G$8:G53),IF(BB55="","",BB55)),"") -> 22760 | H54: 204157 | I54: =IFERROR(IF($C54="TOTAL",SUM($I$8:I53),IF(BF55="","",BF55)),"") -> 108000 | J54: =IFERROR(IF($C54="TOTAL",SUM($J$8:J53),IF(BH55="","",BH55)),"") -> 54432 | K54: =IFERROR(IF($C54="TOTAL",SUM($K$8:K53),IF(OR(C54=$AS$16,C54=$AS$17,C54=$AS$18,C54=$AS$19,C54=$AS$20,C54=$AS$21,C54=$AS$22,C54=$AS$23,C54=$AS$24),0,IF(BI55="","",BI55))),"") -> 9720 | L54: =IFERROR(IF($C54="TOTAL",SUM($L$8:L53),IF(BG55="","",BG55)),"") -> 21600 | M54: 193752 | N54: =IFERROR(IF(C54="","",IF(D54="","",IF(I54="","",IF($C54="TOTAL",SUM($N$8:N53),SUM(D54-I54))))),"") -> 5800 | O54: =IFERROR(IF(C54="","",IF(E54="","",IF(J54="","",IF($C54="TOTAL",SUM($O$8:O53),SUM(E54-J54))))),"") -> 2923 | P54: =IFERROR(IF(C54="","",IF(F54="","",IF(K54="","",IF($C54="TOTAL",SUM($P$8:P53),SUM(F54-K54))))),"") -> 522 | Q54: 1160 | R54: 10405 | S54: =IFERROR(IF(C54="","",IF($C54="TOTAL",SUM($S$8:S53),IF(AND(C54>$AR$1,$AI$3=$AR$2),BW55,IF($AU$18=$AU$20,SUM(BJ55+BR55),ROUND((D54+E54)*10%,0))))),"") -> 2100 | T54: =IFERROR(IF(C54="","",IF(I54="","",IF(J54="","",IF($C54="TOTAL",SUM($T$8:T53),IF(AND(C54>$AR$1,$AI$3=$AR$2),BW55,IF($AU$18=$AU$20,$AU$21,ROUND((I54+J54)*10%,0))))))),"") -> 2100 | U54: 0 | V54: =IFERROR(IF(C54="","",IF($AU$16=$AU$17,0,IF($C54="TOTAL",SUM($V$8:V53),IF($AU$19=$AU$31,0,IF(AND($AU$32=$AU$20,C54=$AU$33),$AU$34,V53))))),"") -> 2100 | W54: =IFERROR(IF(C54="","",IF($AU$16=$AU$17,0,IF($C54="TOTAL",SUM($W$8:W53),IF($AU$19=$AU$20,$AU$24,0)))),"") -> 2100 | X54: 0 | Y54: =IFERROR(IF(C54="","",IF($AU$16=$AU$17,0,IF($C54="TOTAL",SUM($Y$8:Y53),BZ54))),"") -> 875 | Z54: =IFERROR(IF(C54="","",IF($AU$16=$AU$17,0,IF($C54="TOTAL",SUM($Z$8:Z53),BY54))),"") -> 875 | AA54: 0 | AB54: =IFERROR(IF(C54="","",IF(D54="","",IF($C54="TOTAL",SUM($AB$8:AB53),IF(C54=$AU$1,ROUND(D54*5/31,0.01),"")))),"") ->  | AC54: =IFERROR(IF(C54="","",IF(I54="","",IF($C54="TOTAL",SUM($AC$8:AC53),IF(C54=$AU$1,ROUND(I54*5/31,0.01),"")))),"") ->  | AE54: =IFERROR(IF(C54="","",IF(AND(BP55="",BW55=""),"",IF($C54="TOTAL",SUM($AE$8:AE53),BP55))),"") ->  | AF54: =IFERROR(IF(C54="","",IF($C54="TOTAL",SUM($AF$8:AF53),ROUND(R54*$AU$7%,0))),"") -> 0 | AG54: 0 | AH54: =IFERROR(IF(C54="","",IF($C54="TOTAL",SUM($AH$8:AH53),SUM(R54-AG54))),"") -> 10405 | AQ54: 42 | AR54: 42 | AT54: 2020-10-01 | AV54: 2023-01-01 | AX54: 2023-01-01 | AY54: 2023-01-01 | AZ54: 2023-01-01 | BA54: 113800 | BB54: 22760 | BC54: 57355 | BD54: 10242 | BF54: 108000 | BG54: 21600 | BH54: 54432 | BI54: 9720 | BJ54: 3675 | BM54: 10405 | BN54: 3675 | BQ54: 0 | BR54: 0 | BW54: 2100 | BY54: 875 | BZ54: =IF(AZ55="","",IF(AZ55="TOTAL","",IF($AU$16=$AU$17,0,IF(AND(AZ55>$BY$1,$AI$3=$AR$2,'Master Sheet'!$D$27>0),'Master Sheet'!$D$27,IF(AND(AZ55=$BY$1),IF($AU$9<18001,135,IF($AU$9<33501,220,IF($AU$9<54001,330,440))),IF(AND(AZ55>$BY$1),IF($AU$9<18001,265,IF($AU$9<33501,440,IF($AU$9<54001,658,875))),"")))))) -> 875
A55: 48 | B55: 48 | C55: 2023-03-01 | D55: =IFERROR(IF($C54="TOTAL","अक्षरें राशि :-",IF($C55="TOTAL",SUM($D$8:D54),IF(BA56="","",BA56))),"") -> 113800 | E55: =IFERROR(IF($C55="TOTAL",SUM($E$8:E54),IF(BC56="","",BC56)),"") -> 57355 | F55: =IFERROR(IF($C55="TOTAL",SUM($F$8:F54),IF(OR(C55=$AS$16,C55=$AS$17,C55=$AS$18,C55=$AS$19,C55=$AS$20,C55=$AS$21,C55=$AS$22,C55=$AS$23,C55=$AS$24),0,IF(BD56="","",BD56))),"") -> 10242 | G55: =IFERROR(IF($C55="TOTAL",SUM($G$8:G54),IF(BB56="","",BB56)),"") -> 22760 | H55: 204157 | I55: =IFERROR(IF($C55="TOTAL",SUM($I$8:I54),IF(BF56="","",BF56)),"") -> 108000 | J55: =IFERROR(IF($C55="TOTAL",SUM($J$8:J54),IF(BH56="","",BH56)),"") -> 54432 | K55: =IFERROR(IF($C55="TOTAL",SUM($K$8:K54),IF(OR(C55=$AS$16,C55=$AS$17,C55=$AS$18,C55=$AS$19,C55=$AS$20,C55=$AS$21,C55=$AS$22,C55=$AS$23,C55=$AS$24),0,IF(BI56="","",BI56))),"") -> 9720 | L55: =IFERROR(IF($C55="TOTAL",SUM($L$8:L54),IF(BG56="","",BG56)),"") -> 21600 | M55: 193752 | N55: =IFERROR(IF(C55="","",IF(D55="","",IF(I55="","",IF($C55="TOTAL",SUM($N$8:N54),SUM(D55-I55))))),"") -> 5800 | O55: =IFERROR(IF(C55="","",IF(E55="","",IF(J55="","",IF($C55="TOTAL",SUM($O$8:O54),SUM(E55-J55))))),"") -> 2923 | P55: =IFERROR(IF(C55="","",IF(F55="","",IF(K55="","",IF($C55="TOTAL",SUM($P$8:P54),SUM(F55-K55))))),"") -> 522 | Q55: 1160 | R55: 10405 | S55: =IFERROR(IF(C55="","",IF($C55="TOTAL",SUM($S$8:S54),IF(AND(C55>$AR$1,$AI$3=$AR$2),BW56,IF($AU$18=$AU$20,SUM(BJ56+BR56),ROUND((D55+E55)*10%,0))))),"") -> 2100 | T55: =IFERROR(IF(C55="","",IF(I55="","",IF(J55="","",IF($C55="TOTAL",SUM($T$8:T54),IF(AND(C55>$AR$1,$AI$3=$AR$2),BW56,IF($AU$18=$AU$20,$AU$21,ROUND((I55+J55)*10%,0))))))),"") -> 2100 | U55: 0 | V55: =IFERROR(IF(C55="","",IF($AU$16=$AU$17,0,IF($C55="TOTAL",SUM($V$8:V54),IF($AU$19=$AU$31,0,IF(AND($AU$32=$AU$20,C55=$AU$33),$AU$34,V54))))),"") -> 2100 | W55: =IFERROR(IF(C55="","",IF($AU$16=$AU$17,0,IF($C55="TOTAL",SUM($W$8:W54),IF($AU$19=$AU$20,$AU$24,0)))),"") -> 2100 | X55: 0 | Y55: =IFERROR(IF(C55="","",IF($AU$16=$AU$17,0,IF($C55="TOTAL",SUM($Y$8:Y54),BZ55))),"") -> 875 | Z55: =IFERROR(IF(C55="","",IF($AU$16=$AU$17,0,IF($C55="TOTAL",SUM($Z$8:Z54),BY55))),"") -> 875 | AA55: 0 | AB55: =IFERROR(IF(C55="","",IF(D55="","",IF($C55="TOTAL",SUM($AB$8:AB54),IF(C55=$AU$1,ROUND(D55*5/31,0.01),"")))),"") ->  | AC55: =IFERROR(IF(C55="","",IF(I55="","",IF($C55="TOTAL",SUM($AC$8:AC54),IF(C55=$AU$1,ROUND(I55*5/31,0.01),"")))),"") ->  | AE55: =IFERROR(IF(C55="","",IF(AND(BP56="",BW56=""),"",IF($C55="TOTAL",SUM($AE$8:AE54),BP56))),"") ->  | AF55: =IFERROR(IF(C55="","",IF($C55="TOTAL",SUM($AF$8:AF54),ROUND(R55*$AU$7%,0))),"") -> 0 | AG55: 0 | AH55: =IFERROR(IF(C55="","",IF($C55="TOTAL",SUM($AH$8:AH54),SUM(R55-AG55))),"") -> 10405 | AQ55: 42 | AR55: 42 | AT55: 2020-11-01 | AV55: 2023-02-01 | AX55: 2023-02-01 | AY55: 2023-02-01 | AZ55: 2023-02-01 | BA55: 113800 | BB55: 22760 | BC55: 57355 | BD55: 10242 | BF55: 108000 | BG55: 21600 | BH55: 54432 | BI55: 9720 | BJ55: 3675 | BM55: 10405 | BN55: 3675 | BQ55: 0 | BR55: 0 | BW55: 2100 | BY55: 875 | BZ55: =IF(AZ56="","",IF(AZ56="TOTAL","",IF($AU$16=$AU$17,0,IF(AND(AZ56>$BY$1,$AI$3=$AR$2,'Master Sheet'!$D$27>0),'Master Sheet'!$D$27,IF(AND(AZ56=$BY$1),IF($AU$9<18001,135,IF($AU$9<33501,220,IF($AU$9<54001,330,440))),IF(AND(AZ56>$BY$1),IF($AU$9<18001,265,IF($AU$9<33501,440,IF($AU$9<54001,658,875))),"")))))) -> 875
A56: 49 | B56: 49 | C56: 2023-04-01 | D56: =IFERROR(IF($C55="TOTAL","अक्षरें राशि :-",IF($C56="TOTAL",SUM($D$8:D55),IF(BA57="","",BA57))),"") -> 113800 | E56: =IFERROR(IF($C56="TOTAL",SUM($E$8:E55),IF(BC57="","",BC57)),"") -> 57355 | F56: =IFERROR(IF($C56="TOTAL",SUM($F$8:F55),IF(OR(C56=$AS$16,C56=$AS$17,C56=$AS$18,C56=$AS$19,C56=$AS$20,C56=$AS$21,C56=$AS$22,C56=$AS$23,C56=$AS$24),0,IF(BD57="","",BD57))),"") -> 10242 | G56: =IFERROR(IF($C56="TOTAL",SUM($G$8:G55),IF(BB57="","",BB57)),"") -> 22760 | H56: 204157 | I56: =IFERROR(IF($C56="TOTAL",SUM($I$8:I55),IF(BF57="","",BF57)),"") -> 108000 | J56: =IFERROR(IF($C56="TOTAL",SUM($J$8:J55),IF(BH57="","",BH57)),"") -> 54432 | K56: =IFERROR(IF($C56="TOTAL",SUM($K$8:K55),IF(OR(C56=$AS$16,C56=$AS$17,C56=$AS$18,C56=$AS$19,C56=$AS$20,C56=$AS$21,C56=$AS$22,C56=$AS$23,C56=$AS$24),0,IF(BI57="","",BI57))),"") -> 9720 | L56: =IFERROR(IF($C56="TOTAL",SUM($L$8:L55),IF(BG57="","",BG57)),"") -> 21600 | M56: 193752 | N56: =IFERROR(IF(C56="","",IF(D56="","",IF(I56="","",IF($C56="TOTAL",SUM($N$8:N55),SUM(D56-I56))))),"") -> 5800 | O56: =IFERROR(IF(C56="","",IF(E56="","",IF(J56="","",IF($C56="TOTAL",SUM($O$8:O55),SUM(E56-J56))))),"") -> 2923 | P56: =IFERROR(IF(C56="","",IF(F56="","",IF(K56="","",IF($C56="TOTAL",SUM($P$8:P55),SUM(F56-K56))))),"") -> 522 | Q56: 1160 | R56: 10405 | S56: =IFERROR(IF(C56="","",IF($C56="TOTAL",SUM($S$8:S55),IF(AND(C56>$AR$1,$AI$3=$AR$2),BW57,IF($AU$18=$AU$20,SUM(BJ57+BR57),ROUND((D56+E56)*10%,0))))),"") -> 2100 | T56: =IFERROR(IF(C56="","",IF(I56="","",IF(J56="","",IF($C56="TOTAL",SUM($T$8:T55),IF(AND(C56>$AR$1,$AI$3=$AR$2),BW57,IF($AU$18=$AU$20,$AU$21,ROUND((I56+J56)*10%,0))))))),"") -> 2100 | U56: 0 | V56: =IFERROR(IF(C56="","",IF($AU$16=$AU$17,0,IF($C56="TOTAL",SUM($V$8:V55),IF($AU$19=$AU$31,0,IF(AND($AU$32=$AU$20,C56=$AU$33),$AU$34,V55))))),"") -> 2100 | W56: =IFERROR(IF(C56="","",IF($AU$16=$AU$17,0,IF($C56="TOTAL",SUM($W$8:W55),IF($AU$19=$AU$20,$AU$24,0)))),"") -> 2100 | X56: 0 | Y56: =IFERROR(IF(C56="","",IF($AU$16=$AU$17,0,IF($C56="TOTAL",SUM($Y$8:Y55),BZ56))),"") -> 875 | Z56: =IFERROR(IF(C56="","",IF($AU$16=$AU$17,0,IF($C56="TOTAL",SUM($Z$8:Z55),BY56))),"") -> 875 | AA56: 0 | AB56: =IFERROR(IF(C56="","",IF(D56="","",IF($C56="TOTAL",SUM($AB$8:AB55),IF(C56=$AU$1,ROUND(D56*5/31,0.01),"")))),"") ->  | AC56: =IFERROR(IF(C56="","",IF(I56="","",IF($C56="TOTAL",SUM($AC$8:AC55),IF(C56=$AU$1,ROUND(I56*5/31,0.01),"")))),"") ->  | AE56: =IFERROR(IF(C56="","",IF(AND(BP57="",BW57=""),"",IF($C56="TOTAL",SUM($AE$8:AE55),BP57))),"") ->  | AF56: =IFERROR(IF(C56="","",IF($C56="TOTAL",SUM($AF$8:AF55),ROUND(R56*$AU$7%,0))),"") -> 0 | AG56: 0 | AH56: =IFERROR(IF(C56="","",IF($C56="TOTAL",SUM($AH$8:AH55),SUM(R56-AG56))),"") -> 10405 | AQ56: 42 | AR56: 42 | AT56: 2020-12-01 | AV56: 2023-03-01 | AX56: 2023-03-01 | AY56: 2023-03-01 | AZ56: 2023-03-01 | BA56: 113800 | BB56: 22760 | BC56: 57355 | BD56: 10242 | BF56: 108000 | BG56: 21600 | BH56: 54432 | BI56: 9720 | BJ56: 3675 | BM56: 10405 | BN56: 3675 | BQ56: 0 | BR56: 0 | BW56: 2100 | BY56: 875 | BZ56: =IF(AZ57="","",IF(AZ57="TOTAL","",IF($AU$16=$AU$17,0,IF(AND(AZ57>$BY$1,$AI$3=$AR$2,'Master Sheet'!$D$27>0),'Master Sheet'!$D$27,IF(AND(AZ57=$BY$1),IF($AU$9<18001,135,IF($AU$9<33501,220,IF($AU$9<54001,330,440))),IF(AND(AZ57>$BY$1),IF($AU$9<18001,265,IF($AU$9<33501,440,IF($AU$9<54001,658,875))),"")))))) -> 875
A57: 50 | B57: 50 | C57: 2023-05-01 | D57: =IFERROR(IF($C56="TOTAL","अक्षरें राशि :-",IF($C57="TOTAL",SUM($D$8:D56),IF(BA58="","",BA58))),"") -> 113800 | E57: =IFERROR(IF($C57="TOTAL",SUM($E$8:E56),IF(BC58="","",BC58)),"") -> 57355 | F57: =IFERROR(IF($C57="TOTAL",SUM($F$8:F56),IF(OR(C57=$AS$16,C57=$AS$17,C57=$AS$18,C57=$AS$19,C57=$AS$20,C57=$AS$21,C57=$AS$22,C57=$AS$23,C57=$AS$24),0,IF(BD58="","",BD58))),"") -> 10242 | G57: =IFERROR(IF($C57="TOTAL",SUM($G$8:G56),IF(BB58="","",BB58)),"") -> 22760 | H57: 204157 | I57: =IFERROR(IF($C57="TOTAL",SUM($I$8:I56),IF(BF58="","",BF58)),"") -> 108000 | J57: =IFERROR(IF($C57="TOTAL",SUM($J$8:J56),IF(BH58="","",BH58)),"") -> 54432 | K57: =IFERROR(IF($C57="TOTAL",SUM($K$8:K56),IF(OR(C57=$AS$16,C57=$AS$17,C57=$AS$18,C57=$AS$19,C57=$AS$20,C57=$AS$21,C57=$AS$22,C57=$AS$23,C57=$AS$24),0,IF(BI58="","",BI58))),"") -> 9720 | L57: =IFERROR(IF($C57="TOTAL",SUM($L$8:L56),IF(BG58="","",BG58)),"") -> 21600 | M57: 193752 | N57: =IFERROR(IF(C57="","",IF(D57="","",IF(I57="","",IF($C57="TOTAL",SUM($N$8:N56),SUM(D57-I57))))),"") -> 5800 | O57: =IFERROR(IF(C57="","",IF(E57="","",IF(J57="","",IF($C57="TOTAL",SUM($O$8:O56),SUM(E57-J57))))),"") -> 2923 | P57: =IFERROR(IF(C57="","",IF(F57="","",IF(K57="","",IF($C57="TOTAL",SUM($P$8:P56),SUM(F57-K57))))),"") -> 522 | Q57: 1160 | R57: 10405 | S57: =IFERROR(IF(C57="","",IF($C57="TOTAL",SUM($S$8:S56),IF(AND(C57>$AR$1,$AI$3=$AR$2),BW58,IF($AU$18=$AU$20,SUM(BJ58+BR58),ROUND((D57+E57)*10%,0))))),"") -> 2100 | T57: =IFERROR(IF(C57="","",IF(I57="","",IF(J57="","",IF($C57="TOTAL",SUM($T$8:T56),IF(AND(C57>$AR$1,$AI$3=$AR$2),BW58,IF($AU$18=$AU$20,$AU$21,ROUND((I57+J57)*10%,0))))))),"") -> 2100 | U57: 0 | V57: =IFERROR(IF(C57="","",IF($AU$16=$AU$17,0,IF($C57="TOTAL",SUM($V$8:V56),IF($AU$19=$AU$31,0,IF(AND($AU$32=$AU$20,C57=$AU$33),$AU$34,V56))))),"") -> 2100 | W57: =IFERROR(IF(C57="","",IF($AU$16=$AU$17,0,IF($C57="TOTAL",SUM($W$8:W56),IF($AU$19=$AU$20,$AU$24,0)))),"") -> 2100 | X57: 0 | Y57: =IFERROR(IF(C57="","",IF($AU$16=$AU$17,0,IF($C57="TOTAL",SUM($Y$8:Y56),BZ57))),"") -> 875 | Z57: =IFERROR(IF(C57="","",IF($AU$16=$AU$17,0,IF($C57="TOTAL",SUM($Z$8:Z56),BY57))),"") -> 875 | AA57: 0 | AB57: =IFERROR(IF(C57="","",IF(D57="","",IF($C57="TOTAL",SUM($AB$8:AB56),IF(C57=$AU$1,ROUND(D57*5/31,0.01),"")))),"") ->  | AC57: =IFERROR(IF(C57="","",IF(I57="","",IF($C57="TOTAL",SUM($AC$8:AC56),IF(C57=$AU$1,ROUND(I57*5/31,0.01),"")))),"") ->  | AE57: =IFERROR(IF(C57="","",IF(AND(BP58="",BW58=""),"",IF($C57="TOTAL",SUM($AE$8:AE56),BP58))),"") ->  | AF57: =IFERROR(IF(C57="","",IF($C57="TOTAL",SUM($AF$8:AF56),ROUND(R57*$AU$7%,0))),"") -> 0 | AG57: 0 | AH57: =IFERROR(IF(C57="","",IF($C57="TOTAL",SUM($AH$8:AH56),SUM(R57-AG57))),"") -> 10405 | AQ57: 42 | AR57: 42 | AT57: 2021-01-01 | AV57: 2023-04-01 | AX57: 2023-04-01 | AY57: 2023-04-01 | AZ57: 2023-04-01 | BA57: 113800 | BB57: 22760 | BC57: 57355 | BD57: 10242 | BF57: 108000 | BG57: 21600 | BH57: 54432 | BI57: 9720 | BJ57: 3675 | BM57: 10405 | BN57: 3675 | BQ57: 0 | BR57: 0 | BW57: 2100 | BY57: 875 | BZ57: =IF(AZ58="","",IF(AZ58="TOTAL","",IF($AU$16=$AU$17,0,IF(AND(AZ58>$BY$1,$AI$3=$AR$2,'Master Sheet'!$D$27>0),'Master Sheet'!$D$27,IF(AND(AZ58=$BY$1),IF($AU$9<18001,135,IF($AU$9<33501,220,IF($AU$9<54001,330,440))),IF(AND(AZ58>$BY$1),IF($AU$9<18001,265,IF($AU$9<33501,440,IF($AU$9<54001,658,875))),"")))))) -> 875
A58: 51 | B58: 51 | C58: 2023-06-01 | D58: =IFERROR(IF($C57="TOTAL","अक्षरें राशि :-",IF($C58="TOTAL",SUM($D$8:D57),IF(BA59="","",BA59))),"") -> 113800 | E58: =IFERROR(IF($C58="TOTAL",SUM($E$8:E57),IF(BC59="","",BC59)),"") -> 57355 | F58: =IFERROR(IF($C58="TOTAL",SUM($F$8:F57),IF(OR(C58=$AS$16,C58=$AS$17,C58=$AS$18,C58=$AS$19,C58=$AS$20,C58=$AS$21,C58=$AS$22,C58=$AS$23,C58=$AS$24),0,IF(BD59="","",BD59))),"") -> 10242 | G58: =IFERROR(IF($C58="TOTAL",SUM($G$8:G57),IF(BB59="","",BB59)),"") -> 22760 | H58: 204157 | I58: =IFERROR(IF($C58="TOTAL",SUM($I$8:I57),IF(BF59="","",BF59)),"") -> 108000 | J58: =IFERROR(IF($C58="TOTAL",SUM($J$8:J57),IF(BH59="","",BH59)),"") -> 54432 | K58: =IFERROR(IF($C58="TOTAL",SUM($K$8:K57),IF(OR(C58=$AS$16,C58=$AS$17,C58=$AS$18,C58=$AS$19,C58=$AS$20,C58=$AS$21,C58=$AS$22,C58=$AS$23,C58=$AS$24),0,IF(BI59="","",BI59))),"") -> 9720 | L58: =IFERROR(IF($C58="TOTAL",SUM($L$8:L57),IF(BG59="","",BG59)),"") -> 21600 | M58: 193752 | N58: =IFERROR(IF(C58="","",IF(D58="","",IF(I58="","",IF($C58="TOTAL",SUM($N$8:N57),SUM(D58-I58))))),"") -> 5800 | O58: =IFERROR(IF(C58="","",IF(E58="","",IF(J58="","",IF($C58="TOTAL",SUM($O$8:O57),SUM(E58-J58))))),"") -> 2923 | P58: =IFERROR(IF(C58="","",IF(F58="","",IF(K58="","",IF($C58="TOTAL",SUM($P$8:P57),SUM(F58-K58))))),"") -> 522 | Q58: 1160 | R58: 10405 | S58: =IFERROR(IF(C58="","",IF($C58="TOTAL",SUM($S$8:S57),IF(AND(C58>$AR$1,$AI$3=$AR$2),BW59,IF($AU$18=$AU$20,SUM(BJ59+BR59),ROUND((D58+E58)*10%,0))))),"") -> 2100 | T58: =IFERROR(IF(C58="","",IF(I58="","",IF(J58="","",IF($C58="TOTAL",SUM($T$8:T57),IF(AND(C58>$AR$1,$AI$3=$AR$2),BW59,IF($AU$18=$AU$20,$AU$21,ROUND((I58+J58)*10%,0))))))),"") -> 2100 | U58: 0 | V58: =IFERROR(IF(C58="","",IF($AU$16=$AU$17,0,IF($C58="TOTAL",SUM($V$8:V57),IF($AU$19=$AU$31,0,IF(AND($AU$32=$AU$20,C58=$AU$33),$AU$34,V57))))),"") -> 2100 | W58: =IFERROR(IF(C58="","",IF($AU$16=$AU$17,0,IF($C58="TOTAL",SUM($W$8:W57),IF($AU$19=$AU$20,$AU$24,0)))),"") -> 2100 | X58: 0 | Y58: =IFERROR(IF(C58="","",IF($AU$16=$AU$17,0,IF($C58="TOTAL",SUM($Y$8:Y57),BZ58))),"") -> 875 | Z58: =IFERROR(IF(C58="","",IF($AU$16=$AU$17,0,IF($C58="TOTAL",SUM($Z$8:Z57),BY58))),"") -> 875 | AA58: 0 | AB58: =IFERROR(IF(C58="","",IF(D58="","",IF($C58="TOTAL",SUM($AB$8:AB57),IF(C58=$AU$1,ROUND(D58*5/31,0.01),"")))),"") ->  | AC58: =IFERROR(IF(C58="","",IF(I58="","",IF($C58="TOTAL",SUM($AC$8:AC57),IF(C58=$AU$1,ROUND(I58*5/31,0.01),"")))),"") ->  | AE58: =IFERROR(IF(C58="","",IF(AND(BP59="",BW59=""),"",IF($C58="TOTAL",SUM($AE$8:AE57),BP59))),"") ->  | AF58: =IFERROR(IF(C58="","",IF($C58="TOTAL",SUM($AF$8:AF57),ROUND(R58*$AU$7%,0))),"") -> 0 | AG58: 0 | AH58: =IFERROR(IF(C58="","",IF($C58="TOTAL",SUM($AH$8:AH57),SUM(R58-AG58))),"") -> 10405 | AQ58: 42 | AR58: 42 | AT58: 2021-02-01 | AV58: 2023-05-01 | AX58: 2023-05-01 | AY58: 2023-05-01 | AZ58: 2023-05-01 | BA58: 113800 | BB58: 22760 | BC58: 57355 | BD58: 10242 | BF58: 108000 | BG58: 21600 | BH58: 54432 | BI58: 9720 | BJ58: 3675 | BM58: 10405 | BN58: 3675 | BQ58: 0 | BR58: 0 | BW58: 2100 | BY58: 875 | BZ58: =IF(AZ59="","",IF(AZ59="TOTAL","",IF($AU$16=$AU$17,0,IF(AND(AZ59>$BY$1,$AI$3=$AR$2,'Master Sheet'!$D$27>0),'Master Sheet'!$D$27,IF(AND(AZ59=$BY$1),IF($AU$9<18001,135,IF($AU$9<33501,220,IF($AU$9<54001,330,440))),IF(AND(AZ59>$BY$1),IF($AU$9<18001,265,IF($AU$9<33501,440,IF($AU$9<54001,658,875))),"")))))) -> 875
A59: 52 | B59: 52 | C59: 2023-07-01 | D59: =IFERROR(IF($C58="TOTAL","अक्षरें राशि :-",IF($C59="TOTAL",SUM($D$8:D58),IF(BA60="","",BA60))),"") -> 117200 | E59: =IFERROR(IF($C59="TOTAL",SUM($E$8:E58),IF(BC60="","",BC60)),"") -> 59069 | F59: =IFERROR(IF($C59="TOTAL",SUM($F$8:F58),IF(OR(C59=$AS$16,C59=$AS$17,C59=$AS$18,C59=$AS$19,C59=$AS$20,C59=$AS$21,C59=$AS$22,C59=$AS$23,C59=$AS$24),0,IF(BD60="","",BD60))),"") -> 10548 | G59: =IFERROR(IF($C59="TOTAL",SUM($G$8:G58),IF(BB60="","",BB60)),"") -> 23440 | H59: 210257 | I59: =IFERROR(IF($C59="TOTAL",SUM($I$8:I58),IF(BF60="","",BF60)),"") -> 111200 | J59: =IFERROR(IF($C59="TOTAL",SUM($J$8:J58),IF(BH60="","",BH60)),"") -> 56045 | K59: =IFERROR(IF($C59="TOTAL",SUM($K$8:K58),IF(OR(C59=$AS$16,C59=$AS$17,C59=$AS$18,C59=$AS$19,C59=$AS$20,C59=$AS$21,C59=$AS$22,C59=$AS$23,C59=$AS$24),0,IF(BI60="","",BI60))),"") -> 10008 | L59: =IFERROR(IF($C59="TOTAL",SUM($L$8:L58),IF(BG60="","",BG60)),"") -> 22240 | M59: 199493 | N59: =IFERROR(IF(C59="","",IF(D59="","",IF(I59="","",IF($C59="TOTAL",SUM($N$8:N58),SUM(D59-I59))))),"") -> 6000 | O59: =IFERROR(IF(C59="","",IF(E59="","",IF(J59="","",IF($C59="TOTAL",SUM($O$8:O58),SUM(E59-J59))))),"") -> 3024 | P59: =IFERROR(IF(C59="","",IF(F59="","",IF(K59="","",IF($C59="TOTAL",SUM($P$8:P58),SUM(F59-K59))))),"") -> 540 | Q59: 1200 | R59: 10764 | S59: =IFERROR(IF(C59="","",IF($C59="TOTAL",SUM($S$8:S58),IF(AND(C59>$AR$1,$AI$3=$AR$2),BW60,IF($AU$18=$AU$20,SUM(BJ60+BR60),ROUND((D59+E59)*10%,0))))),"") -> 2100 | T59: =IFERROR(IF(C59="","",IF(I59="","",IF(J59="","",IF($C59="TOTAL",SUM($T$8:T58),IF(AND(C59>$AR$1,$AI$3=$AR$2),BW60,IF($AU$18=$AU$20,$AU$21,ROUND((I59+J59)*10%,0))))))),"") -> 2100 | U59: 0 | V59: =IFERROR(IF(C59="","",IF($AU$16=$AU$17,0,IF($C59="TOTAL",SUM($V$8:V58),IF($AU$19=$AU$31,0,IF(AND($AU$32=$AU$20,C59=$AU$33),$AU$34,V58))))),"") -> 2100 | W59: =IFERROR(IF(C59="","",IF($AU$16=$AU$17,0,IF($C59="TOTAL",SUM($W$8:W58),IF($AU$19=$AU$20,$AU$24,0)))),"") -> 2100 | X59: 0 | Y59: =IFERROR(IF(C59="","",IF($AU$16=$AU$17,0,IF($C59="TOTAL",SUM($Y$8:Y58),BZ59))),"") -> 875 | Z59: =IFERROR(IF(C59="","",IF($AU$16=$AU$17,0,IF($C59="TOTAL",SUM($Z$8:Z58),BY59))),"") -> 875 | AA59: 0 | AB59: =IFERROR(IF(C59="","",IF(D59="","",IF($C59="TOTAL",SUM($AB$8:AB58),IF(C59=$AU$1,ROUND(D59*5/31,0.01),"")))),"") ->  | AC59: =IFERROR(IF(C59="","",IF(I59="","",IF($C59="TOTAL",SUM($AC$8:AC58),IF(C59=$AU$1,ROUND(I59*5/31,0.01),"")))),"") ->  | AE59: =IFERROR(IF(C59="","",IF(AND(BP60="",BW60=""),"",IF($C59="TOTAL",SUM($AE$8:AE58),BP60))),"") ->  | AF59: =IFERROR(IF(C59="","",IF($C59="TOTAL",SUM($AF$8:AF58),ROUND(R59*$AU$7%,0))),"") -> 0 | AG59: 0 | AH59: =IFERROR(IF(C59="","",IF($C59="TOTAL",SUM($AH$8:AH58),SUM(R59-AG59))),"") -> 10764 | AQ59: 42 | AR59: 42 | AT59: 2021-03-01 | AV59: 2023-06-01 | AX59: 2023-06-01 | AY59: 2023-06-01 | AZ59: 2023-06-01 | BA59: 113800 | BB59: 22760 | BC59: 57355 | BD59: 10242 | BF59: 108000 | BG59: 21600 | BH59: 54432 | BI59: 9720 | BJ59: 3675 | BM59: 10405 | BN59: 3675 | BQ59: 0 | BR59: 0 | BW59: 2100 | BY59: 875 | BZ59: =IF(AZ60="","",IF(AZ60="TOTAL","",IF($AU$16=$AU$17,0,IF(AND(AZ60>$BY$1,$AI$3=$AR$2,'Master Sheet'!$D$27>0),'Master Sheet'!$D$27,IF(AND(AZ60=$BY$1),IF($AU$9<18001,135,IF($AU$9<33501,220,IF($AU$9<54001,330,440))),IF(AND(AZ60>$BY$1),IF($AU$9<18001,265,IF($AU$9<33501,440,IF($AU$9<54001,658,875))),"")))))) -> 875
A60: 53 | B60: 53 | C60: 2023-08-01 | D60: =IFERROR(IF($C59="TOTAL","अक्षरें राशि :-",IF($C60="TOTAL",SUM($D$8:D59),IF(BA61="","",BA61))),"") -> 117200 | E60: =IFERROR(IF($C60="TOTAL",SUM($E$8:E59),IF(BC61="","",BC61)),"") -> 59069 | F60: =IFERROR(IF($C60="TOTAL",SUM($F$8:F59),IF(OR(C60=$AS$16,C60=$AS$17,C60=$AS$18,C60=$AS$19,C60=$AS$20,C60=$AS$21,C60=$AS$22,C60=$AS$23,C60=$AS$24),0,IF(BD61="","",BD61))),"") -> 10548 | G60: =IFERROR(IF($C60="TOTAL",SUM($G$8:G59),IF(BB61="","",BB61)),"") -> 23440 | H60: 210257 | I60: =IFERROR(IF($C60="TOTAL",SUM($I$8:I59),IF(BF61="","",BF61)),"") -> 111200 | J60: =IFERROR(IF($C60="TOTAL",SUM($J$8:J59),IF(BH61="","",BH61)),"") -> 56045 | K60: =IFERROR(IF($C60="TOTAL",SUM($K$8:K59),IF(OR(C60=$AS$16,C60=$AS$17,C60=$AS$18,C60=$AS$19,C60=$AS$20,C60=$AS$21,C60=$AS$22,C60=$AS$23,C60=$AS$24),0,IF(BI61="","",BI61))),"") -> 10008 | L60: =IFERROR(IF($C60="TOTAL",SUM($L$8:L59),IF(BG61="","",BG61)),"") -> 22240 | M60: 199493 | N60: =IFERROR(IF(C60="","",IF(D60="","",IF(I60="","",IF($C60="TOTAL",SUM($N$8:N59),SUM(D60-I60))))),"") -> 6000 | O60: =IFERROR(IF(C60="","",IF(E60="","",IF(J60="","",IF($C60="TOTAL",SUM($O$8:O59),SUM(E60-J60))))),"") -> 3024 | P60: =IFERROR(IF(C60="","",IF(F60="","",IF(K60="","",IF($C60="TOTAL",SUM($P$8:P59),SUM(F60-K60))))),"") -> 540 | Q60: 1200 | R60: 10764 | S60: =IFERROR(IF(C60="","",IF($C60="TOTAL",SUM($S$8:S59),IF(AND(C60>$AR$1,$AI$3=$AR$2),BW61,IF($AU$18=$AU$20,SUM(BJ61+BR61),ROUND((D60+E60)*10%,0))))),"") -> 2100 | T60: =IFERROR(IF(C60="","",IF(I60="","",IF(J60="","",IF($C60="TOTAL",SUM($T$8:T59),IF(AND(C60>$AR$1,$AI$3=$AR$2),BW61,IF($AU$18=$AU$20,$AU$21,ROUND((I60+J60)*10%,0))))))),"") -> 2100 | U60: 0 | V60: =IFERROR(IF(C60="","",IF($AU$16=$AU$17,0,IF($C60="TOTAL",SUM($V$8:V59),IF($AU$19=$AU$31,0,IF(AND($AU$32=$AU$20,C60=$AU$33),$AU$34,V59))))),"") -> 2100 | W60: =IFERROR(IF(C60="","",IF($AU$16=$AU$17,0,IF($C60="TOTAL",SUM($W$8:W59),IF($AU$19=$AU$20,$AU$24,0)))),"") -> 2100 | X60: 0 | Y60: =IFERROR(IF(C60="","",IF($AU$16=$AU$17,0,IF($C60="TOTAL",SUM($Y$8:Y59),BZ60))),"") -> 875 | Z60: =IFERROR(IF(C60="","",IF($AU$16=$AU$17,0,IF($C60="TOTAL",SUM($Z$8:Z59),BY60))),"") -> 875 | AA60: 0 | AB60: =IFERROR(IF(C60="","",IF(D60="","",IF($C60="TOTAL",SUM($AB$8:AB59),IF(C60=$AU$1,ROUND(D60*5/31,0.01),"")))),"") ->  | AC60: =IFERROR(IF(C60="","",IF(I60="","",IF($C60="TOTAL",SUM($AC$8:AC59),IF(C60=$AU$1,ROUND(I60*5/31,0.01),"")))),"") ->  | AE60: =IFERROR(IF(C60="","",IF(AND(BP61="",BW61=""),"",IF($C60="TOTAL",SUM($AE$8:AE59),BP61))),"") ->  | AF60: =IFERROR(IF(C60="","",IF($C60="TOTAL",SUM($AF$8:AF59),ROUND(R60*$AU$7%,0))),"") -> 0 | AG60: 0 | AH60: =IFERROR(IF(C60="","",IF($C60="TOTAL",SUM($AH$8:AH59),SUM(R60-AG60))),"") -> 10764 | AQ60: 42 | AR60: 42 | AT60: 2021-04-01 | AV60: 2023-07-01 | AX60: 2023-07-01 | AY60: 2023-07-01 | AZ60: 2023-07-01 | BA60: 117200 | BB60: 23440 | BC60: 59069 | BD60: 10548 | BF60: 111200 | BG60: 22240 | BH60: 56045 | BI60: 10008 | BJ60: 3675 | BM60: 10764 | BN60: 3675 | BQ60: 0 | BR60: 0 | BW60: 2100 | BY60: 875 | BZ60: =IF(AZ61="","",IF(AZ61="TOTAL","",IF($AU$16=$AU$17,0,IF(AND(AZ61>$BY$1,$AI$3=$AR$2,'Master Sheet'!$D$27>0),'Master Sheet'!$D$27,IF(AND(AZ61=$BY$1),IF($AU$9<18001,135,IF($AU$9<33501,220,IF($AU$9<54001,330,440))),IF(AND(AZ61>$BY$1),IF($AU$9<18001,265,IF($AU$9<33501,440,IF($AU$9<54001,658,875))),"")))))) -> 875
A61: 54 | B61: 54 | C61: 2023-09-01 | D61: =IFERROR(IF($C60="TOTAL","अक्षरें राशि :-",IF($C61="TOTAL",SUM($D$8:D60),IF(BA62="","",BA62))),"") -> 117200 | E61: =IFERROR(IF($C61="TOTAL",SUM($E$8:E60),IF(BC62="","",BC62)),"") -> 59069 | F61: =IFERROR(IF($C61="TOTAL",SUM($F$8:F60),IF(OR(C61=$AS$16,C61=$AS$17,C61=$AS$18,C61=$AS$19,C61=$AS$20,C61=$AS$21,C61=$AS$22,C61=$AS$23,C61=$AS$24),0,IF(BD62="","",BD62))),"") -> 10548 | G61: =IFERROR(IF($C61="TOTAL",SUM($G$8:G60),IF(BB62="","",BB62)),"") -> 23440 | H61: 210257 | I61: =IFERROR(IF($C61="TOTAL",SUM($I$8:I60),IF(BF62="","",BF62)),"") -> 111200 | J61: =IFERROR(IF($C61="TOTAL",SUM($J$8:J60),IF(BH62="","",BH62)),"") -> 56045 | K61: =IFERROR(IF($C61="TOTAL",SUM($K$8:K60),IF(OR(C61=$AS$16,C61=$AS$17,C61=$AS$18,C61=$AS$19,C61=$AS$20,C61=$AS$21,C61=$AS$22,C61=$AS$23,C61=$AS$24),0,IF(BI62="","",BI62))),"") -> 10008 | L61: =IFERROR(IF($C61="TOTAL",SUM($L$8:L60),IF(BG62="","",BG62)),"") -> 22240 | M61: 199493 | N61: =IFERROR(IF(C61="","",IF(D61="","",IF(I61="","",IF($C61="TOTAL",SUM($N$8:N60),SUM(D61-I61))))),"") -> 6000 | O61: =IFERROR(IF(C61="","",IF(E61="","",IF(J61="","",IF($C61="TOTAL",SUM($O$8:O60),SUM(E61-J61))))),"") -> 3024 | P61: =IFERROR(IF(C61="","",IF(F61="","",IF(K61="","",IF($C61="TOTAL",SUM($P$8:P60),SUM(F61-K61))))),"") -> 540 | Q61: 1200 | R61: 10764 | S61: =IFERROR(IF(C61="","",IF($C61="TOTAL",SUM($S$8:S60),IF(AND(C61>$AR$1,$AI$3=$AR$2),BW62,IF($AU$18=$AU$20,SUM(BJ62+BR62),ROUND((D61+E61)*10%,0))))),"") -> 2100 | T61: =IFERROR(IF(C61="","",IF(I61="","",IF(J61="","",IF($C61="TOTAL",SUM($T$8:T60),IF(AND(C61>$AR$1,$AI$3=$AR$2),BW62,IF($AU$18=$AU$20,$AU$21,ROUND((I61+J61)*10%,0))))))),"") -> 2100 | U61: 0 | V61: =IFERROR(IF(C61="","",IF($AU$16=$AU$17,0,IF($C61="TOTAL",SUM($V$8:V60),IF($AU$19=$AU$31,0,IF(AND($AU$32=$AU$20,C61=$AU$33),$AU$34,V60))))),"") -> 2100 | W61: =IFERROR(IF(C61="","",IF($AU$16=$AU$17,0,IF($C61="TOTAL",SUM($W$8:W60),IF($AU$19=$AU$20,$AU$24,0)))),"") -> 2100 | X61: 0 | Y61: =IFERROR(IF(C61="","",IF($AU$16=$AU$17,0,IF($C61="TOTAL",SUM($Y$8:Y60),BZ61))),"") -> 875 | Z61: =IFERROR(IF(C61="","",IF($AU$16=$AU$17,0,IF($C61="TOTAL",SUM($Z$8:Z60),BY61))),"") -> 875 | AA61: 0 | AB61: =IFERROR(IF(C61="","",IF(D61="","",IF($C61="TOTAL",SUM($AB$8:AB60),IF(C61=$AU$1,ROUND(D61*5/31,0.01),"")))),"") ->  | AC61: =IFERROR(IF(C61="","",IF(I61="","",IF($C61="TOTAL",SUM($AC$8:AC60),IF(C61=$AU$1,ROUND(I61*5/31,0.01),"")))),"") ->  | AE61: =IFERROR(IF(C61="","",IF(AND(BP62="",BW62=""),"",IF($C61="TOTAL",SUM($AE$8:AE60),BP62))),"") ->  | AF61: =IFERROR(IF(C61="","",IF($C61="TOTAL",SUM($AF$8:AF60),ROUND(R61*$AU$7%,0))),"") -> 0 | AG61: 0 | AH61: =IFERROR(IF(C61="","",IF($C61="TOTAL",SUM($AH$8:AH60),SUM(R61-AG61))),"") -> 10764 | AQ61: 42 | AR61: 42 | AT61: 2021-05-01 | AV61: 2023-08-01 | AX61: 2023-08-01 | AY61: 2023-08-01 | AZ61: 2023-08-01 | BA61: 117200 | BB61: 23440 | BC61: 59069 | BD61: 10548 | BF61: 111200 | BG61: 22240 | BH61: 56045 | BI61: 10008 | BJ61: 3675 | BM61: 10764 | BN61: 3675 | BQ61: 0 | BR61: 0 | BT61: =SUM(ROUND(D62*34%,0))-SUM(ROUND(D62*31%,0)) -> 3516 | BW61: 2100 | BY61: 875 | BZ61: =IF(AZ62="","",IF(AZ62="TOTAL","",IF($AU$16=$AU$17,0,IF(AND(AZ62>$BY$1,$AI$3=$AR$2,'Master Sheet'!$D$27>0),'Master Sheet'!$D$27,IF(AND(AZ62=$BY$1),IF($AU$9<18001,135,IF($AU$9<33501,220,IF($AU$9<54001,330,440))),IF(AND(AZ62>$BY$1),IF($AU$9<18001,265,IF($AU$9<33501,440,IF($AU$9<54001,658,875))),"")))))) -> 875
A62: 55 | B62: 55 | C62: 2023-10-01 | D62: =IFERROR(IF($C61="TOTAL","अक्षरें राशि :-",IF($C62="TOTAL",SUM($D$8:D61),IF(BA63="","",BA63))),"") -> 117200 | E62: =IFERROR(IF($C62="TOTAL",SUM($E$8:E61),IF(BC63="","",BC63)),"") -> 59069 | F62: =IFERROR(IF($C62="TOTAL",SUM($F$8:F61),IF(OR(C62=$AS$16,C62=$AS$17,C62=$AS$18,C62=$AS$19,C62=$AS$20,C62=$AS$21,C62=$AS$22,C62=$AS$23,C62=$AS$24),0,IF(BD63="","",BD63))),"") -> 10548 | G62: =IFERROR(IF($C62="TOTAL",SUM($G$8:G61),IF(BB63="","",BB63)),"") -> 23440 | H62: 210257 | I62: =IFERROR(IF($C62="TOTAL",SUM($I$8:I61),IF(BF63="","",BF63)),"") -> 111200 | J62: =IFERROR(IF($C62="TOTAL",SUM($J$8:J61),IF(BH63="","",BH63)),"") -> 56045 | K62: =IFERROR(IF($C62="TOTAL",SUM($K$8:K61),IF(OR(C62=$AS$16,C62=$AS$17,C62=$AS$18,C62=$AS$19,C62=$AS$20,C62=$AS$21,C62=$AS$22,C62=$AS$23,C62=$AS$24),0,IF(BI63="","",BI63))),"") -> 10008 | L62: =IFERROR(IF($C62="TOTAL",SUM($L$8:L61),IF(BG63="","",BG63)),"") -> 22240 | M62: 199493 | N62: =IFERROR(IF(C62="","",IF(D62="","",IF(I62="","",IF($C62="TOTAL",SUM($N$8:N61),SUM(D62-I62))))),"") -> 6000 | O62: =IFERROR(IF(C62="","",IF(E62="","",IF(J62="","",IF($C62="TOTAL",SUM($O$8:O61),SUM(E62-J62))))),"") -> 3024 | P62: =IFERROR(IF(C62="","",IF(F62="","",IF(K62="","",IF($C62="TOTAL",SUM($P$8:P61),SUM(F62-K62))))),"") -> 540 | Q62: 1200 | R62: 10764 | S62: =IFERROR(IF(C62="","",IF($C62="TOTAL",SUM($S$8:S61),IF(AND(C62>$AR$1,$AI$3=$AR$2),BW63,IF($AU$18=$AU$20,SUM(BJ63+BR63),ROUND((D62+E62)*10%,0))))),"") -> 2100 | T62: =IFERROR(IF(C62="","",IF(I62="","",IF(J62="","",IF($C62="TOTAL",SUM($T$8:T61),IF(AND(C62>$AR$1,$AI$3=$AR$2),BW63,IF($AU$18=$AU$20,$AU$21,ROUND((I62+J62)*10%,0))))))),"") -> 2100 | U62: =IFERROR(IF(C62="","",SUM(S62-T62)),"") -> 0 | V62: =IFERROR(IF(C62="","",IF($AU$16=$AU$17,0,IF($C62="TOTAL",SUM($V$8:V61),IF($AU$19=$AU$31,0,IF(AND($AU$32=$AU$20,C62=$AU$33),$AU$34,V61))))),"") -> 2100 | W62: =IFERROR(IF(C62="","",IF($AU$16=$AU$17,0,IF($C62="TOTAL",SUM($W$8:W61),IF($AU$19=$AU$20,$AU$24,0)))),"") -> 2100 | X62: 0 | Y62: =IFERROR(IF(C62="","",IF($AU$16=$AU$17,0,IF($C62="TOTAL",SUM($Y$8:Y61),BZ62))),"") -> 875 | Z62: =IFERROR(IF(C62="","",IF($AU$16=$AU$17,0,IF($C62="TOTAL",SUM($Z$8:Z61),BY62))),"") -> 875 | AA62: 0 | AB62: =IFERROR(IF(C62="","",IF(D62="","",IF($C62="TOTAL",SUM($AB$8:AB61),IF(C62=$AU$1,ROUND(D62*5/31,0.01),"")))),"") ->  | AC62: =IFERROR(IF(C62="","",IF(I62="","",IF($C62="TOTAL",SUM($AC$8:AC61),IF(C62=$AU$1,ROUND(I62*5/31,0.01),"")))),"") ->  | AE62: =IFERROR(IF(C62="","",IF(AND(BP63="",BW63=""),"",IF($C62="TOTAL",SUM($AE$8:AE61),BP63))),"") ->  | AF62: =IFERROR(IF(C62="","",IF($C62="TOTAL",SUM($AF$8:AF61),ROUND(R62*$AU$7%,0))),"") -> 0 | AG62: 0 | AH62: =IFERROR(IF(C62="","",IF($C62="TOTAL",SUM($AH$8:AH61),SUM(R62-AG62))),"") -> 10764 | AQ62: 42 | AR62: 42 | AT62: 2021-06-01 | AV62: 2023-09-01 | AX62: 2023-09-01 | AY62: 2023-09-01 | AZ62: 2023-09-01 | BA62: 117200 | BB62: 23440 | BC62: 59069 | BD62: 10548 | BF62: 111200 | BG62: 22240 | BH62: 56045 | BI62: 10008 | BJ62: 3675 | BM62: 10764 | BN62: 3675 | BQ62: 0 | BR62: 0 | BW62: 2100 | BY62: 875 | BZ62: =IF(AZ63="","",IF(AZ63="TOTAL","",IF($AU$16=$AU$17,0,IF(AND(AZ63>$BY$1,$AI$3=$AR$2,'Master Sheet'!$D$27>0),'Master Sheet'!$D$27,IF(AND(AZ63=$BY$1),IF($AU$9<18001,135,IF($AU$9<33501,220,IF($AU$9<54001,330,440))),IF(AND(AZ63>$BY$1),IF($AU$9<18001,265,IF($AU$9<33501,440,IF($AU$9<54001,658,875))),"")))))) -> 875
A63: 56 | B63: 56 | C63: 2023-11-01 | D63: =IFERROR(IF($C62="TOTAL","अक्षरें राशि :-",IF($C63="TOTAL",SUM($D$8:D62),IF(BA64="","",BA64))),"") -> 117200 | E63: =IFERROR(IF($C63="TOTAL",SUM($E$8:E62),IF(BC64="","",BC64)),"") -> 59069 | F63: =IFERROR(IF($C63="TOTAL",SUM($F$8:F62),IF(OR(C63=$AS$16,C63=$AS$17,C63=$AS$18,C63=$AS$19,C63=$AS$20,C63=$AS$21,C63=$AS$22,C63=$AS$23,C63=$AS$24),0,IF(BD64="","",BD64))),"") -> 10548 | G63: =IFERROR(IF($C63="TOTAL",SUM($G$8:G62),IF(BB64="","",BB64)),"") -> 23440 | H63: 210257 | I63: =IFERROR(IF($C63="TOTAL",SUM($I$8:I62),IF(BF64="","",BF64)),"") -> 111200 | J63: =IFERROR(IF($C63="TOTAL",SUM($J$8:J62),IF(BH64="","",BH64)),"") -> 56045 | K63: =IFERROR(IF($C63="TOTAL",SUM($K$8:K62),IF(OR(C63=$AS$16,C63=$AS$17,C63=$AS$18,C63=$AS$19,C63=$AS$20,C63=$AS$21,C63=$AS$22,C63=$AS$23,C63=$AS$24),0,IF(BI64="","",BI64))),"") -> 10008 | L63: =IFERROR(IF($C63="TOTAL",SUM($L$8:L62),IF(BG64="","",BG64)),"") -> 22240 | M63: 199493 | N63: =IFERROR(IF(C63="","",IF(D63="","",IF(I63="","",IF($C63="TOTAL",SUM($N$8:N62),SUM(D63-I63))))),"") -> 6000 | O63: =IFERROR(IF(C63="","",IF(E63="","",IF(J63="","",IF($C63="TOTAL",SUM($O$8:O62),SUM(E63-J63))))),"") -> 3024 | P63: =IFERROR(IF(C63="","",IF(F63="","",IF(K63="","",IF($C63="TOTAL",SUM($P$8:P62),SUM(F63-K63))))),"") -> 540 | Q63: 1200 | R63: 10764 | S63: =IFERROR(IF(C63="","",IF($C63="TOTAL",SUM($S$8:S62),IF(AND(C63>$AR$1,$AI$3=$AR$2),BW64,IF($AU$18=$AU$20,SUM(BJ64+BR64),ROUND((D63+E63)*10%,0))))),"") -> 2100 | T63: =IFERROR(IF(C63="","",IF(I63="","",IF(J63="","",IF($C63="TOTAL",SUM($T$8:T62),IF(AND(C63>$AR$1,$AI$3=$AR$2),BW64,IF($AU$18=$AU$20,$AU$21,ROUND((I63+J63)*10%,0))))))),"") -> 2100 | U63: 0 | V63: =IFERROR(IF(C63="","",IF($AU$16=$AU$17,0,IF($C63="TOTAL",SUM($V$8:V62),IF($AU$19=$AU$31,0,IF(AND($AU$32=$AU$20,C63=$AU$33),$AU$34,V62))))),"") -> 2100 | W63: =IFERROR(IF(C63="","",IF($AU$16=$AU$17,0,IF($C63="TOTAL",SUM($W$8:W62),IF($AU$19=$AU$20,$AU$24,0)))),"") -> 2100 | X63: 0 | Y63: =IFERROR(IF(C63="","",IF($AU$16=$AU$17,0,IF($C63="TOTAL",SUM($Y$8:Y62),BZ63))),"") -> 875 | Z63: =IFERROR(IF(C63="","",IF($AU$16=$AU$17,0,IF($C63="TOTAL",SUM($Z$8:Z62),BY63))),"") -> 875 | AA63: 0 | AB63: =IFERROR(IF(C63="","",IF(D63="","",IF($C63="TOTAL",SUM($AB$8:AB62),IF(C63=$AU$1,ROUND(D63*5/31,0.01),"")))),"") ->  | AC63: =IFERROR(IF(C63="","",IF(I63="","",IF($C63="TOTAL",SUM($AC$8:AC62),IF(C63=$AU$1,ROUND(I63*5/31,0.01),"")))),"") ->  | AE63: =IFERROR(IF(C63="","",IF(AND(BP64="",BW64=""),"",IF($C63="TOTAL",SUM($AE$8:AE62),BP64))),"") ->  | AF63: =IFERROR(IF(C63="","",IF($C63="TOTAL",SUM($AF$8:AF62),ROUND(R63*$AU$7%,0))),"") -> 0 | AG63: 0 | AH63: =IFERROR(IF(C63="","",IF($C63="TOTAL",SUM($AH$8:AH62),SUM(R63-AG63))),"") -> 10764 | AQ63: 42 | AR63: 42 | AT63: 2021-07-01 | AV63: 2023-10-01 | AX63: 2023-10-01 | AY63: 2023-10-01 | AZ63: 2023-10-01 | BA63: 117200 | BB63: 23440 | BC63: 59069 | BD63: 10548 | BF63: 111200 | BG63: 22240 | BH63: 56045 | BI63: 10008 | BJ63: 3675 | BM63: 10764 | BN63: 3675 | BO63: =IF(OR(AZ63=$AT$63,AZ63=$AT$64,AZ63=$AT$65),"YES","") ->  | BQ63: 0 | BR63: 0 | BS63: =SUM(ROUND(D62*3%,0)) -> 3516 | BT63: =IF($AS$7="NO",ROUND((I62+N62)*3%,0)-ROUND(ROUND((N62+I62)*3%,0)*10%,0),ROUND((N62+O62)*3%,0)-ROUND(ROUND((N62+O62)*3%,0)*10%,0)) -> 244 | BU63: =ROUND((N62+O62)*3%,0)-ROUND(ROUND((N62+O62)*3%,0)*10%,0) -> 244 | BV63: =IF(AND($AU$16=$AU$17,BO63="YES"),SUM(ROUND(D62*3%,0))-ROUND(ROUND(D62*3%,0)*10%,0),IF(AND($AU$16=$AU$15,BO63="YES",$AS$7="NO"),ROUND((I62+N62)*3%,0)-ROUND(ROUND((N62+I62)*3%,0)*10%,0),IF(AND($AU$16=$AU$15,BO63="YES",$AS$7="YES"),ROUND((N62+O62)*3%,0)-ROUND(ROUND((N62+O62)*3%,0)*10%,0),""))) ->  | BW63: 2100 | BX63: =IF(C62="","",IF($C62="TOTAL",1,2)) -> 2 | BY63: 875 | BZ63: =IF(AZ64="","",IF(AZ64="TOTAL","",IF($AU$16=$AU$17,0,IF(AND(AZ64>$BY$1,$AI$3=$AR$2,'Master Sheet'!$D$27>0),'Master Sheet'!$D$27,IF(AND(AZ64=$BY$1),IF($AU$9<18001,135,IF($AU$9<33501,220,IF($AU$9<54001,330,440))),IF(AND(AZ64>$BY$1),IF($AU$9<18001,265,IF($AU$9<33501,440,IF($AU$9<54001,658,875))),"")))))) -> 875
C64: TOTAL | D64: =IFERROR(IF($C63="TOTAL","अक्षरें राशि :-",IF($C64="TOTAL",SUM($D$8:D63),IF(BA65="","",BA65))),"") -> 6085467 | E64: =IFERROR(IF($C64="TOTAL",SUM($E$8:E63),IF(BC65="","",BC65)),"") -> 2024586 | F64: =IFERROR(IF($C64="TOTAL",SUM($F$8:F63),IF(OR(C64=$AS$16,C64=$AS$17,C64=$AS$18,C64=$AS$19,C64=$AS$20,C64=$AS$21,C64=$AS$22,C64=$AS$23,C64=$AS$24),0,IF(BD65="","",BD65))),"") -> 519613 | G64: =IFERROR(IF($C64="TOTAL",SUM($G$8:G63),IF(BB65="","",BB65)),"") -> 1217093 | H64: 9846759 | I64: =IFERROR(IF($C64="TOTAL",SUM($I$8:I63),IF(BF65="","",BF65)),"") -> 5773733 | J64: =IFERROR(IF($C64="TOTAL",SUM($J$8:J63),IF(BH65="","",BH65)),"") -> 1921127 | K64: =IFERROR(IF($C64="TOTAL",SUM($K$8:K63),IF(OR(C64=$AS$16,C64=$AS$17,C64=$AS$18,C64=$AS$19,C64=$AS$20,C64=$AS$21,C64=$AS$22,C64=$AS$23,C64=$AS$24),0,IF(BI65="","",BI65))),"") -> 493007 | L64: =IFERROR(IF($C64="TOTAL",SUM($L$8:L63),IF(BG65="","",BG65)),"") -> 1154747 | M64: 9342614 | N64: =IFERROR(IF(C64="","",IF(D64="","",IF(I64="","",IF($C64="TOTAL",SUM($N$8:N63),SUM(D64-I64))))),"") -> 311734 | O64: =IFERROR(IF(C64="","",IF(E64="","",IF(J64="","",IF($C64="TOTAL",SUM($O$8:O63),SUM(E64-J64))))),"") -> 103459 | P64: =IFERROR(IF(C64="","",IF(F64="","",IF(K64="","",IF($C64="TOTAL",SUM($P$8:P63),SUM(F64-K64))))),"") -> 26606 | Q64: 62346 | R64: 504145 | S64: =IFERROR(IF(C64="","",IF($C64="TOTAL",SUM($S$8:S63),IF(AND(C64>$AR$1,$AI$3=$AR$2),BW65,IF($AU$18=$AU$20,SUM(BJ65+BR65),ROUND((D64+E64)*10%,0))))),"") -> 516092 | T64: =IFERROR(IF(C64="","",IF(I64="","",IF(J64="","",IF($C64="TOTAL",SUM($T$8:T63),IF(AND(C64>$AR$1,$AI$3=$AR$2),BW65,IF($AU$18=$AU$20,$AU$21,ROUND((I64+J64)*10%,0))))))),"") -> 491754 | U64: 24338 | V64: =IFERROR(IF(C64="","",IF($AU$16=$AU$17,0,IF($C64="TOTAL",SUM($V$8:V63),IF($AU$19=$AU$31,0,IF(AND($AU$32=$AU$20,C64=$AU$33),$AU$34,V63))))),"") -> 117600 | W64: =IFERROR(IF(C64="","",IF($AU$16=$AU$17,0,IF($C64="TOTAL",SUM($W$8:W63),IF($AU$19=$AU$20,$AU$24,0)))),"") -> 117600 | X64: 0 | Y64: =IFERROR(IF(C64="","",IF($AU$16=$AU$17,0,IF($C64="TOTAL",SUM($Y$8:Y63),BZ64))),"") -> 17940 | Z64: =IFERROR(IF(C64="","",IF($AU$16=$AU$17,0,IF($C64="TOTAL",SUM($Z$8:Z63),BY64))),"") -> 17940 | AA64: 0 | AB64: =IFERROR(IF(C64="","",IF(D64="","",IF($C64="TOTAL",SUM($AB$8:AB63),IF(C64=$AU$1,ROUND(D64*5/31,0.01),"")))),"") -> 16806 | AC64: =IFERROR(IF(C64="","",IF(I64="","",IF($C64="TOTAL",SUM($AC$8:AC63),IF(C64=$AU$1,ROUND(I64*5/31,0.01),"")))),"") -> 15935 | AD64: 871 | AE64: =IFERROR(IF(C64="","",IF(AND(BP65="",BW65=""),"",IF($C64="TOTAL",SUM($AE$8:AE63),BP65))),"") ->  | AF64: =IFERROR(IF(C64="","",IF($C64="TOTAL",SUM($AF$8:AF63),ROUND(R64*$AU$7%,0))),"") -> 0 | AG64: 25209 | AH64: =IFERROR(IF(C64="","",IF($C64="TOTAL",SUM($AH$8:AH63),SUM(R64-AG64))),"") -> 478432 | AQ64: 42 | AR64: 42 | AT64: 2021-08-01 | AV64: 2023-11-01 | AX64: 2023-11-01 | AY64: 2023-11-01 | AZ64: 2023-11-01 | BA64: 117200 | BB64: 23440 | BC64: 59069 | BD64: 10548 | BF64: 111200 | BG64: 22240 | BH64: 56045 | BI64: 10008 | BJ64: 3675 | BM64: 10764 | BN64: 3675 | BQ64: 0 | BR64: 0 | BS64: =ROUND(ROUND(N63*3%,0)*10%,0) -> 18 | BU64: =ROUND(ROUND((N64+I64)*3%,0)*10%,0) -> 18256 | BV64: =ROUND((I62+N62)*3%,0)-ROUND(ROUND((N62+I62)*3%,0)*10%,0) -> 3164 | BW64: 2100 | BZ64: =IF(AZ65="","",IF(AZ65="TOTAL","",IF($AU$16=$AU$17,0,IF(AND(AZ65>$BY$1,$AI$3=$AR$2,'Master Sheet'!$D$27>0),'Master Sheet'!$D$27,IF(AND(AZ65=$BY$1),IF($AU$9<18001,135,IF($AU$9<33501,220,IF($AU$9<54001,330,440))),IF(AND(AZ65>$BY$1),IF($AU$9<18001,265,IF($AU$9<33501,440,IF($AU$9<54001,658,875))),"")))))) -> 
D65: =IFERROR(IF($C64="TOTAL","अक्षरें राशि :-",IF($C65="TOTAL",SUM($D$8:D64),IF(BA66="","",BA66))),"") -> अक्षरें राशि :- | E65: =IFERROR(IF($C65="TOTAL",SUM($E$8:E64),IF(BC66="","",BC66)),"") ->  | F65: =IFERROR(IF($C65="TOTAL",SUM($F$8:F64),IF(OR(C65=$AS$16,C65=$AS$17,C65=$AS$18,C65=$AS$19,C65=$AS$20,C65=$AS$21,C65=$AS$22,C65=$AS$23,C65=$AS$24),0,IF(BD66="","",BD66))),"") ->  | G65: =IFERROR(IF($C65="TOTAL",SUM($G$8:G64),IF(BB66="","",BB66)),"") ->  | I65: =IFERROR(IF($C65="TOTAL",SUM($I$8:I64),IF(BF66="","",BF66)),"") ->  | J65: =IFERROR(IF($C65="TOTAL",SUM($J$8:J64),IF(BH66="","",BH66)),"") ->  | K65: =IFERROR(IF($C65="TOTAL",SUM($K$8:K64),IF(OR(C65=$AS$16,C65=$AS$17,C65=$AS$18,C65=$AS$19,C65=$AS$20,C65=$AS$21,C65=$AS$22,C65=$AS$23,C65=$AS$24),0,IF(BI66="","",BI66))),"") ->  | L65: =IFERROR(IF($C65="TOTAL",SUM($L$8:L64),IF(BG66="","",BG66)),"") ->  | N65: =IFERROR(IF(C65="","",IF(D65="","",IF(I65="","",IF($C65="TOTAL",SUM($N$8:N64),SUM(D65-I65))))),"") ->  | O65: =IFERROR(IF(C65="","",IF(E65="","",IF(J65="","",IF($C65="TOTAL",SUM($O$8:O64),SUM(E65-J65))))),"") ->  | P65: =IFERROR(IF(C65="","",IF(F65="","",IF(K65="","",IF($C65="TOTAL",SUM($P$8:P64),SUM(F65-K65))))),"") ->  | S65: =IFERROR(IF(C65="","",IF($C65="TOTAL",SUM($S$8:S64),IF(AND(C65>$AR$1,$AI$3=$AR$2),BW66,IF($AU$18=$AU$20,SUM(BJ66+BR66),ROUND((D65+E65)*10%,0))))),"") ->  | T65: =IFERROR(IF(C65="","",IF(I65="","",IF(J65="","",IF($C65="TOTAL",SUM($T$8:T64),IF(AND(C65>$AR$1,$AI$3=$AR$2),BW66,IF($AU$18=$AU$20,$AU$21,ROUND((I65+J65)*10%,0))))))),"") ->  | V65: =IFERROR(IF(C65="","",IF($AU$16=$AU$17,0,IF($C65="TOTAL",SUM($V$8:V64),IF($AU$19=$AU$31,0,IF(AND($AU$32=$AU$20,C65=$AU$33),$AU$34,V64))))),"") ->  | W65: =IFERROR(IF(C65="","",IF($AU$16=$AU$17,0,IF($C65="TOTAL",SUM($W$8:W64),IF($AU$19=$AU$20,$AU$24,0)))),"") ->  | Y65: =IFERROR(IF(C65="","",IF($AU$16=$AU$17,0,IF($C65="TOTAL",SUM($Y$8:Y64),BZ65))),"") ->  | Z65: =IFERROR(IF(C65="","",IF($AU$16=$AU$17,0,IF($C65="TOTAL",SUM($Z$8:Z64),BY65))),"") ->  | AB65: =IFERROR(IF(C65="","",IF(D65="","",IF($C65="TOTAL",SUM($AB$8:AB64),IF(C65=$AU$1,ROUND(D65*5/31,0.01),"")))),"") ->  | AC65: =IFERROR(IF(C65="","",IF(I65="","",IF($C65="TOTAL",SUM($AC$8:AC64),IF(C65=$AU$1,ROUND(I65*5/31,0.01),"")))),"") ->  | AE65: =IFERROR(IF(C65="","",IF(AND(BP66="",BW66=""),"",IF($C65="TOTAL",SUM($AE$8:AE64),BP66))),"") ->  | AF65: =IFERROR(IF(C65="","",IF($C65="TOTAL",SUM($AF$8:AF64),ROUND(R65*$AU$7%,0))),"") ->  | AH65: =IFERROR(IF(C65="","",IF($C65="TOTAL",SUM($AH$8:AH64),SUM(R65-AG65))),"") ->  | AQ65: 42 | AR65: 42 | AT65: 2021-09-01 | AV65: 2023-12-01 | AX65: 2023-12-01 | AY65: 2023-12-01 | AZ65: TOTAL | BA65: 117200 | BN65: 3675 | BQ65: 0 | BR65: 0 | BS65: =SUM(ROUND(N64*3%,0))-ROUND(ROUND(N64*3%,0)*10%,0) -> 8417 | BT65: =SUM(ROUND(N64*3%,0))-ROUND(ROUND(N64*3%,0)*10%,0) -> 8417 | BZ65: =IF(AZ66="","",IF(AZ66="TOTAL","",IF($AU$16=$AU$17,0,IF(AND(AZ66>$BY$1,$AI$3=$AR$2,'Master Sheet'!$D$27>0),'Master Sheet'!$D$27,IF(AND(AZ66=$BY$1),IF($AU$9<18001,135,IF($AU$9<33501,220,IF($AU$9<54001,330,440))),IF(AND(AZ66>$BY$1),IF($AU$9<18001,265,IF($AU$9<33501,440,IF($AU$9<54001,658,875))),"")))))) -> 
C66: =IFERROR(IF(AZ67="","",AZ67),"") ->  | D66: =IFERROR(IF($C65="TOTAL","अक्षरें राशि :-",IF($C66="TOTAL",SUM($D$8:D65),IF(BA67="","",BA67))),"") ->  | E66: =IFERROR(IF($C66="TOTAL",SUM($E$8:E65),IF(BC67="","",BC67)),"") ->  | F66: =IFERROR(IF($C66="TOTAL",SUM($F$8:F65),IF(OR(C66=$AS$16,C66=$AS$17,C66=$AS$18,C66=$AS$19,C66=$AS$20,C66=$AS$21,C66=$AS$22,C66=$AS$23,C66=$AS$24),0,IF(BD67="","",BD67))),"") ->  | G66: =IFERROR(IF($C66="TOTAL",SUM($G$8:G65),IF(BB67="","",BB67)),"") ->  | I66: =IFERROR(IF($C66="TOTAL",SUM($I$8:I65),IF(BF67="","",BF67)),"") ->  | J66: =IFERROR(IF($C66="TOTAL",SUM($J$8:J65),IF(BH67="","",BH67)),"") ->  | K66: =IFERROR(IF($C66="TOTAL",SUM($K$8:K65),IF(OR(C66=$AS$16,C66=$AS$17,C66=$AS$18,C66=$AS$19,C66=$AS$20,C66=$AS$21,C66=$AS$22,C66=$AS$23,C66=$AS$24),0,IF(BI67="","",BI67))),"") ->  | L66: =IFERROR(IF($C66="TOTAL",SUM($L$8:L65),IF(BG67="","",BG67)),"") ->  | N66: =IFERROR(IF(C66="","",IF(D66="","",IF(I66="","",IF($C66="TOTAL",SUM($N$8:N65),SUM(D66-I66))))),"") ->  | O66: =IFERROR(IF(C66="","",IF(E66="","",IF(J66="","",IF($C66="TOTAL",SUM($O$8:O65),SUM(E66-J66))))),"") ->  | P66: =IFERROR(IF(C66="","",IF(F66="","",IF(K66="","",IF($C66="TOTAL",SUM($P$8:P65),SUM(F66-K66))))),"") ->  | S66: =IFERROR(IF(C66="","",IF($C66="TOTAL",SUM($S$8:S65),IF(AND(C66>$AR$1,$AI$3=$AR$2),BW67,IF($AU$18=$AU$20,SUM(BJ67+BR67),ROUND((D66+E66)*10%,0))))),"") ->  | T66: =IFERROR(IF(C66="","",IF(I66="","",IF(J66="","",IF($C66="TOTAL",SUM($T$8:T65),IF(AND(C66>$AR$1,$AI$3=$AR$2),BW67,IF($AU$18=$AU$20,$AU$21,ROUND((I66+J66)*10%,0))))))),"") ->  | V66: =IFERROR(IF(C66="","",IF($AU$16=$AU$17,0,IF($C66="TOTAL",SUM($V$8:V65),IF($AU$19=$AU$31,0,IF(AND($AU$32=$AU$20,C66=$AU$33),$AU$34,V65))))),"") ->  | W66: =IFERROR(IF(C66="","",IF($AU$16=$AU$17,0,IF($C66="TOTAL",SUM($W$8:W65),IF($AU$19=$AU$20,$AU$24,0)))),"") ->  | Y66: =IFERROR(IF(C66="","",IF($AU$16=$AU$17,0,IF($C66="TOTAL",SUM($Y$8:Y65),BZ66))),"") ->  | Z66: =IFERROR(IF(C66="","",IF($AU$16=$AU$17,0,IF($C66="TOTAL",SUM($Z$8:Z65),BY66))),"") ->  | AB66: =IFERROR(IF(C66="","",IF(D66="","",IF($C66="TOTAL",SUM($AB$8:AB65),IF(C66=$AU$1,ROUND(D66*5/31,0.01),"")))),"") ->  | AC66: =IFERROR(IF(C66="","",IF(I66="","",IF($C66="TOTAL",SUM($AC$8:AC65),IF(C66=$AU$1,ROUND(I66*5/31,0.01),"")))),"") ->  | AE66: =IFERROR(IF(C66="","",IF(AND(BP67="",BW67=""),"",IF($C66="TOTAL",SUM($AE$8:AE65),BP67))),"") ->  | AF66: =IFERROR(IF(C66="","",IF($C66="TOTAL",SUM($AF$8:AF65),ROUND(R66*$AU$7%,0))),"") ->  | AH66: =IFERROR(IF(C66="","",IF($C66="TOTAL",SUM($AH$8:AH65),SUM(R66-AG66))),"") ->  | AQ66: 42 | AR66: 42 | AT66: 2021-10-01 | AV66: 2024-01-01 | BQ66: 0 | BR66: 0 | BZ66: =IF(AZ67="","",IF(AZ67="TOTAL","",IF($AU$16=$AU$17,0,IF(AND(AZ67>$BY$1,$AI$3=$AR$2,'Master Sheet'!$D$27>0),'Master Sheet'!$D$27,IF(AND(AZ67=$BY$1),IF($AU$9<18001,135,IF($AU$9<33501,220,IF($AU$9<54001,330,440))),IF(AND(AZ67>$BY$1),IF($AU$9<18001,265,IF($AU$9<33501,440,IF($AU$9<54001,658,875))),"")))))) -> 
C67: =IFERROR(IF(AZ68="","",AZ68),"") ->  | D67: =IFERROR(IF($C66="TOTAL","अक्षरें राशि :-",IF($C67="TOTAL",SUM($D$8:D66),IF(BA68="","",BA68))),"") ->  | E67: =IFERROR(IF($C67="TOTAL",SUM($E$8:E66),IF(BC68="","",BC68)),"") ->  | F67: =IFERROR(IF($C67="TOTAL",SUM($F$8:F66),IF(OR(C67=$AS$16,C67=$AS$17,C67=$AS$18,C67=$AS$19,C67=$AS$20,C67=$AS$21,C67=$AS$22,C67=$AS$23,C67=$AS$24),0,IF(BD68="","",BD68))),"") ->  | G67: =IFERROR(IF($C67="TOTAL",SUM($G$8:G66),IF(BB68="","",BB68)),"") ->  | I67: =IFERROR(IF($C67="TOTAL",SUM($I$8:I66),IF(BF68="","",BF68)),"") ->  | J67: =IFERROR(IF($C67="TOTAL",SUM($J$8:J66),IF(BH68="","",BH68)),"") ->  | K67: =IFERROR(IF($C67="TOTAL",SUM($K$8:K66),IF(OR(C67=$AS$16,C67=$AS$17,C67=$AS$18,C67=$AS$19,C67=$AS$20,C67=$AS$21,C67=$AS$22,C67=$AS$23,C67=$AS$24),0,IF(BI68="","",BI68))),"") ->  | L67: =IFERROR(IF($C67="TOTAL",SUM($L$8:L66),IF(BG68="","",BG68)),"") ->  | N67: =IFERROR(IF(C67="","",IF(D67="","",IF(I67="","",IF($C67="TOTAL",SUM($N$8:N66),SUM(D67-I67))))),"") ->  | O67: =IFERROR(IF(C67="","",IF(E67="","",IF(J67="","",IF($C67="TOTAL",SUM($O$8:O66),SUM(E67-J67))))),"") ->  | P67: =IFERROR(IF(C67="","",IF(F67="","",IF(K67="","",IF($C67="TOTAL",SUM($P$8:P66),SUM(F67-K67))))),"") ->  | S67: =IFERROR(IF(C67="","",IF($C67="TOTAL",SUM($S$8:S66),IF(AND(C67>$AR$1,$AI$3=$AR$2),BW68,IF($AU$18=$AU$20,SUM(BJ68+BR68),ROUND((D67+E67)*10%,0))))),"") ->  | T67: =IFERROR(IF(C67="","",IF(I67="","",IF(J67="","",IF($C67="TOTAL",SUM($T$8:T66),IF(AND(C67>$AR$1,$AI$3=$AR$2),BW68,IF($AU$18=$AU$20,$AU$21,ROUND((I67+J67)*10%,0))))))),"") ->  | V67: =IFERROR(IF(C67="","",IF($AU$16=$AU$17,0,IF($C67="TOTAL",SUM($V$8:V66),IF($AU$19=$AU$31,0,IF(AND($AU$32=$AU$20,C67=$AU$33),$AU$34,V66))))),"") ->  | W67: =IFERROR(IF(C67="","",IF($AU$16=$AU$17,0,IF($C67="TOTAL",SUM($W$8:W66),IF($AU$19=$AU$20,$AU$24,0)))),"") ->  | Y67: =IFERROR(IF(C67="","",IF($AU$16=$AU$17,0,IF($C67="TOTAL",SUM($Y$8:Y66),BZ67))),"") ->  | Z67: =IFERROR(IF(C67="","",IF($AU$16=$AU$17,0,IF($C67="TOTAL",SUM($Z$8:Z66),BY67))),"") ->  | AB67: =IFERROR(IF(C67="","",IF(D67="","",IF($C67="TOTAL",SUM($AB$8:AB66),IF(C67=$AU$1,ROUND(D67*5/31,0.01),"")))),"") ->  | AC67: =IFERROR(IF(C67="","",IF(I67="","",IF($C67="TOTAL",SUM($AC$8:AC66),IF(C67=$AU$1,ROUND(I67*5/31,0.01),"")))),"") ->  | AE67: =IFERROR(IF(C67="","",IF(AND(BP68="",BW68=""),"",IF($C67="TOTAL",SUM($AE$8:AE66),BP68))),"") ->  | AF67: =IFERROR(IF(C67="","",IF($C67="TOTAL",SUM($AF$8:AF66),ROUND(R67*$AU$7%,0))),"") ->  | AH67: =IFERROR(IF(C67="","",IF($C67="TOTAL",SUM($AH$8:AH66),SUM(R67-AG67))),"") ->  | AQ67: 42 | AR67: 42 | AT67: 2021-11-01 | AV67: 2024-02-01 | BQ67: 0 | BR67: 0 | BZ67: =IF(AZ68="","",IF(AZ68="TOTAL","",IF($AU$16=$AU$17,0,IF(AND(AZ68>$BY$1,$AI$3=$AR$2,'Master Sheet'!$D$27>0),'Master Sheet'!$D$27,IF(AND(AZ68=$BY$1),IF($AU$9<18001,135,IF($AU$9<33501,220,IF($AU$9<54001,330,440))),IF(AND(AZ68>$BY$1),IF($AU$9<18001,265,IF($AU$9<33501,440,IF($AU$9<54001,658,875))),"")))))) -> 
D68: =IFERROR(IF($C67="TOTAL","अक्षरें राशि :-",IF($C68="TOTAL",SUM($D$8:D67),IF(BA69="","",BA69))),"") ->  | E68: =IFERROR(IF($C68="TOTAL",SUM($E$8:E67),IF(BC69="","",BC69)),"") ->  | F68: =IFERROR(IF($C68="TOTAL",SUM($F$8:F67),IF(BD69="","",BD69)),"") ->  | G68: =IFERROR(IF($C68="TOTAL",SUM($G$8:G67),IF(BB69="","",BB69)),"") ->  | I68: =IFERROR(IF($C68="TOTAL",SUM($I$8:I67),IF(BF69="","",BF69)),"") ->  | J68: =IFERROR(IF($C68="TOTAL",SUM($J$8:J67),IF(BH69="","",BH69)),"") ->  | K68: =IFERROR(IF($C68="TOTAL",SUM($K$8:K67),IF(BI69="","",BI69)),"") ->  | L68: =IFERROR(IF($C68="TOTAL",SUM($L$8:L67),IF(BG69="","",BG69)),"") ->  | N68: =IFERROR(IF(C68="","",IF(D68="","",IF(I68="","",IF($C68="TOTAL",SUM($N$8:N67),SUM(D68-I68))))),"") ->  | O68: =IFERROR(IF(C68="","",IF(E68="","",IF(J68="","",IF($C68="TOTAL",SUM($O$8:O67),SUM(E68-J68))))),"") ->  | P68: =IFERROR(IF(C68="","",IF(F68="","",IF(K68="","",IF($C68="TOTAL",SUM($P$8:P67),SUM(F68-K68))))),"") ->  | S68: =IFERROR(IF(C68="","",IF($C68="TOTAL",SUM($S$8:S67),IF(AND(C68>$AR$1,$AI$3=$AR$2),BW69,IF($AU$18=$AU$20,SUM(BJ69+BR69),ROUND((D68+E68)*10%,0))))),"") ->  | T68: =IFERROR(IF(C68="","",IF(I68="","",IF(J68="","",IF($C68="TOTAL",SUM($T$8:T67),IF(AND(C68>$AR$1,$AI$3=$AR$2),BW69,IF($AU$18=$AU$20,$AU$21,ROUND((I68+J68)*10%,0))))))),"") ->  | V68: =IFERROR(IF(C68="","",IF($AU$16=$AU$17,0,IF($C68="TOTAL",SUM($V$8:V67),IF($AU$19=$AU$20,$AU$25,0)))),"") ->  | W68: =IFERROR(IF(C68="","",IF($AU$16=$AU$17,0,IF($C68="TOTAL",SUM($W$8:W67),IF($AU$19=$AU$20,$AU$24,0)))),"") ->  | Y68: =IFERROR(IF(C68="","",IF($AU$16=$AU$17,0,IF($C68="TOTAL",SUM($Y$8:Y67),BZ68))),"") ->  | Z68: =IFERROR(IF(C68="","",IF($AU$16=$AU$17,0,IF($C68="TOTAL",SUM($Z$8:Z67),BY68))),"") ->  | AB68: =IFERROR(IF(C68="","",IF(D68="","",IF($C68="TOTAL",SUM($AB$8:AB67),IF(C68=$AU$1,ROUND(D68*5/31,0.01),"")))),"") ->  | AC68: =IFERROR(IF(C68="","",IF(I68="","",IF($C68="TOTAL",SUM($AC$8:AC67),IF(C68=$AU$1,ROUND(I68*5/31,0.01),"")))),"") ->  | AE68: =IFERROR(IF(C68="","",IF(AND(BP69="",BW69=""),"",IF($C68="TOTAL",SUM($AE$8:AE67),BP69))),"") ->  | AF68: =IFERROR(IF(C68="","",IF($C68="TOTAL",SUM($AF$8:AF67),ROUND(R68*$AU$7%,0))),"") ->  | AH68: =IFERROR(IF(C68="","",IF($C68="TOTAL",SUM($AH$8:AH67),SUM(R68-AG68))),"") ->  | AQ68: 42 | AR68: 42 | AT68: 2021-12-01 | AV68: 2024-03-01 | BQ68: 0 | BR68: 0 | BZ68: =IF(AZ69="","",IF(AZ69="TOTAL","",IF($AU$16=$AU$17,0,IF(AND(AZ69>$BY$1,$AI$3=$AR$2,'Master Sheet'!$D$27>0),'Master Sheet'!$D$27,IF(AND(AZ69=$BY$1),IF($AU$9<18001,135,IF($AU$9<33501,220,IF($AU$9<54001,330,440))),IF(AND(AZ69>$BY$1),IF($AU$9<18001,265,IF($AU$9<33501,440,IF($AU$9<54001,658,875))),"")))))) -> 
C69: =IFERROR(IF(AZ70="","",AZ70),"") ->  | D69: =IFERROR(IF($C68="TOTAL","अक्षरें राशि :-",IF($C69="TOTAL",SUM($D$8:D68),IF(BA70="","",BA70))),"") ->  | E69: =IFERROR(IF($C69="TOTAL",SUM($E$8:E68),IF(BC70="","",BC70)),"") ->  | F69: =IFERROR(IF($C69="TOTAL",SUM($F$8:F68),IF(BD70="","",BD70)),"") ->  | G69: =IFERROR(IF($C69="TOTAL",SUM($G$8:G68),IF(BB70="","",BB70)),"") ->  | I69: =IFERROR(IF($C69="TOTAL",SUM($I$8:I68),IF(BF70="","",BF70)),"") ->  | J69: =IFERROR(IF($C69="TOTAL",SUM($J$8:J68),IF(BH70="","",BH70)),"") ->  | K69: =IFERROR(IF($C69="TOTAL",SUM($K$8:K68),IF(BI70="","",BI70)),"") ->  | L69: =IFERROR(IF($C69="TOTAL",SUM($L$8:L68),IF(BG70="","",BG70)),"") ->  | N69: =IFERROR(IF(C69="","",IF(D69="","",IF(I69="","",IF($C69="TOTAL",SUM($N$8:N68),SUM(D69-I69))))),"") ->  | O69: =IFERROR(IF(C69="","",IF(E69="","",IF(J69="","",IF($C69="TOTAL",SUM($O$8:O68),SUM(E69-J69))))),"") ->  | P69: =IFERROR(IF(C69="","",IF(F69="","",IF(K69="","",IF($C69="TOTAL",SUM($P$8:P68),SUM(F69-K69))))),"") ->  | R69: =IFERROR(IF(C69="","",IF(H69="","",IF(M69="","",SUM(H69-M69)))),"") ->  | S69: =IFERROR(IF(C69="","",IF($C69="TOTAL",SUM($S$8:S68),IF(AND(C69>$AR$1,$AI$3=$AR$2),BW70,IF($AU$18=$AU$20,SUM(BJ70+BR70),ROUND((D69+E69)*10%,0))))),"") ->  | T69: =IFERROR(IF(C69="","",IF(I69="","",IF(J69="","",IF($C69="TOTAL",SUM($T$8:T68),IF(AND(C69>$AR$1,$AI$3=$AR$2),BW70,IF($AU$18=$AU$20,$AU$21,ROUND((I69+J69)*10%,0))))))),"") ->  | U69: =IFERROR(IF(C69="","",SUM(S69-T69)),"") ->  | V69: =IFERROR(IF(C69="","",IF($AU$16=$AU$17,0,IF($C69="TOTAL",SUM($V$8:V68),IF($AU$19=$AU$20,$AU$25,0)))),"") ->  | W69: =IFERROR(IF(C69="","",IF($AU$16=$AU$17,0,IF($C69="TOTAL",SUM($W$8:W68),IF($AU$19=$AU$20,$AU$24,0)))),"") ->  | X69: =IFERROR(IF(C69="","",SUM(V69-W69)),"") ->  | Y69: =IFERROR(IF(C69="","",IF($AU$16=$AU$17,0,IF($C69="TOTAL",SUM($Y$8:Y68),BZ69))),"") ->  | Z69: =IFERROR(IF(C69="","",IF($AU$16=$AU$17,0,IF($C69="TOTAL",SUM($Z$8:Z68),BY69))),"") ->  | AB69: =IFERROR(IF(C69="","",IF(D69="","",IF($C69="TOTAL",SUM($AB$8:AB68),IF(C69=$AU$1,ROUND(D69*5/31,0.01),"")))),"") ->  | AC69: =IFERROR(IF(C69="","",IF(I69="","",IF($C69="TOTAL",SUM($AC$8:AC68),IF(C69=$AU$1,ROUND(I69*5/31,0.01),"")))),"") ->  | AE69: =IFERROR(IF(C69="","",IF(AND(BP70="",BW70=""),"",IF($C69="TOTAL",SUM($AE$8:AE68),BP70))),"") ->  | AF69: =IFERROR(IF(C69="","",IF($C69="TOTAL",SUM($AF$8:AF68),ROUND(R69*$AU$7%,0))),"") ->  | AH69: =IFERROR(IF(C69="","",IF($C69="TOTAL",SUM($AH$8:AH68),SUM(R69-AG69))),"") ->  | AQ69: 42 | AR69: 42 | AT69: 2022-01-01 | AV69: 2024-04-01 | BQ69: 0 | BR69: 0 | BZ69: =IF(AZ70="","",IF(AZ70="TOTAL","",IF($AU$16=$AU$17,0,IF(AND(AZ70>$BY$1,$AI$3=$AR$2,'Master Sheet'!$D$27>0),'Master Sheet'!$D$27,IF(AND(AZ70=$BY$1),IF($AU$9<18001,135,IF($AU$9<33501,220,IF($AU$9<54001,330,440))),IF(AND(AZ70>$BY$1),IF($AU$9<18001,265,IF($AU$9<33501,440,IF($AU$9<54001,658,875))),"")))))) -> 
D70: =IFERROR(IF($C69="TOTAL","अक्षरें राशि :-",IF($C70="TOTAL",SUM($D$8:D69),IF(BA71="","",BA71))),"") ->  | E70: =IFERROR(IF($C70="TOTAL",SUM($E$8:E69),IF(BC71="","",BC71)),"") ->  | F70: =IFERROR(IF($C70="TOTAL",SUM($F$8:F69),IF(BD71="","",BD71)),"") ->  | G70: =IFERROR(IF($C70="TOTAL",SUM($G$8:G69),IF(BB71="","",BB71)),"") ->  | I70: =IFERROR(IF($C70="TOTAL",SUM($I$8:I69),IF(BF71="","",BF71)),"") ->  | J70: =IFERROR(IF($C70="TOTAL",SUM($J$8:J69),IF(BH71="","",BH71)),"") ->  | K70: =IFERROR(IF($C70="TOTAL",SUM($K$8:K69),IF(BI71="","",BI71)),"") ->  | L70: =IFERROR(IF($C70="TOTAL",SUM($L$8:L69),IF(BG71="","",BG71)),"") ->  | N70: =IFERROR(IF(C70="","",IF(D70="","",IF(I70="","",IF($C70="TOTAL",SUM($N$8:N69),SUM(D70-I70))))),"") ->  | O70: =IFERROR(IF(C70="","",IF(E70="","",IF(J70="","",IF($C70="TOTAL",SUM($O$8:O69),SUM(E70-J70))))),"") ->  | P70: =IFERROR(IF(C70="","",IF(F70="","",IF(K70="","",IF($C70="TOTAL",SUM($P$8:P69),SUM(F70-K70))))),"") ->  | S70: =IFERROR(IF(C70="","",IF($C70="TOTAL",SUM($S$8:S69),IF(AND(C70>$AR$1,$AI$3=$AR$2),BW71,IF($AU$18=$AU$20,SUM(BJ71+BR71),ROUND((D70+E70)*10%,0))))),"") ->  | T70: =IFERROR(IF(C70="","",IF(I70="","",IF(J70="","",IF($C70="TOTAL",SUM($T$8:T69),IF(AND(C70>$AR$1,$AI$3=$AR$2),BW71,IF($AU$18=$AU$20,$AU$21,ROUND((I70+J70)*10%,0))))))),"") ->  | V70: =IFERROR(IF(C70="","",IF($AU$16=$AU$17,0,IF($C70="TOTAL",SUM($V$8:V69),IF($AU$19=$AU$20,$AU$25,0)))),"") ->  | W70: =IFERROR(IF(C70="","",IF($AU$16=$AU$17,0,IF($C70="TOTAL",SUM($W$8:W69),IF($AU$19=$AU$20,$AU$24,0)))),"") ->  | Y70: =IFERROR(IF(C70="","",IF($AU$16=$AU$17,0,IF($C70="TOTAL",SUM($Y$8:Y69),BZ70))),"") ->  | Z70: =IFERROR(IF(C70="","",IF($AU$16=$AU$17,0,IF($C70="TOTAL",SUM($Z$8:Z69),BY70))),"") ->  | AB70: =IFERROR(IF(C70="","",IF(D70="","",IF($C70="TOTAL",SUM($AB$8:AB69),IF(C70=$AU$1,ROUND(D70*5/31,0.01),"")))),"") ->  | AC70: =IFERROR(IF(C70="","",IF(I70="","",IF($C70="TOTAL",SUM($AC$8:AC69),IF(C70=$AU$1,ROUND(I70*5/31,0.01),"")))),"") ->  | AE70: =IFERROR(IF(C70="","",IF(AND(BP71="",BW71=""),"",IF($C70="TOTAL",SUM($AE$8:AE69),BP71))),"") ->  | AF70: =IFERROR(IF(C70="","",IF($C70="TOTAL",SUM($AF$8:AF69),ROUND(R70*$AU$7%,0))),"") ->  | AH70: =IFERROR(IF(C70="","",IF($C70="TOTAL",SUM($AH$8:AH69),SUM(R70-AG70))),"") ->  | AQ70: 42 | AR70: 42 | AT70: 2022-02-01 | AV70: 2024-05-01 | AY70: =IFERROR(IF(AND(AW70="",AX70=""),"",IF(AW70="",AX70,AW70)),"") ->  | BQ70: 0 | BR70: 0 | BZ70: =IF(AZ71="","",IF(AZ71="TOTAL","",IF($AU$16=$AU$17,0,IF(AND(AZ71>$BY$1,$AI$3=$AR$2,'Master Sheet'!$D$27>0),'Master Sheet'!$D$27,IF(AND(AZ71=$BY$1),IF($AU$9<18001,135,IF($AU$9<33501,220,IF($AU$9<54001,330,440))),IF(AND(AZ71>$BY$1),IF($AU$9<18001,265,IF($AU$9<33501,440,IF($AU$9<54001,658,875))),"")))))) -> 
D71: =IFERROR(IF($C70="TOTAL","अक्षरें राशि :-",IF($C71="TOTAL",SUM($D$8:D70),IF(BA72="","",BA72))),"") ->  | E71: =IFERROR(IF($C71="TOTAL",SUM($E$8:E70),IF(BC72="","",BC72)),"") ->  | F71: =IFERROR(IF($C71="TOTAL",SUM($F$8:F70),IF(BD72="","",BD72)),"") ->  | G71: =IFERROR(IF($C71="TOTAL",SUM($G$8:G70),IF(BB72="","",BB72)),"") ->  | I71: =IFERROR(IF($C71="TOTAL",SUM($I$8:I70),IF(BF72="","",BF72)),"") ->  | J71: =IFERROR(IF($C71="TOTAL",SUM($J$8:J70),IF(BH72="","",BH72)),"") ->  | K71: =IFERROR(IF($C71="TOTAL",SUM($K$8:K70),IF(BI72="","",BI72)),"") ->  | L71: =IFERROR(IF($C71="TOTAL",SUM($L$8:L70),IF(BG72="","",BG72)),"") ->  | N71: =IFERROR(IF(C71="","",IF(D71="","",IF(I71="","",IF($C71="TOTAL",SUM($N$8:N70),SUM(D71-I71))))),"") ->  | O71: =IFERROR(IF(C71="","",IF(E71="","",IF(J71="","",IF($C71="TOTAL",SUM($O$8:O70),SUM(E71-J71))))),"") ->  | P71: =IFERROR(IF(C71="","",IF(F71="","",IF(K71="","",IF($C71="TOTAL",SUM($P$8:P70),SUM(F71-K71))))),"") ->  | S71: =IFERROR(IF(C71="","",IF($C71="TOTAL",SUM($S$8:S70),IF(AND(C71>$AR$1,$AI$3=$AR$2),BW72,IF($AU$18=$AU$20,SUM(BJ72+BR72),ROUND((D71+E71)*10%,0))))),"") ->  | T71: =IFERROR(IF(C71="","",IF(I71="","",IF(J71="","",IF($C71="TOTAL",SUM($T$8:T70),IF(AND(C71>$AR$1,$AI$3=$AR$2),BW72,IF($AU$18=$AU$20,$AU$21,ROUND((I71+J71)*10%,0))))))),"") ->  | V71: =IFERROR(IF(C71="","",IF($AU$16=$AU$17,0,IF($C71="TOTAL",SUM($V$8:V70),IF($AU$19=$AU$20,$AU$25,0)))),"") ->  | W71: =IFERROR(IF(C71="","",IF($AU$16=$AU$17,0,IF($C71="TOTAL",SUM($W$8:W70),IF($AU$19=$AU$20,$AU$24,0)))),"") ->  | Y71: =IFERROR(IF(C71="","",IF($AU$16=$AU$17,0,IF($C71="TOTAL",SUM($Y$8:Y70),BZ71))),"") ->  | Z71: =IFERROR(IF(C71="","",IF($AU$16=$AU$17,0,IF($C71="TOTAL",SUM($Z$8:Z70),BY71))),"") ->  | AB71: =IFERROR(IF(C71="","",IF(D71="","",IF($C71="TOTAL",SUM($AB$8:AB70),IF(C71=$AU$1,ROUND(D71*5/31,0.01),"")))),"") ->  | AC71: =IFERROR(IF(C71="","",IF(I71="","",IF($C71="TOTAL",SUM($AC$8:AC70),IF(C71=$AU$1,ROUND(I71*5/31,0.01),"")))),"") ->  | AE71: =IFERROR(IF(C71="","",IF(AND(BP72="",BW72=""),"",IF($C71="TOTAL",SUM($AE$8:AE70),BP72))),"") ->  | AF71: =IFERROR(IF(C71="","",IF($C71="TOTAL",SUM($AF$8:AF70),ROUND(R71*$AU$7%,0))),"") ->  | AH71: =IFERROR(IF(C71="","",IF($C71="TOTAL",SUM($AH$8:AH70),SUM(R71-AG71))),"") ->  | AQ71: 42 | AR71: 42 | AT71: 2022-03-01 | AU71: 2022-03-01 | AV71: 2024-06-01 | AW71: =IF(AND(AV71=""),"",IF(AND(AV71=$AT$9),$AT$9,IF(AND(AV71=$AT$10),$AT$10,IF(AND(AV71=$AT$11),$AT$11,IF(AND(AV71=$AT$12),$AT$12,IF(AND(AV71=$AT$13),$AT$13,IF(AND(AV71=$AT$14),$AT$14,IF(AND(AV71=$AT$15),$AT$15,IF(AND(AV71=$AT$16),$AT$16,IF(AND(AV71=$AT$17),$AT$17,IF(AND(AV71=$AT$18),$AT$18,IF(AND(AV71=$AT$19),$AT$19,IF(AND(AV71=$AT$20),$AT$20,IF(AND(AV71=$AT$21),$AT$21,IF(AND(AV71=$AT$22),$AT$22,IF(AND(AV71=$AT$23),$AT$23,IF(AND(AV71=$AT$24),$AT$24,IF(AND(AV71=$AT$25),$AT$25,IF(AND(AV71=$AT$26),$AT$26,IF(AND(AV71=$AT$27),$AT$27,IF(AND(AV71=$AT$28),$AT$28,IF(AND(AV71=$AT$29),$AT$29,IF(AND(AV71=$AT$30),$AT$30,IF(AND(AV71=$AT$31),$AT$31,IF(AND(AV71=$AT$32),$AT$32,IF(AND(AV71=$AT$33),$AT$33,IF(AND(AV71=$AT$34),$AT$34,IF(AND(AV71=$AT$35),$AT$35,IF(AND(AV71=$AT$36),$AT$36,IF(AND(AV71=$AT$37),$AT$37,IF(AND(AV71=$AT$38),$AT$38,IF(AND(AV71=$AT$39),$AT$39,IF(AND(AV71=$AT$40),$AT$40,IF(AND(AV71=$AT$41),$AT$41,IF(AND(AV71=$AT$42),$AT$42,IF(AND(AV71=$AT$43),$AT$43,IF(AND(AV71=$AT$44),$AT$44,IF(AND(AV71=$AT$45),$AT$45,IF(AND(AV71=$AT$46),$AT$46,IF(AND(AV71=$AT$47),$AT$47,IF(AND(AV71=$AT$48),$AT$48,IF(AND(AV71=$AT$49),$AT$49,IF(AND(AV71=$AT$50),$AT$50,IF(AND(AV71=$AT$51),$AT$51,IF(AND(AV71=$AT$52),$AT$52,IF(AND(AV71=$AT$53),$AT$53,IF(AND(AV71=$AT$54),$AT$54,IF(AND(AV71=$AT$55),$AT$55,IF(AND(AV71=$AT$56),$AT$56,IF(AND(AV71=$AT$57),$AT$57,IF(AND(AV71=$AT$58),$AT$58,IF(AND(AV71=$AT$59),$AT$59,IF(AND(AV71=$AT$60),$AT$60,IF(AND(AV71=$AT$61),$AT$61,IF(AND(AV71=$AT$62),$AT$62,IF(AND(AV71=$AT$63),$AT$63,IF(AND(AV71=$AT$64),$AT$64,IF(AND(AV71=$AT$65),$AT$65,IF(AND(AV71=$AT$66),$AT$66,IF(AND(AV71=$AT$67),$AT$67,IF(AND(AV71=$AT$68),$AT$68,IF(AND(AV71=$AT$69),$AT$69,IF(AND(AV71=$AT$70),$AT$70,IF(AND(AV71=$AT$71),$AT$71,"")))))))))))))))))))))))))))))))))))))))))))))))))))))))))))))))) ->  | AY71: =IFERROR(IF(AND(AW71="",AX71=""),"",IF(AW71="",AX71,AW71)),"") ->  | BQ71: 0 | BR71: 0 | BZ71: =IF(AZ72="","",IF(AZ72="TOTAL","",IF($AU$16=$AU$17,0,IF(AND(AZ72>$BY$1,$AI$3=$AR$2,'Master Sheet'!$D$27>0),'Master Sheet'!$D$27,IF(AND(AZ72=$BY$1),IF($AU$9<18001,135,IF($AU$9<33501,220,IF($AU$9<54001,330,440))),IF(AND(AZ72>$BY$1),IF($AU$9<18001,265,IF($AU$9<33501,440,IF($AU$9<54001,658,875))),"")))))) -> 
D72: =IFERROR(IF($C71="TOTAL","अक्षरें राशि :-",IF($C72="TOTAL",SUM($D$8:D71),IF(BA73="","",BA73))),"") ->  | E72: =IFERROR(IF($C72="TOTAL",SUM($E$8:E71),IF(BC73="","",BC73)),"") ->  | F72: =IFERROR(IF($C72="TOTAL",SUM($F$8:F71),IF(BD73="","",BD73)),"") ->  | G72: =IFERROR(IF($C72="TOTAL",SUM($G$8:G71),IF(BB73="","",BB73)),"") ->  | I72: =IFERROR(IF($C72="TOTAL",SUM($I$8:I71),IF(BF73="","",BF73)),"") ->  | J72: =IFERROR(IF($C72="TOTAL",SUM($J$8:J71),IF(BH73="","",BH73)),"") ->  | K72: =IFERROR(IF($C72="TOTAL",SUM($K$8:K71),IF(BI73="","",BI73)),"") ->  | L72: =IFERROR(IF($C72="TOTAL",SUM($L$8:L71),IF(BG73="","",BG73)),"") ->  | N72: =IFERROR(IF(C72="","",IF(D72="","",IF(I72="","",IF($C72="TOTAL",SUM($N$8:N71),SUM(D72-I72))))),"") ->  | O72: =IFERROR(IF(C72="","",IF(E72="","",IF(J72="","",IF($C72="TOTAL",SUM($O$8:O71),SUM(E72-J72))))),"") ->  | P72: =IFERROR(IF(C72="","",IF(F72="","",IF(K72="","",IF($C72="TOTAL",SUM($P$8:P71),SUM(F72-K72))))),"") ->  | S72: =IFERROR(IF(C72="","",IF($C72="TOTAL",SUM($S$8:S71),IF(AND(C72>$AR$1,$AI$3=$AR$2),BW73,IF($AU$18=$AU$20,SUM(BJ73+BR73),ROUND((D72+E72)*10%,0))))),"") ->  | T72: =IFERROR(IF(C72="","",IF(I72="","",IF(J72="","",IF($C72="TOTAL",SUM($T$8:T71),IF(AND(C72>$AR$1,$AI$3=$AR$2),BW73,IF($AU$18=$AU$20,$AU$21,ROUND((I72+J72)*10%,0))))))),"") ->  | V72: =IFERROR(IF(C72="","",IF($AU$16=$AU$17,0,IF($C72="TOTAL",SUM($V$8:V71),IF($AU$19=$AU$20,$AU$25,0)))),"") ->  | W72: =IFERROR(IF(C72="","",IF($AU$16=$AU$17,0,IF($C72="TOTAL",SUM($W$8:W71),IF($AU$19=$AU$20,$AU$24,0)))),"") ->  | Y72: =IFERROR(IF(C72="","",IF($AU$16=$AU$17,0,IF($C72="TOTAL",SUM($Y$8:Y71),BZ72))),"") ->  | Z72: =IFERROR(IF(C72="","",IF($AU$16=$AU$17,0,IF($C72="TOTAL",SUM($Z$8:Z71),BY72))),"") ->  | AA72: =IFERROR(IF(C72="","",SUM(Y72-Z72)),"") ->  | AB72: =IFERROR(IF(C72="","",IF(D72="","",IF($C72="TOTAL",SUM($AB$8:AB71),IF(C72=$AU$1,ROUND(D72*5/31,0.01),"")))),"") ->  | AC72: =IFERROR(IF(C72="","",IF(I72="","",IF($C72="TOTAL",SUM($AC$8:AC71),IF(C72=$AU$1,ROUND(I72*5/31,0.01),"")))),"") ->  | AE72: =IFERROR(IF(C72="","",IF(AND(BP73="",BW73=""),"",IF($C72="TOTAL",SUM($AE$8:AE71),BP73))),"") ->  | AF72: =IFERROR(IF(C72="","",IF($C72="TOTAL",SUM($AF$8:AF71),ROUND(R72*$AU$7%,0))),"") ->  | AH72: =IFERROR(IF(C72="","",IF($C72="TOTAL",SUM($AH$8:AH71),SUM(R72-AG72))),"") ->  | AQ72: 42 | AR72: 42 | AT72: 2022-04-01 | AU72: 2022-04-01 | AV72: 2024-07-01 | AW72: =IF(AND(AV72=""),"",IF(AND(AV72=$AT$9),$AT$9,IF(AND(AV72=$AT$10),$AT$10,IF(AND(AV72=$AT$11),$AT$11,IF(AND(AV72=$AT$12),$AT$12,IF(AND(AV72=$AT$13),$AT$13,IF(AND(AV72=$AT$14),$AT$14,IF(AND(AV72=$AT$15),$AT$15,IF(AND(AV72=$AT$16),$AT$16,IF(AND(AV72=$AT$17),$AT$17,IF(AND(AV72=$AT$18),$AT$18,IF(AND(AV72=$AT$19),$AT$19,IF(AND(AV72=$AT$20),$AT$20,IF(AND(AV72=$AT$21),$AT$21,IF(AND(AV72=$AT$22),$AT$22,IF(AND(AV72=$AT$23),$AT$23,IF(AND(AV72=$AT$24),$AT$24,IF(AND(AV72=$AT$25),$AT$25,IF(AND(AV72=$AT$26),$AT$26,IF(AND(AV72=$AT$27),$AT$27,IF(AND(AV72=$AT$28),$AT$28,IF(AND(AV72=$AT$29),$AT$29,IF(AND(AV72=$AT$30),$AT$30,IF(AND(AV72=$AT$31),$AT$31,IF(AND(AV72=$AT$32),$AT$32,IF(AND(AV72=$AT$33),$AT$33,IF(AND(AV72=$AT$34),$AT$34,IF(AND(AV72=$AT$35),$AT$35,IF(AND(AV72=$AT$36),$AT$36,IF(AND(AV72=$AT$37),$AT$37,IF(AND(AV72=$AT$38),$AT$38,IF(AND(AV72=$AT$39),$AT$39,IF(AND(AV72=$AT$40),$AT$40,IF(AND(AV72=$AT$41),$AT$41,IF(AND(AV72=$AT$42),$AT$42,IF(AND(AV72=$AT$43),$AT$43,IF(AND(AV72=$AT$44),$AT$44,IF(AND(AV72=$AT$45),$AT$45,IF(AND(AV72=$AT$46),$AT$46,IF(AND(AV72=$AT$47),$AT$47,IF(AND(AV72=$AT$48),$AT$48,IF(AND(AV72=$AT$49),$AT$49,IF(AND(AV72=$AT$50),$AT$50,IF(AND(AV72=$AT$51),$AT$51,IF(AND(AV72=$AT$52),$AT$52,IF(AND(AV72=$AT$53),$AT$53,IF(AND(AV72=$AT$54),$AT$54,IF(AND(AV72=$AT$55),$AT$55,IF(AND(AV72=$AT$56),$AT$56,IF(AND(AV72=$AT$57),$AT$57,IF(AND(AV72=$AT$58),$AT$58,IF(AND(AV72=$AT$59),$AT$59,IF(AND(AV72=$AT$60),$AT$60,IF(AND(AV72=$AT$61),$AT$61,IF(AND(AV72=$AT$62),$AT$62,IF(AND(AV72=$AT$63),$AT$63,IF(AND(AV72=$AT$64),$AT$64,IF(AND(AV72=$AT$65),$AT$65,IF(AND(AV72=$AT$66),$AT$66,IF(AND(AV72=$AT$67),$AT$67,IF(AND(AV72=$AT$68),$AT$68,IF(AND(AV72=$AT$69),$AT$69,IF(AND(AV72=$AT$70),$AT$70,IF(AND(AV72=$AT$71),$AT$71,"")))))))))))))))))))))))))))))))))))))))))))))))))))))))))))))))) ->  | AX72: =IF(AND(AV72=""),"",IF(AND(AV72=$AT$72),$AU$72,IF(AND(AV72=$AT$73),$AU$73,IF(AND(AV72=$AT$74),$AU$74,IF(AND(AV72=$AT$75),$AU$75,IF(AND(AV72=$AT$76),$AU$76,IF(AND(AV72=$AT$77),$AU$77,IF(AND(AV72=$AT$78),$AU$78,IF(AND(AV72=$AT$79),$AU$79,IF(AND(AV72=$AT$80),$AU$80,IF(AND(AV72=$AT$81),$AU$81,IF(AND(AV72=$AT$82),$AU$82,IF(AND(AV72=$AT$83),$AU$83,IF(AND(AV72=$AT$84),$AU$84,IF(AND(AV72=$AT$85),$AU$85,IF(AND(AV72=$AT$86),$AU$86,IF(AND(AV72=$AT$87),$AU$87,IF(AND(AV72=$AT$88),$AU$88,IF(AND(AV72=$AT$89),$AU$89,IF(AND(AV72=$AT$90),$AU$90,IF(AND(AV72=$AT$91),$AU$91,IF(AND(AV72=$AT$92),$AU$92,IF(AND(AV72=$AT$93),$AU$93,""))))))))))))))))))))))) ->  | AY72: =IFERROR(IF(AND(AW72="",AX72=""),"",IF(AW72="",AX72,AW72)),"") ->  | BA72: =IFERROR(IF(AZ72="","",IF(AND($AU$20=$AU$28,$AU$30=AZ72),$AU$29,IF(OR(AZ72=$BD$2,AZ72=$BD$3,AZ72=$BD$4,AZ72=$BD$5,AZ72=$BD$6,AZ72=$BD$7,AZ72=$BE$2),MROUND(BA71*1.03,100),BA71))),"") ->  | BQ72: 0 | BR72: 0 | BZ72: =IF(AZ73="","",IF(AZ73="TOTAL","",IF($AU$16=$AU$17,0,IF(AND(AZ73>$BY$1,$AI$3=$AR$2,'Master Sheet'!$D$27>0),'Master Sheet'!$D$27,IF(AND(AZ73=$BY$1),IF($AU$9<18001,135,IF($AU$9<33501,220,IF($AU$9<54001,330,440))),IF(AND(AZ73>$BY$1),IF($AU$9<18001,265,IF($AU$9<33501,440,IF($AU$9<54001,658,875))),"")))))) -> 
B73: =IFERROR(IF(A73="","",IF(A73=0,"",A73)),"") ->  | C73: =IFERROR(IF(AZ74="","",AZ74),"") ->  | D73: =IFERROR(IF($C72="TOTAL","अक्षरें राशि :-",IF($C73="TOTAL",SUM($D$8:D72),IF(BA74="","",BA74))),"") ->  | E73: =IFERROR(IF($C73="TOTAL",SUM($E$8:E72),IF(BC74="","",BC74)),"") ->  | F73: =IFERROR(IF($C73="TOTAL",SUM($F$8:F72),IF(BD74="","",BD74)),"") ->  | G73: =IFERROR(IF($C73="TOTAL",SUM($G$8:G72),IF(BB74="","",BB74)),"") ->  | H73: =IF(C73="","",SUM(D73:G73)) ->  | I73: =IFERROR(IF($C73="TOTAL",SUM($I$8:I72),IF(BF74="","",BF74)),"") ->  | J73: =IFERROR(IF($C73="TOTAL",SUM($J$8:J72),IF(BH74="","",BH74)),"") ->  | K73: =IFERROR(IF($C73="TOTAL",SUM($K$8:K72),IF(BI74="","",BI74)),"") ->  | L73: =IFERROR(IF($C73="TOTAL",SUM($L$8:L72),IF(BG74="","",BG74)),"") ->  | M73: =IF(C73="","",SUM(I73:L73)) ->  | N73: =IFERROR(IF(C73="","",IF(D73="","",IF(I73="","",IF($C73="TOTAL",SUM($N$8:N72),SUM(D73-I73))))),"") ->  | O73: =IFERROR(IF(C73="","",IF(E73="","",IF(J73="","",IF($C73="TOTAL",SUM($O$8:O72),SUM(E73-J73))))),"") ->  | P73: =IFERROR(IF(C73="","",IF(F73="","",IF(K73="","",IF($C73="TOTAL",SUM($P$8:P72),SUM(F73-K73))))),"") ->  | Q73: =IFERROR(IF(D73="","",IF(G73="","",IF(L73="","",SUM(G73-L73)))),"") ->  | R73: =IFERROR(IF(C73="","",IF(H73="","",IF(M73="","",SUM(H73-M73)))),"") ->  | S73: =IFERROR(IF(C73="","",IF($C73="TOTAL",SUM($S$8:S72),IF(AND(C73>$AR$1,$AI$3=$AR$2),BW74,IF($AU$18=$AU$20,SUM(BJ74+BR74),ROUND((D73+E73)*10%,0))))),"") ->  | T73: =IFERROR(IF(C73="","",IF(I73="","",IF(J73="","",IF($C73="TOTAL",SUM($T$8:T72),IF(AND(C73>$AR$1,$AI$3=$AR$2),BW74,IF($AU$18=$AU$20,$AU$21,ROUND((I73+J73)*10%,0))))))),"") ->  | U73: =IFERROR(IF(C73="","",SUM(S73-T73)),"") ->  | V73: =IFERROR(IF(C73="","",IF($AU$16=$AU$17,0,IF($C73="TOTAL",SUM($V$8:V72),IF($AU$19=$AU$20,$AU$25,0)))),"") ->  | W73: =IFERROR(IF(C73="","",IF($AU$16=$AU$17,0,IF($C73="TOTAL",SUM($W$8:W72),IF($AU$19=$AU$20,$AU$24,0)))),"") ->  | X73: =IFERROR(IF(C73="","",SUM(V73-W73)),"") ->  | Y73: =IFERROR(IF(C73="","",IF($AU$16=$AU$17,0,IF($C73="TOTAL",SUM($Y$8:Y72),BZ73))),"") ->  | Z73: =IFERROR(IF(C73="","",IF($AU$16=$AU$17,0,IF($C73="TOTAL",SUM($Z$8:Z72),BY73))),"") ->  | AB73: =IFERROR(IF(C73="","",IF(D73="","",IF($C73="TOTAL",SUM($AB$8:AB72),IF(C73=$AU$1,ROUND(D73*5/31,0.01),"")))),"") ->  | AC73: =IFERROR(IF(C73="","",IF(I73="","",IF($C73="TOTAL",SUM($AC$8:AC72),IF(C73=$AU$1,ROUND(I73*5/31,0.01),"")))),"") ->  | AE73: =IFERROR(IF(C73="","",IF(AND(BP74="",BW74=""),"",IF($C73="TOTAL",SUM($AE$8:AE72),BP74))),"") ->  | AF73: =IFERROR(IF(C73="","",IF($C73="TOTAL",SUM($AF$8:AF72),ROUND(R73*$AU$7%,0))),"") ->  | AG73: =IFERROR(IF(C73="","",IF($AI$3="GPF",SUM(U73,X73,AA73,AD73,AE73,AF73),SUM(U73,X73,AA73,AD73,AE73,AF73))),"") ->  | AH73: =IFERROR(IF(C73="","",IF($C73="TOTAL",SUM($AH$8:AH72),SUM(R73-AG73))),"") ->  | AQ73: 42 | AR73: 42 | AT73: 2022-05-01 | AU73: 2022-05-01 | AV73: 2024-08-01 | AX73: =IF(AND(AV73=""),"",IF(AND(AV73=$AT$72),$AU$72,IF(AND(AV73=$AT$73),$AU$73,IF(AND(AV73=$AT$74),$AU$74,IF(AND(AV73=$AT$75),$AU$75,IF(AND(AV73=$AT$76),$AU$76,IF(AND(AV73=$AT$77),$AU$77,IF(AND(AV73=$AT$78),$AU$78,IF(AND(AV73=$AT$79),$AU$79,IF(AND(AV73=$AT$80),$AU$80,IF(AND(AV73=$AT$81),$AU$81,IF(AND(AV73=$AT$82),$AU$82,IF(AND(AV73=$AT$83),$AU$83,IF(AND(AV73=$AT$84),$AU$84,IF(AND(AV73=$AT$85),$AU$85,IF(AND(AV73=$AT$86),$AU$86,IF(AND(AV73=$AT$87),$AU$87,IF(AND(AV73=$AT$88),$AU$88,IF(AND(AV73=$AT$89),$AU$89,IF(AND(AV73=$AT$90),$AU$90,IF(AND(AV73=$AT$91),$AU$91,IF(AND(AV73=$AT$92),$AU$92,IF(AND(AV73=$AT$93),$AU$93,""))))))))))))))))))))))) ->  | AZ73: =IFERROR(IF(AY73="","",IF(DATE(YEAR(AY73),MONTH(AY73),DAY(AY73))=DATE(YEAR($AV$6),MONTH($AV$6)+1,DAY($AV$6)),"TOTAL",IF(AY73>$AV$6,"",AY73))),"") ->  | BP73: =IF(BO73="","",IF($AU$16=$AU$17,ROUND((D72)*3%,0),IF(OR(AZ73=$AT$63,AZ73=$AT$64,AZ73=$AT$65),SUM(ROUND((D72-I72)*3%,0)),IF(OR(AZ73=$AT$69,AZ73=$AT$70,AZ73=$AT$71),SUM(ROUND((D72-I72)*3%,0)),"")))) ->  | BQ73: =IFERROR(IF(AND($AU$16=$AU$17,BO73="YES"),ROUND(ROUND(D72*3%,0)*10%,0),IF(AND($AU$16=$AU$15,BO73="YES",$AS$7="NO"),ROUND(ROUND((N72+I72)*3%,0)*10%,0),IF(AND($AU$16=$AU$15,BO73="YES",$AS$7="YES"),ROUND(ROUND((N72+O72)*3%,0)*10%,0),0))),"") -> 0 | BR73: =IF(AND($AU$16=$AU$17,BO73="YES"),ROUND(D72*3%,0),IF(AND($AU$16=$AU$15,BO73="YES",$AS$7="NO"),ROUND((N72+I72)*3%,0),IF(AND($AU$16=$AU$15,BO73="YES",$AS$7="YES"),ROUND((N72+O72)*3%,0),0))) -> 0 | BZ73: =IF(AZ74="","",IF(AZ74="TOTAL","",IF($AU$16=$AU$17,0,IF(AND(AZ74>$BY$1,$AI$3=$AR$2,'Master Sheet'!$D$27>0),'Master Sheet'!$D$27,IF(AND(AZ74=$BY$1),IF($AU$9<18001,135,IF($AU$9<33501,220,IF($AU$9<54001,330,440))),IF(AND(AZ74>$BY$1),IF($AU$9<18001,265,IF($AU$9<33501,440,IF($AU$9<54001,658,875))),"")))))) -> 
D74: =IFERROR(IF($C73="TOTAL","अक्षरें राशि :-",IF($C74="TOTAL",SUM($D$8:D73),IF(BA75="","",BA75))),"") ->  | E74: =IFERROR(IF($C74="TOTAL",SUM($E$8:E73),IF(BC75="","",BC75)),"") ->  | F74: =IFERROR(IF($C74="TOTAL",SUM($F$8:F73),IF(BD75="","",BD75)),"") ->  | G74: =IFERROR(IF($C74="TOTAL",SUM($G$8:G73),IF(BB75="","",BB75)),"") ->  | I74: =IFERROR(IF($C74="TOTAL",SUM($I$8:I73),IF(BF75="","",BF75)),"") ->  | J74: =IFERROR(IF($C74="TOTAL",SUM($J$8:J73),IF(BH75="","",BH75)),"") ->  | K74: =IFERROR(IF($C74="TOTAL",SUM($K$8:K73),IF(BI75="","",BI75)),"") ->  | L74: =IFERROR(IF($C74="TOTAL",SUM($L$8:L73),IF(BG75="","",BG75)),"") ->  | N74: =IFERROR(IF(C74="","",IF(D74="","",IF(I74="","",IF($C74="TOTAL",SUM($N$8:N73),SUM(D74-I74))))),"") ->  | O74: =IFERROR(IF(C74="","",IF(E74="","",IF(J74="","",IF($C74="TOTAL",SUM($O$8:O73),SUM(E74-J74))))),"") ->  | P74: =IFERROR(IF(C74="","",IF(F74="","",IF(K74="","",IF($C74="TOTAL",SUM($P$8:P73),SUM(F74-K74))))),"") ->  | S74: =IFERROR(IF(C74="","",IF($C74="TOTAL",SUM($S$8:S73),IF(AND(C74>$AR$1,$AI$3=$AR$2),BW75,IF($AU$18=$AU$20,SUM(BJ75+BR75),ROUND((D74+E74)*10%,0))))),"") ->  | T74: =IFERROR(IF(C74="","",IF(I74="","",IF(J74="","",IF($C74="TOTAL",SUM($T$8:T73),IF(AND(C74>$AR$1,$AI$3=$AR$2),BW75,IF($AU$18=$AU$20,$AU$21,ROUND((I74+J74)*10%,0))))))),"") ->  | V74: =IFERROR(IF(C74="","",IF($AU$16=$AU$17,0,IF($C74="TOTAL",SUM($V$8:V73),IF($AU$19=$AU$20,$AU$25,0)))),"") ->  | W74: =IFERROR(IF(C74="","",IF($AU$16=$AU$17,0,IF($C74="TOTAL",SUM($W$8:W73),IF($AU$19=$AU$20,$AU$24,0)))),"") ->  | Y74: =IFERROR(IF(C74="","",IF($AU$16=$AU$17,0,IF($C74="TOTAL",SUM($Y$8:Y73),BZ74))),"") ->  | Z74: =IFERROR(IF(C74="","",IF($AU$16=$AU$17,0,IF($C74="TOTAL",SUM($Z$8:Z73),BY74))),"") ->  | AB74: =IFERROR(IF(C74="","",IF(D74="","",IF($C74="TOTAL",SUM($AB$8:AB73),IF(C74=$AU$1,ROUND(D74*5/31,0.01),"")))),"") ->  | AC74: =IFERROR(IF(C74="","",IF(I74="","",IF($C74="TOTAL",SUM($AC$8:AC73),IF(C74=$AU$1,ROUND(I74*5/31,0.01),"")))),"") ->  | AD74: =IFERROR(IF(I74="","",SUM(AB74-AC74)),"") ->  | AE74: =IFERROR(IF(C74="","",IF(AND(BP75="",BW75=""),"",IF($C74="TOTAL",SUM($AE$8:AE73),BP75))),"") ->  | AF74: =IFERROR(IF(C74="","",IF($C74="TOTAL",SUM($AF$8:AF73),ROUND(R74*$AU$7%,0))),"") ->  | AH74: =IFERROR(IF(C74="","",IF($C74="TOTAL",SUM($AH$8:AH73),SUM(R74-AG74))),"") ->  | AQ74: =IF(OR(AZ74=$AT$9,AZ74=$AT$10,AZ74=$AT$11,AZ74=$AT$12,AZ74=$AT$13,AZ74=$AT$14),4,IF(OR(AZ74=$AT$15,AZ74=$AT$16,AZ74=$AT$17,AZ74=$AT$18,AZ74=$AT$19,AZ74=$AT$20),5,IF(OR(AZ74=$AT$21,AZ74=$AT$22,AZ74=$AT$23,AZ74=$AT$24,AZ74=$AT$25,AZ74=$AT$26),7,IF(OR(AZ74=$AT$27,AZ74=$AT$28,AZ74=$AT$29,AZ74=$AT$30,AZ74=$AT$31,AZ74=$AT$32),9,IF(OR(AZ74=$AT$33,AZ74=$AT$34,AZ74=$AT$35,AZ74=$AT$36,AZ74=$AT$37,AZ74=$AT$38),12,IF(OR(AZ74=$AT$39,AZ74=$AT$40,AZ74=$AT$41,AZ74=$AT$42,AZ74=$AT$43,AZ74=$AT$44,AZ74=$AT$45,AZ74=$AT$46,AZ74=$AT$47,AZ74=$AT$48,AZ74=$AT$49,AZ74=$AT$50,AZ74=$AT$51,AZ74=$AT$52,AZ74=$AT$53,AZ74=$AT$54,AZ74=$AT$55,AZ74=$AT$56,AZ74=$AT$57,AZ74=$AT$58,AZ74=$AT$59,AZ74=$AT$60,AZ74=$AT$61,AZ74=$AT$62),17,IF(OR(AZ74=$AT$63,AZ74=$AT$64,AZ74=$AT$65,AZ74=$AT$66,AZ74=$AT$67,AZ74=$AT$68),31,IF(OR(AZ74=$AT$69,AZ74=$AT$70,AZ74=$AT$71,AZ74=$AT$72,AZ74=$AT$73,AZ74=$AT$74),34,IF(OR(AZ74=$AT$75,AZ74=$AT$76,AZ74=$AT$77,AZ74=$AT$78,AZ74=$AT$79,AZ74=$AT$80),38,42))))))))) -> 42 | AR74: =IF(OR(AZ74=$AT$9,AZ74=$AT$10,AZ74=$AT$11,AZ74=$AT$12,AZ74=$AT$13,AZ74=$AT$14),4,IF(OR(AZ74=$AT$15,AZ74=$AT$16,AZ74=$AT$17,AZ74=$AT$18,AZ74=$AT$19,AZ74=$AT$20),5,IF(OR(AZ74=$AT$21,AZ74=$AT$22,AZ74=$AT$23,AZ74=$AT$24,AZ74=$AT$25,AZ74=$AT$26),7,IF(OR(AZ74=$AT$27,AZ74=$AT$28,AZ74=$AT$29,AZ74=$AT$30,AZ74=$AT$31,AZ74=$AT$32),9,IF(OR(AZ74=$AT$33,AZ74=$AT$34,AZ74=$AT$35,AZ74=$AT$36,AZ74=$AT$37,AZ74=$AT$38),12,IF(OR(AZ74=$AT$39,AZ74=$AT$40,AZ74=$AT$41,AZ74=$AT$42,AZ74=$AT$43,AZ74=$AT$44,AZ74=$AT$45,AZ74=$AT$46,AZ74=$AT$47,AZ74=$AT$48,AZ74=$AT$49,AZ74=$AT$50,AZ74=$AT$51,AZ74=$AT$52,AZ74=$AT$53,AZ74=$AT$54,AZ74=$AT$55,AZ74=$AT$56,AZ74=$AT$57,AZ74=$AT$58,AZ74=$AT$59,AZ74=$AT$60,AZ74=$AT$61,AZ74=$AT$62),17,IF(OR(AZ74=$AT$63,AZ74=$AT$64,AZ74=$AT$65,AZ74=$AT$66,AZ74=$AT$67,AZ74=$AT$68),31,IF(OR(AZ74=$AT$69,AZ74=$AT$70,AZ74=$AT$71,AZ74=$AT$72,AZ74=$AT$73,AZ74=$AT$74),34,IF(OR(AZ74=$AT$75,AZ74=$AT$76,AZ74=$AT$77,AZ74=$AT$78,AZ74=$AT$79,AZ74=$AT$80),38,42))))))))) -> 42 | AT74: 2022-06-01 | AU74: 2022-06-01 | AV74: 2024-09-01 | AW74: =IF(AND(AV74=""),"",IF(AND(AV74=$AT$9),$AT$9,IF(AND(AV74=$AT$10),$AT$10,IF(AND(AV74=$AT$11),$AT$11,IF(AND(AV74=$AT$12),$AT$12,IF(AND(AV74=$AT$13),$AT$13,IF(AND(AV74=$AT$14),$AT$14,IF(AND(AV74=$AT$15),$AT$15,IF(AND(AV74=$AT$16),$AT$16,IF(AND(AV74=$AT$17),$AT$17,IF(AND(AV74=$AT$18),$AT$18,IF(AND(AV74=$AT$19),$AT$19,IF(AND(AV74=$AT$20),$AT$20,IF(AND(AV74=$AT$21),$AT$21,IF(AND(AV74=$AT$22),$AT$22,IF(AND(AV74=$AT$23),$AT$23,IF(AND(AV74=$AT$24),$AT$24,IF(AND(AV74=$AT$25),$AT$25,IF(AND(AV74=$AT$26),$AT$26,IF(AND(AV74=$AT$27),$AT$27,IF(AND(AV74=$AT$28),$AT$28,IF(AND(AV74=$AT$29),$AT$29,IF(AND(AV74=$AT$30),$AT$30,IF(AND(AV74=$AT$31),$AT$31,IF(AND(AV74=$AT$32),$AT$32,IF(AND(AV74=$AT$33),$AT$33,IF(AND(AV74=$AT$34),$AT$34,IF(AND(AV74=$AT$35),$AT$35,IF(AND(AV74=$AT$36),$AT$36,IF(AND(AV74=$AT$37),$AT$37,IF(AND(AV74=$AT$38),$AT$38,IF(AND(AV74=$AT$39),$AT$39,IF(AND(AV74=$AT$40),$AT$40,IF(AND(AV74=$AT$41),$AT$41,IF(AND(AV74=$AT$42),$AT$42,IF(AND(AV74=$AT$43),$AT$43,IF(AND(AV74=$AT$44),$AT$44,IF(AND(AV74=$AT$45),$AT$45,IF(AND(AV74=$AT$46),$AT$46,IF(AND(AV74=$AT$47),$AT$47,IF(AND(AV74=$AT$48),$AT$48,IF(AND(AV74=$AT$49),$AT$49,IF(AND(AV74=$AT$50),$AT$50,IF(AND(AV74=$AT$51),$AT$51,IF(AND(AV74=$AT$52),$AT$52,IF(AND(AV74=$AT$53),$AT$53,IF(AND(AV74=$AT$54),$AT$54,IF(AND(AV74=$AT$55),$AT$55,IF(AND(AV74=$AT$56),$AT$56,IF(AND(AV74=$AT$57),$AT$57,IF(AND(AV74=$AT$58),$AT$58,IF(AND(AV74=$AT$59),$AT$59,IF(AND(AV74=$AT$60),$AT$60,IF(AND(AV74=$AT$61),$AT$61,IF(AND(AV74=$AT$62),$AT$62,IF(AND(AV74=$AT$63),$AT$63,IF(AND(AV74=$AT$64),$AT$64,IF(AND(AV74=$AT$65),$AT$65,IF(AND(AV74=$AT$66),$AT$66,IF(AND(AV74=$AT$67),$AT$67,IF(AND(AV74=$AT$68),$AT$68,IF(AND(AV74=$AT$69),$AT$69,IF(AND(AV74=$AT$70),$AT$70,IF(AND(AV74=$AT$71),$AT$71,"")))))))))))))))))))))))))))))))))))))))))))))))))))))))))))))))) ->  | AY74: =IFERROR(IF(AND(AW74="",AX74=""),"",IF(AW74="",AX74,AW74)),"") ->  | AZ74: =IFERROR(IF(AY74="","",IF(DATE(YEAR(AY74),MONTH(AY74),DAY(AY74))=DATE(YEAR($AV$6),MONTH($AV$6)+1,DAY($AV$6)),"TOTAL",IF(AY74>$AV$6,"",AY74))),"") ->  | BB74: =IF(AZ74="","",IF(AZ74="TOTAL","",ROUND((BA74*20/100),0.01))) ->  | BC74: =IF(AZ74="","",IF(AZ74="TOTAL","",ROUND((BA74+BB74)*AQ74%,0))) ->  | BG74: =IF(AZ74="","",IF(AZ74="TOTAL","",ROUND((BF74*20/100),0.01))) ->  | BH74: =IF(AZ74="","",IF(BF74="","",IF($AU$16=$AU$17,0,ROUND((BF74+BG74)*AR74%,0)))) ->  | BJ74: =IF(AZ74="","",IF(AZ74="TOTAL","",IF(BF74="","",IF($AU$16=$AU$17,0,IF(OR(C73=$AS$16,C73=$AS$17,C73=$AS$18,C73=$AS$19,C73=$AS$20,C73=$AS$21,C73=$AS$22,C73=$AS$23,C73=$AS$24),SUM(BM74+BN74),BN74))))) ->  | BM74: =IF(AZ74="","",IF(AZ74="TOTAL","",IF(BF74="","",SUM(R73)-SUM(($AU$22-$AU$21)+SUM(X73,AA73,AF73))))) ->  | BN74: =IF(AZ73="","",IF(AZ73="TOTAL","",IF(AND($AU$20=$AU$36,C74=$AU$37),$AU$38,BN73))) ->  | BO74: =IF(OR(AZ74=$AT$63,AZ74=$AT$64,AZ74=$AT$65),"YES","") ->  | BQ74: 0 | BR74: 0 | BW74: =IF(AZ74="","",IF(AZ74="TOTAL","",IF(AND(AZ74>$AR$1,$AI$3=$AR$2),$AY$1,""))) ->  | BY74: =IF(AZ75="","",IF(AZ75="TOTAL","",IF($AU$16=$AU$17,0,IF(AND(AZ75=$BY$1),IF($AU$14<18001,135,IF($AU$14<33501,220,IF($AU$14<54001,330,440))),IF(AND(AZ75>$BY$1),IF($AU$14<18001,265,IF($AU$14<33501,440,IF($AU$14<54001,658,875))),""))))) ->  | BZ74: =IF(AZ75="","",IF(AZ75="TOTAL","",IF($AU$16=$AU$17,0,IF(AND(AZ75>$BY$1,$AI$3=$AR$2,'Master Sheet'!$D$27>0),'Master Sheet'!$D$27,IF(AND(AZ75=$BY$1),IF($AU$9<18001,135,IF($AU$9<33501,220,IF($AU$9<54001,330,440))),IF(AND(AZ75>$BY$1),IF($AU$9<18001,265,IF($AU$9<33501,440,IF($AU$9<54001,658,875))),"")))))) -> 
D75: =IFERROR(IF($C74="TOTAL","अक्षरें राशि :-",IF($C75="TOTAL",SUM($D$8:D74),IF(BA76="","",BA76))),"") ->  | E75: =IFERROR(IF($C75="TOTAL",SUM($E$8:E74),IF(BC76="","",BC76)),"") ->  | F75: =IFERROR(IF($C75="TOTAL",SUM($F$8:F74),IF(BD76="","",BD76)),"") ->  | G75: =IFERROR(IF($C75="TOTAL",SUM($G$8:G74),IF(BB76="","",BB76)),"") ->  | I75: =IFERROR(IF($C75="TOTAL",SUM($I$8:I74),IF(BF76="","",BF76)),"") ->  | J75: =IFERROR(IF($C75="TOTAL",SUM($J$8:J74),IF(BH76="","",BH76)),"") ->  | K75: =IFERROR(IF($C75="TOTAL",SUM($K$8:K74),IF(BI76="","",BI76)),"") ->  | L75: =IFERROR(IF($C75="TOTAL",SUM($L$8:L74),IF(BG76="","",BG76)),"") ->  | N75: =IFERROR(IF(C75="","",IF(D75="","",IF(I75="","",IF($C75="TOTAL",SUM($N$8:N74),SUM(D75-I75))))),"") ->  | O75: =IFERROR(IF(C75="","",IF(E75="","",IF(J75="","",IF($C75="TOTAL",SUM($O$8:O74),SUM(E75-J75))))),"") ->  | P75: =IFERROR(IF(C75="","",IF(F75="","",IF(K75="","",IF($C75="TOTAL",SUM($P$8:P74),SUM(F75-K75))))),"") ->  | S75: =IFERROR(IF(C75="","",IF($C75="TOTAL",SUM($S$8:S74),IF(AND(C75>$AR$1,$AI$3=$AR$2),BW76,IF($AU$18=$AU$20,SUM(BJ76+BR76),ROUND((D75+E75)*10%,0))))),"") ->  | T75: =IFERROR(IF(C75="","",IF(I75="","",IF(J75="","",IF($C75="TOTAL",SUM($T$8:T74),IF(AND(C75>$AR$1,$AI$3=$AR$2),BW76,IF($AU$18=$AU$20,$AU$21,ROUND((I75+J75)*10%,0))))))),"") ->  | V75: =IFERROR(IF(C75="","",IF($AU$16=$AU$17,0,IF($C75="TOTAL",SUM($V$8:V74),IF($AU$19=$AU$20,$AU$25,0)))),"") ->  | W75: =IFERROR(IF(C75="","",IF($AU$16=$AU$17,0,IF($C75="TOTAL",SUM($W$8:W74),IF($AU$19=$AU$20,$AU$24,0)))),"") ->  | Y75: =IFERROR(IF(C75="","",IF($AU$16=$AU$17,0,IF($C75="TOTAL",SUM($Y$8:Y74),BZ75))),"") ->  | Z75: =IFERROR(IF(C75="","",IF($AU$16=$AU$17,0,IF($C75="TOTAL",SUM($Z$8:Z74),BY75))),"") ->  | AB75: =IFERROR(IF(C75="","",IF(D75="","",IF($C75="TOTAL",SUM($AB$8:AB74),IF(C75=$AU$1,ROUND(D75*5/31,0.01),"")))),"") ->  | AC75: =IFERROR(IF(C75="","",IF(I75="","",IF($C75="TOTAL",SUM($AC$8:AC74),IF(C75=$AU$1,ROUND(I75*5/31,0.01),"")))),"") ->  | AE75: =IFERROR(IF(C75="","",IF(AND(BP76="",BW76=""),"",IF($C75="TOTAL",SUM($AE$8:AE74),BP76))),"") ->  | AF75: =IFERROR(IF(C75="","",IF($C75="TOTAL",SUM($AF$8:AF74),ROUND(R75*$AU$7%,0))),"") ->  | AH75: =IFERROR(IF(C75="","",IF($C75="TOTAL",SUM($AH$8:AH74),SUM(R75-AG75))),"") ->  | AQ75: 42 | AR75: 42 | AT75: 2022-07-01 | AU75: 2022-07-01 | AV75: 2024-10-01 | AZ75: =IFERROR(IF(AY75="","",IF(DATE(YEAR(AY75),MONTH(AY75),DAY(AY75))=DATE(YEAR($AV$6),MONTH($AV$6)+1,DAY($AV$6)),"TOTAL",IF(AY75>$AV$6,"",AY75))),"") ->  | BQ75: 0 | BR75: 0 | BZ75: =IF(AZ76="","",IF(AZ76="TOTAL","",IF($AU$16=$AU$17,0,IF(AND(AZ76>$BY$1,$AI$3=$AR$2,'Master Sheet'!$D$27>0),'Master Sheet'!$D$27,IF(AND(AZ76=$BY$1),IF($AU$9<18001,135,IF($AU$9<33501,220,IF($AU$9<54001,330,440))),IF(AND(AZ76>$BY$1),IF($AU$9<18001,265,IF($AU$9<33501,440,IF($AU$9<54001,658,875))),"")))))) -> 
A76: =IF(C76="TOTAL","",IF(B75="","",IF(LEN(C76)>=2,B75+1,0))) ->  | D76: =IFERROR(IF($C75="TOTAL","अक्षरें राशि :-",IF($C76="TOTAL",SUM($D$8:D75),IF(BA77="","",BA77))),"") ->  | E76: =IFERROR(IF($C76="TOTAL",SUM($E$8:E75),IF(BC77="","",BC77)),"") ->  | F76: =IFERROR(IF($C76="TOTAL",SUM($F$8:F75),IF(BD77="","",BD77)),"") ->  | G76: =IFERROR(IF($C76="TOTAL",SUM($G$8:G75),IF(BB77="","",BB77)),"") ->  | I76: =IFERROR(IF($C76="TOTAL",SUM($I$8:I75),IF(BF77="","",BF77)),"") ->  | J76: =IFERROR(IF($C76="TOTAL",SUM($J$8:J75),IF(BH77="","",BH77)),"") ->  | K76: =IFERROR(IF($C76="TOTAL",SUM($K$8:K75),IF(BI77="","",BI77)),"") ->  | L76: =IFERROR(IF($C76="TOTAL",SUM($L$8:L75),IF(BG77="","",BG77)),"") ->  | N76: =IFERROR(IF(C76="","",IF(D76="","",IF(I76="","",IF($C76="TOTAL",SUM($N$8:N75),SUM(D76-I76))))),"") ->  | O76: =IFERROR(IF(C76="","",IF(E76="","",IF(J76="","",IF($C76="TOTAL",SUM($O$8:O75),SUM(E76-J76))))),"") ->  | P76: =IFERROR(IF(C76="","",IF(F76="","",IF(K76="","",IF($C76="TOTAL",SUM($P$8:P75),SUM(F76-K76))))),"") ->  | S76: =IFERROR(IF(C76="","",IF($C76="TOTAL",SUM($S$8:S75),IF(AND(C76>$AR$1,$AI$3=$AR$2),BW77,IF($AU$18=$AU$20,SUM(BJ77+BR77),ROUND((D76+E76)*10%,0))))),"") ->  | T76: =IFERROR(IF(C76="","",IF(I76="","",IF(J76="","",IF($C76="TOTAL",SUM($T$8:T75),IF(AND(C76>$AR$1,$AI$3=$AR$2),BW77,IF($AU$18=$AU$20,$AU$21,ROUND((I76+J76)*10%,0))))))),"") ->  | V76: =IFERROR(IF(C76="","",IF($AU$16=$AU$17,0,IF($C76="TOTAL",SUM($V$8:V75),IF($AU$19=$AU$20,$AU$25,0)))),"") ->  | W76: =IFERROR(IF(C76="","",IF($AU$16=$AU$17,0,IF($C76="TOTAL",SUM($W$8:W75),IF($AU$19=$AU$20,$AU$24,0)))),"") ->  | Y76: =IFERROR(IF(C76="","",IF($AU$16=$AU$17,0,IF($C76="TOTAL",SUM($Y$8:Y75),BZ76))),"") ->  | Z76: =IFERROR(IF(C76="","",IF($AU$16=$AU$17,0,IF($C76="TOTAL",SUM($Z$8:Z75),BY76))),"") ->  | AB76: =IFERROR(IF(C76="","",IF(D76="","",IF($C76="TOTAL",SUM($AB$8:AB75),IF(C76=$AU$1,ROUND(D76*5/31,0.01),"")))),"") ->  | AC76: =IFERROR(IF(C76="","",IF(I76="","",IF($C76="TOTAL",SUM($AC$8:AC75),IF(C76=$AU$1,ROUND(I76*5/31,0.01),"")))),"") ->  | AE76: =IFERROR(IF(C76="","",IF(AND(BP77="",BW77=""),"",IF($C76="TOTAL",SUM($AE$8:AE75),BP77))),"") ->  | AF76: =IFERROR(IF(C76="","",IF($C76="TOTAL",SUM($AF$8:AF75),ROUND(R76*$AU$7%,0))),"") ->  | AH76: =IFERROR(IF(C76="","",IF($C76="TOTAL",SUM($AH$8:AH75),SUM(R76-AG76))),"") ->  | AQ76: 42 | AR76: 42 | AT76: 2022-08-01 | AU76: 2022-08-01 | AV76: 2024-11-01 | BA76: =IFERROR(IF(AZ76="","",IF(AND($AU$20=$AU$28,$AU$30=AZ76),$AU$29,IF(OR(AZ76=$BD$2,AZ76=$BD$3,AZ76=$BD$4,AZ76=$BD$5,AZ76=$BD$6,AZ76=$BD$7,AZ76=$BE$2),MROUND(BA75*1.03,100),BA75))),"") ->  | BD76: =IF(AZ76="","",IF(AZ76="TOTAL","",IF(AZ76>=$BC$7,ROUND(BA76*$BA$7%,0),ROUND(BA76*$AW$7%,0)))) ->  | BF76: =IFERROR(IF(AZ76="","",IF(AZ76="TOTAL","",IF($AU$16=$AU$17,$AU$10,IF(OR(AZ76=$BD$2,AZ76=$BD$3,AZ76=$BD$4,AZ76=$BD$5,AZ76=$BD$6,AZ76=$BD$7,AZ76=$BE$2),MROUND(BF75*1.03,100),BF75)))),"") ->  | BI76: =IF(AZ76="","",IF(AZ76="TOTAL","",IF(BF76="","",IF($AU$16=$AU$17,0,IF(AZ76>=$BC$7,ROUND(BF76*$BA$7%,0),ROUND(BF76*$AW$7%,0)))))) ->  | BQ76: 0 | BR76: 0 | BZ76: =IF(AZ77="","",IF(AZ77="TOTAL","",IF($AU$16=$AU$17,0,IF(AND(AZ77>$BY$1,$AI$3=$AR$2,'Master Sheet'!$D$27>0),'Master Sheet'!$D$27,IF(AND(AZ77=$BY$1),IF($AU$9<18001,135,IF($AU$9<33501,220,IF($AU$9<54001,330,440))),IF(AND(AZ77>$BY$1),IF($AU$9<18001,265,IF($AU$9<33501,440,IF($AU$9<54001,658,875))),"")))))) -> 
D77: =IFERROR(IF($C76="TOTAL","अक्षरें राशि :-",IF($C77="TOTAL",SUM($D$8:D76),IF(BA78="","",BA78))),"") ->  | E77: =IFERROR(IF($C77="TOTAL",SUM($E$8:E76),IF(BC78="","",BC78)),"") ->  | F77: =IFERROR(IF($C77="TOTAL",SUM($F$8:F76),IF(BD78="","",BD78)),"") ->  | G77: =IFERROR(IF($C77="TOTAL",SUM($G$8:G76),IF(BB78="","",BB78)),"") ->  | I77: =IFERROR(IF($C77="TOTAL",SUM($I$8:I76),IF(BF78="","",BF78)),"") ->  | J77: =IFERROR(IF($C77="TOTAL",SUM($J$8:J76),IF(BH78="","",BH78)),"") ->  | K77: =IFERROR(IF($C77="TOTAL",SUM($K$8:K76),IF(BI78="","",BI78)),"") ->  | L77: =IFERROR(IF($C77="TOTAL",SUM($L$8:L76),IF(BG78="","",BG78)),"") ->  | N77: =IFERROR(IF(C77="","",IF(D77="","",IF(I77="","",IF($C77="TOTAL",SUM($N$8:N76),SUM(D77-I77))))),"") ->  | O77: =IFERROR(IF(C77="","",IF(E77="","",IF(J77="","",IF($C77="TOTAL",SUM($O$8:O76),SUM(E77-J77))))),"") ->  | P77: =IFERROR(IF(C77="","",IF(F77="","",IF(K77="","",IF($C77="TOTAL",SUM($P$8:P76),SUM(F77-K77))))),"") ->  | S77: =IFERROR(IF(C77="","",IF($C77="TOTAL",SUM($S$8:S76),IF(AND(C77>$AR$1,$AI$3=$AR$2),BW78,IF($AU$18=$AU$20,SUM(BJ78+BR78),ROUND((D77+E77)*10%,0))))),"") ->  | T77: =IFERROR(IF(C77="","",IF(I77="","",IF(J77="","",IF($C77="TOTAL",SUM($T$8:T76),IF(AND(C77>$AR$1,$AI$3=$AR$2),BW78,IF($AU$18=$AU$20,$AU$21,ROUND((I77+J77)*10%,0))))))),"") ->  | V77: =IFERROR(IF(C77="","",IF($AU$16=$AU$17,0,IF($C77="TOTAL",SUM($V$8:V76),IF($AU$19=$AU$20,$AU$25,0)))),"") ->  | W77: =IFERROR(IF(C77="","",IF($AU$16=$AU$17,0,IF($C77="TOTAL",SUM($W$8:W76),IF($AU$19=$AU$20,$AU$24,0)))),"") ->  | Y77: =IFERROR(IF(C77="","",IF($AU$16=$AU$17,0,IF($C77="TOTAL",SUM($Y$8:Y76),BZ77))),"") ->  | Z77: =IFERROR(IF(C77="","",IF($AU$16=$AU$17,0,IF($C77="TOTAL",SUM($Z$8:Z76),BY77))),"") ->  | AB77: =IFERROR(IF(C77="","",IF(D77="","",IF($C77="TOTAL",SUM($AB$8:AB76),IF(C77=$AU$1,ROUND(D77*5/31,0.01),"")))),"") ->  | AC77: =IFERROR(IF(C77="","",IF(I77="","",IF($C77="TOTAL",SUM($AC$8:AC76),IF(C77=$AU$1,ROUND(I77*5/31,0.01),"")))),"") ->  | AE77: =IFERROR(IF(C77="","",IF(AND(BP78="",BW78=""),"",IF($C77="TOTAL",SUM($AE$8:AE76),BP78))),"") ->  | AF77: =IFERROR(IF(C77="","",IF($C77="TOTAL",SUM($AF$8:AF76),ROUND(R77*$AU$7%,0))),"") ->  | AH77: =IFERROR(IF(C77="","",IF($C77="TOTAL",SUM($AH$8:AH76),SUM(R77-AG77))),"") ->  | AQ77: 42 | AR77: 42 | AT77: 2022-09-01 | AU77: 2022-09-01 | AV77: 2024-12-01 | BQ77: 0 | BR77: 0 | BZ77: =IF(AZ78="","",IF(AZ78="TOTAL","",IF($AU$16=$AU$17,0,IF(AND(AZ78>$BY$1,$AI$3=$AR$2,'Master Sheet'!$D$27>0),'Master Sheet'!$D$27,IF(AND(AZ78=$BY$1),IF($AU$9<18001,135,IF($AU$9<33501,220,IF($AU$9<54001,330,440))),IF(AND(AZ78>$BY$1),IF($AU$9<18001,265,IF($AU$9<33501,440,IF($AU$9<54001,658,875))),"")))))) -> 
D78: =IFERROR(IF($C77="TOTAL","अक्षरें राशि :-",IF($C78="TOTAL",SUM($D$8:D77),IF(BA79="","",BA79))),"") ->  | E78: =IFERROR(IF($C78="TOTAL",SUM($E$8:E77),IF(BC79="","",BC79)),"") ->  | F78: =IFERROR(IF($C78="TOTAL",SUM($F$8:F77),IF(BD79="","",BD79)),"") ->  | G78: =IFERROR(IF($C78="TOTAL",SUM($G$8:G77),IF(BB79="","",BB79)),"") ->  | I78: =IFERROR(IF($C78="TOTAL",SUM($I$8:I77),IF(BF79="","",BF79)),"") ->  | J78: =IFERROR(IF($C78="TOTAL",SUM($J$8:J77),IF(BH79="","",BH79)),"") ->  | K78: =IFERROR(IF($C78="TOTAL",SUM($K$8:K77),IF(BI79="","",BI79)),"") ->  | L78: =IFERROR(IF($C78="TOTAL",SUM($L$8:L77),IF(BG79="","",BG79)),"") ->  | N78: =IFERROR(IF(C78="","",IF(D78="","",IF(I78="","",IF($C78="TOTAL",SUM($N$8:N77),SUM(D78-I78))))),"") ->  | O78: =IFERROR(IF(C78="","",IF(E78="","",IF(J78="","",IF($C78="TOTAL",SUM($O$8:O77),SUM(E78-J78))))),"") ->  | P78: =IFERROR(IF(C78="","",IF(F78="","",IF(K78="","",IF($C78="TOTAL",SUM($P$8:P77),SUM(F78-K78))))),"") ->  | S78: =IFERROR(IF(C78="","",IF($C78="TOTAL",SUM($S$8:S77),IF(AND(C78>$AR$1,$AI$3=$AR$2),BW79,IF($AU$18=$AU$20,SUM(BJ79+BR79),ROUND((D78+E78)*10%,0))))),"") ->  | T78: =IFERROR(IF(C78="","",IF(I78="","",IF(J78="","",IF($C78="TOTAL",SUM($T$8:T77),IF(AND(C78>$AR$1,$AI$3=$AR$2),BW79,IF($AU$18=$AU$20,$AU$21,ROUND((I78+J78)*10%,0))))))),"") ->  | V78: =IFERROR(IF(C78="","",IF($AU$16=$AU$17,0,IF($C78="TOTAL",SUM($V$8:V77),IF($AU$19=$AU$20,$AU$25,0)))),"") ->  | W78: =IFERROR(IF(C78="","",IF($AU$16=$AU$17,0,IF($C78="TOTAL",SUM($W$8:W77),IF($AU$19=$AU$20,$AU$24,0)))),"") ->  | Y78: =IFERROR(IF(C78="","",IF($AU$16=$AU$17,0,IF($C78="TOTAL",SUM($Y$8:Y77),BZ78))),"") ->  | Z78: =IFERROR(IF(C78="","",IF($AU$16=$AU$17,0,IF($C78="TOTAL",SUM($Z$8:Z77),BY78))),"") ->  | AB78: =IFERROR(IF(C78="","",IF(D78="","",IF($C78="TOTAL",SUM($AB$8:AB77),IF(C78=$AU$1,ROUND(D78*5/31,0.01),"")))),"") ->  | AC78: =IFERROR(IF(C78="","",IF(I78="","",IF($C78="TOTAL",SUM($AC$8:AC77),IF(C78=$AU$1,ROUND(I78*5/31,0.01),"")))),"") ->  | AE78: =IFERROR(IF(C78="","",IF(AND(BP79="",BW79=""),"",IF($C78="TOTAL",SUM($AE$8:AE77),BP79))),"") ->  | AF78: =IFERROR(IF(C78="","",IF($C78="TOTAL",SUM($AF$8:AF77),ROUND(R78*$AU$7%,0))),"") ->  | AH78: =IFERROR(IF(C78="","",IF($C78="TOTAL",SUM($AH$8:AH77),SUM(R78-AG78))),"") ->  | AQ78: 42 | AR78: 42 | AT78: 2022-10-01 | AU78: 2022-10-01 | AV78: 2025-01-01 | BQ78: 0 | BR78: 0 | BZ78: =IF(AZ79="","",IF(AZ79="TOTAL","",IF($AU$16=$AU$17,0,IF(AND(AZ79>$BY$1,$AI$3=$AR$2,'Master Sheet'!$D$27>0),'Master Sheet'!$D$27,IF(AND(AZ79=$BY$1),IF($AU$9<18001,135,IF($AU$9<33501,220,IF($AU$9<54001,330,440))),IF(AND(AZ79>$BY$1),IF($AU$9<18001,265,IF($AU$9<33501,440,IF($AU$9<54001,658,875))),"")))))) -> 
D79: =IFERROR(IF($C78="TOTAL","अक्षरें राशि :-",IF($C79="TOTAL",SUM($D$8:D78),IF(BA80="","",BA80))),"") ->  | E79: =IFERROR(IF($C79="TOTAL",SUM($E$8:E78),IF(BC80="","",BC80)),"") ->  | F79: =IFERROR(IF($C79="TOTAL",SUM($F$8:F78),IF(BD80="","",BD80)),"") ->  | G79: =IFERROR(IF($C79="TOTAL",SUM($G$8:G78),IF(BB80="","",BB80)),"") ->  | I79: =IFERROR(IF($C79="TOTAL",SUM($I$8:I78),IF(BF80="","",BF80)),"") ->  | J79: =IFERROR(IF($C79="TOTAL",SUM($J$8:J78),IF(BH80="","",BH80)),"") ->  | K79: =IFERROR(IF($C79="TOTAL",SUM($K$8:K78),IF(BI80="","",BI80)),"") ->  | L79: =IFERROR(IF($C79="TOTAL",SUM($L$8:L78),IF(BG80="","",BG80)),"") ->  | N79: =IFERROR(IF(C79="","",IF(D79="","",IF(I79="","",IF($C79="TOTAL",SUM($N$8:N78),SUM(D79-I79))))),"") ->  | O79: =IFERROR(IF(C79="","",IF(E79="","",IF(J79="","",IF($C79="TOTAL",SUM($O$8:O78),SUM(E79-J79))))),"") ->  | P79: =IFERROR(IF(C79="","",IF(F79="","",IF(K79="","",IF($C79="TOTAL",SUM($P$8:P78),SUM(F79-K79))))),"") ->  | S79: =IFERROR(IF(C79="","",IF($C79="TOTAL",SUM($S$8:S78),IF(AND(C79>$AR$1,$AI$3=$AR$2),BW80,IF($AU$18=$AU$20,SUM(BJ80+BR80),ROUND((D79+E79)*10%,0))))),"") ->  | T79: =IFERROR(IF(C79="","",IF(I79="","",IF(J79="","",IF($C79="TOTAL",SUM($T$8:T78),IF(AND(C79>$AR$1,$AI$3=$AR$2),BW80,IF($AU$18=$AU$20,$AU$21,ROUND((I79+J79)*10%,0))))))),"") ->  | V79: =IFERROR(IF(C79="","",IF($AU$16=$AU$17,0,IF($C79="TOTAL",SUM($V$8:V78),IF($AU$19=$AU$20,$AU$25,0)))),"") ->  | W79: =IFERROR(IF(C79="","",IF($AU$16=$AU$17,0,IF($C79="TOTAL",SUM($W$8:W78),IF($AU$19=$AU$20,$AU$24,0)))),"") ->  | Y79: =IFERROR(IF(C79="","",IF($AU$16=$AU$17,0,IF($C79="TOTAL",SUM($Y$8:Y78),BZ79))),"") ->  | Z79: =IFERROR(IF(C79="","",IF($AU$16=$AU$17,0,IF($C79="TOTAL",SUM($Z$8:Z78),BY79))),"") ->  | AB79: =IFERROR(IF(C79="","",IF(D79="","",IF($C79="TOTAL",SUM($AB$8:AB78),IF(C79=$AU$1,ROUND(D79*5/31,0.01),"")))),"") ->  | AC79: =IFERROR(IF(C79="","",IF(I79="","",IF($C79="TOTAL",SUM($AC$8:AC78),IF(C79=$AU$1,ROUND(I79*5/31,0.01),"")))),"") ->  | AE79: =IFERROR(IF(C79="","",IF(AND(BP80="",BW80=""),"",IF($C79="TOTAL",SUM($AE$8:AE78),BP80))),"") ->  | AF79: =IFERROR(IF(C79="","",IF($C79="TOTAL",SUM($AF$8:AF78),ROUND(R79*$AU$7%,0))),"") ->  | AH79: =IFERROR(IF(C79="","",IF($C79="TOTAL",SUM($AH$8:AH78),SUM(R79-AG79))),"") ->  | AQ79: 42 | AR79: 42 | AT79: 2022-11-01 | AU79: 2022-11-01 | AV79: 2025-02-01 | BQ79: 0 | BR79: 0 | BZ79: =IF(AZ80="","",IF(AZ80="TOTAL","",IF($AU$16=$AU$17,0,IF(AND(AZ80>$BY$1,$AI$3=$AR$2,'Master Sheet'!$D$27>0),'Master Sheet'!$D$27,IF(AND(AZ80=$BY$1),IF($AU$9<18001,135,IF($AU$9<33501,220,IF($AU$9<54001,330,440))),IF(AND(AZ80>$BY$1),IF($AU$9<18001,265,IF($AU$9<33501,440,IF($AU$9<54001,658,875))),"")))))) -> 
D80: =IFERROR(IF($C79="TOTAL","अक्षरें राशि :-",IF($C80="TOTAL",SUM($D$8:D79),IF(BA81="","",BA81))),"") ->  | E80: =IFERROR(IF($C80="TOTAL",SUM($E$8:E79),IF(BC81="","",BC81)),"") ->  | F80: =IFERROR(IF($C80="TOTAL",SUM($F$8:F79),IF(BD81="","",BD81)),"") ->  | G80: =IFERROR(IF($C80="TOTAL",SUM($G$8:G79),IF(BB81="","",BB81)),"") ->  | I80: =IFERROR(IF($C80="TOTAL",SUM($I$8:I79),IF(BF81="","",BF81)),"") ->  | J80: =IFERROR(IF($C80="TOTAL",SUM($J$8:J79),IF(BH81="","",BH81)),"") ->  | K80: =IFERROR(IF($C80="TOTAL",SUM($K$8:K79),IF(BI81="","",BI81)),"") ->  | L80: =IFERROR(IF($C80="TOTAL",SUM($L$8:L79),IF(BG81="","",BG81)),"") ->  | N80: =IFERROR(IF(C80="","",IF(D80="","",IF(I80="","",IF($C80="TOTAL",SUM($N$8:N79),SUM(D80-I80))))),"") ->  | O80: =IFERROR(IF(C80="","",IF(E80="","",IF(J80="","",IF($C80="TOTAL",SUM($O$8:O79),SUM(E80-J80))))),"") ->  | P80: =IFERROR(IF(C80="","",IF(F80="","",IF(K80="","",IF($C80="TOTAL",SUM($P$8:P79),SUM(F80-K80))))),"") ->  | S80: =IFERROR(IF(C80="","",IF($C80="TOTAL",SUM($S$8:S79),IF(AND(C80>$AR$1,$AI$3=$AR$2),BW81,IF($AU$18=$AU$20,SUM(BJ81+BR81),ROUND((D80+E80)*10%,0))))),"") ->  | T80: =IFERROR(IF(C80="","",IF(I80="","",IF(J80="","",IF($C80="TOTAL",SUM($T$8:T79),IF(AND(C80>$AR$1,$AI$3=$AR$2),BW81,IF($AU$18=$AU$20,$AU$21,ROUND((I80+J80)*10%,0))))))),"") ->  | V80: =IFERROR(IF(C80="","",IF($AU$16=$AU$17,0,IF($C80="TOTAL",SUM($V$8:V79),IF($AU$19=$AU$20,$AU$25,0)))),"") ->  | W80: =IFERROR(IF(C80="","",IF($AU$16=$AU$17,0,IF($C80="TOTAL",SUM($W$8:W79),IF($AU$19=$AU$20,$AU$24,0)))),"") ->  | Y80: =IFERROR(IF(C80="","",IF($AU$16=$AU$17,0,IF($C80="TOTAL",SUM($Y$8:Y79),BZ80))),"") ->  | Z80: =IFERROR(IF(C80="","",IF($AU$16=$AU$17,0,IF($C80="TOTAL",SUM($Z$8:Z79),BY80))),"") ->  | AB80: =IFERROR(IF(C80="","",IF(D80="","",IF($C80="TOTAL",SUM($AB$8:AB79),IF(C80=$AU$1,ROUND(D80*5/31,0.01),"")))),"") ->  | AC80: =IFERROR(IF(C80="","",IF(I80="","",IF($C80="TOTAL",SUM($AC$8:AC79),IF(C80=$AU$1,ROUND(I80*5/31,0.01),"")))),"") ->  | AE80: =IFERROR(IF(C80="","",IF(AND(BP81="",BW81=""),"",IF($C80="TOTAL",SUM($AE$8:AE79),BP81))),"") ->  | AF80: =IFERROR(IF(C80="","",IF($C80="TOTAL",SUM($AF$8:AF79),ROUND(R80*$AU$7%,0))),"") ->  | AH80: =IFERROR(IF(C80="","",IF($C80="TOTAL",SUM($AH$8:AH79),SUM(R80-AG80))),"") ->  | AQ80: 42 | AR80: 42 | AT80: 2022-12-01 | AU80: 2022-12-01 | AV80: =IF(AND($AU$6>$AV$6),"",DATE(YEAR(AV79),MONTH(AV79)+1,DAY(AV79))) -> 2025-03-01 | BQ80: 0 | BR80: 0 | BZ80: =IF(AZ81="","",IF(AZ81="TOTAL","",IF($AU$16=$AU$17,0,IF(AND(AZ81>$BY$1,$AI$3=$AR$2,'Master Sheet'!$D$27>0),'Master Sheet'!$D$27,IF(AND(AZ81=$BY$1),IF($AU$9<18001,135,IF($AU$9<33501,220,IF($AU$9<54001,330,440))),IF(AND(AZ81>$BY$1),IF($AU$9<18001,265,IF($AU$9<33501,440,IF($AU$9<54001,658,875))),"")))))) -> 
C81: =IFERROR(IF(AZ82="","",AZ82),"") ->  | D81: =IFERROR(IF($C80="TOTAL","अक्षरें राशि :-",IF($C81="TOTAL",SUM($D$8:D80),IF(BA82="","",BA82))),"") ->  | E81: =IFERROR(IF($C81="TOTAL",SUM($E$8:E80),IF(BC82="","",BC82)),"") ->  | F81: =IFERROR(IF($C81="TOTAL",SUM($F$8:F80),IF(BD82="","",BD82)),"") ->  | G81: =IFERROR(IF($C81="TOTAL",SUM($G$8:G80),IF(BB82="","",BB82)),"") ->  | I81: =IFERROR(IF($C81="TOTAL",SUM($I$8:I80),IF(BF82="","",BF82)),"") ->  | J81: =IFERROR(IF($C81="TOTAL",SUM($J$8:J80),IF(BH82="","",BH82)),"") ->  | K81: =IFERROR(IF($C81="TOTAL",SUM($K$8:K80),IF(BI82="","",BI82)),"") ->  | L81: =IFERROR(IF($C81="TOTAL",SUM($L$8:L80),IF(BG82="","",BG82)),"") ->  | N81: =IFERROR(IF(C81="","",IF(D81="","",IF(I81="","",IF($C81="TOTAL",SUM($N$8:N80),SUM(D81-I81))))),"") ->  | O81: =IFERROR(IF(C81="","",IF(E81="","",IF(J81="","",IF($C81="TOTAL",SUM($O$8:O80),SUM(E81-J81))))),"") ->  | P81: =IFERROR(IF(C81="","",IF(F81="","",IF(K81="","",IF($C81="TOTAL",SUM($P$8:P80),SUM(F81-K81))))),"") ->  | R81: =IFERROR(IF(C81="","",IF(H81="","",IF(M81="","",SUM(H81-M81)))),"") ->  | S81: =IFERROR(IF(C81="","",IF($C81="TOTAL",SUM($S$8:S80),IF(AND(C81>$AR$1,$AI$3=$AR$2),BW82,IF($AU$18=$AU$20,SUM(BJ82+BR82),ROUND((D81+E81)*10%,0))))),"") ->  | T81: =IFERROR(IF(C81="","",IF(I81="","",IF(J81="","",IF($C81="TOTAL",SUM($T$8:T80),IF(AND(C81>$AR$1,$AI$3=$AR$2),BW82,IF($AU$18=$AU$20,$AU$21,ROUND((I81+J81)*10%,0))))))),"") ->  | U81: =IFERROR(IF(C81="","",SUM(S81-T81)),"") ->  | V81: =IFERROR(IF(C81="","",IF($AU$16=$AU$17,0,IF($C81="TOTAL",SUM($V$8:V80),IF($AU$19=$AU$20,$AU$25,0)))),"") ->  | W81: =IFERROR(IF(C81="","",IF($AU$16=$AU$17,0,IF($C81="TOTAL",SUM($W$8:W80),IF($AU$19=$AU$20,$AU$24,0)))),"") ->  | X81: =IFERROR(IF(C81="","",SUM(V81-W81)),"") ->  | Y81: =IFERROR(IF(C81="","",IF($AU$16=$AU$17,0,IF($C81="TOTAL",SUM($Y$8:Y80),BZ81))),"") ->  | Z81: =IFERROR(IF(C81="","",IF($AU$16=$AU$17,0,IF($C81="TOTAL",SUM($Z$8:Z80),BY81))),"") ->  | AB81: =IFERROR(IF(C81="","",IF(D81="","",IF($C81="TOTAL",SUM($AB$8:AB80),IF(C81=$AU$1,ROUND(D81*5/31,0.01),"")))),"") ->  | AC81: =IFERROR(IF(C81="","",IF(I81="","",IF($C81="TOTAL",SUM($AC$8:AC80),IF(C81=$AU$1,ROUND(I81*5/31,0.01),"")))),"") ->  | AE81: =IFERROR(IF(C81="","",IF(AND(BP82="",BW82=""),"",IF($C81="TOTAL",SUM($AE$8:AE80),BP82))),"") ->  | AF81: =IFERROR(IF(C81="","",IF($C81="TOTAL",SUM($AF$8:AF80),ROUND(R81*$AU$7%,0))),"") ->  | AH81: =IFERROR(IF(C81="","",IF($C81="TOTAL",SUM($AH$8:AH80),SUM(R81-AG81))),"") ->  | AQ81: 42 | AR81: 42 | AT81: 2023-01-01 | AU81: 2023-01-01 | AV81: 2025-04-01 | BQ81: 0 | BR81: 0 | BZ81: =IF(AZ82="","",IF(AZ82="TOTAL","",IF($AU$16=$AU$17,0,IF(AND(AZ82>$BY$1,$AI$3=$AR$2,'Master Sheet'!$D$27>0),'Master Sheet'!$D$27,IF(AND(AZ82=$BY$1),IF($AU$9<18001,135,IF($AU$9<33501,220,IF($AU$9<54001,330,440))),IF(AND(AZ82>$BY$1),IF($AU$9<18001,265,IF($AU$9<33501,440,IF($AU$9<54001,658,875))),"")))))) -> 
D82: =IFERROR(IF($C81="TOTAL","अक्षरें राशि :-",IF($C82="TOTAL",SUM($D$8:D81),IF(BA83="","",BA83))),"") ->  | E82: =IFERROR(IF($C82="TOTAL",SUM($E$8:E81),IF(BC83="","",BC83)),"") ->  | F82: =IFERROR(IF($C82="TOTAL",SUM($F$8:F81),IF(BD83="","",BD83)),"") ->  | G82: =IFERROR(IF($C82="TOTAL",SUM($G$8:G81),IF(BB83="","",BB83)),"") ->  | I82: =IFERROR(IF($C82="TOTAL",SUM($I$8:I81),IF(BF83="","",BF83)),"") ->  | J82: =IFERROR(IF($C82="TOTAL",SUM($J$8:J81),IF(BH83="","",BH83)),"") ->  | K82: =IFERROR(IF($C82="TOTAL",SUM($K$8:K81),IF(BI83="","",BI83)),"") ->  | L82: =IFERROR(IF($C82="TOTAL",SUM($L$8:L81),IF(BG83="","",BG83)),"") ->  | N82: =IFERROR(IF(C82="","",IF(D82="","",IF(I82="","",IF($C82="TOTAL",SUM($N$8:N81),SUM(D82-I82))))),"") ->  | O82: =IFERROR(IF(C82="","",IF(E82="","",IF(J82="","",IF($C82="TOTAL",SUM($O$8:O81),SUM(E82-J82))))),"") ->  | P82: =IFERROR(IF(C82="","",IF(F82="","",IF(K82="","",IF($C82="TOTAL",SUM($P$8:P81),SUM(F82-K82))))),"") ->  | S82: =IFERROR(IF(C82="","",IF($C82="TOTAL",SUM($S$8:S81),IF(AND(C82>$AR$1,$AI$3=$AR$2),BW83,IF($AU$18=$AU$20,SUM(BJ83+BR83),ROUND((D82+E82)*10%,0))))),"") ->  | T82: =IFERROR(IF(C82="","",IF(I82="","",IF(J82="","",IF($C82="TOTAL",SUM($T$8:T81),IF(AND(C82>$AR$1,$AI$3=$AR$2),BW83,IF($AU$18=$AU$20,$AU$21,ROUND((I82+J82)*10%,0))))))),"") ->  | V82: =IFERROR(IF(C82="","",IF($AU$16=$AU$17,0,IF($C82="TOTAL",SUM($V$8:V81),IF($AU$19=$AU$20,$AU$25,0)))),"") ->  | W82: =IFERROR(IF(C82="","",IF($AU$16=$AU$17,0,IF($C82="TOTAL",SUM($W$8:W81),IF($AU$19=$AU$20,$AU$24,0)))),"") ->  | Y82: =IFERROR(IF(C82="","",IF($AU$16=$AU$17,0,IF($C82="TOTAL",SUM($Y$8:Y81),BZ82))),"") ->  | Z82: =IFERROR(IF(C82="","",IF($AU$16=$AU$17,0,IF($C82="TOTAL",SUM($Z$8:Z81),BY82))),"") ->  | AB82: =IFERROR(IF(C82="","",IF(D82="","",IF($C82="TOTAL",SUM($AB$8:AB81),IF(C82=$AU$1,ROUND(D82*5/31,0.01),"")))),"") ->  | AC82: =IFERROR(IF(C82="","",IF(I82="","",IF($C82="TOTAL",SUM($AC$8:AC81),IF(C82=$AU$1,ROUND(I82*5/31,0.01),"")))),"") ->  | AE82: =IFERROR(IF(C82="","",IF(AND(BP83="",BW83=""),"",IF($C82="TOTAL",SUM($AE$8:AE81),BP83))),"") ->  | AF82: =IFERROR(IF(C82="","",IF($C82="TOTAL",SUM($AF$8:AF81),ROUND(R82*$AU$7%,0))),"") ->  | AH82: =IFERROR(IF(C82="","",IF($C82="TOTAL",SUM($AH$8:AH81),SUM(R82-AG82))),"") ->  | AQ82: 42 | AR82: 42 | AT82: 2023-02-01 | AU82: 2023-02-01 | AV82: 2025-05-01 | BQ82: 0 | BR82: 0 | BZ82: =IF(AZ83="","",IF(AZ83="TOTAL","",IF($AU$16=$AU$17,0,IF(AND(AZ83>$BY$1,$AI$3=$AR$2,'Master Sheet'!$D$27>0),'Master Sheet'!$D$27,IF(AND(AZ83=$BY$1),IF($AU$9<18001,135,IF($AU$9<33501,220,IF($AU$9<54001,330,440))),IF(AND(AZ83>$BY$1),IF($AU$9<18001,265,IF($AU$9<33501,440,IF($AU$9<54001,658,875))),"")))))) -> 
D83: =IFERROR(IF($C82="TOTAL","अक्षरें राशि :-",IF($C83="TOTAL",SUM($D$8:D82),IF(BA84="","",BA84))),"") ->  | E83: =IFERROR(IF($C83="TOTAL",SUM($E$8:E82),IF(BC84="","",BC84)),"") ->  | F83: =IFERROR(IF($C83="TOTAL",SUM($F$8:F82),IF(BD84="","",BD84)),"") ->  | G83: =IFERROR(IF($C83="TOTAL",SUM($G$8:G82),IF(BB84="","",BB84)),"") ->  | I83: =IFERROR(IF($C83="TOTAL",SUM($I$8:I82),IF(BF84="","",BF84)),"") ->  | J83: =IFERROR(IF($C83="TOTAL",SUM($J$8:J82),IF(BH84="","",BH84)),"") ->  | K83: =IFERROR(IF($C83="TOTAL",SUM($K$8:K82),IF(BI84="","",BI84)),"") ->  | L83: =IFERROR(IF($C83="TOTAL",SUM($L$8:L82),IF(BG84="","",BG84)),"") ->  | N83: =IFERROR(IF(C83="","",IF(D83="","",IF(I83="","",IF($C83="TOTAL",SUM($N$8:N82),SUM(D83-I83))))),"") ->  | O83: =IFERROR(IF(C83="","",IF(E83="","",IF(J83="","",IF($C83="TOTAL",SUM($O$8:O82),SUM(E83-J83))))),"") ->  | P83: =IFERROR(IF(C83="","",IF(F83="","",IF(K83="","",IF($C83="TOTAL",SUM($P$8:P82),SUM(F83-K83))))),"") ->  | S83: =IFERROR(IF(C83="","",IF($C83="TOTAL",SUM($S$8:S82),IF(AND(C83>$AR$1,$AI$3=$AR$2),BW84,IF($AU$18=$AU$20,SUM(BJ84+BR84),ROUND((D83+E83)*10%,0))))),"") ->  | T83: =IFERROR(IF(C83="","",IF(I83="","",IF(J83="","",IF($C83="TOTAL",SUM($T$8:T82),IF(AND(C83>$AR$1,$AI$3=$AR$2),BW84,IF($AU$18=$AU$20,$AU$21,ROUND((I83+J83)*10%,0))))))),"") ->  | V83: =IFERROR(IF(C83="","",IF($AU$16=$AU$17,0,IF($C83="TOTAL",SUM($V$8:V82),IF($AU$19=$AU$20,$AU$25,0)))),"") ->  | W83: =IFERROR(IF(C83="","",IF($AU$16=$AU$17,0,IF($C83="TOTAL",SUM($W$8:W82),IF($AU$19=$AU$20,$AU$24,0)))),"") ->  | Y83: =IFERROR(IF(C83="","",IF($AU$16=$AU$17,0,IF($C83="TOTAL",SUM($Y$8:Y82),BZ83))),"") ->  | Z83: =IFERROR(IF(C83="","",IF($AU$16=$AU$17,0,IF($C83="TOTAL",SUM($Z$8:Z82),BY83))),"") ->  | AB83: =IFERROR(IF(C83="","",IF(D83="","",IF($C83="TOTAL",SUM($AB$8:AB82),IF(C83=$AU$1,ROUND(D83*5/31,0.01),"")))),"") ->  | AC83: =IFERROR(IF(C83="","",IF(I83="","",IF($C83="TOTAL",SUM($AC$8:AC82),IF(C83=$AU$1,ROUND(I83*5/31,0.01),"")))),"") ->  | AE83: =IFERROR(IF(C83="","",IF(AND(BP84="",BW84=""),"",IF($C83="TOTAL",SUM($AE$8:AE82),BP84))),"") ->  | AF83: =IFERROR(IF(C83="","",IF($C83="TOTAL",SUM($AF$8:AF82),ROUND(R83*$AU$7%,0))),"") ->  | AH83: =IFERROR(IF(C83="","",IF($C83="TOTAL",SUM($AH$8:AH82),SUM(R83-AG83))),"") ->  | AQ83: 42 | AR83: 42 | AT83: 2023-03-01 | AU83: 2023-03-01 | AV83: 2025-06-01 | BQ83: 0 | BR83: 0 | BZ83: =IF(AZ84="","",IF(AZ84="TOTAL","",IF($AU$16=$AU$17,0,IF(AND(AZ84>$BY$1,$AI$3=$AR$2,'Master Sheet'!$D$27>0),'Master Sheet'!$D$27,IF(AND(AZ84=$BY$1),IF($AU$9<18001,135,IF($AU$9<33501,220,IF($AU$9<54001,330,440))),IF(AND(AZ84>$BY$1),IF($AU$9<18001,265,IF($AU$9<33501,440,IF($AU$9<54001,658,875))),"")))))) -> 
A84: =IF(C84="TOTAL","",IF(B83="","",IF(LEN(C84)>=2,B83+1,0))) ->  | D84: =IFERROR(IF($C83="TOTAL","अक्षरें राशि :-",IF($C84="TOTAL",SUM($D$8:D83),IF(BA85="","",BA85))),"") ->  | E84: =IFERROR(IF($C84="TOTAL",SUM($E$8:E83),IF(BC85="","",BC85)),"") ->  | F84: =IFERROR(IF($C84="TOTAL",SUM($F$8:F83),IF(BD85="","",BD85)),"") ->  | G84: =IFERROR(IF($C84="TOTAL",SUM($G$8:G83),IF(BB85="","",BB85)),"") ->  | I84: =IFERROR(IF($C84="TOTAL",SUM($I$8:I83),IF(BF85="","",BF85)),"") ->  | J84: =IFERROR(IF($C84="TOTAL",SUM($J$8:J83),IF(BH85="","",BH85)),"") ->  | K84: =IFERROR(IF($C84="TOTAL",SUM($K$8:K83),IF(BI85="","",BI85)),"") ->  | L84: =IFERROR(IF($C84="TOTAL",SUM($L$8:L83),IF(BG85="","",BG85)),"") ->  | N84: =IFERROR(IF(C84="","",IF(D84="","",IF(I84="","",IF($C84="TOTAL",SUM($N$8:N83),SUM(D84-I84))))),"") ->  | O84: =IFERROR(IF(C84="","",IF(E84="","",IF(J84="","",IF($C84="TOTAL",SUM($O$8:O83),SUM(E84-J84))))),"") ->  | P84: =IFERROR(IF(C84="","",IF(F84="","",IF(K84="","",IF($C84="TOTAL",SUM($P$8:P83),SUM(F84-K84))))),"") ->  | S84: =IFERROR(IF(C84="","",IF($C84="TOTAL",SUM($S$8:S83),IF(AND(C84>$AR$1,$AI$3=$AR$2),BW85,IF($AU$18=$AU$20,SUM(BJ85+BR85),ROUND((D84+E84)*10%,0))))),"") ->  | T84: =IFERROR(IF(C84="","",IF(I84="","",IF(J84="","",IF($C84="TOTAL",SUM($T$8:T83),IF(AND(C84>$AR$1,$AI$3=$AR$2),BW85,IF($AU$18=$AU$20,$AU$21,ROUND((I84+J84)*10%,0))))))),"") ->  | V84: =IFERROR(IF(C84="","",IF($AU$16=$AU$17,0,IF($C84="TOTAL",SUM($V$8:V83),IF($AU$19=$AU$20,$AU$25,0)))),"") ->  | W84: =IFERROR(IF(C84="","",IF($AU$16=$AU$17,0,IF($C84="TOTAL",SUM($W$8:W83),IF($AU$19=$AU$20,$AU$24,0)))),"") ->  | Y84: =IFERROR(IF(C84="","",IF($AU$16=$AU$17,0,IF($C84="TOTAL",SUM($Y$8:Y83),BZ84))),"") ->  | Z84: =IFERROR(IF(C84="","",IF($AU$16=$AU$17,0,IF($C84="TOTAL",SUM($Z$8:Z83),BY84))),"") ->  | AB84: =IFERROR(IF(C84="","",IF(D84="","",IF($C84="TOTAL",SUM($AB$8:AB83),IF(C84=$AU$1,ROUND(D84*5/31,0.01),"")))),"") ->  | AC84: =IFERROR(IF(C84="","",IF(I84="","",IF($C84="TOTAL",SUM($AC$8:AC83),IF(C84=$AU$1,ROUND(I84*5/31,0.01),"")))),"") ->  | AE84: =IFERROR(IF(C84="","",IF(AND(BP85="",BW85=""),"",IF($C84="TOTAL",SUM($AE$8:AE83),BP85))),"") ->  | AF84: =IFERROR(IF(C84="","",IF($C84="TOTAL",SUM($AF$8:AF83),ROUND(R84*$AU$7%,0))),"") ->  | AH84: =IFERROR(IF(C84="","",IF($C84="TOTAL",SUM($AH$8:AH83),SUM(R84-AG84))),"") ->  | AQ84: 42 | AR84: 42 | AT84: 2023-04-01 | AU84: 2023-04-01 | AV84: =IF(AND($AU$6>$AV$6),"",DATE(YEAR(AV83),MONTH(AV83)+1,DAY(AV83))) -> 2025-07-01 | AZ84: =IFERROR(IF(AY84="","",IF(DATE(YEAR(AY84),MONTH(AY84),DAY(AY84))=DATE(YEAR($AV$6),MONTH($AV$6)+1,DAY($AV$6)),"TOTAL",IF(AY84>$AV$6,"",AY84))),"") ->  | BQ84: 0 | BR84: 0 | BZ84: =IF(AZ85="","",IF(AZ85="TOTAL","",IF($AU$16=$AU$17,0,IF(AND(AZ85>$BY$1,$AI$3=$AR$2,'Master Sheet'!$D$27>0),'Master Sheet'!$D$27,IF(AND(AZ85=$BY$1),IF($AU$9<18001,135,IF($AU$9<33501,220,IF($AU$9<54001,330,440))),IF(AND(AZ85>$BY$1),IF($AU$9<18001,265,IF($AU$9<33501,440,IF($AU$9<54001,658,875))),"")))))) -> 
D85: =IFERROR(IF($C84="TOTAL","अक्षरें राशि :-",IF($C85="TOTAL",SUM($D$8:D84),IF(BA86="","",BA86))),"") ->  | E85: =IFERROR(IF($C85="TOTAL",SUM($E$8:E84),IF(BC86="","",BC86)),"") ->  | F85: =IFERROR(IF($C85="TOTAL",SUM($F$8:F84),IF(BD86="","",BD86)),"") ->  | G85: =IFERROR(IF($C85="TOTAL",SUM($G$8:G84),IF(BB86="","",BB86)),"") ->  | I85: =IFERROR(IF($C85="TOTAL",SUM($I$8:I84),IF(BF86="","",BF86)),"") ->  | J85: =IFERROR(IF($C85="TOTAL",SUM($J$8:J84),IF(BH86="","",BH86)),"") ->  | K85: =IFERROR(IF($C85="TOTAL",SUM($K$8:K84),IF(BI86="","",BI86)),"") ->  | L85: =IFERROR(IF($C85="TOTAL",SUM($L$8:L84),IF(BG86="","",BG86)),"") ->  | N85: =IFERROR(IF(C85="","",IF(D85="","",IF(I85="","",IF($C85="TOTAL",SUM($N$8:N84),SUM(D85-I85))))),"") ->  | O85: =IFERROR(IF(C85="","",IF(E85="","",IF(J85="","",IF($C85="TOTAL",SUM($O$8:O84),SUM(E85-J85))))),"") ->  | P85: =IFERROR(IF(C85="","",IF(F85="","",IF(K85="","",IF($C85="TOTAL",SUM($P$8:P84),SUM(F85-K85))))),"") ->  | S85: =IFERROR(IF(C85="","",IF($C85="TOTAL",SUM($S$8:S84),IF(AND(C85>$AR$1,$AI$3=$AR$2),BW86,IF($AU$18=$AU$20,SUM(BJ86+BR86),ROUND((D85+E85)*10%,0))))),"") ->  | T85: =IFERROR(IF(C85="","",IF(I85="","",IF(J85="","",IF($C85="TOTAL",SUM($T$8:T84),IF(AND(C85>$AR$1,$AI$3=$AR$2),BW86,IF($AU$18=$AU$20,$AU$21,ROUND((I85+J85)*10%,0))))))),"") ->  | V85: =IFERROR(IF(C85="","",IF($AU$16=$AU$17,0,IF($C85="TOTAL",SUM($V$8:V84),IF($AU$19=$AU$20,$AU$25,0)))),"") ->  | W85: =IFERROR(IF(C85="","",IF($AU$16=$AU$17,0,IF($C85="TOTAL",SUM($W$8:W84),IF($AU$19=$AU$20,$AU$24,0)))),"") ->  | Y85: =IFERROR(IF(C85="","",IF($AU$16=$AU$17,0,IF($C85="TOTAL",SUM($Y$8:Y84),BZ85))),"") ->  | Z85: =IFERROR(IF(C85="","",IF($AU$16=$AU$17,0,IF($C85="TOTAL",SUM($Z$8:Z84),BY85))),"") ->  | AB85: =IFERROR(IF(C85="","",IF(D85="","",IF($C85="TOTAL",SUM($AB$8:AB84),IF(C85=$AU$1,ROUND(D85*5/31,0.01),"")))),"") ->  | AC85: =IFERROR(IF(C85="","",IF(I85="","",IF($C85="TOTAL",SUM($AC$8:AC84),IF(C85=$AU$1,ROUND(I85*5/31,0.01),"")))),"") ->  | AE85: =IFERROR(IF(C85="","",IF(AND(BP86="",BW86=""),"",IF($C85="TOTAL",SUM($AE$8:AE84),BP86))),"") ->  | AF85: =IFERROR(IF(C85="","",IF($C85="TOTAL",SUM($AF$8:AF84),ROUND(R85*$AU$7%,0))),"") ->  | AH85: =IFERROR(IF(C85="","",IF($C85="TOTAL",SUM($AH$8:AH84),SUM(R85-AG85))),"") ->  | AQ85: 42 | AR85: 42 | AT85: 2023-05-01 | AU85: 2023-05-01 | AV85: 2025-08-01 | AZ85: =IFERROR(IF(AY85="","",IF(DATE(YEAR(AY85),MONTH(AY85),DAY(AY85))=DATE(YEAR($AV$6),MONTH($AV$6)+1,DAY($AV$6)),"TOTAL",IF(AY85>$AV$6,"",AY85))),"") ->  | BQ85: 0 | BR85: 0 | BZ85: =IF(AZ86="","",IF(AZ86="TOTAL","",IF($AU$16=$AU$17,0,IF(AND(AZ86>$BY$1,$AI$3=$AR$2,'Master Sheet'!$D$27>0),'Master Sheet'!$D$27,IF(AND(AZ86=$BY$1),IF($AU$9<18001,135,IF($AU$9<33501,220,IF($AU$9<54001,330,440))),IF(AND(AZ86>$BY$1),IF($AU$9<18001,265,IF($AU$9<33501,440,IF($AU$9<54001,658,875))),"")))))) -> 
D86: =IFERROR(IF($C85="TOTAL","अक्षरें राशि :-",IF($C86="TOTAL",SUM($D$8:D85),IF(BA87="","",BA87))),"") ->  | E86: =IFERROR(IF($C86="TOTAL",SUM($E$8:E85),IF(BC87="","",BC87)),"") ->  | F86: =IFERROR(IF($C86="TOTAL",SUM($F$8:F85),IF(BD87="","",BD87)),"") ->  | G86: =IFERROR(IF($C86="TOTAL",SUM($G$8:G85),IF(BB87="","",BB87)),"") ->  | I86: =IFERROR(IF($C86="TOTAL",SUM($I$8:I85),IF(BF87="","",BF87)),"") ->  | J86: =IFERROR(IF($C86="TOTAL",SUM($J$8:J85),IF(BH87="","",BH87)),"") ->  | K86: =IFERROR(IF($C86="TOTAL",SUM($K$8:K85),IF(BI87="","",BI87)),"") ->  | L86: =IFERROR(IF($C86="TOTAL",SUM($L$8:L85),IF(BG87="","",BG87)),"") ->  | N86: =IFERROR(IF(C86="","",IF(D86="","",IF(I86="","",IF($C86="TOTAL",SUM($N$8:N85),SUM(D86-I86))))),"") ->  | O86: =IFERROR(IF(C86="","",IF(E86="","",IF(J86="","",IF($C86="TOTAL",SUM($O$8:O85),SUM(E86-J86))))),"") ->  | P86: =IFERROR(IF(C86="","",IF(F86="","",IF(K86="","",IF($C86="TOTAL",SUM($P$8:P85),SUM(F86-K86))))),"") ->  | S86: =IFERROR(IF(C86="","",IF($C86="TOTAL",SUM($S$8:S85),IF(AND(C86>$AR$1,$AI$3=$AR$2),BW87,IF($AU$18=$AU$20,SUM(BJ87+BR87),ROUND((D86+E86)*10%,0))))),"") ->  | T86: =IFERROR(IF(C86="","",IF(I86="","",IF(J86="","",IF($C86="TOTAL",SUM($T$8:T85),IF(AND(C86>$AR$1,$AI$3=$AR$2),BW87,IF($AU$18=$AU$20,$AU$21,ROUND((I86+J86)*10%,0))))))),"") ->  | V86: =IFERROR(IF(C86="","",IF($AU$16=$AU$17,0,IF($C86="TOTAL",SUM($V$8:V85),IF($AU$19=$AU$20,$AU$25,0)))),"") ->  | W86: =IFERROR(IF(C86="","",IF($AU$16=$AU$17,0,IF($C86="TOTAL",SUM($W$8:W85),IF($AU$19=$AU$20,$AU$24,0)))),"") ->  | Y86: =IFERROR(IF(C86="","",IF($AU$16=$AU$17,0,IF($C86="TOTAL",SUM($Y$8:Y85),BZ86))),"") ->  | Z86: =IFERROR(IF(C86="","",IF($AU$16=$AU$17,0,IF($C86="TOTAL",SUM($Z$8:Z85),BY86))),"") ->  | AB86: =IFERROR(IF(C86="","",IF(D86="","",IF($C86="TOTAL",SUM($AB$8:AB85),IF(C86=$AU$1,ROUND(D86*5/31,0.01),"")))),"") ->  | AC86: =IFERROR(IF(C86="","",IF(I86="","",IF($C86="TOTAL",SUM($AC$8:AC85),IF(C86=$AU$1,ROUND(I86*5/31,0.01),"")))),"") ->  | AE86: =IFERROR(IF(C86="","",IF(AND(BP87="",BW87=""),"",IF($C86="TOTAL",SUM($AE$8:AE85),BP87))),"") ->  | AF86: =IFERROR(IF(C86="","",IF($C86="TOTAL",SUM($AF$8:AF85),ROUND(R86*$AU$7%,0))),"") ->  | AH86: =IFERROR(IF(C86="","",IF($C86="TOTAL",SUM($AH$8:AH85),SUM(R86-AG86))),"") ->  | AQ86: 42 | AR86: 42 | AT86: 2023-06-01 | AU86: 2023-06-01 | AV86: 2025-09-01 | BQ86: 0 | BR86: 0 | BZ86: =IF(AZ87="","",IF(AZ87="TOTAL","",IF($AU$16=$AU$17,0,IF(AND(AZ87>$BY$1,$AI$3=$AR$2,'Master Sheet'!$D$27>0),'Master Sheet'!$D$27,IF(AND(AZ87=$BY$1),IF($AU$9<18001,135,IF($AU$9<33501,220,IF($AU$9<54001,330,440))),IF(AND(AZ87>$BY$1),IF($AU$9<18001,265,IF($AU$9<33501,440,IF($AU$9<54001,658,875))),"")))))) -> 
D87: =IFERROR(IF($C86="TOTAL","अक्षरें राशि :-",IF($C87="TOTAL",SUM($D$8:D86),IF(BA88="","",BA88))),"") ->  | E87: =IFERROR(IF($C87="TOTAL",SUM($E$8:E86),IF(BC88="","",BC88)),"") ->  | F87: =IFERROR(IF($C87="TOTAL",SUM($F$8:F86),IF(BD88="","",BD88)),"") ->  | G87: =IFERROR(IF($C87="TOTAL",SUM($G$8:G86),IF(BB88="","",BB88)),"") ->  | I87: =IFERROR(IF($C87="TOTAL",SUM($I$8:I86),IF(BF88="","",BF88)),"") ->  | J87: =IFERROR(IF($C87="TOTAL",SUM($J$8:J86),IF(BH88="","",BH88)),"") ->  | K87: =IFERROR(IF($C87="TOTAL",SUM($K$8:K86),IF(BI88="","",BI88)),"") ->  | L87: =IFERROR(IF($C87="TOTAL",SUM($L$8:L86),IF(BG88="","",BG88)),"") ->  | N87: =IFERROR(IF(C87="","",IF(D87="","",IF(I87="","",IF($C87="TOTAL",SUM($N$8:N86),SUM(D87-I87))))),"") ->  | O87: =IFERROR(IF(C87="","",IF(E87="","",IF(J87="","",IF($C87="TOTAL",SUM($O$8:O86),SUM(E87-J87))))),"") ->  | P87: =IFERROR(IF(C87="","",IF(F87="","",IF(K87="","",IF($C87="TOTAL",SUM($P$8:P86),SUM(F87-K87))))),"") ->  | S87: =IFERROR(IF(C87="","",IF($C87="TOTAL",SUM($S$8:S86),IF(AND(C87>$AR$1,$AI$3=$AR$2),BW88,IF($AU$18=$AU$20,SUM(BJ88+BR88),ROUND((D87+E87)*10%,0))))),"") ->  | T87: =IFERROR(IF(C87="","",IF(I87="","",IF(J87="","",IF($C87="TOTAL",SUM($T$8:T86),IF(AND(C87>$AR$1,$AI$3=$AR$2),BW88,IF($AU$18=$AU$20,$AU$21,ROUND((I87+J87)*10%,0))))))),"") ->  | V87: =IFERROR(IF(C87="","",IF($AU$16=$AU$17,0,IF($C87="TOTAL",SUM($V$8:V86),IF($AU$19=$AU$20,$AU$25,0)))),"") ->  | W87: =IFERROR(IF(C87="","",IF($AU$16=$AU$17,0,IF($C87="TOTAL",SUM($W$8:W86),IF($AU$19=$AU$20,$AU$24,0)))),"") ->  | Y87: =IFERROR(IF(C87="","",IF($AU$16=$AU$17,0,IF($C87="TOTAL",SUM($Y$8:Y86),BZ87))),"") ->  | Z87: =IFERROR(IF(C87="","",IF($AU$16=$AU$17,0,IF($C87="TOTAL",SUM($Z$8:Z86),BY87))),"") ->  | AB87: =IFERROR(IF(C87="","",IF(D87="","",IF($C87="TOTAL",SUM($AB$8:AB86),IF(C87=$AU$1,ROUND(D87*5/31,0.01),"")))),"") ->  | AC87: =IFERROR(IF(C87="","",IF(I87="","",IF($C87="TOTAL",SUM($AC$8:AC86),IF(C87=$AU$1,ROUND(I87*5/31,0.01),"")))),"") ->  | AE87: =IFERROR(IF(C87="","",IF(AND(BP88="",BW88=""),"",IF($C87="TOTAL",SUM($AE$8:AE86),BP88))),"") ->  | AF87: =IFERROR(IF(C87="","",IF($C87="TOTAL",SUM($AF$8:AF86),ROUND(R87*$AU$7%,0))),"") ->  | AH87: =IFERROR(IF(C87="","",IF($C87="TOTAL",SUM($AH$8:AH86),SUM(R87-AG87))),"") ->  | AQ87: 42 | AR87: 42 | AT87: 2023-07-01 | AU87: 2023-07-01 | AV87: =IF(AND($AU$6>$AV$6),"",DATE(YEAR(AV86),MONTH(AV86)+1,DAY(AV86))) -> 2025-10-01 | BQ87: 0 | BR87: 0 | BZ87: =IF(AZ88="","",IF(AZ88="TOTAL","",IF($AU$16=$AU$17,0,IF(AND(AZ88>$BY$1,$AI$3=$AR$2,'Master Sheet'!$D$27>0),'Master Sheet'!$D$27,IF(AND(AZ88=$BY$1),IF($AU$9<18001,135,IF($AU$9<33501,220,IF($AU$9<54001,330,440))),IF(AND(AZ88>$BY$1),IF($AU$9<18001,265,IF($AU$9<33501,440,IF($AU$9<54001,658,875))),"")))))) -> 
